Workbook

Sheet Gráfico B1-residencial (hidden)
D4: =D5/$J$5 -> 0.1841672238 | E4: =E5/$J$5 -> 0.3417061807 | F4: =F5/$J$5 -> 0.1715662619 | G4: =G5/$J$5 -> 0.06769336798 | H4: =H5/$J$5 -> 0.2348669657
D5: 249586 | E5: 463085 | F5: 232509 | G5: 91739 | H5: 318295 | J5: =SUM(D5:H5) -> 1355214
B6: Data | C6: Processo | D6: Bragantina | E6: Caiua | F6: Nacional | G6: Oeste | H6: Vale | I6: ESS | J6: IGP-M | K6: IPCA
B7: 2012-04-01 | C7: Revisão 2012 | D7: 382.81 | E7: 326.98 | F7: 338.46 | G7: 333.56 | H7: 319.8 | J7: =AVERAGE(D7:H7) -> 340.322 | K7: =AVERAGE(D7:H7) -> 340.322
B8: 2012-12-01 | C8: RTE 2013 | D8: =AVERAGE($E$8*D7/$E$7,$E$8*D9/$E$9) -> 306.67723 | E8: 267.86 | F8: =AVERAGE($E$8*F7/$E$7,$E$8*F9/$E$9) -> 266.3724348 | G8: =AVERAGE($E$8*G7/$E$7,$E$8*G9/$E$9) -> 271.7768065 | H8: =AVERAGE($E$8*H7/$E$7,$E$8*H9/$E$9) -> 266.3217394 | J8: =J7*VLOOKUP(B8,Índices!$B$159:$F$500,2,0)/VLOOKUP(B7,Índices!$B$159:$F$500,2,0) -> 361.5982815 | K8: =K7*VLOOKUP(B8,Índices!$B$159:$F$500,3,0)/VLOOKUP(B7,Índices!$B$159:$F$500,3,0) -> 353.5718919
B9: 2013-04-01 | C9: Reajuste 2013 | D9: 331.25 | E9: 296 | F9: 282.32 | G9: 298.7 | H9: 299.1 | J9: =J8*VLOOKUP(B9,Índices!$B$159:$F$500,2,0)/VLOOKUP(B8,Índices!$B$159:$F$500,2,0) -> 365.1586199 | K9: =K8*VLOOKUP(B9,Índices!$B$159:$F$500,3,0)/VLOOKUP(B8,Índices!$B$159:$F$500,3,0) -> 362.4208567
B10: 2014-04-01 | C10: Reajuste 2014 | D10: 378.43 | E10: 338.04 | F10: 328.86 | G10: 380.18 | H10: 355.34 | J10: =J9*VLOOKUP(B10,Índices!$B$159:$F$500,2,0)/VLOOKUP(B9,Índices!$B$159:$F$500,2,0) -> 394.3159768 | K10: =K9*VLOOKUP(B10,Índices!$B$159:$F$500,3,0)/VLOOKUP(B9,Índices!$B$159:$F$500,3,0) -> 385.1792635
B11: 2015-04-01 | C11: RTE 2015 | D11: 492.72 | E11: 441.1 | F11: 441.72 | G11: 484.53 | H11: 453.79 | J11: =J10*VLOOKUP(B11,Índices!$B$159:$F$500,2,0)/VLOOKUP(B10,Índices!$B$159:$F$500,2,0) -> 408.3156751 | K11: =K10*VLOOKUP(B11,Índices!$B$159:$F$500,3,0)/VLOOKUP(B10,Índices!$B$159:$F$500,3,0) -> 416.6541362
B12: 2015-04-01 | C12: Reajuste 2015 | D12: 484.37 | E12: 447.36 | F12: 424.02 | G12: 553.35 | H12: 451.6 | J12: =J11*VLOOKUP(B12,Índices!$B$159:$F$500,2,0)/VLOOKUP(B11,Índices!$B$159:$F$500,2,0) -> 408.3156751 | K12: =K11*VLOOKUP(B12,Índices!$B$159:$F$500,3,0)/VLOOKUP(B11,Índices!$B$159:$F$500,3,0) -> 416.6541362
B13: 2016-04-01 | C13: Revisão 2016 | D13: 492.5585847 | E13: 436.6494479 | F13: 418.8667197 | G13: 475.3937075 | H13: 450.2246988 | J13: =J12*VLOOKUP(B13,Índices!$B$159:$F$500,2,0)/VLOOKUP(B12,Índices!$B$159:$F$500,2,0) -> 451.7278501 | K13: =K12*VLOOKUP(B13,Índices!$B$159:$F$500,3,0)/VLOOKUP(B12,Índices!$B$159:$F$500,3,0) -> 455.3104503
B14: 2017-07-01 | C14: Reajuste 2017 | D14: 432.96 | E14: 432.96 | F14: 432.96 | G14: 432.96 | H14: 432.96 | J14: =J13*VLOOKUP(B14,Índices!$B$159:$F$500,2,0)/VLOOKUP(B13,Índices!$B$159:$F$500,2,0) -> 456.2151237 | K14: =K13*VLOOKUP(B14,Índices!$B$159:$F$500,3,0)/VLOOKUP(B13,Índices!$B$159:$F$500,3,0) -> 475.41299
B15: 2018-07-01 | C15: Reajuste 2018 | D15: 498.8444607 | E15: 498.8444607 | F15: 498.8444607 | G15: 498.8444607 | H15: 498.8444607 | J15: =J14*VLOOKUP(B15,Índices!$B$159:$F$500,2,0)/VLOOKUP(B14,Índices!$B$159:$F$500,2,0) -> 493.7985203 | K15: =K14*VLOOKUP(B15,Índices!$B$159:$F$500,3,0)/VLOOKUP(B14,Índices!$B$159:$F$500,3,0) -> 496.7345196
B16: 2019-07-01 | C16: Reajuste 2019 | D16: 497.351539 | E16: 497.351539 | F16: 497.351539 | G16: 497.351539 | H16: 497.351539 | J16: =J15*VLOOKUP(B16,Índices!$B$159:$F$500,2,0)/VLOOKUP(B15,Índices!$B$159:$F$500,2,0) -> 525.3667592 | K16: =K15*VLOOKUP(B16,Índices!$B$159:$F$500,3,0)/VLOOKUP(B15,Índices!$B$159:$F$500,3,0) -> 512.7394075
B17: 2020-07-01 | C17: Reajuste 2020 | D17: =E17 -> 513.8869931 | E17: =F17 -> 513.8869931 | F17: =[16]Resultado!L11 -> 513.8869931 | G17: =F17 -> 513.8869931 | H17: =G17 -> 513.8869931 | J17: =J16*VLOOKUP(B17,Índices!$B$159:$F$500,2,0)/VLOOKUP(B16,Índices!$B$159:$F$500,2,0) -> 574.0783391 | K17: =K16*VLOOKUP(B17,Índices!$B$159:$F$500,3,0)/VLOOKUP(B16,Índices!$B$159:$F$500,3,0) -> 524.5612555
B18: 2021-07-01 | C18: Revisão 2021 | D18: 572.4603864 | E18: 572.4603864 | F18: 572.4603864 | G18: 572.4603864 | H18: 572.4603864 | J18: =J17*VLOOKUP(B18,Índices!$B$159:$F$500,2,0)/VLOOKUP(B17,Índices!$B$159:$F$500,2,0) -> 768.2613474 | K18: =K17*VLOOKUP(B18,Índices!$B$159:$F$500,3,0)/VLOOKUP(B17,Índices!$B$159:$F$500,3,0) -> 571.7446111
B19: 2022-07-01 | C19: Reajuste 2022 | D19: =E19 -> 621.9501825 | E19: =F19 -> 621.9501825 | F19: =Resultado!L11 -> 621.9501825 | G19: =F19 -> 621.9501825 | H19: =G19 -> 621.9501825 | J19: =J18*VLOOKUP(B19,Índices!$B$159:$F$500,2,0)/VLOOKUP(B18,Índices!$B$159:$F$500,2,0) -> 848.3185519 | K19: =K18*VLOOKUP(B19,Índices!$B$159:$F$500,3,0)/VLOOKUP(B18,Índices!$B$159:$F$500,3,0) -> 635.5427742
D20: =$D$19/D9 -1 -> 0.8775854566 | E20: =$D$19/E9 -1 -> 1.101183049 | F20: =$D$19/F9-1 -> 1.202997246 | G20: =$D$19/G9-1 -> 1.082190099 | H20: =$D$19/H9-1 -> 1.079405492 | J20: =$J$19/J9-1 -> 1.323150833 | K20: =$K$19/K9-1 -> 0.7536043043
B21: variação nos ultimos 4 anos | E21: =D18/D15-1 -> 0.1475729038 | H21: =H19/H18-1 -> 0.0864510407 | J21: =J18/J15-1 -> 0.5558194604 | K21: =K18/K15-1 -> 0.1510063998
C22: B1 | D22: =(#REF!*D5+#REF!*E5+#REF!*F5+#REF!*G5+#REF!*H5)/J5 ->  | E22: =D17/D22-1 ->  | F22: =F19/J9-1 -> 0.7032329202 | J22: =J17/$D$22-1 ->  | K22: =K17/$D$22-1 -> 

Sheet CAPA
B1: SPARTA | C1: Ver. | R1: DF | S1: Sudeste/Centro Oeste
B2: Helenístico LX | C2: 0.93 | M2: =C23 -> 165 | N2: =C22 -> 1000040
C3: Macro Ver.
C4: 4.02
B6: ENERGISA Sul Sudeste | L6: CodigoSamp | M6: Empresa | N6: Nome Completo | O6: IdSgtAg | P6: CodigoSamp | Q6: Supridora/suprida | R6: Financeiro 243 (TUSD) | S6: Databse Fin. 243
B7: =VLOOKUP(B6,TabEmpresas[],2,FALSE) -> ENERGISA SUL SUDESTE | C7: Reajuste | G7: Últ. Atualização | L7: 396 | M7: AES SUL | N7: AES-SUL - AES SUL Distribuidora Gaúcha de Energia S/A. | O7: 101 | P7: 396 | Q7: NÃO SUPRIDA
B8: CÓDIGO DA EMPRESA | C8: ="D" & TEXT(C23-100,"00") -> D65 | F8: Info iniciais | G8: 2022-06-08T11:20:15 | L8: 7019 | M8: AME | N8: Amazonas Distribuidora de Energia S/A | O8: 102 | P8: 7019 | Q8: NÃO SUPRIDA
B9: Data do Reajuste/Revisão Anterior | C9: 44389 | F9: Energia do ano anterior (CM compra, MWh Mercado, R$ Mercado) | L9: 383 | M9: AMPLA | N9: AMPLA - Ampla Energia e Serviços S/A | O9: 103 | P9: 383 | Q9: NÃO SUPRIDA
B10: Data de Reajuste/Revisão em Processamento | C10: 44754 | F10: Perda de RB /Perdas Regulatórias /TUSDgONS-RB | L10: 391 | M10: BANDEIRANTE | N10: BANDEIRANTE - Bandeirante Energia S/A. | O10: 104 | P10: 391 | Q10: NÃO SUPRIDA
F11: Financeiros ano anterior (CVA 5º dia útil, RTE restante) | L11: 370 | M11: BOAVISTA | N11: Boa Vista - Boa Vista Energia S/A | O11: 105 | P11: 370 | Q11: NÃO SUPRIDA
F12: Encargos ano anterior (não RTE) | L12: 386 | M12: BRAGANTINA | N12: BRAGANTINA- Empresa Elétrica Bragantina S/A. | O12: 142 | P12: 386 | Q12: NÃO SUPRIDA
F13: Dados da Revisão, Fator X e DecFec | L13: 5216 | M13: CAIUA | N13: CAIUÁ-D - Caiuá Distribuição de Energia S/A | O13: 106 | P13: 5216 | Q13: NÃO SUPRIDA
F14: Previsão de Subsidios dos Processos Anteriores | L14: 31 | M14: CEA | N14: CEA - Companhia de Eletricidade do Amapá | O14: 107 | P14: 31 | Q14: NÃO SUPRIDA
B15: Período de Referencia final | C15: =DATE(YEAR($C$10),MONTH($C$10)-1,1) -> 44713 | F15: Conexão ano anterior | L15: 44 | M15: CEAL | N15: CEAL - Companhia Energética de Alagoas | O15: 108 | P15: 44 | Q15: NÃO SUPRIDA
B16: Período de Referencia inicial | C16: =DATE(YEAR($C$10)-1,MONTH($C$10),1) -> 44378 | F16: Energia (CCEAR, Bil., Itaipu) | G16: 2022-06-23T09:59:39 | L16: 5160 | M16: CEB | N16: CEB-DIS - CEB Distribuição S/A | O16: 109 | P16: 5160 | Q16: NÃO SUPRIDA
B17: Índice IGPM na data Revisão/Reajuste | C17: =VLOOKUP(C15,Índices!$B$7:$F$500,2,FALSE) -> 1190.882 | F17: CCEAR | L17: 5707 | M17: CEEE | N17: CEEE-D - Companhia Estadual de Distribuição de Energia Elétrica | O17: 110 | P17: 5707 | Q17: NÃO SUPRIDA
B18: Índice IPCA na data Revisão/Reajuste | C18: =VLOOKUP(C15,Índices!$B$7:$F$500,3,FALSE) -> 6440.012895 | L18: 5697 | M18: CELESC | N18: CELESC-DIS - Celesc Distribuição S.A. | O18: 111 | P18: 5697 | Q18: NÃO SUPRIDA
B19: IGPM para o período de Referência | C19: =VLOOKUP(DATE(YEAR($C$10),MONTH($C$10)-1,1),Índices!$B$7:$F$500,2,FALSE)/VLOOKUP(DATE(YEAR($C$9),MONTH($C$9)-1,1),Índices!$B$7:$F$500,2,FALSE)-1 -> 0.1070423609 | F19: Itaipu (Energia, Transporte, MUST) | L19: 6072 | M19: CELG | N19: CELG-D - Celg Distribuição S.A. | O19: 112 | P19: 6072 | Q19: NÃO SUPRIDA
B20: IPCA para o período de Referência | C20: =VLOOKUP(DATE(YEAR(C10),MONTH(C10)-1,1),Índices!$B$7:$F$500,3,FALSE)/VLOOKUP(DATE(YEAR($C$9),MONTH($C$9)-1,1),Índices!$B$7:$F$500,3,FALSE)-1 -> 0.1161239546 | F20: Cotas Lei/Angra | L20: 371 | M20: CELPA | N20: CELPA - Centrais Elétricas do Pará S/A. | O20: 113 | P20: 371 | Q20: NÃO SUPRIDA
B21: Dados Gerenciais | F21: Encargos DRP | G21: 2022-05-13T10:10:20 | L21: 43 | M21: CELPE | N21: CELPE - Companhia Energética de Pernambuco | O21: 114 | P21: 43 | Q21: NÃO SUPRIDA
B22: IdAgente | C22: =VLOOKUP(B6,TabEmpresas[],4,FALSE) -> 1000040 | F22: Indicadores Econômicos / Dólar | G22: 2022-06-29T09:10:11 | L22: 32 | M22: CELTINS | N22: CELTINS - Companhia de Energia Elétrica do Estado do Tocantins | O22: 115 | P22: 32 | Q22: NÃO SUPRIDA
B23: ID Concessão | C23: =VLOOKUP(B6,TabEmpresas[],3,FALSE) -> 165 | F23: Tudo de Mercado | G23: 2022-06-23T10:12:04 | L23: 37 | M23: CEMAR | N23: CEMAR - Companhia Energética do Maranhão | O23: 116 | P23: 37 | Q23: NÃO SUPRIDA
F24: Rede Básica e Conexão | G24: 2022-06-27T14:42:20 | L24: 405 | M24: CEMAT | N24: CEMAT - Centrais Elétricas Matogrossenses S/A. | O24: 117 | P24: 405 | Q24: NÃO SUPRIDA
B25: Quadro para vínculos | F25: Histórico de Tarifas B1 Residencial | G25: 2022-05-16T14:43:00 | L25: 4950 | M25: CEMIG | N25: CEMIG-D - CEMIG Distribuição S/A | O25: 118 | P25: 4950 | Q25: NÃO SUPRIDA
B26: Descrição | C26: valor | F26: CVA | G26: 2022-06-28T09:52:53 | H26: CVA - H | L26: 38 | M26: CEPISA | N26: CEPISA - Companhia Energética do Piauí | O26: 119 | P26: 38 | Q26: NÃO SUPRIDA
B27: (Exemplo) Efeito Consumidor Geral | C27: =LnkTxtEfeito -> 0.1151820599 | F27: CUSD | G27: 2022-06-27T14:32:33 | L27: 369 | M27: CERON | N27: CERON - Centrais Elétricas de Rondônia S/A. | O27: 120 | P27: 369 | Q27: NÃO SUPRIDA
B28: Contrato de concessão | C28: 13/1999 | L28: 28 | M28: CERR | N28: CERR - Companhia Energética de Roraima | O28: 121 | P28: 28 | Q28: NÃO SUPRIDA
C29: 48500.004957/2021-53 | L29: 103 | M29: CHESP | N29: CHESP - Companhia Hidroelétrica São Patrício | O29: 123 | P29: 103 | Q29: SUPRIDA
B30: Período de Referencia | C30: =TEXT(C16,"mmmm/aaaa")& " a "&TEXT(C15,"mmmm/aaaa") -> julho/2021 a junho/2022 | L30: 75 | M30: CNEE | N30: CNEE - Companhia Nacional de Energia Elétrica | O30: 127 | P30: 75 | Q30: NÃO SUPRIDA
B31: Neutralidade Total | L31: 82 | M31: COCEL | N31: COCEL - Companhia Campolarguense de Energia | O31: 128 | P31: 82 | Q31: SUPRIDA
B32: CVA Saldo a Compensar | C32: =SUM(Financeiros!D27:D43) -> 7909170.496 | L32: 47 | M32: COELBA | N32: COELBA - Companhia de Eletricidade do Estado da Bahia | O32: 129 | P32: 47 | Q32: NÃO SUPRIDA
B33: Reversão CDE | L33: 39 | M33: COELCE | N33: COELCE - Companhia Energética do Ceará | O33: 130 | P33: 39 | Q33: NÃO SUPRIDA
B34: Diretor Relator Sorteado | L34: 2904 | M34: COOPERALIANÇA | N34: COOPERALIANÇA - Cooperativa Aliança | O34: 131 | P34: 2904 | Q34: SUPRIDA
L35: 2866 | M35: COPEL | N35: COPEL-DIS - Copel Distribuição S/A | O35: 132 | P35: 2866 | Q35: NÃO SUPRIDA
L36: 40 | M36: COSERN | N36: COSERN - Companhia Energética do Rio Grande do Norte | O36: 133 | P36: 40 | Q36: NÃO SUPRIDA
L37: 69 | M37: CPFL Jaguari | N37: CPFL Jaguari - Companhia Jaguari de Energia | O37: 124 | P37: 69 | Q37: NÃO SUPRIDA
L38: 71 | M38: CPFL Leste Paulista | N38: =TabEmpresas[[#This Row],[Empresa]]&" - Companhia Leste Paulista de Energia " -> CPFL Leste Paulista - Companhia Leste Paulista de Energia | O38: 134 | P38: 71 | Q38: NÃO SUPRIDA
L39: 70 | M39: CPFL Mococa | N39: =TabEmpresas[[#This Row],[Empresa]]&" - Companhia Luz e Força de Mococa " -> CPFL Mococa - Companhia Luz e Força de Mococa | O39: 125 | P39: 70 | Q39: NÃO SUPRIDA
L40: 72 | M40: CPFL Santa Cruz | N40: =TabEmpresas[[#This Row],[Empresa]]&" - Companhia Luz e Força Santa Cruz " -> CPFL Santa Cruz - Companhia Luz e Força Santa Cruz | O40: 126 | P40: 72 | Q40: NÃO SUPRIDA
L41: 73 | M41: CPFL Sul Paulista | N41: =TabEmpresas[[#This Row],[Empresa]]&" - Companhia Sul Paulista de Energia " -> CPFL Sul Paulista - Companhia Sul Paulista de Energia | O41: 137 | P41: 73 | Q41: NÃO SUPRIDA
L42: 63 | M42: CPFL Paulista | N42: CPFL-Paulista - Companhia Paulista de Força e Luz | O42: 136 | P42: 63 | Q42: NÃO SUPRIDA
L43: 2937 | M43: CPFL Piratininga | N43: CPFL- Piratininga - Companhia Piratininga de Força e Luz | O43: 135 | P43: 2937 | Q43: NÃO SUPRIDA
L44: 95 | M44: DEMEI | N44: DEMEI - Departamento Municipal de Energia de Ijuí | O44: 138 | P44: 95 | Q44: SUPRIDA
L45: 51 | M45: DMED | N45: =TabEmpresas[[#This Row],[Empresa]]&" - DME Distribuição S.A" -> DMED - DME Distribuição S.A | O45: 139 | P45: 51 | Q45: NÃO SUPRIDA
L46: 6611 | M46: EBO | N46: EBO - Energisa Borborema – Distribuidora de Energia S.A. | O46: 140 | P46: 6611 | Q46: NÃO SUPRIDA
B47: Deslocar mercado | C47: Não | L47: 5217 | M47: EDEVP | N47: EDEVP - Empresa de Distribuição de Energia Vale Paranapanema S/A | O47: 141 | P47: 5217 | Q47: NÃO SUPRIDA
B48: Data de processamento em simulação | L48: 385 | M48: ELEKTRO | N48: ELEKTRO - Elektro Eletricidade e Serviços S/A. | O48: 145 | P48: 385 | Q48: NÃO SUPRIDA
L49: 26 | M49: ELETROACRE | N49: ELETROACRE - Companhia de Eletricidade do Acre | O49: 146 | P49: 26 | Q49: NÃO SUPRIDA
L50: 398 | M50: ELETROCAR | N50: ELETROCAR - Centrais Elétricas de Carazinho S/A. | O50: 147 | P50: 398 | Q50: SUPRIDA
L51: 390 | M51: ELETROPAULO | N51: ELETROPAULO - Eletropaulo Metropolitana Eletricidade de São Paulo S/A | O51: 148 | P51: 390 | Q51: NÃO SUPRIDA
L52: 6585 | M52: EMG | N52: EMG - Energisa Minas Gerais - Distribuidora de Energia S.A. | O52: 150 | P52: 6585 | Q52: NÃO SUPRIDA
L53: 404 | M53: ENERSUL | N53: ENERSUL - Empresa Energética de Mato Grosso do Sul S/A. | O53: 151 | P53: 404 | Q53: NÃO SUPRIDA
L54: 6612 | M54: ENF | N54: ENF - Energisa Nova Friburgo - Distribuidora de Energia S.A. | O54: 152 | P54: 6612 | Q54: SUPRIDA
L55: 6600 | M55: EPB | N55: EPB - Energisa Paraíba - Distribuidora de Energia | O55: 153 | P55: 6600 | Q55: NÃO SUPRIDA
L56: 380 | M56: ESCELSA | N56: ESCELSA - Espírito Santo Centrais Elétricas S/A. | O56: 154 | P56: 380 | Q56: NÃO SUPRIDA
L57: 6587 | M57: ESE | N57: ESE - Energisa Sergipe - Distribuidora de Energia S.A. | O57: 155 | P57: 6587 | Q57: NÃO SUPRIDA
L58: 83 | M58: FORCEL | N58: FORCEL - Força e Luz Coronel Vivida Ltda | O58: 156 | P58: 83 | Q58: SUPRIDA
L59: 399 | M59: HIDROPAN | N59: HIDROPAN - Hidroelétrica Panambi S/A. | O59: 157 | P59: 399 | Q59: SUPRIDA
L60: 87 | M60: IENERGIA | N60: IENERGIA - Iguaçu Distribuidora de Energia Elétrica Ltda | O60: 158 | P60: 87 | Q60: NÃO SUPRIDA
L61: 213 | M61: JARI | N61: JARI - Jari Celulose S/A | O61: 159 | P61: 213 | Q61: NÃO SUPRIDA
L62: 88 | M62: JOÃO CESA | N62: JOÃO CESA - Empresa Força e Luz João Cesa Ltda | O62: 143 | P62: 88 | Q62: SUPRIDA
L63: 382 | M63: LIGHT | N63: LIGHT - Light Serviços de Eletricidade S/A. | O63: 160 | P63: 382 | Q63: NÃO SUPRIDA
L64: 401 | M64: MUX Energia | N64: MUX Energia - Muxfeldt Marin & Cia. Ltda | O64: 161 | P64: 401 | Q64: SUPRIDA
L65: 84 | M65: OESTE | N65: CFLO - Companhia Força e Luz do Oeste | O65: 122 | P65: 84 | Q65: SUPRIDA
L66: 397 | M66: RGE | N66: RGE - Rio Grande Energia S/A. | O66: 162 | P66: 397 | Q66: NÃO SUPRIDA
L67: 381 | M67: SANTA MARIA | N67: SANTA MARIA - Empresa Luz e Força Santa Maria S/A. | O67: 149 | P67: 381 | Q67: SUPRIDA
L68: 46 | M68: SULGIPE | N68: SULGIPE - Companhia Sul Sergipana de Eletricidade | O68: 163 | P68: 46 | Q68: SUPRIDA
L69: 400 | M69: UHENPAL | N69: UHENPAL - Usina Hidroelétrica Nova Palma Ltda. | O69: 164 | P69: 400 | Q69: SUPRIDA
L70: 86 | M70: URUSSANGA | N70: URUSSANGA - Empresa Força e Luz Urussanga Ltda | O70: 144 | P70: 86 | Q70: SUPRIDA
L71: 1000040 | M71: ENERGISA Sul Sudeste | N71: ENERGISA SUL SUDESTE | O71: 165 | P71: 1000040 | Q71: NÃO SUPRIDA
L72: 1000041 | M72: NOVA SANTA CRUZ | N72: NOVA SANTA CRUZ | O72: 166 | P72: 1000041 | Q72: NÃO SUPRIDA
Q73: NÃO SUPRIDA
Q74: NÃO SUPRIDA

Sheet BD
B1: Banco de Dados | M1: Anexo II | N1: =Resultado!$D$6 -> 0.1641375592
B2: =CAPA!B6 -> ENERGISA Sul Sudeste | M2: Anexo I | N2: =Resultado!$D$8 -> 0.178194762
B5: Informações do ano anterior | G5: Dados de abertura (Neutralidade e CVA saldo a compensar) | L5: Dados de Energia | S5: Dados para Revisão
B7: Encargos | G7: Encargo | H7: Valor | I7: Norma | L7: Cotas | M7: Valor da "Cota" | N7: Ano | O7: Custo Médio da Cota | P7: Energia MWh | S7: item | T7: Descrição | U7: Detalhe | V7: Valor
B8: CDE Covid TE | C8: =$H$17*H18 -> 19496229.96 | G8: CCC | L8: Angra | M8: 0.01026502431 | N8: 2022 | O8: 349.15 | P8: 137326.7024
B9: CDE Covid TUSD | C9: =$H$17*H19 -> 19527362.6 | G9: CDE | H9: 350941004.2 | I9: REH 3.034/2022
B10: TFSEE | C10: 1797662.609 | G10: CFURH
B11: CDE | C11: 234832963.8 | G11: ESS/EER | H11: =75588193.15+1346242.61 -> 76934435.76 | I11: Projeção SGT | L11: Ano | M11: Cota Itaipu
G12: PROINFA | H12: 61452707.37 | I12: REH 2.995/2021 | L12: 2018 | M12: 0.01368408
B13: ESS/ERR | C13: 26689324.07 | G13: ONS | H13: 93397.5 | I13: Contribuição 2021 | L13: 2019 | M13: 0.01370034
B14: PROINFA | C14: 39156018.26 | G14: TFSEE | L14: 2020 | M14: 0.01366211413
B15: P&D | C15: 17558729.31 | G15: EER | H15: 75588193.15 | I15: Projeção SGT | L15: 2021 | M15: 0.01384534586
B16: ONS | C16: 0 | G16: TFSEE Fator de Carga | H16: 0.902 | L16: 2022 | M16: 0.01370368219
G17: CDE Covid | H17: 39023592.56 | I17: Previsão-2022 | L17: 2023 | M17: 0.014019
B18: Pmix | C18: 217.315084 | G18: CDE Covid TE% | H18: =Encargos!H24 -> 0.4996011048
B19: PN2021 | C19: 0.003651 | G19: CDE Covid TUSD% | H19: =Encargos!H23 -> 0.5003988952
B20: PN2022 | C20: 0.003651
B21: PT2017 | C21: 0.06631 | D21: PT2017 | E21: 0.06290952235 | G21: Informações de Postergação
B22: Perda RB total | C22: 0.01446674156 | L22: Mês | M22: Potência | N22: Tarifa | O22: Perdas | P22: Energia
G23: Tipo | H23: Valor | L23: 44743 | M23: 147.6571756 | N23: 24.73 | O23: 0.05794699743 | P23: 66220.01539
B24: CVA RB | C24: -5812072.805 | G24: Data Postergada | H24: 44754 | L24: 44774 | M24: 142.9979236 | N24: 24.73 | O24: 0.05794699743 | P24: 66220.01539
B25: CVA CCC | C25: 0 | G25: Data Anterior | H25: 44754 | L25: 44805 | M25: 142.3127395 | N25: 24.73 | O25: 0.05794699743 | P25: 64083.88586
B26: CVA CDE | C26: 15919711.59 | G26: Diferença de Dias | H26: 0 | L26: 44835 | M26: 140.2571872 | N26: 24.73 | O26: 0.05794699743 | P26: 66220.01539
B27: CVA CFURH | G27: MesesAdin | H27: 0 | L27: 44866 | M27: 139.5720031 | N27: 24.73 | O27: 0.05794699743 | P27: 64083.88586
B28: CVA ESS\ERR | C28: 12894647.57 | G28: Reversão Subvenção CDE | L28: 44896 | M28: 136.1460825 | N28: 24.73 | O28: 0.05794699743 | P28: 66220.01539
B29: CVA PROINFA | C29: 4149030.001 | G29: Data 4CRT | H29: 44389 | L29: 44927 | M29: 139.278765 | N29: 24.73 | O29: 0.05794699743 | P29: 67743.71903
B30: CVA TRANS. ITAIPU | C30: 2383629.246 | L30: 44958 | M30: 139.278765 | N30: 24.73 | O30: 0.05794699743 | P30: 61187.87525
B31: CVA ENERGIA | C31: 117272870.7 | L31: 44986 | M31: 142.783515 | N31: 24.73 | O31: 0.05794699743 | P31: 67743.71903
B32: CVA CDE E | C32: -1664467.485 | L32: 45017 | M32: 145.587315 | N32: 24.73 | O32: 0.05794699743 | P32: 65558.43777
L33: 45047 | M33: 150.493965 | N33: 24.73 | O33: 0.05794699743 | P33: 67743.71903
L34: 45078 | M34: 151.054725 | N34: 24.73 | O34: 0.05794699743 | P34: 65558.43777
G35: Nome | H35: Valor
G36: TUSDg Export DRP | H36: 0 | L36: Mês | M36: Potência | N36: Tarifa DRA | O36: Tarifa DRP | P36: Colunas1
G37: TUSDg ONS DRP | H37: 1047202.28 | L37: 44378 | M37: 150.0143223 | N37: 7989.06 | O37: 11738.14 | Q37: atualizar
G38: TUSDg ONS DRA | H38: 939991.2 | L38: 44409 | M38: 147.2452532 | N38: 7989.06 | O38: 11738.14
B39: Rede Básica | G39: TUSDg Export DRA | H39: 0 | L39: 44440 | M39: 146.4145324 | N39: 7989.06 | O39: 11738.14
C40: 3042598.398 | L40: 44470 | M40: 144.1992771 | N40: 7989.06 | O40: 11738.14
L41: 44501 | M41: 143.6454633 | N41: 7989.06 | O41: 11738.14
G42: Fator X | H42: Valor | L42: 44531 | M42: 140.3225802 | N42: 7989.06 | O42: 11738.14
G43: fatorx_t | H43: -0.014 | L43: 44562 | M43: 136.1460825 | N43: 7989.06 | O43: 11738.14
B44: Mercado | G44: fatorx_pd | H44: 0 | L44: 44593 | M44: 136.1460825 | N44: 7989.06 | O44: 11738.14
C45: 4618832.665 | L45: 44621 | M45: 139.5720031 | N45: 7989.06 | O45: 11738.14
C46: 1930755781 | G46: DecFec Processo Anterior | H46: Valor | L46: 44652 | M46: 142.3127395 | N46: 7989.06 | O46: 11738.14
G47: DEC A-2 | L47: 44682 | M47: 147.1090283 | N47: 7989.06 | O47: 11738.14
B48: 2022 | C48: 78877.47159 | G48: DEC A-1 | L48: 44713 | M48: 147.6571756 | N48: 7989.06 | O48: 11738.14
B49: Detalhamento de Encargos ESS e CDE | G49: FEC A-2
G50: FEC A-1 | L50: Dado | M50: Valor | N50: Início | O50: Fim
L51: MUST | M51: 7919 | N51: 44378 | O51: 44742
G52: Dados de dólar | H52: Valor | L52: MUST | M52: 7844 | N52: 44197 | O52: 45107
B53: Ciclo de Revisão | C53: 5 | G53: Dólar médio | H53: 4.977884211 | L53: Potência Max | M53: 10935 | N53: 44197 | O53: 44561
G54: Data Inicial | H54: 44711 | L54: Potência Max | M54: 10775 | N54: 44562 | O54: 44926
G55: Data Final | H55: 44736
G56: Último Dado Diponível | H56: 44739 | L56: Dados de perda | M56: Valor | O56: Agente | P56: Ressarcimento P&D
B57: Subsídios Concedidos (sem ajuste) | L57: Perdas RB | M57: 66960.9376
B58: Mês de Início | C58: Carga Fonte | D58: Geração | E58: Distribuição | F58: Água, Esgoto e Saneamento | G58: Rural | H58: Irrigante/Aquicultor | L58: Perdas DITs | M58: 64637.2471
B59: 2021-07-01 | C59: 3834080.107 | D59: 585856.29 | E59: 32252.93 | F59: 393131.2533 | G59: 1793435.71 | H59: 836573.5475
B60: 2022-07-01 | C60: 0 | D60: 0 | E60: 0 | F60: 0 | G60: 0 | H60: 0
L62: Informações de DR1
L63: fator PB1 | M63: 1.092741228
L64: Informações de RI
B65: Data | C65: Tipo | D65: Valor | E65: Valor IGPM | F65: Valor IPCA | G65: EixoRef
B66: =DATE(YEAR(CAPA!C10),MONTH(CAPA!C10),1) -> 2022-07-01 | C66: =IF(CAPA!C7="Revisão",1,0) -> 0 | D66: =Resultado!L11 -> 621.9501825 | E66: =IFERROR(VLOOKUP(EDATE($B66,-1),Índices!$B$6:$F$500,2,FALSE)/VLOOKUP(EDATE(MIN($B$67:$B$81),-1),Índices!$B$6:$F$500,2,FALSE)*VLOOKUP(MIN($B$67:$B$81),$B$67:$D$81,3,FALSE),0) -> 795.1837046 | F66: =IFERROR(VLOOKUP(EDATE($B66,-1),Índices!$B$6:$F$500,3,FALSE)/VLOOKUP(EDATE(MIN($B$67:$B$81),-1),Índices!$B$6:$F$500,3,FALSE)*VLOOKUP(MIN($B$67:$B$81),$B$67:$D$81,3,FALSE),0) -> 577.0099732 | G66: =IF(B66<>"",150+1,"") -> 151 | L66: Tipo | M66: % RI | O66: Data | P66: Fat Bandeiras
B67: 2021-07-01 | C67: Revisão | D67: 572.46 | L67: PctRIResidencial | M67: 0.0064 | O67: 44378 | P67: 19497630.11
B68: 2020-07-01 | C68: Reajuste | D68: 513.89 | L68: PctRIIndustrial | M68: 0.0035 | O68: 44409 | P68: 20307541.18
B69: 2019-07-01 | C69: Reajuste | D69: 497.35 | L69: PctRICOMERCIAL | M69: 0.004 | O69: 44440 | P69: 33157975.77
B70: 2018-07-01 | C70: Reajuste | D70: 498.84 | L70: PctRIRURAL | M70: 0.002 | O70: 44470 | P70: 37208070.52
B71: 2017-07-01 | C71: Reajuste | D71: 432.96 | L71: PctRILUMPUBLICA | M71: 0 | O71: 44501 | P71: 36974333.33
L72: PctRIPODERPUBLICO | M72: 0.0001 | O72: 44531 | P72: 39101074.63
L73: PctRISERVPUBLICO | M73: 0 | O73: 44562 | P73: 37435437.61
O74: 44593 | P74: 35318880.93
L75: Tipo | M75: % RI Anterior | O75: 44621 | P75: 40187067.97
L76: PctRIResidencial | M76: 0.0008 | O76: 44652 | P76: 28446233.7
L77: PctRIIndustrial | M77: 0 | O77: 44682
L78: PctRICOMERCIAL | M78: 0.0005 | O78: 44713
L79: PctRIRURAL | M79: 0.0001
L80: PctRILUMPUBLICA | M80: 0
L81: PctRIPODERPUBLICO | M81: 0
L82: PctRISERVPUBLICO | M82: 0
B84: Tabela de Resumo de Montante DRP ano anterior/ Montante Apurado pelo Mercado
B85: detalhe_grupo | C85: GrupoTarifa | D85: tipoBase | E85: tipofatura | F85: ValorCTAnterior_Sum | G85: ValorAnt_Sum | L85: Processo Anterior | N85: RTE
L86: MWh | M86: R$ | N86: MWh | O86: R$ | S86: DthEfetivaPagamento | T86: VlrGarantiaFinanceira
I87: BILATERAL | K87: valor | L87: 601848 | M87: 182370707.6 | S87: 44348 | T87: 93803.2
I88: CCEAR-DISP | J88: Alternativa | K88: valor | L88: 51293.09572 | M88: 12904890.96 | S88: 44378 | T88: 101359.87
I89: CCEAR-DISP | J89: Nova | K89: valor | L89: 507564.3575 | M89: 145526530.7 | S89: 44409 | T89: 101359.88
I90: CCEAR-QTD | J90: Belo Monte | K90: valor | L90: 478811.271 | M90: 67175997.4 | S90: 44440 | T90: 101359.88
I91: CCEAR-QTD | J91: Alternativa | K91: valor | L91: 4057.024 | M91: 1065422.669 | S91: 44470 | T91: 101359.88
I92: CCEAR-QTD | J92: Madeira | K92: valor | L92: 168323.488 | M92: 25054070.11 | S92: 44501 | T92: 101359.88
I93: CCEAR-QTD | J93: Nova | K93: valor | L93: 361250.0858 | M93: 70122102.28 | S93: 44531 | T93: 101359.88
I94: CCEN | K94: valor | L94: 144186.7635 | M94: 35994783.64 | S94: 44562 | T94: 101359.88
I95: CCGF | K95: valor | L95: 983919.1914 | M95: 112881486.1 | S95: 44593 | T95: 101359.88
I96: ITAIPU | K96: valor | L96: 752364.699 | M96: 246612454 | S96: 44621 | T96: 101359.88
I97: PROINFA | K97: valor | L97: 82033.16784 | S97: 44652 | T97: 97901.74
I98: SOBRA/EXPOSIÇÃO | K98: valor | L98: -208992.0728 | M98: -46386199.71 | S98: 44682 | T98: 97901.74
V105: Empresa | W105: AT | X105: MT | Y105: BT
V106: 167 | W106: 0.02134 | X106: 0.35825 | Y106: 0.62041
V107: 102 | W107: 0.064 | X107: 0.32003 | Y107: 0.61596
V108: 103 | W108: 0.02996 | X108: 0.27106 | Y108: 0.69898
V109: 104 | W109: 0.07171 | X109: 0.2909 | Y109: 0.63739
V110: 105 | W110: 0.00823 | X110: 0.24677 | Y110: 0.745
I111: Agente | J111: idagente | K111: indexador | L111: database | M111: RAP do ciclo | N111: Colunas1 | O111: RAP atualizada | V111: 165 | W111: 0.00795 | X111: 0.22554 | Y111: 0.76651
O112: =M112*VLOOKUP(CAPA!C15,Índices!$B$6:$F$626,IF(BD!K112="IPCA",3,2),FALSE)/VLOOKUP(L112,Índices!$B$6:$F$626,IF(BD!K112="IPCA",3,2),FALSE) ->  | V112: 108 | W112: 0.06098 | X112: 0.1711 | Y112: 0.76792
O113: =M113*VLOOKUP(CAPA!C16,Índices!$B$6:$F$626,IF(BD!K113="IPCA",3,2),FALSE)/VLOOKUP(L113,Índices!$B$6:$F$626,IF(BD!K113="IPCA",3,2),FALSE) ->  | V113: 109 | W113: 0.01034 | X113: 0.24366 | Y113: 0.746
O114: =M114*VLOOKUP(CAPA!C17,Índices!$B$6:$F$626,IF(BD!K114="IPCA",3,2),FALSE)/VLOOKUP(L114,Índices!$B$6:$F$626,IF(BD!K114="IPCA",3,2),FALSE) ->  | V114: 110 | W114: 0.01165 | X114: 0.24322 | Y114: 0.74513
O115: =M115*VLOOKUP(CAPA!C18,Índices!$B$6:$F$626,IF(BD!K115="IPCA",3,2),FALSE)/VLOOKUP(L115,Índices!$B$6:$F$626,IF(BD!K115="IPCA",3,2),FALSE) ->  | V115: 111 | W115: 0.03791 | X115: 0.37961 | Y115: 0.58248
O116: =M116*VLOOKUP(CAPA!C19,Índices!$B$6:$F$626,IF(BD!K116="IPCA",3,2),FALSE)/VLOOKUP(L116,Índices!$B$6:$F$626,IF(BD!K116="IPCA",3,2),FALSE) ->  | V116: 112 | W116: 0.02273 | X116: 0.26361 | Y116: 0.71367
O117: =M117*VLOOKUP(CAPA!C20,Índices!$B$6:$F$626,IF(BD!K117="IPCA",3,2),FALSE)/VLOOKUP(L117,Índices!$B$6:$F$626,IF(BD!K117="IPCA",3,2),FALSE) ->  | V117: 113 | W117: 0.01263 | X117: 0.23345 | Y117: 0.75392
O118: =M118*VLOOKUP(CAPA!C21,Índices!$B$6:$F$626,IF(BD!K118="IPCA",3,2),FALSE)/VLOOKUP(L118,Índices!$B$6:$F$626,IF(BD!K118="IPCA",3,2),FALSE) ->  | V118: 114 | W118: 0.01726 | X118: 0.23794 | Y118: 0.7448
O119: =M119*VLOOKUP(CAPA!C22,Índices!$B$6:$F$626,IF(BD!K119="IPCA",3,2),FALSE)/VLOOKUP(L119,Índices!$B$6:$F$626,IF(BD!K119="IPCA",3,2),FALSE) ->  | V119: 115 | W119: 0.00993 | X119: 0.23087 | Y119: 0.7592
O120: =M120*VLOOKUP(CAPA!C23,Índices!$B$6:$F$626,IF(BD!K120="IPCA",3,2),FALSE)/VLOOKUP(L120,Índices!$B$6:$F$626,IF(BD!K120="IPCA",3,2),FALSE) ->  | S120: iddet1 | T120: valor | V120: 116 | W120: 0.00806 | X120: 0.16835 | Y120: 0.82359
O121: =M121*VLOOKUP(CAPA!C24,Índices!$B$6:$F$626,IF(BD!K121="IPCA",3,2),FALSE)/VLOOKUP(L121,Índices!$B$6:$F$626,IF(BD!K121="IPCA",3,2),FALSE) ->  | S121: 56 | T121: 44732 | V121: 117 | W121: 0.03028 | X121: 0.29131 | Y121: 0.67841
O122: =M122*VLOOKUP(CAPA!C25,Índices!$B$6:$F$626,IF(BD!K122="IPCA",3,2),FALSE)/VLOOKUP(L122,Índices!$B$6:$F$626,IF(BD!K122="IPCA",3,2),FALSE) ->  | S122: 57 | T122: 44697 | V122: 118 | W122: 0.04215 | X122: 0.2081 | Y122: 0.74975
O123: =M123*VLOOKUP(CAPA!C26,Índices!$B$6:$F$626,IF(BD!K123="IPCA",3,2),FALSE)/VLOOKUP(L123,Índices!$B$6:$F$626,IF(BD!K123="IPCA",3,2),FALSE) ->  | S123: 58 | T123: 44652 | V123: 119 | W123: 0.01807 | X123: 0.11713 | Y123: 0.8648
O124: =M124*VLOOKUP(CAPA!C27,Índices!$B$6:$F$626,IF(BD!K124="IPCA",3,2),FALSE)/VLOOKUP(L124,Índices!$B$6:$F$626,IF(BD!K124="IPCA",3,2),FALSE) ->  | V124: 120 | W124: - | X124: 0.17688 | Y124: 0.82312
O125: =M125*VLOOKUP(CAPA!C28,Índices!$B$6:$F$626,IF(BD!K125="IPCA",3,2),FALSE)/VLOOKUP(L125,Índices!$B$6:$F$626,IF(BD!K125="IPCA",3,2),FALSE) ->  | V125: 123 | W125: - | X125: 0.13612 | Y125: 0.86388
O126: =M126*VLOOKUP(CAPA!C29,Índices!$B$6:$F$626,IF(BD!K126="IPCA",3,2),FALSE)/VLOOKUP(L126,Índices!$B$6:$F$626,IF(BD!K126="IPCA",3,2),FALSE) ->  | V126: 166 | W126: 0.04257 | X126: 0.29652 | Y126: 0.66092
O127: =M127*VLOOKUP(CAPA!C30,Índices!$B$6:$F$626,IF(BD!K127="IPCA",3,2),FALSE)/VLOOKUP(L127,Índices!$B$6:$F$626,IF(BD!K127="IPCA",3,2),FALSE) ->  | V127: 128 | W127: - | X127: 0.40427 | Y127: 0.59573
O128: =M128*VLOOKUP(CAPA!C31,Índices!$B$6:$F$626,IF(BD!K128="IPCA",3,2),FALSE)/VLOOKUP(L128,Índices!$B$6:$F$626,IF(BD!K128="IPCA",3,2),FALSE) ->  | V128: 129 | W128: 0.02905 | X128: 0.24895 | Y128: 0.722
O129: =M129*VLOOKUP(CAPA!C32,Índices!$B$6:$F$626,IF(BD!K129="IPCA",3,2),FALSE)/VLOOKUP(L129,Índices!$B$6:$F$626,IF(BD!K129="IPCA",3,2),FALSE) ->  | V129: 130 | W129: 0.0175 | X129: 0.14397 | Y129: 0.83853
O130: =M130*VLOOKUP(CAPA!C33,Índices!$B$6:$F$626,IF(BD!K130="IPCA",3,2),FALSE)/VLOOKUP(L130,Índices!$B$6:$F$626,IF(BD!K130="IPCA",3,2),FALSE) ->  | S130: Nível | T130: Mercado Faturado A-6 | V130: 131 | W130: - | X130: 0.30099 | Y130: 0.69901
O131: =M131*VLOOKUP(CAPA!C34,Índices!$B$6:$F$626,IF(BD!K131="IPCA",3,2),FALSE)/VLOOKUP(L131,Índices!$B$6:$F$626,IF(BD!K131="IPCA",3,2),FALSE) ->  | S131: MT | T131: 1380608.481 | V131: 132 | W131: 0.02757 | X131: 0.26424 | Y131: 0.70819
O132: =M132*VLOOKUP(CAPA!C35,Índices!$B$6:$F$626,IF(BD!K132="IPCA",3,2),FALSE)/VLOOKUP(L132,Índices!$B$6:$F$626,IF(BD!K132="IPCA",3,2),FALSE) ->  | S132: BT | T132: 2382801.914 | V132: 133 | W132: 0.01856 | X132: 0.19536 | Y132: 0.78608
S133: AT | T133: 323850.992 | V133: 135 | W133: 0.04788 | X133: 0.27054 | Y133: 0.68158
V134: 136 | W134: 0.06732 | X134: 0.35547 | Y134: 0.57721
V135: 138 | W135: - | X135: 0.07651 | Y135: 0.92349
V136: 139 | W136: - | X136: 0.35483 | Y136: 0.64517
V137: 140 | W137: 0.01004 | X137: 0.21058 | Y137: 0.77938
V138: 143 | W138: - | X138: 0.20409 | Y138: 0.79591
V139: 144 | W139: - | X139: 0.48131 | Y139: 0.51869
A140: NumBar | B140: Nome Conexão | C140: Tensão | D140: Posto Tarifário | E140: Tarifas RB - DRA | F140: Tarifa RB - DRP | G140: Tarifas Fronteira - DRA | H140: Tarifa Fronteira - DRP | I140: M01 | J140: M02 | K140: M03 | L140: M04 | M140: M05 | N140: M06 | O140: M07 | P140: M08 | Q140: M09 | R140: M10 | S140: M11 | T140: M12 | V140: 145 | W140: 0.03725 | X140: 0.29306 | Y140: 0.66969
B141: ALTO ALEGRE - 138 kV (A) | C141: 138 | D141: Ponta | F141: 5371 | H141: 4957 | I141: 3 | J141: 3 | K141: 3 | L141: 3 | M141: 3 | N141: 3 | O141: 3 | P141: 3 | Q141: 3 | R141: 3 | S141: 3 | T141: 3 | W141: - | X141: 0.14124 | Y141: 0.85876
B142: BASTOS - 138 kV (A) | C142: 138 | D142: Ponta | F142: 5468 | H142: 4957 | I142: 15.5 | J142: 15.5 | K142: 15.5 | L142: 15.5 | M142: 15.5 | N142: 15.5 | O142: 15.5 | P142: 15.5 | Q142: 15.5 | R142: 15.5 | S142: 15.5 | T142: 15.5 | V142: 147 | W142: - | X142: 0.20977 | Y142: 0.79023
B143: BORBOREMA - 138 kV (A) | C143: 138 | D143: Ponta | F143: 5936 | H143: 4957 | I143: 23.4 | J143: 23.4 | K143: 23.4 | L143: 23.4 | M143: 23.4 | N143: 23.4 | O143: 23.9 | P143: 23.9 | Q143: 23.9 | R143: 23.9 | S143: 23.9 | T143: 23.9 | V143: 148 | W143: 0.03455 | X143: 0.23757 | Y143: 0.72788
B144: BRA. PAULISTA - 138 kV (A) | C144: 138 | D144: Ponta | F144: 6645 | H144: 4957 | I144: 164.1 | J144: 164.1 | K144: 164.1 | L144: 164.1 | M144: 164.1 | N144: 164.1 | O144: 164.1 | P144: 164.1 | Q144: 164.1 | R144: 164.1 | S144: 164.1 | T144: 164.1 | V144: 149 | W144: - | X144: 0.17399 | Y144: 0.82601
B145: CAPIVARA - 138 kV (A) | C145: 138 | D145: Ponta | F145: 5477 | H145: 9 | I145: 6.3 | J145: 6.3 | K145: 6.3 | L145: 6.3 | M145: 6.3 | N145: 6.3 | O145: 6.3 | P145: 6.3 | Q145: 6.3 | R145: 6.3 | S145: 6.3 | T145: 6.3 | V145: 150 | W145: 0.03635 | X145: 0.17413 | Y145: 0.78952
B146: CATANDUVA - 138 kV (A) | C146: 138 | D146: Ponta | F146: 5784 | H146: 4957 | I146: 83.5 | J146: 83.5 | K146: 83.5 | L146: 83.5 | M146: 83.5 | N146: 83.5 | O146: 83.5 | P146: 83.5 | Q146: 83.5 | R146: 83.5 | S146: 83.5 | T146: 83.5 | V146: 151 | W146: 0.02735 | X146: 0.28351 | Y146: 0.68915
B147: ENEIDA - 138 kV (A) | C147: 138 | D147: Ponta | F147: 5371 | H147: 4957 | I147: 2.8 | J147: 2.8 | K147: 2.8 | L147: 2.8 | M147: 2.8 | N147: 2.8 | O147: 2.8 | P147: 2.8 | Q147: 2.8 | R147: 2.8 | S147: 2.8 | T147: 2.8 | V147: 152 | W147: 0.00215 | X147: 0.1412 | Y147: 0.85665
B148: OSVALDO CRUZ - 138 kV (A) | C148: 138 | D148: Ponta | F148: 5435 | H148: 4957 | I148: 19 | J148: 19 | K148: 19 | L148: 19 | M148: 19 | N148: 19 | O148: 19 | P148: 19 | Q148: 19 | R148: 19 | S148: 19 | T148: 19 | V148: 153 | W148: 0.03606 | X148: 0.17601 | Y148: 0.78793
B149: P.PRUDENTE 2 138 kVA | C149: 138 | D149: Ponta | F149: 5484 | H149: 4957 | I149: 18.5 | J149: 18.5 | K149: 18.5 | L149: 18.5 | M149: 18.5 | N149: 18.5 | O149: 18.5 | P149: 18.5 | Q149: 18.5 | R149: 18.5 | S149: 18.5 | T149: 18.5 | V149: 154 | W149: 0.12913 | X149: 0.26626 | Y149: 0.60462
B150: PRE.PRUDENTE4 - 138 kV (A) | C150: 138 | D150: Ponta | F150: 5484 | H150: 4957 | I150: 32 | J150: 32 | K150: 32 | L150: 32 | M150: 32 | N150: 32 | O150: 32 | P150: 32 | Q150: 32 | R150: 32 | S150: 32 | T150: 32 | V150: 155 | W150: 0.04008 | X150: 0.23225 | Y150: 0.72768
B151: PRE.PRUDENTE5 - 138 kV (A) | C151: 138 | D151: Ponta | F151: 5473 | H151: 4957 | I151: 66 | J151: 66 | K151: 66 | L151: 66 | M151: 66 | N151: 66 | O151: 66 | P151: 66 | Q151: 66 | R151: 66 | S151: 66 | T151: 66 | V151: 156 | W151: - | X151: 0.35985 | Y151: 0.64015
B152: PRE.VENCESLAU - 138 kV (A) | C152: 138 | D152: Ponta | F152: 5396 | H152: 4957 | I152: 55.6 | J152: 55.6 | K152: 55.6 | L152: 63.5 | M152: 63.5 | N152: 63.5 | O152: 63.5 | P152: 63.5 | Q152: 63.5 | R152: 63.5 | S152: 63.5 | T152: 63.5 | V152: 157 | W152: - | X152: 0.15963 | Y152: 0.84037
B153: STA.TEREZINHA - 138 kV (A) | C153: 138 | D153: Ponta | F153: 6635 | H153: 4957 | I153: 35 | J153: 35 | K153: 35 | L153: 35 | M153: 35 | N153: 35 | O153: 35 | P153: 35 | Q153: 35 | R153: 35 | S153: 35 | T153: 35 | V153: 158 | W153: - | X153: 0.33049 | Y153: 0.66951
B154: TUPA - 138 kV (A) | C154: 138 | D154: Ponta | F154: 5502 | H154: 4957 | I154: 32.2 | J154: 32.2 | K154: 32.2 | L154: 32.2 | M154: 32.2 | N154: 32.2 | O154: 32.2 | P154: 32.2 | Q154: 32.2 | R154: 32.2 | S154: 32.2 | T154: 32.2 | V154: 160 | W154: 0.1013 | X154: 0.22818 | Y154: 0.67051
B155: URUPES - 138 kV (A) | C155: 138 | D155: Ponta | F155: 5760 | H155: 4957 | I155: 24.7 | J155: 24.7 | K155: 24.7 | L155: 24.7 | M155: 24.7 | N155: 24.7 | O155: 25.4 | P155: 25.4 | Q155: 25.4 | R155: 25.4 | S155: 25.4 | T155: 25.4 | V155: 161 | W155: - | X155: 0.28355 | Y155: 0.71645
B156: FLOR.PAULISTA - 69 kV (A) | C156: 69 | D156: Ponta | F156: 5376 | H156: 4957 | I156: 20.9 | J156: 20.9 | K156: 20.9 | L156: 20.9 | M156: 20.9 | N156: 20.9 | O156: 20.9 | P156: 20.9 | Q156: 20.9 | R156: 20.9 | S156: 20.9 | T156: 20.9 | V156: 163 | W156: 0.03507 | X156: 0.1664 | Y156: 0.79853
B157: UBARANA - 69 kV (A) | C157: 69 | D157: Ponta | F157: 5715 | H157: 4957 | I157: 21.1 | J157: 21.1 | K157: 21.1 | L157: 21.1 | M157: 21.1 | N157: 21.1 | O157: 22.1 | P157: 22.1 | Q157: 22.1 | R157: 22.1 | S157: 22.1 | T157: 22.1 | V157: 164 | W157: - | X157: 0.12897 | Y157: 0.87103
B158: ASSIS I - 88 kV (A) | C158: 88 | D158: Ponta | F158: 5951 | H158: 4957 | I158: 31.5 | J158: 31.5 | K158: 31.5 | L158: 31.5 | M158: 31.5 | N158: 31.5 | O158: 31.5 | P158: 31.5 | Q158: 31.5 | R158: 31.5 | S158: 31.5 | T158: 31.5
B159: ASSIS III - 88 kV (A) | C159: 88 | D159: Ponta | F159: 5944 | H159: 4957 | I159: 30.9 | J159: 30.9 | K159: 30.9 | L159: 30.9 | M159: 30.9 | N159: 30.9 | O159: 30.9 | P159: 30.9 | Q159: 30.9 | R159: 30.9 | S159: 30.9 | T159: 30.9
B160: CANDIDO MOTA - 88 kV (A) | C160: 88 | D160: Ponta | F160: 6133 | H160: 4957 | I160: 16.6 | J160: 16.6 | K160: 16.6 | L160: 16.6 | M160: 16.6 | N160: 16.6 | O160: 16.6 | P160: 16.6 | Q160: 16.6 | R160: 16.6 | S160: 16.6 | T160: 16.6
B161: DECASA - 88 kV (A) | C161: 88 | D161: Ponta | F161: 6042 | H161: 4957 | I161: 2.5 | J161: 2.5 | K161: 2.5 | L161: 2.5 | M161: 2.5 | N161: 2.5 | O161: 2.5 | P161: 2.5 | Q161: 2.5 | R161: 2.5 | S161: 2.5 | T161: 2.5
B162: HALOTEK FADEL - 88 kV (A) | C162: 88 | D162: Ponta | F162: 6004 | H162: 4957 | I162: 7 | J162: 7 | K162: 7 | L162: 7 | M162: 7 | N162: 7 | O162: 7 | P162: 7 | Q162: 7 | R162: 7 | S162: 7 | T162: 7
B163: IBIRAREMA - 88 kV (A) | C163: 88 | D163: Ponta | F163: 6067 | H163: 4957 | I163: 10.1 | J163: 10.1 | K163: 10.1 | L163: 10.1 | M163: 10.1 | N163: 10.1 | O163: 11 | P163: 11 | Q163: 11 | R163: 11 | S163: 11 | T163: 11
B164: MARACAI - 88 kV (A) | C164: 88 | D164: Ponta | F164: 5892 | H164: 4957 | I164: 6.5 | J164: 6.5 | K164: 6.5 | L164: 6.5 | M164: 6.5 | N164: 6.5 | O164: 6.5 | P164: 6.5 | Q164: 6.5 | R164: 6.5 | S164: 6.5 | T164: 6.5
B165: MARTINOPOLIS - 88 kV (A) | C165: 88 | D165: Ponta | F165: 5603 | H165: 4957 | I165: 15.4 | J165: 15.4 | K165: 15.4 | L165: 15.4 | M165: 15.4 | N165: 15.4 | O165: 15.4 | P165: 15.4 | Q165: 15.4 | R165: 15.4 | S165: 15.4 | T165: 15.4
B166: PALMITAL - 88 kV (A) | C166: 88 | D166: Ponta | F166: 6011 | H166: 4957 | I166: 9.8 | J166: 9.8 | K166: 9.8 | L166: 9.8 | M166: 9.8 | N166: 9.8 | O166: 9.8 | P166: 9.8 | Q166: 9.8 | R166: 9.8 | S166: 9.8 | T166: 9.8
B167: PAR.PAULISTA2 - 88 kV (A) | C167: 88 | D167: Ponta | F167: 5865 | H167: 4957 | I167: 21.3 | J167: 21.3 | K167: 21.3 | L167: 21.3 | M167: 21.3 | N167: 21.3 | O167: 21.3 | P167: 21.3 | Q167: 21.3 | R167: 21.3 | S167: 21.3 | T167: 21.3
B168: PRE.PRUDENTE1 - 88 kV (A) | C168: 88 | D168: Ponta | F168: 5529 | H168: 4957 | I168: 64.4 | J168: 64.4 | K168: 64.4 | L168: 64.4 | M168: 64.4 | N168: 64.4 | O168: 66.2 | P168: 66.2 | Q168: 66.2 | R168: 66.2 | S168: 66.2 | T168: 66.2
B169: QUATA II - 88 kV (A) | C169: 88 | D169: Ponta | F169: 5785 | H169: 4957 | I169: 14.6 | J169: 14.6 | K169: 14.6 | L169: 14.6 | M169: 14.6 | N169: 14.6 | O169: 14.6 | P169: 14.6 | Q169: 14.6 | R169: 14.6 | S169: 14.6 | T169: 14.6
B170: RANCHARIA - 88 kV (A) | C170: 88 | D170: Ponta | F170: 5714 | H170: 4957 | I170: 17.8 | J170: 17.8 | K170: 17.8 | L170: 17.8 | M170: 17.8 | N170: 17.8 | O170: 17.8 | P170: 17.8 | Q170: 17.8 | R170: 17.8 | S170: 17.8 | T170: 17.8
B171: SANTA LINA - 88 kV (A) | C171: 88 | D171: Ponta | F171: 5800 | H171: 4957 | I171: 7.3 | J171: 7.3 | K171: 7.3 | L171: 7.3 | M171: 7.3 | N171: 7.3 | O171: 7.3 | P171: 7.3 | Q171: 7.3 | R171: 7.3 | S171: 7.3 | T171: 7.3
B172: UTE COCAL - 88 kV (A) | C172: 88 | D172: Ponta | F172: 5861 | H172: 4957 | I172: 2 | J172: 4 | K172: 4 | L172: 4 | M172: 4 | N172: 4 | O172: 4 | P172: 4 | Q172: 4 | R172: 4 | S172: 4 | T172: 4
B173: ALTO ALEGRE - 138 kV (A) | C173: 138 | D173: Fora Ponta | F173: 5217 | H173: 4957 | I173: 3.5 | J173: 3.5 | K173: 3.5 | L173: 3.5 | M173: 3.5 | N173: 3.5 | O173: 3.5 | P173: 3.5 | Q173: 3.5 | R173: 3.5 | S173: 3.5 | T173: 3.5
B174: BASTOS - 138 kV (A) | C174: 138 | D174: Fora Ponta | F174: 5324 | H174: 4957 | I174: 18.3 | J174: 18.3 | K174: 18.3 | L174: 18.3 | M174: 18.3 | N174: 18.3 | O174: 19 | P174: 19 | Q174: 19 | R174: 19 | S174: 19 | T174: 19
B175: BORBOREMA - 138 kV (A) | C175: 138 | D175: Fora Ponta | F175: 5841 | H175: 4957 | I175: 23.9 | J175: 23.9 | K175: 23.9 | L175: 23.9 | M175: 23.9 | N175: 23.9 | O175: 24.4 | P175: 24.4 | Q175: 24.4 | R175: 24.4 | S175: 24.4 | T175: 24.4
B176: BRA. PAULISTA - 138 kV (A) | C176: 138 | D176: Fora Ponta | F176: 6618 | H176: 4957 | I176: 167.9 | J176: 167.9 | K176: 167.9 | L176: 167.9 | M176: 167.9 | N176: 167.9 | O176: 170.3 | P176: 170.3 | Q176: 170.3 | R176: 170.3 | S176: 170.3 | T176: 170.3
B177: CAPIVARA - 138 kV (A) | C177: 138 | D177: Fora Ponta | F177: 5354 | H177: 9 | I177: 6.3 | J177: 6.3 | K177: 6.3 | L177: 6.3 | M177: 6.3 | N177: 6.3 | O177: 6.3 | P177: 6.3 | Q177: 6.3 | R177: 6.3 | S177: 6.3 | T177: 6.3
B178: CATANDUVA - 138 kV (A) | C178: 138 | D178: Fora Ponta | F178: 5665 | H178: 4957 | I178: 93.5 | J178: 93.5 | K178: 93.5 | L178: 93.5 | M178: 93.5 | N178: 93.5 | O178: 93.5 | P178: 93.5 | Q178: 93.5 | R178: 93.5 | S178: 93.5 | T178: 93.5
B179: ENEIDA - 138 kV (A) | C179: 138 | D179: Fora Ponta | F179: 5217 | H179: 4957 | I179: 2.8 | J179: 2.8 | K179: 2.8 | L179: 2.8 | M179: 2.8 | N179: 2.8 | O179: 2.8 | P179: 2.8 | Q179: 2.8 | R179: 2.8 | S179: 2.8 | T179: 2.8
B180: OSVALDO CRUZ - 138 kV (A) | C180: 138 | D180: Fora Ponta | F180: 5289 | H180: 4957 | I180: 20.5 | J180: 20.5 | K180: 20.5 | L180: 20.5 | M180: 20.5 | N180: 20.5 | O180: 20.5 | P180: 20.5 | Q180: 20.5 | R180: 20.5 | S180: 20.5 | T180: 20.5
B181: P.PRUDENTE 2 138 kVA | C181: 138 | D181: Fora Ponta | F181: 5363 | H181: 4957 | I181: 18.5 | J181: 18.5 | K181: 18.5 | L181: 18.5 | M181: 18.5 | N181: 18.5 | O181: 18.5 | P181: 18.5 | Q181: 18.5 | R181: 18.5 | S181: 18.5 | T181: 18.5
B182: PRE.PRUDENTE4 - 138 kV (A) | C182: 138 | D182: Fora Ponta | F182: 5363 | H182: 4957 | I182: 40 | J182: 40 | K182: 40 | L182: 40 | M182: 40 | N182: 40 | O182: 40 | P182: 40 | Q182: 40 | R182: 40 | S182: 40 | T182: 40
B183: PRE.PRUDENTE5 - 138 kV (A) | C183: 138 | D183: Fora Ponta | F183: 5349 | H183: 4957 | I183: 67.2 | J183: 67.2 | K183: 67.2 | L183: 67.2 | M183: 67.2 | N183: 67.2 | O183: 67.2 | P183: 67.2 | Q183: 67.2 | R183: 67.2 | S183: 67.2 | T183: 67.2
B184: PRE.VENCESLAU - 138 kV (A) | C184: 138 | D184: Fora Ponta | F184: 5252 | H184: 4957 | I184: 64.9 | J184: 64.9 | K184: 64.9 | L184: 73.3 | M184: 73.3 | N184: 73.3 | O184: 73.3 | P184: 73.3 | Q184: 73.3 | R184: 73.3 | S184: 73.3 | T184: 73.3
B185: STA.TEREZINHA - 138 kV (A) | C185: 138 | D185: Fora Ponta | F185: 6608 | H185: 4957 | I185: 37 | J185: 37 | K185: 37 | L185: 37 | M185: 37 | N185: 37 | O185: 37 | P185: 37 | Q185: 37 | R185: 37 | S185: 37 | T185: 37
B186: TUPA - 138 kV (A) | C186: 138 | D186: Fora Ponta | F186: 5362 | H186: 4957 | I186: 33.6 | J186: 33.6 | K186: 33.6 | L186: 33.6 | M186: 33.6 | N186: 33.6 | O186: 33.6 | P186: 33.6 | Q186: 33.6 | R186: 33.6 | S186: 33.6 | T186: 33.6
B187: URUPES - 138 kV (A) | C187: 138 | D187: Fora Ponta | F187: 5638 | H187: 4957 | I187: 24.7 | J187: 24.7 | K187: 24.7 | L187: 24.7 | M187: 24.7 | N187: 24.7 | O187: 27 | P187: 27 | Q187: 27 | R187: 27 | S187: 27 | T187: 27
B188: FLOR.PAULISTA - 69 kV (A) | C188: 69 | D188: Fora Ponta | F188: 5222 | H188: 4957 | I188: 22.4 | J188: 22.4 | K188: 22.4 | L188: 22.4 | M188: 22.4 | N188: 22.4 | O188: 22.6 | P188: 22.6 | Q188: 22.6 | R188: 22.6 | S188: 22.6 | T188: 22.6
B189: UBARANA - 69 kV (A) | C189: 69 | D189: Fora Ponta | F189: 5590 | H189: 4957 | I189: 24.8 | J189: 24.8 | K189: 24.8 | L189: 24.8 | M189: 24.8 | N189: 24.8 | O189: 26 | P189: 26 | Q189: 26 | R189: 26 | S189: 26 | T189: 26
B190: ASSIS I - 88 kV (A) | C190: 88 | D190: Fora Ponta | F190: 5941 | H190: 4957 | I190: 31.2 | J190: 31.2 | K190: 31.2 | L190: 31.2 | M190: 31.2 | N190: 31.2 | O190: 31.2 | P190: 31.2 | Q190: 31.2 | R190: 31.2 | S190: 31.2 | T190: 31.2
B191: ASSIS III - 88 kV (A) | C191: 88 | D191: Fora Ponta | F191: 5932 | H191: 4957 | I191: 32.9 | J191: 32.9 | K191: 32.9 | L191: 32.9 | M191: 32.9 | N191: 32.9 | O191: 32.9 | P191: 32.9 | Q191: 32.9 | R191: 32.9 | S191: 32.9 | T191: 32.9
B192: CANDIDO MOTA - 88 kV (A) | C192: 88 | D192: Fora Ponta | F192: 6149 | H192: 4957 | I192: 17.2 | J192: 17.2 | K192: 17.2 | L192: 17.2 | M192: 17.2 | N192: 17.2 | O192: 17.2 | P192: 17.2 | Q192: 17.2 | R192: 17.2 | S192: 17.2 | T192: 17.2
B193: DECASA - 88 kV (A) | C193: 88 | D193: Fora Ponta | F193: 6045 | H193: 4957 | I193: 2.5 | J193: 2.5 | K193: 2.5 | L193: 2.5 | M193: 2.5 | N193: 2.5 | O193: 2.5 | P193: 2.5 | Q193: 2.5 | R193: 2.5 | S193: 2.5 | T193: 2.5
B194: HALOTEK FADEL - 88 kV (A) | C194: 88 | D194: Fora Ponta | F194: 6001 | H194: 4957 | I194: 7 | J194: 7 | K194: 7 | L194: 7 | M194: 7 | N194: 7 | O194: 7 | P194: 7 | Q194: 7 | R194: 7 | S194: 7 | T194: 7
B195: IBIRAREMA - 88 kV (A) | C195: 88 | D195: Fora Ponta | F195: 6074 | H195: 4957 | I195: 11.1 | J195: 11.1 | K195: 11.1 | L195: 11.1 | M195: 11.1 | N195: 11.1 | O195: 11.1 | P195: 11.1 | Q195: 11.1 | R195: 11.1 | S195: 11.1 | T195: 11.1
B196: MARACAI - 88 kV (A) | C196: 88 | D196: Fora Ponta | F196: 5869 | H196: 4957 | I196: 6.5 | J196: 6.5 | K196: 6.5 | L196: 6.5 | M196: 6.5 | N196: 6.5 | O196: 6.5 | P196: 6.5 | Q196: 6.5 | R196: 6.5 | S196: 6.5 | T196: 6.5
B197: MARTINOPOLIS - 88 kV (A) | C197: 88 | D197: Fora Ponta | F197: 5511 | H197: 4957 | I197: 15.5 | J197: 15.5 | K197: 15.5 | L197: 15.5 | M197: 15.5 | N197: 15.5 | O197: 15.5 | P197: 15.5 | Q197: 15.5 | R197: 15.5 | S197: 15.5 | T197: 15.5
B198: PALMITAL - 88 kV (A) | C198: 88 | D198: Fora Ponta | F198: 6010 | H198: 4957 | I198: 9.55 | J198: 9.55 | K198: 9.55 | L198: 9.55 | M198: 9.55 | N198: 9.55 | O198: 9.6 | P198: 9.6 | Q198: 9.6 | R198: 9.6 | S198: 9.6 | T198: 9.6
B199: PAR.PAULISTA2 - 88 kV (A) | C199: 88 | D199: Fora Ponta | F199: 5835 | H199: 4957 | I199: 21.9 | J199: 21.9 | K199: 21.9 | L199: 21.9 | M199: 21.9 | N199: 21.9 | O199: 21.9 | P199: 21.9 | Q199: 21.9 | R199: 21.9 | S199: 21.9 | T199: 21.9
B200: PRE.PRUDENTE1 - 88 kV (A) | C200: 88 | D200: Fora Ponta | F200: 5419 | H200: 4957 | I200: 76 | J200: 76 | K200: 76 | L200: 76 | M200: 76 | N200: 76 | O200: 76 | P200: 76 | Q200: 76 | R200: 76 | S200: 76 | T200: 76
B201: QUATA II - 88 kV (A) | C201: 88 | D201: Fora Ponta | F201: 5737 | H201: 4957 | I201: 14.6 | J201: 14.6 | K201: 14.6 | L201: 14.6 | M201: 14.6 | N201: 14.6 | O201: 14.6 | P201: 14.6 | Q201: 14.6 | R201: 14.6 | S201: 14.6 | T201: 14.6
B202: RANCHARIA - 88 kV (A) | C202: 88 | D202: Fora Ponta | F202: 5648 | H202: 4957 | I202: 18.6 | J202: 18.6 | K202: 18.6 | L202: 18.6 | M202: 18.6 | N202: 18.6 | O202: 18.6 | P202: 18.6 | Q202: 18.6 | R202: 18.6 | S202: 18.6 | T202: 18.6
B203: SANTA LINA - 88 kV (A) | C203: 88 | D203: Fora Ponta | F203: 5755 | H203: 4957 | I203: 6.4 | J203: 6.4 | K203: 6.4 | L203: 6.4 | M203: 6.4 | N203: 6.4 | O203: 6.8 | P203: 6.8 | Q203: 6.8 | R203: 6.8 | S203: 6.8 | T203: 6.8
B204: UTE COCAL - 88 kV (A) | C204: 88 | D204: Fora Ponta | F204: 5831 | H204: 4957 | I204: 4 | J204: 4 | K204: 4 | L204: 4 | M204: 4 | N204: 4 | O204: 4 | P204: 4 | Q204: 4 | R204: 4 | S204: 4 | T204: 4
B441: Transmissora | C441: Indice de atualização | D441: ENCARGO DE CONEXÃO repassável | E441: Instalações com Estabelecimento de RAP que entraram em operação | F441: PA para repasse a tarifa | G441: PA Qualidade DIT | H441: ENCARGO DE CONEXÃO ou PA não rapassável a tarifa (REN 67/2004 ou 68/2004) | I441: PA Empreendimento Autorizado sem estabelecimento prévio de RAP | J441: Contrato | K441: Estimativa Total do Encargo de Conexão
B442: CTEEP | C442: IPCA | D442: 4154010.44 | E442: 0 | F442: 114110.67 | G442: 0 | H442: 0 | I442: 0 | J442: 059/2001
B457: Tabela de Financeiros para o cálculo da Neutralidade | G457: Tabela de Financeiros para o cálculo da Neutralidade de RB | M457: Tabela de Financeiros para o cálculo da Neutralidade CVA processamento
B458: Grupo Tarifa | C458: Detalhe Grupo | D458: Valor | E458: Percentual | G458: Tipo | H458: Detalhe | I458: Posto | J458: Unidade | K458: Valor | M458: Grupo Tarifa | N458: Detalhe Grupo | O458: Valor | P458: Percentual
B459: ENCARGO | C459: CDE | D459: -4475985.88 | G459: CUSTO | H459: CONEXÃO D | J459: R$ | K459: 0 | M459: ENCARGO | N459: CDE | O459: 16209902.37
B460: ENCARGO | C460: CDE Energia | D460: 22307.74319 | G460: CUSTO | H460: CONEXÃO T | J460: R$ | K460: 3042598.398 | M460: ENCARGO | N460: CDE Energia | O460: -1694808.055
B461: ENCARGO | C461: ESS/ERR | D461: 89832.43126 | G461: CUSTO | H461: EUSD | J461: R$ | K461: 47336205.94 | M461: ENCARGO | N461: ESS/ERR | O461: 13129696.29
... 26 more rows

Sheet Entrada
B1: Entrada de parâmetros para cálculo tarifário
B4: Energia | D4: Últ. Atualização | F4: Parâmetros para Revisão | P4: ="Caso de OR para a empresa é: " &IF(BD!C53=4,"caso 1","caso 3") -> Caso de OR para a empresa é: caso 3
D6: 44328 | F6: CAPEX - Ativos de Distribuição | J6: Custo Operacional Real do(s) último(s) ano(s) | P6: Outras Receitas - Caso 1 e 2
B7: Montante de Geração Própria | D7: 44328 | F7: (1) Ativo Imobilizado em Serviço (Valor Novo de Reposição) | G7: =G71*VLOOKUP(DATE(YEAR(CAPA!$C$10),MONTH(CAPA!$C$10)-1,1),Índices!$B$135:$D$638,3,0)/VLOOKUP(DATE(YEAR($G$70),MONTH($G$70)-1,1),Índices!$B$135:$D$638,3,0) ->  | J7: Ano do Custo Operacional | P7: Tipo de Receita | Q7: =UDEROR!G12 -> 2022-06-01 | R7: =UDEROR!H12 -> 2022-05-01 | S7: =UDEROR!I12 -> 2022-04-01 | T7: =UDEROR!J12 -> 2022-03-01 | U7: =UDEROR!K12 -> 2022-02-01 | V7: =UDEROR!L12 -> 2022-01-01 | W7: =UDEROR!M12 -> 2021-12-01 | X7: =UDEROR!N12 -> 2021-11-01 | Y7: =UDEROR!O12 -> 2021-10-01 | Z7: =UDEROR!P12 -> 2021-09-01 | AA7: =UDEROR!Q12 -> 2021-08-01 | AB7: =UDEROR!R12 -> 2021-07-01 | AC7: =UDEROR!S12 -> 00:00:00 | AD7: =UDEROR!T12 -> 00:00:00 | AE7: =UDEROR!U12 -> 00:00:00 | AF7: =UDEROR!V12 -> 00:00:00 | AG7: =UDEROR!W12 -> 00:00:00 | AH7: =UDEROR!X12 -> 00:00:00 | AI7: =UDEROR!Y12 -> 00:00:00 | AJ7: =UDEROR!Z12 -> 00:00:00 | AK7: =UDEROR!AA12 -> 00:00:00 | AL7: =UDEROR!AB12 -> 00:00:00 | AM7: =UDEROR!AC12 -> 00:00:00 | AN7: =UDEROR!AD12 -> 00:00:00 | AO7: =UDEROR!AE12 -> 00:00:00 | AP7: =UDEROR!AF12 -> 00:00:00 | AQ7: =UDEROR!AG12 -> 00:00:00 | AR7: =UDEROR!AH12 -> 00:00:00 | AS7: =UDEROR!AI12 -> 00:00:00 | AT7: =UDEROR!AJ12 -> 00:00:00 | AU7: =UDEROR!AK12 -> 00:00:00 | AV7: =UDEROR!AL12 -> 00:00:00 | AW7: =UDEROR!AM12 -> 00:00:00 | AX7: =UDEROR!AN12 -> 00:00:00 | AY7: =UDEROR!AO12 -> 00:00:00 | AZ7: =UDEROR!AP12 -> 00:00:00 | BA7: =UDEROR!AQ12 -> 00:00:00 | BB7: =UDEROR!AR12 -> 00:00:00 | BC7: =UDEROR!AS12 -> 00:00:00 | BD7: =UDEROR!AT12 -> 00:00:00
B8: Custo médio da Geração Própria | D8: 44328 | F8: (2) Índice de Aproveitamento Integral | G8: =G72*VLOOKUP(DATE(YEAR(CAPA!$C$10),MONTH(CAPA!$C$10)-1,1),Índices!$B$135:$D$638,3,0)/VLOOKUP(DATE(YEAR($G$70),MONTH($G$70)-1,1),Índices!$B$135:$D$638,3,0) ->  | J8: CONTA PESSOAL | P8: Serviços Cobráveis | Q8: =R8 -> 175334.6 | R8: 175334.6 | S8: 98619.1 | T8: 94982.98 | U8: 95736.9 | V8: 148311.79 | W8: 171021.8 | X8: 92072.51 | Y8: 87232.88 | Z8: 125008.72 | AA8: 130876.47 | AB8: 128501.64
D9: 44328 | F9: (3) Obrigações Especiais Bruta | G9: =G73*VLOOKUP(DATE(YEAR(CAPA!$C$10),MONTH(CAPA!$C$10)-1,1),Índices!$B$135:$D$638,3,0)/VLOOKUP(DATE(YEAR($G$70),MONTH($G$70)-1,1),Índices!$B$135:$D$638,3,0) ->  | J9: BMP - 610530501; 610550501; 610532501; 610552501 | K9: Remuneração | P9: Arrecadação de convênios ou valores pela fatura | Q9: =R9 -> 589476.96 | R9: 589476.96 | S9: 514823.84 | T9: 600437.86 | U9: 459027.38 | V9: 522952.17 | W9: 534920.76 | X9: 495237.55 | Y9: 735936.59 | Z9: 475057.63 | AA9: 524452.09 | AB9: 506373.07
D10: 44328 | F10: (4) Bens Totalmente Depreciados | G10: =G74*VLOOKUP(DATE(YEAR(CAPA!$C$10),MONTH(CAPA!$C$10)-1,1),Índices!$B$135:$D$638,3,0)/VLOOKUP(DATE(YEAR($G$70),MONTH($G$70)-1,1),Índices!$B$135:$D$638,3,0) ->  | J10: BMP - 610530502; 610550502; 610532502; 610552502 | K10: Encargos | P10: Arrecadação de faturas de terceiros por estrutura própria
F11: (5) Base de Remuneração Bruta = (1)-(2)-(3)-(4) | G11: =G7-G8-G9-G10 ->  | J11: BMP - 610530503; 610550503; 610532503; 610552503 | K11: Previdência Privada - Corrente | P11: Veiculação de publicidade
F12: (6) Depreciação Acumulada | G12: =G76*VLOOKUP(DATE(YEAR(CAPA!$C$10),MONTH(CAPA!$C$10)-1,1),Índices!$B$135:$D$638,3,0)/VLOOKUP(DATE(YEAR($G$70),MONTH($G$70)-1,1),Índices!$B$135:$D$638,3,0) ->  | J12: BMP - 610530508; 610550508; 610532508; 610552508 | K12: Outros Benefícios | P12: Aluguel ou cessão onerosa de imóveis e espaços físicos
F13: (7) AIS Líquido (Valor de Mercado em Uso) | G13: =G7-G12 ->  | J13: BMP - 610530506; 610550506; 610532506; 610552506 | K13: Despesas Rescisórias | P13: Compartilhamento de infraestrutura | Q13: =R13 -> 4544470.63 | R13: 4544470.63 | S13: 4619832.57 | T13: 4287263.98 | U13: 4569132.87 | V13: 3958508.3 | W13: 4091415.14 | X13: 4135325.95 | Y13: 3994800.61 | Z13: 3525571.78 | AA13: 3901694.43 | AB13: 4629333.22
F14: (8) Índice de Aproveitamento Depreciado | G14: =G78*VLOOKUP(DATE(YEAR(CAPA!$C$10),MONTH(CAPA!$C$10)-1,1),Índices!$B$135:$D$638,3,0)/VLOOKUP(DATE(YEAR($G$70),MONTH($G$70)-1,1),Índices!$B$135:$D$638,3,0) ->  | J14: BMP - 610530507; 610550507; 610532507; 610552507 | K14: Participação nos Lucros e Resultados - PLR | P14: Serviços de avaliação técnica e aferição de medidores.
F15: (9) Valor da Base de Remuneração (VBR) | G15: =G13-G14 ->  | J15: BMP - 610530599; 610550599; 610532599; 610552599 | K15: Outros | P15: Operacionalização de serviço de créditos tributários
F16: (10) Almoxarifado em Operação | G16: =G80*VLOOKUP(DATE(YEAR(CAPA!$C$10),MONTH(CAPA!$C$10)-1,1),Índices!$B$135:$D$638,3,0)/VLOOKUP(DATE(YEAR($G$70),MONTH($G$70)-1,1),Índices!$B$135:$D$638,3,0) ->  | J16: BMP - 610530510; 610550510; 610532510; 610552510 | K16: (-) Créditos de Tributos Recuperáveis | P16: Elaboração de projeto, construção, operação, manutenção ou reforma de:
F17: (11) Ativo Diferido | G17: =G81*VLOOKUP(DATE(YEAR(CAPA!$C$10),MONTH(CAPA!$C$10)-1,1),Índices!$B$135:$D$638,3,0)/VLOOKUP(DATE(YEAR($G$70),MONTH($G$70)-1,1),Índices!$B$135:$D$638,3,0) ->  | J17: BMP - 6105306; 6105506; 6105326; 6105526 | K17: Administradores | P17: (1) redes de distribuição de energia elétrica destinadas à regularização fundiária de interesse específico e ao atendimento dos empreendimentos de múltiplas unidades consumidoras;
F18: (12) Obrigações Especiais Líquida | G18: =G82*VLOOKUP(DATE(YEAR(CAPA!$C$10),MONTH(CAPA!$C$10)-1,1),Índices!$B$135:$D$638,3,0)/VLOOKUP(DATE(YEAR($G$70),MONTH($G$70)-1,1),Índices!$B$135:$D$638,3,0) ->  | K18: Subtotal | L18: =SUM(L9:L17) -> 0 | M18: =SUM(M9:M17) -> 0 | P18: (2) redes de energia elétrica destinadas ao acesso dos sistemas de distribuição ou transmissão;
F19: (13) Terrenos e Servidões | G19: =G83*VLOOKUP(DATE(YEAR(CAPA!$C$10),MONTH(CAPA!$C$10)-1,1),Índices!$B$135:$D$638,3,0)/VLOOKUP(DATE(YEAR($G$70),MONTH($G$70)-1,1),Índices!$B$135:$D$638,3,0) ->  | J19: CONTA MATERIAIS | P19: (3) subestações de energia;
F20: (14) Base de Rem. Líquida Total = (1)-(6)-(8)+(10)+(11)-(12)+(13) | G20: =G15+G16+G17-G18+G19 ->  | J20: BMP - 610530701; 610550701; 610532701; 610552701 | K20: Materiais | P20: (4) instalações elétricas internas de unidades consumidoras;
F21: (15) Saldo RGR PLPT | G21: =G85*VLOOKUP(DATE(YEAR(CAPA!$C$10),MONTH(CAPA!$C$10)-1,1),Índices!$B$135:$D$638,3,0)/VLOOKUP(DATE(YEAR($G$70),MONTH($G$70)-1,1),Índices!$B$135:$D$638,3,0) ->  | J21: BMP - 610530799; 610550799; 610532799; 610552799 | K21: Outros | P21: (5) banco de capacitores:
F22: (16) Saldo RGR Demais Investimentos | G22: =G86*VLOOKUP(DATE(YEAR(CAPA!$C$10),MONTH(CAPA!$C$10)-1,1),Índices!$B$135:$D$638,3,0)/VLOOKUP(DATE(YEAR($G$70),MONTH($G$70)-1,1),Índices!$B$135:$D$638,3,0) ->  | J22: BMP - 610530710; 610550710; 610532710; 610552710 | K22: (-) Créditos de Tributos Recuperáveis | P22: (6) padrões de entrada de unidades consumidoras atendidas em baixa tensão;
F23: (17) Taxa de Depreciação | G23: =G87 -> 0 | K23: Subtotal | L23: =SUM(L20:L22) -> 0 | M23: =SUM(M20:M22) -> 0 | P23: (7) sistemas de medição de energia elétrica;
F24: (18) Quota de Reintegração Regulatória = (5) * (17) | G24: =G23*G11 ->  | J24: CONTA TERCEIROS | P24: (8) geradores, incluindo-se unidades de microgeração e minigeração distribuída;
J25: RIT - RP 800 - Célula F20 | K25: Manut. e Conserv. Bens e Instalações vinculadas ao Serviço Concedido | P25: (9) sistemas de iluminação pública.
F26: Gasto do Conselho de Consumidores | J26: RIT - RP 800 - Célula F21 | K26: Auditoria e Consultoria | P26: Eficientização do consumo de energia elétrica e instalação de cogeração qualificada, desde que não enquadráveis nos projetos de Pesquisa e Desenvolvimento (P&D) ou de Eficiência Energética estabelecidos em lei
F27: =Indexador!D132 -> Despesa 2021 | H27: 44328 | J27: RIT - RP 800 - Célula F22 | K27: Serviços Jurídicos | P27: Serviços de comunicação de dados
F28: =Indexador!E132 -> Despesa 2020 | H28: 44328 | J28: RIT - RP 800 - Célula F23 | K28: Serviços de Informática | P28: Serviços de consultoria
F29: =Indexador!F132 -> Despesa 2019 | H29: 44328 | J29: RIT - RP 800 - Célula F26 | K29: Viagens (Passagens Aéreas, etc) | P29: Receita proveniente da comercialização de resultados de projetos de P&D
F30: =Indexador!G132 -> Despesa 2018 | H30: 44328 | J30: RIT - RP 800 - Célula F27 | K30: Transportes (inclui Fretes)
F31: =Indexador!H132 -> Despesa 2017 | H31: 44328 | J31: RIT - RP 800 - Célula F28 | K31: Propaganda e Publicidade (exceto Publicações Oficiais) | P31: Outras Receitas - Caso 3
F32: Perdas Regulatórias | H32: 44287 | J32: RIT - RP 800 - Célula F29 | K32: Publicações Oficiais | P32: Alíquota ISS
F33: Perdas Não Técnicas | H33: 44318 | J33: RIT - RP 800 - Célula F30 | K33: Serviço de Engenharia e Supervisão de Obras
F34: Perdas Técnicas | H34: 44318 | J34: RIT - RP 800 - Célula F31 | K34: Gestão Comercial | P34: Tipo de Receita | Q34: =Q7 -> 2022-06-01 | R34: 2022-05-01 | S34: 2022-04-01 | T34: 2022-03-01 | U34: 2022-02-01 | V34: 2022-01-01 | W34: 2021-12-01 | X34: 2021-11-01 | Y34: 2021-10-01 | Z34: 2021-09-01 | AA34: 2021-08-01 | AB34: 2021-07-01
H35: 44287 | J35: RIT - RP 800 - Célula F32 | K35: Outros Serviços Terceirizados | P35: Serviços Cobráveis
F36: Dados da Revisão Anterior - Componente Pd | H36: 44287 | J36: RIT - RP 800 - Célula F33 | K36: (-) Créditos de Tributos Recuperáveis | P36: Encargos de Conexão
F37: Data Base Ativos e Consumidores | H37: 44287 | J37: RIT - RP 800 - Célula F34 | K37: Transferências da Administração Central | P37: Compartilhamento de Infraestrutura
F38: Mercado AT (MWh) | H38: 44287 | K38: Subtotal | L38: =SUM(L25:L37) -> 0 | M38: =SUM(M25:M37) -> 0 | P38: Sistemas de Comunicação (PLC)
F39: Mercado MT (MWh) | H39: 44287 | J39: CONTA SEGUROS | P39: Serviços de Consultoria
F40: Mercado BT (MWh) | H40: 44287 | J40: BMP - 610531001; 610551001; 610533001; 610553001 | K40: Seguros | P40: Serviços de O&M
F41: Número de unidades consumidoras | H41: 44287 | J41: BMP - 610531099; 610551099; 610533099; 610553099 | K41: Outros | P41: Serviços de Comunicação
H42: 44287 | J42: BMP - 610531010; 610551010; 610533010; 610553010 | K42: (-) Créditos de Tributos Recuperáveis | P42: Serviços de Engenharia
F43: OPEX | K43: Subtotal | L43: =SUM(L40:L42) -> 0 | M43: =SUM(M40:M42) -> 0 | P43: Convênios
F44: Extensão de redes subterrâneas (Km) | H44: 44309 | J44: CONTA TRIBUTOS
F45: Extensão de rede de distribuição aérea (Km) | H45: 44309 | J45: BMP - 6105316; 6105516; 6105336; 6105536 | K45: Tributos | Q45: =Q34 -> 2022-06-01 | R45: =R34 -> 2022-05-01 | S45: 2022-04-01 | T45: 2022-03-01 | U45: 2022-02-01 | V45: 2022-01-01 | W45: 2021-12-01 | X45: 2021-11-01 | Y45: 2021-10-01 | Z45: 2021-09-01 | AA45: 2021-08-01 | AB45: 2021-07-01
F46: Extensão de rede de alta tensão (Km) | H46: 44309 | K46: (+) Créditos de Tributos Recuperáveis | L46: =L45 -> 0 | M46: =M45 -> 0 | P46: Ultrapassagem de Demanda | Q46: =R46 -> 585463.78 | R46: 585463.78 | S46: 761337.36 | T46: 925885.38 | U46: 700394.18 | V46: 688994.05 | W46: 623629.21 | X46: 536384.71 | Y46: 700758.08 | Z46: 745675.21 | AA46: 817985.24 | AB46: 801147.28 | AC46: =SUM(Q46:AB46) -> 8473118.26
F47: ="% PNT / BT Real de "&IF(MONTH(LnkTxtDRPData)>6,YEAR(LnkTxtDRPData)-1,YEAR(LnkTxtDRPData)-2) & " (Medido)" -> % PNT / BT Real de 2021 (Medido) | H47: 44319 | J47: CONTA OUTROS | P47: Excedente Reativo | Q47: =R47 -> 1620506.67 | R47: 1620506.67 | S47: 1870538.38 | T47: 1743360.75 | U47: 1644084.66 | V47: 1620574.54 | W47: 1575633.82 | X47: 1667416.82 | Y47: 1457000.03 | Z47: 1398840.06 | AA47: 1338398.08 | AB47: 1229706.74 | AC47: =SUM(Q47:AB47) -> 18786567.22
F48: ="% PNT / BT Real de "&IF(MONTH(LnkTxtDRPData)>6,YEAR(LnkTxtDRPData)-1,YEAR(LnkTxtDRPData)-2)-1 & " (Medido)" -> % PNT / BT Real de 2020 (Medido) | H48: 44319 | J48: BMP - 610531901; 610551901; 610533901; 610553901 | K48: Indenização por Perdas e Danos
F49: ="% PNT / BT Real de "&IF(MONTH(LnkTxtDRPData)>6,YEAR(LnkTxtDRPData)-1,YEAR(LnkTxtDRPData)-2)-2 & " (Medido)" -> % PNT / BT Real de 2019 (Medido) | H49: 44319 | J49: BMP - 610531902; 610551902; 610533902; 610553902 | K49: Consumo Próprio de Energia
F50: ="DEC Apurado "&IF(MONTH(LnkTxtDRPData)>3,YEAR(LnkTxtDRPData)-1,YEAR(LnkTxtDRPData)-2) -> DEC Apurado 2021 | H50: 44319 | J50: BMP - 610531905 | K50: Despesas com Conselho de Consumidores | P50: UDER "Limbo"
F51: ="DEC Apurado "&IF(MONTH(LnkTxtDRPData)>3,YEAR(LnkTxtDRPData)-1,YEAR(LnkTxtDRPData)-2)-1 -> DEC Apurado 2020 | H51: 44319 | J51: BMP - 610531903; 610551903; 610533903; 610553903 | K51: Taxa de Arrecadação
F52: ="DEC Apurado "&IF(MONTH(LnkTxtDRPData)>3,YEAR(LnkTxtDRPData)-1,YEAR(LnkTxtDRPData)-2)-2 -> DEC Apurado 2019 | H52: 44319 | J52: BMP - 610531904; 610551904; 610533904; 610553904 | K52: Taxas Bancárias | P52: Preenchimento necessário apenas para cálculos de concessionárias que passaram por alteração contratual, conforme parágrafo 38 do Proret 2.1A.
F53: Meta de % PNT / BT (Medido) | H53: 44319 | J53: BMP - 610531910; 610551910; 610533910; 610553910 | K53: (-) Créditos de Tributos Recuperáveis | P53: Mês correspondente à Data de Referência de Alteração Contratual - DRAC | Q53: 2017-02-01
F54: DEC 8 anos (Limite V8) | H54: 44319 | K54: Subtotal | L54: =SUM(L48:L53) -> 0 | M54: =SUM(M48:M53) -> 0 | P54: Sexto mês anterior à data da última RTP
J55: Demais
K56: Condenações Trabalhistas | P56: Preenchimento necessário apenas para cálculos de concessionárias que passaram por alteração contratual, conforme parágrafo 38 do Proret 2.1A.
F57: Dados da última Revisão Tarifária | K57: Gastos com CCEE | Q57: =Q53 -> 2017-02-01 | R57: =DATE(YEAR(Q57),MONTH(Q57)-1,1) -> 2017-01-01 | S57: 2016-12-01 | T57: 2016-11-01 | U57: 2016-10-01 | V57: 2016-09-01 | W57: 2016-08-01 | X57: =DATE(YEAR(W57),MONTH(W57)-1,1) -> 2016-07-01 | Y57: =DATE(YEAR(X57),MONTH(X57)-1,1) -> 2016-06-01 | Z57: =DATE(YEAR(Y57),MONTH(Y57)-1,1) -> 2016-05-01 | AA57: =DATE(YEAR(Z57),MONTH(Z57)-1,1) -> 2016-04-01 | AB57: =DATE(YEAR(AA57),MONTH(AA57)-1,1) -> 2016-03-01 | AC57: =DATE(YEAR(AB57),MONTH(AB57)-1,1) -> 2016-02-01 | AD57: =DATE(YEAR(AC57),MONTH(AC57)-1,1) -> 2016-01-01 | AE57: =DATE(YEAR(AD57),MONTH(AD57)-1,1) -> 2015-12-01 | AF57: =DATE(YEAR(AE57),MONTH(AE57)-1,1) -> 2015-11-01 | AG57: =DATE(YEAR(AF57),MONTH(AF57)-1,1) -> 2015-10-01 | AH57: =DATE(YEAR(AG57),MONTH(AG57)-1,1) -> 2015-09-01 | AI57: =DATE(YEAR(AH57),MONTH(AH57)-1,1) -> 2015-08-01
F58: Custos Operacionais (CO3) | J58: BMP - 611511401 | K58: Perdas na Alienação e Desativação | P58: Ultrapassagem de Demanda (valores brutos)
F59: Receitas Irrecuperáveis - Encargos Setoriais (Vi) | J59: BMP - 611112103 | K59: Ganhos na Alienação de Materiais | P59: Excedente Reativo (valores brutos)
F60: Demais Receitas Irrecuperáveis (Vse)
F61: Remuneração do Capital (RC)
F62: Quota de Reintegração Regulatória (QRR)
F63: Custo anual das instalações móveis e imóveis (CAIMI)
F64: Ajuste em função dos investimentos realizados (valor negativo)
F65: Índice de Produtividade + Mecanismo de Qualidade
F66: Outras Receitas (OR) (inserir o valor positivo)
F67: Componente T - Última Revisão
F70: Base de Ativios - SFF
F71: (1) Ativo Imobilizado em Serviço (Valor Novo de Reposição)
F72: (2) Índice de Aproveitamento Integral
F73: (3) Obrigações Especiais Bruta
F74: (4) Bens Totalmente Depreciados
F75: (5) Base de Remuneração Bruta = (1)-(2)-(3)-(4) | G75: =G71-G72-G73-G74 -> 0
F76: (6) Depreciação Acumulada
F77: (7) AIS Líquido (Valor de Mercado em Uso) | G77: =G71-G76 -> 0
F78: (8) Índice de Aproveitamento Depreciado
F79: (9) Valor da Base de Remuneração (VBR) | G79: =G77-G78 -> 0
F80: (10) Almoxarifado em Operação
F81: (11) Ativo Diferido | G81: =G102*I81 -> 0
F82: (12) Obrigações Especiais Líquida
F83: (13) Terrenos e Servidões
F84: (14) Base de Rem. Líquida Total = (9)+(10)+(11)-(12)+(13) | G84: =G79+G80+G81-G82+G83 -> 0
F85: (15) Saldo RGR PLPT | G85: 0
F86: (16) Saldo RGR Demais Investimentos
F87: (17) Taxa de Depreciação
F88: (18) Quota de Reintegração Regulatória = (5) * (17) | G88: =G87*G75 -> 0
F91: Base de Ativios - Ciclo anterior
F92: (1) Ativo Imobilizado em Serviço (Valor Novo de Reposição)
F93: (2) Índice de Aproveitamento Integral
F94: (3) Obrigações Especiais Bruta
F95: (4) Bens Totalmente Depreciados
F96: (5) Base de Remuneração Bruta = (1)-(2)-(3)-(4)
F97: (6) Depreciação Acumulada
F98: (7) AIS Líquido (Valor de Mercado em Uso)
F99: (8) Índice de Aproveitamento Depreciado
F100: (9) Valor da Base de Remuneração (VBR)
F101: (10) Almoxarifado em Operação
F102: (11) Ativo Diferido
F103: (12) Obrigações Especiais Líquida
F104: (13) Terrenos e Servidões
F105: (14) Base de Rem. Líquida Total = (1)-(6)-(8)+(10)+(11)-(12)+(13)
F106: (15) Saldo RGR PLPT
F107: (16) Saldo RGR Demais Investimentos
F109: (17) Taxa de Depreciação
F110: (18) Quota de Reintegração Regulatória = (5) * (17)
F111: Base de Anuidade Regulatória (BAR)
F113: Dados do último Reajuste Anual - Contrato Novo
F114: Parcela B sem desconto UDEROR | G114: =SUM(G115:G118) -> 0
F115: Outras Receitas (OR)
F116: Excedente de Reativos (ER)
F117: Ultrapassagem de Demanda (UD)
F118: Parcela B
F119: Fator PB | G119: =G114/G118 -> 
F121: Dados do último Ciclo - Contrato Novo
F122: Número de processos até o primeiro reajuste contrato novo
F123: Número de processos no contrato novo antes da atual revisão
F125: Participação dos componentes da Parcela B no Ano Teste
F126: Descrição | G126: Valor
F127: Custos Operacionais | G127: =(G58*(1-G65)-(SUM(G58:G63)*(1-G65)-G66)*(1-(1-G67)^G122)-((SUM(G58:G63)*(1-G65)-G66)*(1-G67)^G122+G66-SUM(G59:G60)*(1-G65))*(1-(1-G67)^G123))/((((SUM(G58:G63)*(1-G65)-G66)*(1-G67)^G122)+G66-SUM(G59:G60)*(1-G65))*(1-G67)^G123) -> 
F128: Anuidades | G128: =(G63*(1-G65)/((((SUM(G58:G63)*(1-G65)-G66)*(1-G67)^G122)+G66-SUM(G59:G60)*(1-G65))*(1-G67)^G123)) -> 
F129: Remuneração | G129: =(G61*(1-G65)/((((SUM(G58:G63)*(1-G65)-G66)*(1-G67)^G122)+G66-SUM(G59:G60)*(1-G65))*(1-G67)^G123)) -> 
F130: Depreciação | G130: =(G62*(1-G65)/((((SUM(G58:G63)*(1-G65)-G66)*(1-G67)^G122)+G66-SUM(G59:G60)*(1-G65))*(1-G67)^G123)) -> 

Sheet Resultado
B1: =LnkTxtNomeCompleto -> ENERGISA SUL SUDESTE
B2: Resultado | F2: Parâmetros a serem considerados para os Reajustes subsequentes
B4: RA1 | D4: =D40+D45 -> 2215903294 | E4: 2204728555 | F4: FATOR X | H4: =D4-E4 -> 11174739.36 | K4: Última versão enviada: | L4: 17
B5: RA0 | D5: =Mercado!D24 -> 1903472040 | E5: 1903472040 | F5: Componente T do Fator X | G5: ='VPB e Fator X'!C36 ->  | H5: =D5-E5 -> 0 | K5: Data de envio | L5: 2022-06-29T09:53:30
B6: Índice de Reposição/Reajuste (Anexo II) | D6: =D4/D5-1 -> 0.1641375592 | E6: 0.1582668455 | F6: Componente Pd do Fator X | G6: ='VPB e Fator X'!C33 -> 0.005765248356 | H6: 0.005870713688
B7: Componentes Financeiros | D7: =Financeiros!E8 -> 0.01405720284 | E7: 0.01591095941 | H7: -0.001853756578 | K7: Efeito Consumidor | N7: UPLOAD 11 | O7: UPLOAD 12 | P7: UPLOAD 13 | Q7: UPLOAD 14 | R7: UPLOAD 15 | S7: UPLOAD 16 | T7: UPLOAD 17
B8: Índice de Reposição/Reajuste com Financeiros (Anexo I) | D8: =D6+D7 -> 0.178194762 | E8: 0.1741778049 | F8: PERDAS | H8: 0.00401695711 | K8: Efeito Grupo A - Alta tensão | L8: 0.1821182428 | N8: 0.1388226948 | O8: 0.1401363987 | P8: 0.1179851826 | Q8: 0.1609003598 | R8: =LnkTxtEfeitoAT -> 0.1821182428 | S8: 0.1791491086
F9: Perdas Não Técnicas | G9: =Entrada!G33 -> 0 | K9: Efeito Grupo B - Baixa tensão | L9: 0.08915115459 | N9: 0.05881446115 | O9: 0.06070744478 | P9: 0.04946385933 | Q9: 0.08601607327 | R9: =L9 -> 0.08915115459 | S9: 0.08496914107
C10: DRA | D10: DRP | E10: DRP | F10: ECO + FIN | G10: ECO + FIN | K10: Efeito tarifário médio AT+BT | L10: 0.1151820599 | N10: 0.08130007297 | O10: 0.0830302551 | P10: 0.0687211758 | Q10: 0.1069837706 | R10: =L10 -> 0.1151820599 | S10: 0.1113396541
B11: TOTAL (Parcela A + Parcela B) | C11: =C45+C40 -> 1903472040 | D11: =D45+D40 -> 2215903294 | E11: 2204728555 | I11: bandeira tarifária | K11: Tarifa B1 - Residencial (R$) | L11: 621.9501825 | N11: 604.64982 | O11: 605.7183761 | P11: 599.3349898 | Q11: 620.2570058 | R11: =L11 -> 621.9501825 | S11: 619.5879941
I12: -360897731.4
I13: =I12/LnkTxtRA -> -0.189599702 | K13: Subvenção da CDE para descontos tarifários (Valores anuais)
K14: Subsídio Carga Fonte Incentivada | L14: 55376993.84
K15: Subsídio Geração Fonte Incentivada | L15: 7586635.302
B16: Parcela A | F16: Formação da Parcela B e Reposicionamento (Resumo) | K16: Subsídio Distribuição | L16: 9842669.305
K17: Subsídio Água, Esgoto e Saneamento | L17: 2515800.526
C18: Processo Anterior | D18: Processo Atual | E18: Processo Atual | K18: Subsídio Rural | L18: 11667013.15
B19: ENCARGOS | C19: =SUM(C20:C28) -> 357127939.7 | D19: =SUM(D20:D28) -> 495203581.7 | E19: 495123819.3 | F19: Custo de Administração, Operação e Manutenção (CAOM) | G19: =SUM(G20:G20) ->  | H19: 79762.42536 | K19: Subsídio Irrigante/Aquicultor | L19: 8913101.99
B20: Reserva Global de Reversão – RGR | C20: 0 | D20: =Encargos!C16 -> 0 | E20: 0 | F20: Custos Operacionais (CO) | G20: ='VPB e Fator X'!C121+Encargos!C14 ->  | H20: 0
B21: Conta de Consumo de Combustíveis – CCC | C21: 0 | D21: =Encargos!C9 -> 0 | E21: 0 | F21: Custo Anual dos Ativos (CAA) | G21: =SUM(G22:G24) ->  | H21: 0 | K21: Versão de Mercado
B22: Taxa de Fisc. de Serviços de E.E. – TFSEE | C22: ='Votos e NTs'!BM269 -> 1783678.95 | D22: =Encargos!C17 -> 2010828.128 | E22: 2006767.423 | F22: Remuneração do Capital (RC) | G22: ='VPB e Fator X'!C95 ->  | H22: 4060.70502 | K22: Status de Sincronização de BDL | L22: Trabalha na pasta de rede
B23: Conta de Desenvolvimento Energético – CDE | C23: ='Votos e NTs'!BM270+'Votos e NTs'!BM271+'Votos e NTs'!BM272 -> 273083532.8 | D23: =Encargos!C10 -> 336494596.8 | E23: 336494596.8 | F23: Quota de Reintegração Regulatória (QRR) | G23: ='VPB e Fator X'!C77 ->  | H23: 0 | K23: Última Sincronização
B24: Compensação financeira - CFURH | C24: ='Votos e NTs'!BM273 -> 0 | D24: =Encargos!C11 -> 0 | E24: 0 | F24: Custo anual das instalações móveis e imóveis (CAIMI) | G24: ='VPB e Fator X'!C67 ->  | H24: 0
B25: Encargos Serv. Sist. - ESS e Energ. Reserv. - EER | C25: ='Votos e NTs'!BM274 -> 25696337.73 | D25: =Encargos!C12 -> 76934435.76 | E25: 76934435.76 | F25: Parcela B (VPB) | G25: =SUM(G21,G19) ->  | H25: 0
B26: PROINFA | C26: ='Votos e NTs'!BM275 -> 39418320.49 | D26: =Encargos!C13 -> 61452707.37 | E26: 61452707.37 | F26: Índice de Produtividade da Parcela B | G26: ='VPB e Fator X'!C33 -> 0.005765248356 | H26: 0
B27: P&D e Eficiência Energética | C27: ='Votos e NTs'!BM276 -> 17146069.66 | D27: =Encargos!C15 -> 18311013.66 | E27: 18235311.94 | F27: Mecanismo de Incentivo à Qualidade | G27: ='VPB1'!F42 -> 0.003155494479 | H27: 75701.72034
F28: Parcela B com ajustes | G28: =(1-G26-G27)*G25 ->  | H28: 0
B29: TRANSPORTE | C29: =SUM(C30:C37) -> 271208547.2 | D29: =SUM(D30:D37) -> 329931951.3 | E29: 329931951.3 | F29: Outras Receitas (OR) | G29: =UDEROR!C2 -> 37329225.49 | H29: 0
B30: Rede Básica | C30: ='Votos e NTs'!BM279 -> 102085783.4 | D30: ='RB e Conexão'!E6 -> 126924171.8 | E30: 126924171.8 | F30: Ultrapassagem de Demanda (UD) | G30: =UDEROR!C6+'VPB e Fator X'!D179 -> 4296567.012 | H30: 0
B31: Rede Básica Fronteira | C31: ='Votos e NTs'!BM280 -> 89378828.02 | D31: ='RB e Conexão'!E7 -> 109085102.8 | E31: 109085102.8 | F31: Excedente de Reativos (ER) | G31: =UDEROR!C7+'VPB e Fator X'!D180 -> 9485421.124 | H31: 0
B32: Rede Básica ONS (A2) | C32: ='Votos e NTs'!BM281 -> 880115.9373 | D32: =VLOOKUP("TUSDg ONS DRP",TUSDG[],2,FALSE) -> 1047202.28 | E32: 1047202.28 | F32: Parcela B deduzidas as outras receitas | G32: =G28-SUM(G29:G31) ->  | H32: 0
B33: Rede Básica Export. (A2) | C33: ='Votos e NTs'!BM282 -> 0 | D33: =VLOOKUP("TUSDg Export DRP",TUSDG[],2,FALSE) -> 0 | E33: 0 | H33: 0
B34: MUST Itaipu | C34: ='Votos e NTs'!BM283 -> 14112534.54 | D34: ='RB e Conexão'!E8 -> 14074773.11 | E34: 14074773.11 | F34: 1. Receita Requerida (RR) | G34: =G28+D40 ->  | H34: 0
B35: Transporte de Itaipu | C35: ='Votos e NTs'!BM284 -> 13548322.47 | D35: =SUMPRODUCT(itaiputransporte[Potência],itaiputransporte[Tarifa DRP]) -> 20198809.84 | E35: 20198809.84 | F35: 2. Outras Receitas (OR) | G35: =G29 -> 37329225.49 | H35: 0
B36: Conexão | C36: ='Votos e NTs'!BM285 -> 3100107.656 | D36: ='RB e Conexão'!E9 -> 4286179.53 | E36: 4286179.53 | F36: 3. Receita Verificada (RV) | G36: =Mercado!D24 -> 1903472040 | H36: 0
B37: Uso do sistema de distribuição e CCD | C37: ='Votos e NTs'!BM286 -> 48102855.13 | D37: =CUSD!D14+CUSD!E14 -> 54315711.94 | E37: 54315711.94 | H37: 0
B38: ENERGIA | C38: ='Votos e NTs'!BM287 -> 824405435.3 | D38: =Energia!D15 -> 876859139.4 | E38: 866813876.5 | H38: 10045262.85
B39: RECEITA IRRECUPERÁVEL | C39: ='Votos e NTs'!BM288 -> 1249980.058 | D39: =Mercado!H38 -> 14323524.54 | E39: 14280914.63 | H39: 42609.90993
B40: VPA (ENCARGO + TRANSPORTE + ENERGIA+RI) | C40: =C19+C29+C38+C39 -> 1453991902 | D40: =D19+D29+D38+D39 -> 1716318197 | E40: 1706150562 | H40: 10167635.18
B42: Parcela B
D44: VPB1 | E44: VPB1
B45: ="Parcela B "&IF(CAPA!C7="Revisão","(menos Outras Receitas)",) -> Parcela B | C45: ='Votos e NTs'!BM289 -> 449480137.6 | D45: =IF(CAPA!$C$7="Revisão",Resultado!$G$32,'VPB1'!$C$43) -> 499585097.4 | E45: 498577993.2 | H45: 1007104.175

Sheet Votos e NTs (hidden)
B2: Tabelas | D2: Gráficos
B4: Consumidores | D4: Análise de Impacto da RTA na Tarfia | K4: Composição da Receita | P4: Composição da Receita com Tributos | U4: Composição da Receita com detalhamento de Encargos | Z4: Evolução da Tarifa B1 Residencial
B5: Mercado
B6: Encargos
B7: Custo do Transporte de Energia
B8: Perdas
B9: Energia Requerida
B10: Energia na DRA
B11: Contratos
B12: Fator X
B13: Parcela B
B14: CVA em Processamento
B15: Financeiros
B16: Subsídios
B17: Efeito Médio AT + BT
B18: Avaliação RTA
B19: Variação do Custo de Energia
B20: Dados dos Gráficos
E23: Impacto da RTA na Tarifa | K23: Composição da Receita | P23: Composição da Receita com Tributos | U23: Composição da Receita com detalhamento de Encargos | Z23: Data | AA23: Tipo | AC23: B1 - Residencial | AD23: IGPM | AE23: IPCA | AF23: Data
E24: Encargos Setoriais | H24: =IF(CAPA!C7="Reajuste",BP268,'NT Revisao'!AT195) -> 0.07253883384 | K24: Custo de Distribuição | M24: =Resultado!D45 -> 499585097.4 | P24: Custo de Distribuição | R24: =M24/$R$32 -> 0.1719672041 | U24: Custo de Distribuição | W24: =Resultado!D45 -> 499585097.4 | Z24: =YEAR(BD!B79) -> 1900 | AA24: =(BD!C79) -> 0 | AB24: =CONCATENATE(AA24," ",Z24) -> 0 1900 | AC24: =BD!D79 -> 0 | AD24: =AC24 -> 0 | AE24: =AD24 -> 0 | AF24: =DATE(YEAR(BD!B79),MONTH(BD!B79)-1,1) -> 
E25: Custo de Transporte | H25: =IF(CAPA!C7="Reajuste",BP278,'NT Revisao'!AT205) -> 0.0308506786 | K25: Custo de Energia | M25: =Resultado!D38 -> 876859139.4 | P25: Custo de Energia | R25: =M25/$R$32 -> 0.3018324913 | U25: Custo de Energia | W25: =Resultado!D38 -> 876859139.4 | Z25: =YEAR(BD!B78) -> 1900 | AA25: =(BD!C78) -> 0 | AB25: 0 1900 | AC25: =BD!D78 -> 0 | AD25: =AD24*VLOOKUP(AF25,Índices!$B$135:$F$627,2,0)/VLOOKUP(AF24,Índices!$B$135:$F$627,2,0) ->  | AE25: =AE24*VLOOKUP(AF25,Índices!$B$135:$F$627,3,0)/VLOOKUP(AF24,Índices!$B$135:$F$627,3,0) ->  | AF25: =DATE(YEAR(BD!B78),MONTH(BD!B78)-1,1) -> 
E26: Custo de Energia | H26: =IF(CAPA!C7="Reajuste",BP287,'NT Revisao'!AT214) -> 0.02755685559 | K26: Custo de Transporte | M26: =Resultado!D29 -> 329931951.3 | P26: Custo de Transmissão | R26: =M26/$R$32 -> 0.1135691907 | U26: Custo de Transmissão | W26: =Resultado!D29 -> 329931951.3 | Z26: =YEAR(BD!B77) -> 1900 | AA26: =(BD!C77) -> 0 | AB26: 0 1900 | AC26: =BD!D77 -> 0 | AD26: =AD25*VLOOKUP(AF26,Índices!$B$135:$F$627,2,0)/VLOOKUP(AF25,Índices!$B$135:$F$627,2,0) ->  | AE26: =AE25*VLOOKUP(AF26,Índices!$B$135:$F$627,3,0)/VLOOKUP(AF25,Índices!$B$135:$F$627,3,0) ->  | AF26: =DATE(YEAR(BD!B77),MONTH(BD!B77)-1,1) -> 
E27: Receitas Irrecuperáveis | H27: =IF(CAPA!C7="Reajuste",BP288,'NT Revisao'!AT215) -> 0.006868261898 | K27: Encargos Setoriais | M27: =Resultado!D19 -> 495203581.7 | P27: Encargos Setoriais | R27: =M27/$R$32 -> 0.1704589986 | U27: Receitas Irrecuperáveis | W27: =Resultado!D39 -> 14323524.54 | Z27: =YEAR(BD!B76) -> 1900 | AA27: =(BD!C76) -> 0 | AB27: 0 1900 | AC27: =BD!D76 -> 0 | AD27: =AD26*VLOOKUP(AF27,Índices!$B$135:$F$627,2,0)/VLOOKUP(AF26,Índices!$B$135:$F$627,2,0) ->  | AE27: =AE26*VLOOKUP(AF27,Índices!$B$135:$F$627,3,0)/VLOOKUP(AF26,Índices!$B$135:$F$627,3,0) ->  | AF27: =DATE(YEAR(BD!B76),MONTH(BD!B76)-1,1) -> 
E28: Distribuição | H28: =IF(CAPA!C7="Reajuste",BP289,'NT Revisao'!AT216) -> 0.02632292924 | K28: Receitas Irrecuperáveis | M28: =Resultado!D39 -> 14323524.54 | P28: Receitas Irrecuperáveis | R28: =M28/R32 -> 0.004930444245 | U28: PROINFA | W28: =Resultado!D26 -> 61452707.37 | Z28: =YEAR(BD!B75) -> 1900 | AA28: =(BD!C75) -> 0 | AB28: 0 1900 | AC28: =BD!D75 -> 0 | AD28: =AD27*VLOOKUP(AF28,Índices!$B$135:$F$627,2,0)/VLOOKUP(AF27,Índices!$B$135:$F$627,2,0) ->  | AE28: =AE27*VLOOKUP(AF28,Índices!$B$135:$F$627,3,0)/VLOOKUP(AF27,Índices!$B$135:$F$627,3,0) ->  | AF28: =DATE(YEAR(BD!B75),MONTH(BD!B75)-1,1) -> 
E29: Componentes Financeiros | H29: =IF(CAPA!C7="Reajuste",BP292,'NT Revisao'!AT225) -> 0.01405720284 | P29: ICMS | R29: =Mercado!G9 -> 0.2060714264 | U29: CDE | W29: =Resultado!D23 -> 336494596.8 | Z29: =YEAR(BD!B74) -> 1900 | AA29: =(BD!C74) -> 0 | AB29: 0 1900 | AC29: =BD!D74 -> 0 | AD29: =AD28*VLOOKUP(AF29,Índices!$B$135:$F$627,2,0)/VLOOKUP(AF28,Índices!$B$135:$F$627,2,0) ->  | AE29: =AE28*VLOOKUP(AF29,Índices!$B$135:$F$627,3,0)/VLOOKUP(AF28,Índices!$B$135:$F$627,3,0) ->  | AF29: =DATE(YEAR(BD!B74),MONTH(BD!B74)-1,1) -> 
E30: Retirada dos Financeiros Anteriores | H30: =IF(CAPA!C7="Reajuste",BP344,'NT Revisao'!AT277) -> -0.06301270212 | P30: PIS/COFINS | R30: =Mercado!$G$10 -> 0.0311702447 | U30: ESS/EER | W30: =Resultado!D25 -> 76934435.76 | Z30: =YEAR(BD!B73) -> 1900 | AA30: =(BD!C73) -> 0 | AB30: 0 1900 | AC30: =BD!D73 -> 0 | AD30: =AD29*VLOOKUP(AF30,Índices!$B$135:$F$627,2,0)/VLOOKUP(AF29,Índices!$B$135:$F$627,2,0) ->  | AE30: =AE29*VLOOKUP(AF30,Índices!$B$135:$F$627,3,0)/VLOOKUP(AF29,Índices!$B$135:$F$627,3,0) ->  | AF30: =DATE(YEAR(BD!B73),MONTH(BD!B73)-1,1) -> 
E31: Efeito Médio Consumidor | H31: =BP345 -> 0.1151820599 | P31: Tributos por dentro | R31: =LnkTxtPisCofins+LnkTxtICMS -> 0.2372416711 | U31: Outros | W31: =Resultado!D27+Resultado!D28+Resultado!D24+Resultado!D22 -> 20321841.79 | Z31: =YEAR(BD!B72) -> 1900 | AA31: =(BD!C72) -> 0 | AB31: 0 1900 | AC31: =BD!D72 -> 0 | AD31: =AD30*VLOOKUP(AF31,Índices!$B$135:$F$627,2,0)/VLOOKUP(AF30,Índices!$B$135:$F$627,2,0) ->  | AE31: =AE30*VLOOKUP(AF31,Índices!$B$135:$F$627,3,0)/VLOOKUP(AF30,Índices!$B$135:$F$627,3,0) ->  | AF31: =DATE(YEAR(BD!B72),MONTH(BD!B72)-1,1) -> 
P32: Receita com Tributos | R32: =SUM(W24:W31)/(1-R29-R30) -> 2905118450 | Z32: =YEAR(BD!B71) -> 2017 | AA32: =(BD!C71) -> Reajuste | AB32: Reajuste 2017 | AC32: =BD!D71 -> 432.96 | AD32: =AD31*VLOOKUP(AF32,Índices!$B$135:$F$627,2,0)/VLOOKUP(AF31,Índices!$B$135:$F$627,2,0) ->  | AE32: =AE31*VLOOKUP(AF32,Índices!$B$135:$F$627,3,0)/VLOOKUP(AF31,Índices!$B$135:$F$627,3,0) ->  | AF32: =DATE(YEAR(BD!B71),MONTH(BD!B71)-1,1) -> 2017-06-01
P33: Tributos Totais por Fora | R33: =(R29+R30)/(1-R29-R30) -> 0.3110312429 | Z33: =YEAR(BD!B70) -> 2018 | AA33: =(BD!C70) -> Reajuste | AB33: Reajuste 2018 | AC33: =BD!D70 -> 498.84 | AD33: =AD32*VLOOKUP(AF33,Índices!$B$135:$F$627,2,0)/VLOOKUP(AF32,Índices!$B$135:$F$627,2,0) ->  | AE33: =AE32*VLOOKUP(AF33,Índices!$B$135:$F$627,3,0)/VLOOKUP(AF32,Índices!$B$135:$F$627,3,0) ->  | AF33: =DATE(YEAR(BD!B70),MONTH(BD!B70)-1,1) -> 2018-06-01
Z34: =YEAR(BD!B69) -> 2019 | AA34: =(BD!C69) -> Reajuste | AB34: Reajuste 2019 | AC34: =BD!D69 -> 497.35 | AD34: =AD33*VLOOKUP(AF34,Índices!$B$135:$F$627,2,0)/VLOOKUP(AF33,Índices!$B$135:$F$627,2,0) ->  | AE34: =AE33*VLOOKUP(AF34,Índices!$B$135:$F$627,3,0)/VLOOKUP(AF33,Índices!$B$135:$F$627,3,0) ->  | AF34: =DATE(YEAR(BD!B69),MONTH(BD!B69)-1,1) -> 2019-06-01
Z35: =YEAR(BD!B68) -> 2020 | AA35: =(BD!C68) -> Reajuste | AB35: Reajuste 2020 | AC35: =BD!D68 -> 513.89 | AD35: =AD34*VLOOKUP(AF35,Índices!$B$135:$F$627,2,0)/VLOOKUP(AF34,Índices!$B$135:$F$627,2,0) ->  | AE35: =AE34*VLOOKUP(AF35,Índices!$B$135:$F$627,3,0)/VLOOKUP(AF34,Índices!$B$135:$F$627,3,0) ->  | AF35: =DATE(YEAR(BD!B68),MONTH(BD!B68)-1,1) -> 2020-06-01
Z36: =YEAR(BD!B67) -> 2021 | AA36: =(BD!C67) -> Revisão | AB36: Revisão 2021 | AC36: =BD!D67 -> 572.46 | AD36: =AD35*VLOOKUP(AF36,Índices!$B$135:$F$627,2,0)/VLOOKUP(AF35,Índices!$B$135:$F$627,2,0) ->  | AE36: =AE35*VLOOKUP(AF36,Índices!$B$135:$F$627,3,0)/VLOOKUP(AF35,Índices!$B$135:$F$627,3,0) ->  | AF36: =DATE(YEAR(BD!B67),MONTH(BD!B67)-1,1) -> 2021-06-01
Z37: =YEAR(BD!B66) -> 2022 | AA37: =(BD!C66) -> 0 | AB37: =CONCATENATE(IF(AA37=1,"Revisão","Reajuste")," ",Z37) -> Reajuste 2022 | AC37: =BD!D66 -> 621.9501825 | AD37: =AD36*VLOOKUP(AF37,Índices!$B$135:$F$627,2,0)/VLOOKUP(AF36,Índices!$B$135:$F$627,2,0) ->  | AE37: =AE36*VLOOKUP(AF37,Índices!$B$135:$F$627,3,0)/VLOOKUP(AF36,Índices!$B$135:$F$627,3,0) ->  | AF37: =DATE(YEAR(BD!B66),MONTH(BD!B66)-1,1) -> 2022-06-01
AC38: =AC37/AC24-1 ->  | AD38: =AD37/AD24-1 -> 
B40: TabCons | E40: Voltar
B41: Classe de Consumo | C41: Nº de Unidades Consumidoras* | D41: Consumo de Energia (MWh) | E41: Participação no Consumo (%)
B42: Residencial | C42: =Mercado!E30 -> 726420 | D42: =Mercado!F30 -> 122741.654 | E42: =D42/$D$50 -> 0.3266334679
B43: Industrial | C43: =Mercado!E31 -> 4280 | D43: =Mercado!F31 -> 129087.954 | E43: 0.3435218991
B44: Comercial | C44: =Mercado!E32 -> 63493 | D44: =Mercado!F32 -> 51386.296 | E44: 0.1367464387
B45: Rural | C45: =Mercado!E33 -> 43461 | D45: =Mercado!F33 -> 25930.449 | E45: 0.06900471198
B46: Iluminação Pública | C46: =Mercado!E34 -> 704 | D46: =Mercado!F34 -> 15165.512 | E46: 0.04035764238
B47: Poder Público | C47: =Mercado!E35 -> 7076 | D47: =Mercado!F35 -> 9557.222 | E47: 0.02543316359
B48: Serviço Público | C48: =Mercado!E36 -> 1251 | D48: =Mercado!F36 -> 12354.819 | E48: 0.0328779778
B49: Demais classes | C49: =Mercado!E37 -> 187 | D49: =Mercado!F37 -> 9554.041 | E49: 0.02542469849
B50: Total | C50: =SUM(C42:C49) -> 846872 | D50: =SUM(D42:D49) -> 375777.947 | E50: =SUM(E42:E49) -> 1
B51: * Nota: dados do último mês informado pela empresa
G53: TabMercado | I53: Voltar
G54: Subgrupos | H54: Mercado (MWh) | I54: Receita (R$) | J54: Colunas1
G55: Fornecimento | H55: =SUM(H56:H62) -> 3250734.652 | I55: =SUM(I56:I62) -> 1642822844 | J55: =IF(ABS(H55)+ABS(I55)>0,1,0) -> 1
G56: A1 (230 kV ou mais) | H56: =Mercado!C10 -> 0 | I56: =Mercado!D10 -> 0 | J56: 0
G57: A2 (88 a 138 kV) | H57: =Mercado!C11 -> 6128.955 | I57: =Mercado!D11 -> 3262026.946 | J57: 1
G58: A3 (69 kV) | H58: =Mercado!C12 -> 2407.756 | I58: =Mercado!D12 -> 978607.2762 | J58: 1
G59: A3a (30 kV a 44 kV) | H59: =Mercado!C13 -> 4897.073 | I59: =Mercado!D13 -> 2674031.217 | J59: 1
G60: A4 (2,3 kV a 25 kV) | H60: =Mercado!C14 -> 655469.626 | I60: =Mercado!D14 -> 313470883.8 | J60: 1
G61: As | H61: =Mercado!C15 -> 0 | I61: =Mercado!D15 -> 0 | J61: 0
G62: BT (menor que 2,3 kV) | H62: =Mercado!C16 -> 2581831.242 | I62: =Mercado!D16 -> 1322437295 | J62: 1
G63: Suprimento | H63: =Mercado!C17 -> 32506.324 | I63: =Mercado!D17 -> 12347080.92 | J63: 1
G64: Livres A1 | H64: =Mercado!C18 -> 0 | I64: =Mercado!D18 -> 0 | J64: 0
G65: Demais Livres | H65: =Mercado!C19 -> 1285466.467 | I65: =Mercado!D19 -> 215755958.9 | J65: 1
G66: Distribuição | H66: =Mercado!C20 -> 70006.835 | I66: =Mercado!D20 -> 5742867.44 | J66: 1
G67: Geração | H67: =Mercado!C21 -> 0 | I67: =Mercado!D21 -> 26803288.22 | J67: 1
G68: Total | H68: =SUM(H56:H67) -> 4638714.278 | I68: =SUM(I56:I67) -> 1903472040
K70: TabEnc | N70: Voltar
K71: Encargos Setoriais | L71: Processo Anterior (R$) | M71: Processo Atual (R$) | N71: Dispositivo Legal | O71: Colunas1
K72: Taxa de Fisc. de Serviços de E.E. – TFSEE | L72: =Resultado!C22 -> 1783678.95 | M72: =Resultado!D22 -> 2010828.128 | N72: =Encargos!D17 -> Conforme módulo 5.5 do PRORET | O72: =IF(ABS(L72)+ABS(M72)>0,1,0) -> 1
K73: Conta de Desenvolvimento Energético – CDE USO | L73: =BM270 -> 234898171.4 | M73: =BN270 -> 350941004.2 | N73: =VLOOKUP("CDE",EncargoDRP[],3,FALSE) -> REH 3.034/2022 | O73: 1
K74: Conta de Desenvolvimento Energético – CDE Conta Covid | L74: =BM271+BM272 -> 38185361.41 | M74: =BN271+BN272 -> 39023592.56 | N74: =VLOOKUP("CDE Covid",EncargoDRP[],3,FALSE) -> Previsão-2022 | O74: =IF(ABS(L74)+ABS(M74)>0,1,0) -> 1
K75: CDE Modicidade Eletrobrás | L75: =BM273 -> 0 | M75: =BN273 -> -53470000 | N75: NT 92/2022-SGT/ANEEL | O75: 1
K76: Encargos Serv. Sist. - ESS e Energ. Reserv. - EER | L76: =Resultado!C25 -> 25696337.73 | M76: =Resultado!D25 -> 76934435.76 | N76: =Encargos!D12 -> Projeção SGT | O76: 1
K77: PROINFA | L77: =Resultado!C26 -> 39418320.49 | M77: =Resultado!D26 -> 61452707.37 | N77: =Encargos!$D$13 -> REH 2.995/2021 | O77: 1
K78: P&D e Eficiência Energética | L78: =Resultado!C27 -> 17146069.66 | M78: =Resultado!D27 -> 18311013.66 | N78: Res. Normativa nº 316/2008 | O78: 1
K79: Contribuição ONS | L79: 0 | M79: 0 | N79: 0 | O79: 0
K80: Total de Encargos Tarifários | L80: =SUM(L72:L79) -> 357127939.7 | M80: =SUM(M72:M79) -> 495203581.7
P82: TabTrans | R82: Voltar
P83: Componente | Q83: Processo Anterior (R$) | R83: Processo Atual (R$) | S83: Colunas1
P84: Rede Básica | Q84: =+Resultado!C30 -> 102085783.4 | R84: =+Resultado!D30 -> 126924171.8 | S84: =IF(ABS(Q84)+ABS(R84)>0,1,0) -> 1
P85: Rede Básica Fronteira | Q85: =+Resultado!C31 -> 89378828.02 | R85: =+Resultado!D31 -> 109085102.8 | S85: 1
P86: Rede Básica ONS (A2) | Q86: =+Resultado!C32 -> 880115.9373 | R86: =+Resultado!D32 -> 1047202.28 | S86: 1
P87: Rede Básica Export. (A2) | Q87: =+Resultado!C33 -> 0 | R87: =+Resultado!D33 -> 0 | S87: 0
P88: MUST Itaipu | Q88: =+Resultado!C34 -> 14112534.54 | R88: =+Resultado!D34 -> 14074773.11 | S88: 1
P89: Transporte de Itaipu | Q89: =+Resultado!C35 -> 13548322.47 | R89: =+Resultado!D35 -> 20198809.84 | S89: 1
P90: Conexão | Q90: =+Resultado!C36 -> 3100107.656 | R90: =+Resultado!D36 -> 4286179.53 | S90: 1
P91: Uso do sistema de distribuição | Q91: =+Resultado!C37 -> 48102855.13 | R91: =+Resultado!D37 -> 54315711.94 | S91: 1
P92: Total dos Custos de Transporte | Q92: =SUM(Q84:Q91) -> 271208547.2 | R92: =SUM(R84:R91) -> 329931951.3
T94: TabPerdas | W94: Voltar
T95: Perdas | U95: DRA | V95: DRP | W95: Referência
T96: Não Técnica (s/ Baixa Tensão) | U96: =Neutralidade!H14 -> 0.003651 | V96: =Energia!H13 -> 0.003651 | W96: REH 2.893/2021
T97: Técnica (s/ merc. injetado) | U97: =Neutralidade!H15 -> 0.06631 | V97: =Energia!H14 -> 0.06631 | W97: =W96 -> REH 2.893/2021
T98: Rede Básica (s/ merc. Injetado) | U98: =Neutralidade!H16 -> 0.01815482629 | V98: =Energia!H15 -> 0.01815482629 | W98: CCEE (últimos 12 meses)
T99: Mercado Baixa Tensão (MWh) | U99: =Mercado!$C$16 -> 2581831.242 | V99: =Mercado!$C$16 -> 2581831.242 | W99: SAMP
Y101: TabEnergia | AA101: Voltar
Y102: Descrição | Z102: Processo Anterior (MWh) | AA102: Processo Atual (MWh)
Y103: Mercado Total | Z103: =AA103 -> 3250734.652 | AA103: =Z104+Z105 -> 3250734.652 | AB103: Colunas1
Y104: Fornecimento | Z104: =Energia!H5 -> 3250734.652 | AA104: =Z104 -> 3250734.652 | AB104: =IF(Z104<>0,1,0) -> 1
Y105: Suprimento | Z105: 0 | AA105: =Z105 -> 0 | AB105: =IF(Z105<>0,1,0) -> 0
Y106: Consumidores Livres | Z106: =Energia!H7 -> 1355473.302 | AA106: =Z106 -> 1355473.302 | AB106: =IF(Z106<>0,1,0) -> 1
Y107: Consumidores Rede B. | Z107: 0 | AA107: =Z107 -> 0 | AB107: =IF(Z107<>0,1,0) -> 0
Y108: Perdas Totais | Z108: =Z109+Z110 -> 472047.0502 | AA108: =AA109+AA110 -> 472047.0502 | AB108: =IF(Z108<>0,1,0) -> 1
Y109: Perdas Rede Básica | Z109: =SUM(Neutralidade!H19:H20) -> 66960.9376 | AA109: =SUM(Energia!H18:H19) -> 66960.9376 | AB109: 1
Y110: Perdas na Distribuição | Z110: =SUM(Z111:Z112) -> 405086.1126 | AA110: =SUM(AA111:AA112) -> 405086.1126 | AB110: 1
Y111: Perda Não Técnica | Z111: =Neutralidade!H17 -> 9426.265865 | AA111: =Energia!H16 -> 9426.265865 | AB111: 1
Y112: Perda Técnica | Z112: =Neutralidade!H18 -> 395659.8467 | AA112: =Energia!H17 -> 395659.8467 | AB112: 1
Y113: Energia Requerida | Z113: =Z103+Z108 -> 3722781.702 | AA113: =AA103+AA108 -> 3722781.702
AC115: TabEDRA | AE115: Voltar
AC116: Energia Requerida (MWh) | AD116: Tarifa Média (R$/MWh) | AE116: Energia Requerida (R$)
AC117: ='Votos e NTs'!Z113 -> 3722781.702 | AD117: =Energia!C14 -> 217.315084 | AE117: =AD117*AC117 -> 809016618.2
AG119: TabContratos | AK119: Voltar
AG120: Contratos | AH120: Montante Contratado (MWh) | AI120: Montante Considerado (MWh) | AJ120: Tarifa (R$/MWh) | AK120: Despesa (R$) | AL120: Colunas1
AG121: AMBIENTE REGULADO - CCEAR | AH121: =SUM(AH122:AH126) -> 1578139.757 | AI121: =SUM(AI122:AI126) -> 1428146.983 | AJ121: =AK121/AI121 -> 229.8798215 | AK121: =SUM(AK122:AK126) -> 328302173.5 | AL121: =IF(AH121=0,0,1) -> 1
AG122: Existente - CCEAR-DSP | AH122: =SUMPRODUCT((Energia!$J$49:$J$140),(Energia!$T$49:$T$140=18)*(INT(Energia!$S$49:$S$140/10000)=2)) -> 0 | AI122: =SUMPRODUCT((Energia!$K$49:$K$140),(Energia!$T$49:$T$140=18)*(INT(Energia!$S$49:$S$140/10000)=2)) -> 0 | AJ122: =IFERROR(AK122/AI122,"") ->  | AK122: =(SUMPRODUCT((Energia!$L$49:$L$140),(Energia!$T$49:$T$140=18)*(INT(Energia!$S$49:$S$140/10000)=2))) -> 0 | AL122: 0
AG123: Existente - CCEAR-QTD | AH123: =SUMPRODUCT((Energia!$J$49:$J$140),(Energia!$T$49:$T$140=1)*(INT(Energia!$S$49:$S$140/10000)=2)) -> 0 | AI123: =SUMPRODUCT((Energia!$K$49:$K$140),(Energia!$T$49:$T$140=1)*(INT(Energia!$S$49:$S$140/10000)=2)) -> 0 | AJ123: =IFERROR(AK123/AI123,"") ->  | AK123: =(SUMPRODUCT((Energia!$L$49:$L$140),(Energia!$T$49:$T$140=1)*(INT(Energia!$S$49:$S$140/10000)=2))) -> 0 | AL123: 0
AG124: Nova e Alternativa- CCEAR-DSP | AH124: =SUMPRODUCT((Energia!$J$49:$J$140),(Energia!$T$49:$T$140=18)*(INT(Energia!$S$49:$S$140/10000)=1))+SUMPRODUCT((Energia!$J$49:$J$140),(Energia!$T$49:$T$140=18)*(INT(Energia!$S$49:$S$140/10000)=3)) -> 565278.5859 | AI124: =SUMPRODUCT((Energia!$K$49:$K$140),(Energia!$T$49:$T$140=18)*(INT(Energia!$S$49:$S$140/10000)=1))+SUMPRODUCT((Energia!$K$49:$K$140),(Energia!$T$49:$T$140=18)*(INT(Energia!$S$49:$S$140/10000)=3)) -> 511552.2269 | AJ124: 321.6869427 | AK124: =(SUMPRODUCT((Energia!$L$49:$L$140),(Energia!$T$49:$T$140=18)*(INT(Energia!$S$49:$S$140/10000)=1))+SUMPRODUCT((Energia!$L$49:$L$140),(Energia!$T$49:$T$140=18)*(INT(Energia!$S$49:$S$140/10000)=3))) -> 164559671.9 | AL124: 1
AG125: Nova e Alternativa- CCEAR-QTD | AH125: =SUMPRODUCT((Energia!$J$49:$J$140),(Energia!$T$49:$T$140=1)*(INT(Energia!$S$49:$S$140/10000)=1))+SUMPRODUCT((Energia!$J$49:$J$140),(Energia!$T$49:$T$140=1)*(INT(Energia!$S$49:$S$140/10000)=3)) -> 365726.4117 | AI125: =SUMPRODUCT((Energia!$K$49:$K$140),(Energia!$T$49:$T$140=1)*(INT(Energia!$S$49:$S$140/10000)=1))+SUMPRODUCT((Energia!$K$49:$K$140),(Energia!$T$49:$T$140=1)*(INT(Energia!$S$49:$S$140/10000)=3)) -> 330966.297 | AJ125: 216.1605828 | AK125: =(SUMPRODUCT((Energia!$L$49:$L$140),(Energia!$T$49:$T$140=1)*(INT(Energia!$S$49:$S$140/10000)=1))+SUMPRODUCT((Energia!$L$49:$L$140),(Energia!$T$49:$T$140=1)*(INT(Energia!$S$49:$S$140/10000)=3))) -> 71541867.64 | AL125: 1
AG126: Madeira e Belo Monte | AH126: =SUMPRODUCT((Energia!$J$49:$J$140)*(INT(Energia!$S$49:$S$140/10000)=5)) -> 647134.759 | AI126: =SUMPRODUCT((Energia!$K$49:$K$140)*(INT(Energia!$S$49:$S$140/10000)=5)) -> 585628.4588 | AJ126: 157.4387866 | AK126: =(SUMPRODUCT((Energia!L49:L140)*(INT(Energia!S49:S140/10000)=5))) -> 92200633.96 | AL126: 1
AG127: Bilaterais | AH127: =AH128 -> 0 | AI127: =SUM(AI128:AI143) -> 0 | AJ127: =AK127/AI127 ->  | AK127: =SUM(AK128:AK143) -> 0 | AL127: 0
AG128: =Energia!B145 -> 0 | AH128: =Energia!H145 -> 0 | AI128: =Energia!M145 -> 0 | AJ128: =Energia!L145 -> 0 | AK128: =AJ128*AI128 -> 0 | AL128: 0
AG129: =Energia!B146 -> 0 | AH129: =Energia!H146 -> 0 | AI129: =Energia!M146 -> 0 | AJ129: =Energia!L146 -> 0 | AK129: =AJ129*AI129 -> 0 | AL129: 0
AG130: =Energia!B147 -> 0 | AH130: =Energia!H147 -> 0 | AI130: =Energia!M147 -> 0 | AJ130: =Energia!L147 -> 0 | AK130: 0 | AL130: 0
AG131: =Energia!B148 -> 0 | AH131: =Energia!H148 -> 0 | AI131: =Energia!M148 -> 0 | AJ131: =Energia!L148 -> 0 | AK131: 0 | AL131: 0
AG132: =Energia!B149 -> 0 | AH132: =Energia!H149 -> 0 | AI132: =Energia!M149 -> 0 | AJ132: =Energia!L149 -> 0 | AK132: 0 | AL132: 0
AG133: =Energia!B150 -> 0 | AH133: =Energia!H150 -> 0 | AI133: =Energia!M150 -> 0 | AJ133: =Energia!L150 -> 0 | AK133: 0 | AL133: 0
AG134: =Energia!B151 -> 0 | AH134: =Energia!H151 -> 0 | AI134: =Energia!M151 -> 0 | AJ134: =Energia!L151 -> 0 | AK134: 0 | AL134: 0
AG135: =Energia!B152 -> 0 | AH135: =Energia!H152 -> 0 | AI135: =Energia!M152 -> 0 | AJ135: =Energia!L152 -> 0 | AK135: 0 | AL135: 0
AG136: =Energia!B153 -> 0 | AH136: =Energia!H153 -> 0 | AI136: =Energia!M153 -> 0 | AJ136: =Energia!L153 -> 0 | AK136: 0 | AL136: 0
AG137: =Energia!B154 -> 0 | AH137: =Energia!H154 -> 0 | AI137: =Energia!M154 -> 0 | AJ137: =Energia!L154 -> 0 | AK137: 0 | AL137: 0
AG138: =Energia!B155 -> 0 | AH138: =Energia!H155 -> 0 | AI138: =Energia!M155 -> 0 | AJ138: =Energia!L155 -> 0 | AK138: 0 | AL138: 0
AG139: =Energia!B156 -> 0 | AH139: =Energia!H156 -> 0 | AI139: =Energia!M156 -> 0 | AJ139: =Energia!L156 -> 0 | AK139: 0 | AL139: 0
AG140: =Energia!B157 -> 0 | AH140: =Energia!H157 -> 0 | AI140: =Energia!M157 -> 0 | AJ140: =Energia!L157 -> 0 | AK140: 0 | AL140: 0
AG141: =Energia!B158 -> 0 | AH141: =Energia!H158 -> 0 | AI141: =Energia!M158 -> 0 | AJ141: =Energia!L158 -> 0 | AK141: 0 | AL141: 0
AG142: 0 | AH142: =Energia!H159 -> 0 | AI142: =Energia!M159 -> 0 | AJ142: =Energia!L159 -> 0 | AK142: 0 | AL142: 0
AG143: 0 | AH143: 0 | AI143: 0 | AJ143: 0 | AK143: 0 | AL143: 0
AG144: =Energia!B20 -> Energia Base | AH144: =SUM(AH145:AH149) -> 1961419.502 | AI144: =SUM(AI145:AI149) -> 1782495.107 | AJ144: =AK144/AI144 -> 201.4345598 | AK144: =SUM(AK145:AK149) -> 359056117.3 | AL144: 1
AG145: Geração Própria | AH145: =Energia!H33 -> 0 | AI145: =Energia!C21 -> 0 | AJ145: =Energia!D21 -> 0 | AK145: =AJ145*AI145 -> 0 | AL145: 0
AG146: =Energia!B22 -> Cota Angra I/Angra II | AH146: =Energia!H34 -> 137326.7024 | AI146: =Energia!C22 -> 124274.6182 | AJ146: =Energia!D22 -> 349.15 | AK146: =AJ146*AI146 -> 43390482.95 | AL146: 1
AG147: =Energia!B23 -> Cotas Lei n º 12783/2013 | AH147: =Energia!H35 -> 1002327.647 | AI147: =Energia!C23 -> 907062.3807 | AJ147: =Energia!D23 -> 137.08 | AK147: =AJ147*AI147 -> 124340111.1 | AL147: 1
AG148: =Energia!B24 -> Itaipu (tirando as perdas) | AH148: =Energia!H36 -> 742887.6811 | AI148: =Energia!C24 -> 672280.6367 | AJ148: =Energia!D24 -> 284.5917504 | AK148: =AJ148*AI148 -> 191325523.2 | AL148: 1
AG149: =Energia!B25 -> PROINFA | AH149: =Energia!C25 -> 78877.47159 | AI149: =Energia!C25 -> 78877.47159 | AJ149: =Energia!D25 -> 0 | AK149: =AJ149*AI149 -> 0 | AL149: 1
AG150: Total | AH150: =AH121+AH127+AH144 -> 3539559.259 | AI150: =AI121+AI127+AI144 -> 3210642.09 | AJ150: =AK150/AI150 -> 214.0874852 | AK150: =AK121+AK127+AK144 -> 687358290.8
AM152: TabFatorX | AN152: Voltar
AM153: Componentes | AN153: Valor
AM154: Componente Pd do Fator X | AN154: ='VPB1'!F40 -> 0.005765248356
AM155: Componente T do Fator X | AN155: ='VPB1'!F41 -> -0.014
AM156: Componente Q do Fator X | AN156: ='VPB1'!F42 -> 0.003155494479
AM157: Fator X | AN157: ='VPB1'!F43 -> -0.005079257165
AP159: TabParcelaB | AR159: Voltar
AP160: Descrição | AQ160: Valores | AR160: Referência
AP161: (1) Parcela B Ano Anterior | AQ161: =+'VPB1'!C37 -> 449480137.6 | AR161: TUSD aplicada ao Mercado
AP162: (2) Fator DR1/Fator PB | AQ162: =+'VPB1'!C38 -> 1.092741228 | AR162: SGT/ANEEL
AP163: (3) Parcela B econômica = (1)*(2) | AQ163: =+'VPB1'!C39 -> 491165477.6 | AR163: SGT/ANEEL
AP164: (4) IPCA | AQ164: =+LnkTxtIPCA -> 0.1161239546 | AR164: Indicador econômico oficial
AP165: (5) Fator X | AQ165: =+AQ166+AQ167+AQ168 -> -0.005079257165
AP166: (5.1) Componente Pd do Fator X | AQ166: =+LnkTxtFatorPd -> 0.005765248356 | AR166: Pd Ex-Post | AS166: <-cuidado para verificar se é Reajuste depois de revisão. Se for reajuste pós revisão, deve se aplicar o Pd Expost.
AP167: (5.2) Componente T do Fator X | AQ167: =+LnkTxtFatorT -> -0.014 | AR167: REH 2.893/2021
AP168: (5.3) Componente Q do Fator X | AQ168: =+LnkTxtFatorQ -> 0.003155494479 | AR168: PRORET 2.5 A
AP169: (6) UDEROR | AQ169: =SUM(AQ170:AQ172) -> 51111213.63
AP170: (6.1) Outras Receitas (OR) | AQ170: =+'VPB1'!C40 -> 37329225.49 | AR170: Valores fiscalizados - SFF
AP171: (6.2) Excedente de Reativos (ER) | AQ171: =+'VPB1'!C41 -> 9485421.124 | AR171: Valores fiscalizados - SFF
AP172: (6.3) Ultrapassagem de Demanda (UD) | AQ172: =+'VPB1'!C42 -> 4296567.012 | AR172: Valores fiscalizados - SFF
AP173: (5) ONS | AQ173: 0 | AR173: REA 6.981/2018
AP174: Parcela B - DRP (R$) = (3)*[{1)+(4)-(5)]-(6) | AQ174: =Resultado!D45 -> 499585097.4
AT176: TabCVA | AW176: Voltar
AT177: Descrição | AU177: Delta (R$) | AV177: 5° Dia Útil Anterior (R$) | AW177: 12 Meses Subseqüentes (R$) | AX177: Colunas1
AT178: CVA CCC | AU178: 0 | AV178: 0 | AW178: 0 | AX178: =IF(AU178<>0,1,0) -> 0
AT179: ="CVA "&CVA!B10 -> CVA CDE | AU179: =CVA!C10 -> 50325985.57 | AV179: =CVA!D10 -> 51529992.56 | AW179: =CVA!E10 -> 54932100.79 | AX179: 1
AT180: ="CVA "&CVA!B11 -> CVA CDE Covid | AU180: =CVA!C11 -> 1153923.47 | AV180: =CVA!D11 -> 1250004.583 | AW180: =CVA!E11 -> 1332532.266 | AX180: 1
AT181: ="CVA "&CVA!B12 -> CVA Rede Básica | AU181: =CVA!C12 -> 7862956.833 | AV181: =CVA!D12 -> 8122480.47 | AW181: =CVA!E12 -> 8658742.096 | AX181: 1
AT182: ="CVA "&CVA!B13 -> CVA Compra Energia | AU182: =CVA!C13 -> 73877171.78 | AV182: =CVA!D13 -> 81735857.59 | AW182: =CVA!E13 -> 87132214.54 | AX182: 1
AT183: CVA CFURH | AU183: 0 | AV183: 0 | AW183: 0 | AX183: 0
AT184: ="CVA "&CVA!B15 -> CVA Transporte Itaipu | AU184: =CVA!C15 -> 4359795.146 | AV184: =CVA!D15 -> 4588477.316 | AW184: =CVA!E15 -> 4891417.325 | AX184: 1
AT185: ="CVA "&CVA!B16 -> CVA Proinfa | AU185: =CVA!C16 -> 11807655.26 | AV185: =CVA!D16 -> 12257050.54 | AW185: =CVA!E16 -> 13066284.36 | AX185: 1
AT186: ="CVA "&CVA!B17 -> CVA ESS/ERR | AU186: =CVA!C17 -> 17759397.49 | AV186: =CVA!D17 -> 21115482.68 | AW186: =CVA!E17 -> 22509567.05 | AX186: 1
AT187: Total | AU187: =SUM(AU178:AU186) -> 167146885.6 | AV187: =SUM(AV178:AV186) -> 180599345.7 | AW187: =SUM(AW178:AW186) -> 192522858.4
AY189: TabFin | BA189: Voltar
AY190: Componentes Financeiros | AZ190: Valor (R$) | BA190: Participação | BB190: Colunas1 | BC190: Coluna1 | BD190: Coluna2 | BE190: Coluna3
AY191: CVA em processamento - Energia | AZ191: =SUMIFS(Financeiros[Valor],Financeiros[idDet1],19,Financeiros[id_Grupo_TARIFA],2,Financeiros[idDet2],60,Financeiros[idDet3],999) -> 87132214.54 | BA191: =AZ191/Financeiros!$D$5 -> 0.04577541079 | BB191: =IF(AZ191<>0,1,0) -> 1
AY192: CVA em processamento - Transporte | AZ192: =SUMIFS(Financeiros[Valor],Financeiros[idDet1],19,Financeiros[id_Grupo_TARIFA],1,Financeiros[idDet2],60, Financeiros[idDet3],999) -> 13550159.42 | BA192: =AZ192/Financeiros!$D$5 -> 0.0071186543 | BB192: 1
AY193: CVA em processamento - Encargos Setoriais | AZ193: =SUMIFS(Financeiros[Valor],Financeiros[idDet1],19,Financeiros[id_Grupo_TARIFA],3,Financeiros[idDet2],60,Financeiros[idDet3],999)+SUMIFS(Financeiros[Valor],Financeiros[idDet1],19,Financeiros[id_Grupo_TARIFA],3,Financeiros[idDet2],60,Financeiros[idDet3],73)+SUMIFS(Financeiros[Valor],Financeiros[idDet1],19,Financeiros[id_Grupo_TARIFA],3,Financeiros[idDet2],60,Financeiros[idDet3],74) -> 91840484.46 | BA193: =AZ193/Financeiros!$D$5 -> 0.04824892751 | BB193: 1
AY194: Saldo a Compensar CVA-Ano Anterior + Ajustes | AZ194: =SUMIFS(Financeiros[Valor],Financeiros[idDet1],19,Financeiros[idDet2],64, Financeiros[idDet3],999)+SUMIFS(Financeiros[Valor],Financeiros[idDet1],19,Financeiros[idDet2],64, Financeiros[idDet3],73)+SUMIFS(Financeiros[Valor],Financeiros[idDet1],19,Financeiros[idDet2],64, Financeiros[idDet3],74) -> 7909170.496 | BA194: =AZ194/Financeiros!$D$5 -> 0.004155128277 | BB194: 1
AY195: Neutralidade de Parcela A- Energia | AZ195: =Financeiros!D44+Financeiros!D45+Financeiros!D46+Financeiros!D47+Financeiros!D48 -> -8501390.306 | BA195: =AZ195/Financeiros!$D$5 -> -0.004466254365 | BB195: 1
AY196: Neutralidade de Parcela A - Transporte | AZ196: =SUMIFS(Financeiros[Valor],Financeiros[idDet1],20,Financeiros[id_Grupo_TARIFA],1,Financeiros[idDet2],60, Financeiros[idDet3],999) -> 6215860.294 | BA196: =AZ196/Financeiros!$D$5 -> 0.003265538009 | BB196: 1
AY197: Neutralidade de Parcela A - Encargos Setoriais | AZ197: =SUMIFS(Financeiros[Valor],Financeiros[idDet1],20,Financeiros[id_Grupo_TARIFA],3,Financeiros[idDet2],60,Financeiros[idDet3],999)+SUMIFS(Financeiros[Valor],Financeiros[idDet1],20,Financeiros[idDet2],60,Financeiros[idDet3],73)+SUMIFS(Financeiros[Valor],Financeiros[idDet1],20,Financeiros[idDet2],60,Financeiros[idDet3],74) -> 1607920.43 | BA197: =AZ197/Financeiros!$D$5 -> 0.0008447302592 | BB197: 1
AY198: Neutralidade de Parcela A - Receita Irrecuperável | AZ198: =SUMIFS(Financeiros[Valor],Financeiros[idDet1],20,Financeiros[id_Grupo_TARIFA],5,Financeiros[idDet2],60, Financeiros[idDet3],999) -> 122379.3856 | BA198: =AZ198/Financeiros!$D$5 -> 6.429271512e-05 | BB198: 1
AY199: Neutralidade de Fin. Parcela B - Conta Covid | AZ199: =SUMIFS(Financeiros[Valor],Financeiros[idDet1],20,Financeiros[id_Grupo_TARIFA],4,Financeiros[idDet2],60, Financeiros[idDet3],999) -> 0 | BA199: =AZ199/Financeiros!$D$5 -> 0 | BB199: 0 | BD199: 0 | BE199: =Filtro063724[[#This Row],[Coluna2]]-AZ199 -> 0
AY200: Sobrecontratação/exposição de energia | AZ200: =SUMIFS(Financeiros[Valor],Financeiros[idDet1],22,Financeiros[id_Grupo_TARIFA],2,Financeiros[idDet2],60, Financeiros[idDet3],106)+SUMIFS(Financeiros[Valor],Financeiros[idDet1],22,Financeiros[id_Grupo_TARIFA],2,Financeiros[idDet2],60, Financeiros[idDet3],101) -> -1079495.664 | BA200: =AZ200/Financeiros!$D$5 -> -0.0005671192648 | BB200: 1
AY201: Garantias financeiras na contratação regulada de energia (CCEAR) | AZ201: =SUMIFS(Financeiros[Valor],Financeiros[idDet1],22,Financeiros[id_Grupo_TARIFA],2,Financeiros[idDet2],60, Financeiros[idDet3],102) -> 1275207.072 | BA201: =AZ201/Financeiros!$D$5 -> 0.0006699373805 | BB201: 1
AY202: Previsão de Risco Hidrológico | AZ202: =SUMIFS(Financeiros[Valor],Financeiros[idDet1],22,Financeiros[id_Grupo_TARIFA],2,Financeiros[idDet2],60, Financeiros[idDet3],220) -> 68150108.01 | BA202: =AZ202/Financeiros!$D$5 -> 0.03580305178 | BB202: 1
AY203: Ajuste Liminar Abrace | AZ203: =SUMIFS(Financeiros[Valor],Financeiros[idDet1],22,Financeiros[id_Grupo_TARIFA],3,Financeiros[idDet2],85, Financeiros[idDet3],85) -> 0 | BA203: =AZ203/Financeiros!$D$5 -> 0 | BB203: 0 | BD203: 0 | BE203: =Filtro063724[[#This Row],[Coluna2]]-AZ203 -> 0
AY204: Ajuste ref. equilíbrio econômico-financeiro TUSDg (A3a) | AZ204: =SUMIFS(Financeiros[Valor],Financeiros[idDet1],22,Financeiros[id_Grupo_TARIFA],4,Financeiros[idDet2],60, Financeiros[idDet3],137) -> 0 | BA204: =AZ204/Financeiros!$D$5 -> 0 | BB204: 0 | BD204: 0 | BE204: =Filtro063724[[#This Row],[Coluna2]]-AZ204 -> 0
AY205: Repasse de ultrapassagem de Supridas/Permissionárias de Energia | AZ205: =SUMIFS(Financeiros[Valor],Financeiros[idDet1],22,Financeiros[id_Grupo_TARIFA],2,Financeiros[idDet2],60, Financeiros[idDet3],187) -> 0 | BA205: =AZ205/Financeiros!$D$5 -> 0 | BB205: 0 | BD205: 0 | BE205: =Filtro063724[[#This Row],[Coluna2]]-AZ205 -> 0
AY206: Reversão do Financeiro de Reperfilamento dos custos de RBSE | AZ206: =SUMIFS(Financeiros[Valor],Financeiros[idDet1],22,Financeiros[idDet2],60, Financeiros[idDet3],999,Financeiros[id_Grupo_TARIFA],1) -> 0 | BA206: =AZ206/Financeiros!$D$5 -> 0 | BB206: 0 | BD206: 0 | BE206: =Filtro063724[[#This Row],[Coluna2]]-AZ206 -> 0
AY207: Ajuste CUSD | AZ207: =SUMIFS(Financeiros[Valor],Financeiros[idDet1],22,Financeiros[id_Grupo_TARIFA],1,Financeiros[idDet2],60, Financeiros[idDet3],119) -> 278606.7992 | BA207: =AZ207/Financeiros!$D$5 -> 0.0001463676867 | BB207: 1
AY208: Repasse de compensação DIC/FIC | AZ208: =Financeiros!D127 -> -39173.51403 | BA208: =AZ208/Financeiros!$D$5 -> -2.058003123e-05 | BB208: 1
AY209: Compensação ref. acordos bilaterais de CCEAR | AZ209: =SUMIFS(Financeiros[Valor],Financeiros[idDet1],22,Financeiros[id_Grupo_TARIFA],2,Financeiros[idDet2],60, Financeiros[idDet3],230) -> 0 | BA209: =AZ209/Financeiros!$D$5 -> 0 | BB209: 0 | BD209: 0 | BE209: =Filtro063724[[#This Row],[Coluna2]]-AZ209 -> 0
AY210: Reversão do Risco Hidrológico | AZ210: =SUM(Financeiros!D144:D148) -> -102197555.2 | BA210: =AZ210/Financeiros!$D$5 -> -0.05369007428 | BB210: 1
AY211: Ressarcimento de P&D | AZ211: =SUMIFS(Financeiros[Valor],Financeiros[idDet1],22,Financeiros[id_Grupo_TARIFA],3,Financeiros[idDet2],60, Financeiros[idDet3],231) -> 0 | BA211: =AZ211/Financeiros!$D$5 -> 0 | BB211: 0 | BD211: 0 | BE211: =Filtro063724[[#This Row],[Coluna2]]-AZ211 -> 0
AY212: Reversão Conta-Covid - CVA em processamento - Energia | AZ212: =SUMIFS(Financeiros[Valor],Financeiros[idDet1],19,Financeiros[id_Grupo_TARIFA],2,Financeiros[idDet2],60,Financeiros[idDet3],233) -> 0 | BA212: =AZ212/Financeiros!$D$5 -> 0 | BB212: 0 | BD212: 0 | BE212: =Filtro063724[[#This Row],[Coluna2]]-AZ212 -> 0
AY213: Reversão Conta-Covid - CVA em processamento -Transporte | AZ213: =SUMIFS(Financeiros[Valor],Financeiros[idDet1],19,Financeiros[id_Grupo_TARIFA],1,Financeiros[idDet2],60,Financeiros[idDet3],233) -> 0 | BA213: =AZ213/Financeiros!$D$5 -> 0 | BB213: 0 | BD213: 0 | BE213: =Filtro063724[[#This Row],[Coluna2]]-AZ213 -> 0
AY214: Reversão Conta-Covid - CVA em processamento - Encargos Setoriais | AZ214: =SUMIFS(Financeiros[Valor],Financeiros[idDet1],19,Financeiros[id_Grupo_TARIFA],3,Financeiros[idDet2],60,Financeiros[idDet3],233) -> 0 | BA214: =AZ214/Financeiros!$D$5 -> 0 | BB214: 0 | BD214: 0 | BE214: =Filtro063724[[#This Row],[Coluna2]]-AZ214 -> 0
AY215: Reversão Conta-Covid - Saldo a Compensar CVA-Ano Anterior + Ajustes | AZ215: =SUMIFS(Financeiros[Valor],Financeiros[idDet1],19,Financeiros[idDet2],64, Financeiros[idDet3],236) -> 0 | BA215: =AZ215/Financeiros!$D$5 -> 0 | BB215: 0 | BD215: 0 | BE215: =Filtro063724[[#This Row],[Coluna2]]-AZ215 -> 0
AY216: Reversão Conta-Covid - Neutralidade de Parcela A | AZ216: =SUMIFS(Financeiros[Valor],Financeiros[idDet1],20,Financeiros[idDet2],60, Financeiros[idDet3],234) -> 0 | BA216: =AZ216/Financeiros!$D$5 -> 0 | BB216: 0 | BD216: 0 | BE216: =Filtro063724[[#This Row],[Coluna2]]-AZ216 -> 0
... 192 more rows

Sheet NT Revisao (hidden)
B2: Tabelas
B4: Custo Operacional
B5: Receitas Irrecuperáveis
B6: Remuneração do Capital e Quota de Reintegração
B7: CAIMI
B8: Parcela B Ajustada
B9: Outras Receitas
B10: Cálculo das Perdas
B11: Energia Requerida
B12: Transmissão
B13: Encargos Setoriais
B16: Custo Operacional | E16: Voltar
B17: Descrição | C17: Limite Inferior | D17: Centro | E17: Limite Superior
B18: 1. Eficiência | C18: ='VPB e Fator X'!C133 ->  | D18: ='VPB e Fator X'!C131 ->  | E18: ='VPB e Fator X'!C132 -> 
B19: 2. OPEX Benchmarking (Atualizado) - R$ | C19: ='VPB e Fator X'!C136 ->  | D19: =(E19+C19)/2 ->  | E19: ='VPB e Fator X'!C135 -> 
B21: Comparação com intervalo de CO eficientes
B22: Descrição | C22: Valor
B23: 3. OPEX nas tarifas - R$ | C23: ='VPB e Fator X'!C111 -> 
B24: 4. Meta estudo de eficiência - R$ | C24: ='VPB e Fator X'!C114 -> 
B25: 5. Variação Anual (%) | C25: ='VPB e Fator X'!C115 -> 
B26: 6. Meta do estudo de eficiência aplicado o limite de 5% a.a. | C26: ='VPB e Fator X'!C117 -> 
B28: Avaliação do prêmio de eficiência
B29: Descrição | C29: Reais
B30: 7. OPEX Real - R$ | C30: ='VPB e Fator X'!C118 -> 
B31: 8. Meta OPEX | C31: ='VPB e Fator X'!C114 -> 
B32: 9. Relação OPEX Real / Meta OPEX | C32: ='VPB e Fator X'!C119 -> 
B33: 10. Meta OPEX aplicada a regra de compartilhamento | C33: ='VPB e Fator X'!C120 -> 
B35: 11. Número de anos no ciclo | C35: 5
B36: 12. OPEX na revisão [ = 3. + (10. - 3.) / 11.] | C36: ='VPB e Fator X'!C121 -> 
G38: Receitas Irrecuperáveis | H38: Voltar
G39: Descrição | H39: Valor
G40: Receita Base (R$) | H40: =H42/H41 -> 
G41: % RI | H41: ='VPB e Fator X'!D213 -> 
G42: Receita Irrecuperáveis - RI (R$) | H42: =Resultado!D39 -> 14323524.54
J44: Remuneração do Capital e Quota de Reintegração | K44: Voltar
J45: Descrição | L45: Colunas1
J46: (1) Ativo Imobilizado em Serviço (Valor Novo de Reposição) | K46: =Entrada!G7 ->  | L46: =IF(K46=0,0,1) -> 
J47: (2) Índice de Aproveitamento Integral | K47: =Entrada!G8 -> 
J48: (3) Obrigações Especiais Bruta | K48: =Entrada!G9 -> 
J49: (4) Bens Totalmente Depreciados | K49: =Entrada!G10 -> 
J50: (5) Base de Remuneração Bruta = (1)-(2)-(3)-(4) | K50: =Entrada!G11 -> 
J51: (6) Depreciação Acumulada | K51: =Entrada!G12 -> 
J52: (7) AIS Líquido (Valor de Mercado em Uso) | K52: =Entrada!G13 -> 
J53: (8) Índice de Aproveitamento Depreciado | K53: =Entrada!G14 -> 
J54: (9) Valor da Base de Remuneração (VBR) = (1)-(6)-(8) | K54: =Entrada!G15 -> 
J55: (10) Almoxarifado em Operação | K55: =Entrada!G16 -> 
J56: (11) Ativo Diferido | K56: =Entrada!G17 -> 
J57: (12) Obrigações Especiais Líquida | K57: =Entrada!G18 -> 
J58: (13) Terrenos e Servidões | K58: =Entrada!G19 -> 
J59: (14) Base de Remuneração Líquida Total = (9)+(10)+(11)-(12)+(13) | K59: =Entrada!G20 -> 
J60: (15) Base de Remuneração Ativos Concessionária | K60: =K59-K66-K69 ->  | L60: =IF(K60=0,0,1) -> 
J61: (16) WACC antes de impostos | K61: ='VPB e Fator X'!F81 -> 0.1082749759 | L61: 1
J62: (17) Remuneração Ativos Concessionária | K62: =K60*K61 -> 
J63: (18) Base Obrigações Especiais | K63: ='VPB e Fator X'!G91 ->  | L63: =IF(K63=0,0,1) -> 
J64: (19) Taxa de Remuneração das Obrigações Especiais | K64: =K65/K63 ->  | L64: =IF(K63=0,0,1) -> 
J65: (20) Remuneração de Obrigações Especiais | K65: ='VPB e Fator X'!G95 ->  | L65: =IF(K65=0,0,1) -> 
J66: (21) Saldo RGR/PLPT | K66: ='VPB e Fator X'!C91 -> 
J67: (22) Taxa RGR/PLPT | K67: ='VPB e Fator X'!F82 -> 0.00677460118 | L67: =IF(K66=0,0,1) -> 
J68: (23) Remuneração RGR/PLPT | K68: =K66*K67 -> 
J69: (24) Saldo RGR/Demais Investimentos | K69: ='VPB e Fator X'!C92 ->  | L69: =IF(K69=0,0,1) -> 
J70: (25) Saldo RGR/Demais Investimentos | K70: ='VPB e Fator X'!F83 -> 0.00677460118 | L70: =IF(K69=0,0,1) -> 
J71: (23) Remuneração RGR Demais Investimentos | K71: =K69*K70 -> 
J72: (24) Remuneração do Capital = (17)+(20)+(23) | K72: =K62+K65+K68+K71 ->  | L72: =IF(K72=0,0,1) -> 
J73: (25) Taxa de Depreciação | K73: ='VPB e Fator X'!C76 -> 0 | L73: 0
J74: (29) Quota de Reintegração Regulatória = (5) * (25) | K74: =K50*K73 ->  | L74: =IF(K74=0,0,1) -> 
M76: CAIMI | N76: Voltar
M77: Descrição | N77: Valores (R$)
M78: ='VPB e Fator X'!B60 -> (1) Base de Anuidade Regulatória (BAR) | N78: ='VPB e Fator X'!C60 -> 
M79: ='VPB e Fator X'!B61 -> (2) Base de Anuidade - Infraestrutura de imóveis e móveis administrativos (BARA) | N79: ='VPB e Fator X'!C61 -> 
M80: ='VPB e Fator X'!B62 -> (3) Base de Anuidade - Veículos (BARV) | N80: ='VPB e Fator X'!C62 -> 
M81: ='VPB e Fator X'!B63 -> (4) Base de Anuidade - Sistemas de Informática (BARI) | N81: ='VPB e Fator X'!C63 -> 
M82: ='VPB e Fator X'!B64 -> (5) Anuidade - Infraestrutura de imóveis e móveis administrativos (CAL) | N82: ='VPB e Fator X'!C64 -> 
M83: ='VPB e Fator X'!B65 -> (6) Anuidade - Veículos (CAV) | N83: ='VPB e Fator X'!C65 -> 
M84: ='VPB e Fator X'!B66 -> (7) Anuidade - Sistemas de Informática (CAI) | N84: ='VPB e Fator X'!C66 -> 
M85: ='VPB e Fator X'!B67 -> (8) CAIMI = (5)+(6)+(7) | N85: ='VPB e Fator X'!C67 -> 
P87: Parcela B ajustada | Q87: Voltar
P88: Descrição | Q88: Valores
P89: Custo de Administração, Operação e Manutenção (CAOM) | Q89: =Resultado!G19 -> 
P90: Custos Operacionais (CO) | Q90: =Resultado!G20 -> 
P91: Custo Anual dos Ativos (CAA) | Q91: =Resultado!G21 -> 
P92: Remuneração do Capital (RC) | Q92: =Resultado!G22 -> 
P93: Quota de Reintegração Regulatória (QRR) | Q93: =Resultado!G23 -> 
P94: Custo anual das instalações móveis e imóveis (CAIMI) | Q94: =Resultado!G24 -> 
P95: Parcela B (VPB) | Q95: =Resultado!G25 -> 
P96: Índice de Produtividade da Parcela B | Q96: =Resultado!G26 -> 0.005765248356
P97: Mecanismo de Incentivo à Qualidade | Q97: =Resultado!G27 -> 0.003155494479
P98: Parcela B com ajustes | Q98: =Resultado!G28 -> 
P99: Outras Receitas (OR) | Q99: =Resultado!G29 -> 37329225.49
P100: Excedente de Reativos (ER) | Q100: =Resultado!G30 -> 4296567.012
P101: Ultrapassagem de Demanda (UD) | Q101: =Resultado!G31 -> 9485421.124
P102: Parcela B deduzido UDEROR | Q102: =Q98-SUM(Q99:Q101) -> 
S104: Outras Receitas | U104: Voltar
S105: Descrição das atividades | T105: Compartilhamento | U105: Receita Regulatória | V105: Colunas1
S106: Serviços Cobráveis | T106: 0.6 | U106: =UDEROR!D14 -> 964586.77 | V106: =IF(U106=0,0,1) -> 1
S107: =UDEROR!B15 -> Arrecadação de convênios ou valores pela fatura e arredação por terceiros | T107: 0.6 | U107: =UDEROR!D15 -> 4154636.551 | V107: 1
S108: =UDEROR!B16 -> Receita proveniente da comercialização de resultados de projetos de P&D | T108: 0.5 | U108: =UDEROR!D16 -> 0 | V108: 0
S109: =UDEROR!B17 -> Veiculação de publicidade | T109: 0.6 | U109: =UDEROR!D17 -> 0 | V109: 0
S110: =UDEROR!B18 -> Aluguel ou cessão onerosa de imóveis e espaços físicos | T110: 0.6 | U110: =UDEROR!D18 -> 0 | V110: 0
S111: =UDEROR!B19 -> Compartilhamento de infraestrutura (Média 12 meses) | T111: 0.6 | U111: =UDEROR!D19 -> 32210002.17 | V111: 1
S112: =UDEROR!B20 -> Serviços de avaliação técnica e aferição de medidores. | T112: 0.6 | U112: =UDEROR!D20 -> 0 | V112: 0
S113: =UDEROR!B21 -> Operacionalização de serviço de créditos tributários | T113: 0.6 | U113: =UDEROR!D21 -> 0 | V113: 0
S114: Elaboração de projeto, construção, operação, manutenção ou reforma de: | V114: 0
S115: (1) redes de distribuição de energia elétrica destinadas à regularização fundiária de interesse específico e ao atendimento dos empreendimentos de múltiplas unidades consumidoras; | T115: 0.6 | U115: =UDEROR!D23 -> 0 | V115: 0
S116: (2) redes de energia elétrica destinadas ao acesso dos sistemas de distribuição ou transmissão; | T116: 0.6 | U116: =UDEROR!D24 -> 0 | V116: 0
S117: (3) subestações de energia; | T117: 0.6 | U117: =UDEROR!D25 -> 0 | V117: 0
S118: (4) instalações elétricas internas de unidades consumidoras; | T118: 0.6 | U118: =UDEROR!D26 -> 0 | V118: 0
S119: (5) banco de capacitores: | T119: 0.6 | U119: =UDEROR!D27 -> 0 | V119: 0
S120: (6) padrões de entrada de unidades consumidoras atendidas em baixa tensão; | T120: 0.6 | U120: =UDEROR!D28 -> 0 | V120: 0
S121: (7) sistemas de medição de energia elétrica; | T121: 0.6 | U121: =UDEROR!D29 -> 0 | V121: 0
S122: (8) geradores, incluindo-se unidades de microgeração e minigeração distribuída; | T122: 0.3 | U122: =UDEROR!D30 -> 0 | V122: 0
S123: (9) sistemas de iluminação pública. | T123: 0.6 | U123: =UDEROR!D31 -> 0 | V123: 0
S124: Eficientização do consumo de energia elétrica e instalação de cogeração qualificada, desde que não enquadráveis nos projetos de Pesquisa e Desenvolvimento (P&D) ou de Eficiência Energética estabelecidos em lei | T124: 0.3 | U124: =UDEROR!D32 -> 0 | V124: 0
S125: Serviços de comunicação de dados | T125: 0.3 | U125: =UDEROR!D33 -> 0 | V125: 0
S126: Serviços de consultoria | T126: 0.6 | U126: =UDEROR!D34 -> 0 | V126: 0
S127: Total | U127: =SUM(U106:U126) -> 37329225.49 | V127: 1
W129: Calculo das Perdas | X129: Voltar
W130: Cálculo do Ponto de Partida
W131: Descrição | X131: PNT
W132: a. Meta Ciclo Anterior Faturada | X132: 0.013
W133: b. Diferença entre Medido e Faturado | X133: 0.009223126897
W134: c. Meta Ciclo Anterior Medida [b + c] | X134: 0.0222231269
W135: d. Média Histórico Medida | X135: 0.04749172703
W136: =IF(AND(Q130="P",X135>2.5%),"e. Ponto de Partida [ = máximo (2,5% & mínimo ( c & d )) ]",IF(AND(Q130="P",X135<=2.5),"e. Ponto de Partida [ = Média Histórica ]",IF(AND(Q130="G",X135>7.5%),"e. Ponto de Partida [ = máximo (7,5% & mínimo ( c & d )) ]","e. Ponto de Partida [ = Média Histórica ]"))) -> e. Ponto de Partida [ = Média Histórica ] | X136: 0.025
W137: f. Ponto de Partida Faturado [e - b] | X137: 0.0157768731
W139: Cálculo do Ponto de Chegada
W140: Descrição | X140: Modelo C | Y140: Modelo G | Z140: Modelo K
W141: g. Empresa Benchmark | X141: UHENPAL | Y141: UHENPAL | Z141: UHENPAL
W142: h. Perda Benchmark (PNT/BT) | X142: 0 | Y142: 0 | Z142: 0
X143: 0.002562180881 | Y143: 0.002562180881 | Z143: 0.002562180881
W144: j. Probabilidade de Comparação | X144: 0.4523378651 | Y144: 0.5143975427 | Z144: 0.1598724855
W145: k. Meta baseada em cada Benchmark [ h x j + (1 - j) x i ] | X145: 0.001403209451 | Y145: 0.001244201332 | Z145: 0.002152558655
W146: l. Meta média dos Benchmarks [ média ( k ) ] | Y146: 0.001599989812
W147: m. Ponto de Partida (PNT/BT) | Y147: 0.025
W148: =IF(AND(Q130="P",X135>2.5%),"n. Meta = [ mínimo (l e m ) ] ",IF(AND(Q130="P",X135<=2.5),"n. Ponto de Chegada [ = Ponto de Partida ]",IF(AND(Q130="G",X135>7.5%),"n. Meta = [ mínimo (l e m) ] ","n. Meta [ = Ponto de Partida ]"))) -> n. Meta [ = Ponto de Partida ] | Y148: 0.001599989812
W149: o. Meta Faturado [ n + b ] | Y149: 0
W151: Descrição | X151: Ponto Partida | Y151: 2021 | Z151: 2022 | AA151: 2023 | AB151: 2024 | AC151: 2025
W152: Trajetória PNT/BT | X152: 0.025 | Y152: 0.02031999796 | Z152: 0.01563999592 | AA152: 0.01095999389 | AB152: 0.00627999185 | AC152: 0.001599989812
W153: Velocidade de Redução (a.a) | Y153: -0.004680002038 | Z153: -0.004680002038 | AA153: -0.004680002038 | AB153: -0.004680002038 | AC153: -0.004680002038
W154: Limite de Redução (a.a) | Y154: 0 | Z154: 0 | AA154: 0 | AB154: 0 | AC154: 0
W155: PNT/BT Medido Regulatório | X155: 0.025 | Y155: 0.025 | Z155: 0.025 | AA155: 0.025 | AB155: 0.025 | AC155: 0.025
W156: Diferença entre Medido e Faturado | X156: 0.009223126897 | Y156: 0.009223126897 | Z156: 0.009223126897 | AA156: 0.009223126897 | AB156: 0.009223126897 | AC156: 0.009223126897
W157: PNT/BT Faturado Regulatório | X157: 0.0157768731 | Y157: 0.0157768731 | Z157: 0.0157768731 | AA157: 0.0157768731 | AB157: 0.0157768731 | AC157: 0.0157768731
W158: PT/ Einjetada Regulatório | X158: 0.04504 | Y158: 0.04504 | Z158: 0.04504 | AA158: 0.04504 | AB158: 0.04504 | AC158: 0.04504
AE160: Energia Requerida | AF160: Voltar
AE161: Descrição | AF161: Energia (MWh)
AE162: Perdas na Rede Básica | AF162: =Energia!H18+Energia!H19 -> 66960.9376
AE163: Perdas na Distribuição | AF163: =AF164+AF165 -> 405086.1126
AE164: Perdas Técnicas | AF164: =Energia!H17 -> 395659.8467
AE165: Perdas Não Técnicas | AF165: =Energia!H16 -> 9426.265865
AE166: Energia Vendida | AF166: =Energia!D6 -> 3283240.976
AE167: Energia Requerida | AF167: =SUM(AF162:AF163,AF166) -> 3755288.026
AH169: Transmissão | AI169: Voltar
AH170: Descrição | AI170: Valor (R$) | AJ170: Colunas1
AH171: Rede Básica | AI171: =Resultado!D30 -> 126924171.8 | AJ171: =IF(AI171=0,0,1) -> 1
AH172: Rede Básica Fronteira | AI172: =Resultado!D31 -> 109085102.8 | AJ172: =IF(AI172=0,0,1) -> 1
AH173: Rede Básica ONS (A2) | AI173: =Resultado!D32 -> 1047202.28 | AJ173: 1
AH174: Rede Básica Export. (A2) | AI174: =Resultado!D33 -> 0 | AJ174: 0
AH175: MUST Itaipu | AI175: =Resultado!D34 -> 14074773.11 | AJ175: 1
AH176: Transporte de Itaipu | AI176: =Resultado!D35 -> 20198809.84 | AJ176: 1
AH177: Conexão | AI177: =Resultado!D36 -> 4286179.53 | AJ177: 1
AH178: Uso do sistema de distribuição | AI178: =Resultado!D37 -> 54315711.94 | AJ178: 1
AH179: Total | AI179: =SUM(AI171:AI178) -> 329931951.3
AK181: Encargos Setoriais | AL181: Voltar
AK182: Descrição | AL182: Valor (R$) | AM182: Dispositivo Legal | AN182: Colunas1
AK183: Taxa de Fisc. de Serviços de E.E. – TFSEE | AL183: =Resultado!D22 -> 2010828.128 | AM183: =Encargos!D17 -> Conforme módulo 5.5 do PRORET | AN183: =IF(AL183=0,0,1) -> 1
AK184: Conta de Desenvolvimento Energético – CDE | AL184: =Resultado!D23 -> 336494596.8 | AM184: =Encargos!D10 -> REH 3.034/2022 e Previsão-2022 | AN184: 1
AK185: Compensação financeira - CFURH | AL185: =Resultado!D24 -> 0 | AM185: =Encargos!D11 -> 0 | AN185: 0
AK186: Encargos Serv. Sist. - ESS e Energ. Reserv. - EER | AL186: =Resultado!D25 -> 76934435.76 | AM186: =Encargos!D12 -> Projeção SGT | AN186: 1
AK187: PROINFA | AL187: =Resultado!D26 -> 61452707.37 | AM187: =Encargos!D13 -> REH 2.995/2021 | AN187: 1
AK188: P&D, Efic.Energ e Ressarc.ICMS Sist.Isol. | AL188: =Resultado!D27 -> 18311013.66 | AM188: Res. Normativa nº 316/2008 | AN188: 1
AK189: ONS | AL189: =Resultado!D28 -> 0 | AM189: =Encargos!D14 -> 0 | AN189: 0
AK190: Total | AL190: =SUM(AL183:AL189) -> 495203581.7
AO192: TabRevAvalRTE
AP193: Receita Verificada (R$) | AQ193: Receita Verificada (R$) | AR193: Receita Requerida (R$) | AS193: Variação | AT193: Participação na Revisão | AU193: Participação na Receita
AO194: PARCELA A [Encargos+Transmissão+Energia+RI] | AP194: =AP195+AP205+AP214+AP215 -> 1453949011 | AQ194: =AQ195+AQ205+AQ214+AQ215 ->  | AR194: =AR195+AR205+AR214+AR215 -> 1769788197 | AS194: =IFERROR(AR194/AQ194-1,0) -> 0 | AT194: =IFERROR((AR194-AQ194)/$AQ$223,0) -> 0 | AU194: =IFERROR(AR194/$AR$223,0) -> 0
AO195: Encargos Setoriais | AP195: =SUM(AP196:AP204) -> 357117404.8 | AQ195: =SUM(AQ196:AQ204) ->  | AR195: =SUM(AR196:AR204) -> 548673581.7 | AS195: =IFERROR(AR195/AQ195-1,0) -> 0 | AT195: 0 | AU195: 0 | AV195: Colunas1 | AW195: Colunas2
AO196: Taxa de Fisc. de Serviços de E.E. – TFSEE | AP196: =SUM(DADOS_MercadoBase[TFSEE]) -> 1783626.334 | AQ196: =AP196+AP196*($AQ$223-$AP$223)/$AP$194 ->  | AR196: =Resultado!D22 -> 2010828.128 | AS196: 0 | AT196: 0 | AU196: 0 | AV196: =IF(SUM(AP196:AR196)<>0,1,0) -> 
AO197: Conta de Desenvolvimento Energético – CDE (USO) | AP197: =SUM(DADOS_MercadoBase[CDE],DADOS_MercadoBase[RTE_CDE_E]) -> 234891242.2 | AR197: =Encargos!G22 -> 350941004.2 | AS197: 0 | AT197: 0 | AU197: 0 | AV197: =IF(SUM(AP197:AR197)<>0,1,0) -> 
AO198: Conta de Desenvolvimento Energético – CDE (Covid TUSD) | AP198: =SUM(DADOS_MercadoBase[covidTusdEco]) -> 16375629.31 | AR198: =Encargos!G23 -> 19527362.6 | AS198: 0 | AT198: 0 | AU198: 0
AO199: Conta de Desenvolvimento Energético – CDE (Covid TE) | AP199: =SUM(DADOS_MercadoBase[covidTeEco],DADOS_MercadoBase[RTE_CDE_E_ACR]) -> 21808605.68 | AR199: =Encargos!G24 -> 19496229.96 | AS199: 0 | AT199: 0 | AU199: 0
AO200: Compensação financeira - CFURH | AP200: =SUM(DADOS_MercadoBase[CFURH]) -> 0 | AR200: =Resultado!D24 -> 0 | AS200: 0 | AT200: 0 | AU200: 0
AO201: Encargos Serv. Sist. - ESS e Energ. Reserv. - EER | AP201: =SUM(DADOS_MercadoBase[ESSERR]) -> 25695579.72 | AR201: =Resultado!D25 -> 76934435.76 | AS201: 0 | AT201: 0 | AU201: 0
AO202: PROINFA | AP202: =SUM(DADOS_MercadoBase[PROINFA]) -> 39417157.7 | AR202: =Resultado!D26 -> 61452707.37 | AS202: 0 | AT202: 0 | AU202: 0 | AV202: =IF(SUM(AP202:AR202)<>0,1,0) -> 
AO203: P&D, Efic.Energ e Ressarc.ICMS Sist.Isol. | AP203: =SUM(DADOS_MercadoBase[PeD],DADOS_MercadoBase[RTE_PeD]) -> 17145563.87 | AR203: =Resultado!D27 -> 18311013.66 | AS203: 0 | AT203: 0 | AU203: 0
AO204: ONS | AP204: =Resultado!C28 -> 0 | AR204: =Resultado!D28 -> 0 | AS204: 0 | AT204: 0 | AU204: 0 | AV204: =IF(SUM(AP204:AR204)<>0,1,0) -> 
AO205: Custos de Transmissão | AP205: =SUM(AP206:AP213) -> 271200546.9 | AQ205: =SUM(AQ206:AQ213) ->  | AR205: =SUM(AR206:AR213) -> 329931951.3 | AS205: 0 | AT205: 0 | AU205: 0
AO206: Rede Básica | AP206: =SUM(DADOS_MercadoBase[TUST_RB]) -> 102082772 | AQ206: =AP206+AP206*($AQ$223-$AP$223)/$AP$194 ->  | AR206: =Resultado!D30 -> 126924171.8 | AS206: 0 | AT206: 0 | AU206: 0
AO207: Rede Básica Fronteira | AP207: =SUM(DADOS_MercadoBase[TUST_FR]) -> 89376191.46 | AR207: =Resultado!D31 -> 109085102.8 | AS207: 0 | AT207: 0 | AU207: 0
AO208: Rede Básica ONS (A2) | AP208: =SUM(DADOS_MercadoBase[TUSDG_ONS]) -> 880089.975 | AR208: =Resultado!D32 -> 1047202.28 | AS208: 0 | AT208: 0 | AU208: 0
AO209: Rede Básica Export. (A2) | AP209: =SUM(DADOS_MercadoBase[TUSDG_T]) -> 0 | AR209: =Resultado!D33 -> 0 | AS209: 0 | AT209: 0 | AU209: 0
AO210: MUST Itaipu | AP210: =SUM(DADOS_MercadoBase[TUST_ITAIPU]) -> 14112118.23 | AR210: =Resultado!D34 -> 14074773.11 | AS210: 0 | AT210: 0 | AU210: 0
AO211: Transporte de Itaipu | AP211: =SUM(DADOS_MercadoBase[ITAIPU]) -> 13547922.81 | AR211: =Resultado!D35 -> 20198809.84 | AS211: 0 | AT211: 0 | AU211: 0
AO212: Conexão | AP212: =SUM(DADOS_MercadoBase[Conexao_T]) -> 3100016.206 | AR212: =Resultado!D36 -> 4286179.53 | AS212: 0 | AT212: 0 | AU212: 0
AO213: Uso do sistema de distribuição | AP213: =SUM(DADOS_MercadoBase[CUSD],DADOS_MercadoBase[RTE_CUSD]) -> 48101436.15 | AR213: =Resultado!D37 -> 54315711.94 | AS213: 0 | AT213: 0 | AU213: 0
AO214: Custos de Aquisição de Energia | AP214: =SUM(DADOS_MercadoBase[RTE_Energia],DADOS_MercadoBase[EnergiaRevenda],DADOS_MercadoBase[perdasnt],DADOS_MercadoBase[perdasrb_d],DADOS_MercadoBase[perdasrb_c],DADOS_MercadoBase[perdastec]) -> 824381116.3 | AR214: =Resultado!D38 -> 876859139.4 | AS214: 0 | AT214: 0 | AU214: 0
AO215: Receitas Irrecuperáveis | AP215: =SUM(DADOS_MercadoBase[RI]) -> 1249943.185 | AR215: =Resultado!D39 -> 14323524.54 | AS215: 0 | AT215: 0 | AU215: 0 | AV215: =IF(SUM(AP215:AR215)<>0,1,0) -> 
AO216: PARCELA B | AP216: =SUM(AP217:AP222) ->  | AQ216: =AP216 ->  | AR216: =SUM(AR217:AR222) ->  | AS216: 0 | AT216: 0 | AU216: 0
AO217: Custos Operacionais | AP217: ='VPB e Fator X'!C107 ->  | AQ217: =AP217 ->  | AR217: =Resultado!G20*(1-Resultado!$G$26-Resultado!$G$27) ->  | AS217: 0 | AT217: 0 | AU217: 0
AO218: Anuidades | AP218: =Entrada!G63*('VPB e Fator X'!$C$102-'VPB e Fator X'!$C$107)/SUM(Entrada!$G$61:$G$63) ->  | AR218: =Resultado!G24*(1-Resultado!$G$26-Resultado!$G$27) ->  | AS218: 0 | AT218: 0 | AU218: 0
AO219: Remuneração | AP219: =Entrada!G61*('VPB e Fator X'!$C$102-'VPB e Fator X'!$C$107)/SUM(Entrada!$G$61:$G$63) ->  | AR219: =Resultado!G22*(1-Resultado!$G$26-Resultado!$G$27) ->  | AS219: 0 | AT219: 0 | AU219: 0
... 69 more rows

Sheet Apresentação (hidden)
B2: Efeito Médio | L2: Efeito Médio CP x Final | U2: Composição Tarifária - Tributos | Z2: Composição Tarifária - ICMS & PIS/COFINS | AD2: Composição Tarifária - sem Tributos
U19: =Z19 -> Custo de Distribuição | W19: =AB19 -> 0.1719672041 | Z19: Custo de Distribuição | AB19: =AF19/$AB$26 -> 0.1719672041 | AD19: Custo de Distribuição | AF19: ='Votos e NTs'!W24 -> 499585097.4
U20: =Z20 -> Custo de Energia | W20: =AB20 -> 0.3018324913 | Z20: Custo de Energia | AB20: =AF20/$AB$26 -> 0.3018324913 | AD20: Custo de Energia | AF20: ='Votos e NTs'!W25 -> 876859139.4 | AP20: Custos Operacionais | AS20: ='NT Revisao'!AT217 -> 0
U21: =Z21 -> Custo de Transporte | W21: =AB21 -> 0.1135691907 | Z21: Custo de Transporte | AB21: =AF21/$AB$26 -> 0.1135691907 | AD21: Custo de Transporte | AF21: ='Votos e NTs'!W26 -> 329931951.3 | AP21: Anuidades | AS21: ='NT Revisao'!AT218 -> 0
U22: =Z22 -> Encargos Setoriais | W22: =AB22 -> 0.1704589986 | Z22: Encargos Setoriais | AB22: =SUM(AF23:AF26/$AB$26) -> 0.1704589986 | AD22: Receitas Irrecuperáveis | AF22: ='Votos e NTs'!W27 -> 14323524.54 | AP22: Remuneração | AS22: ='NT Revisao'!AT219 -> 0
C23: Impacto da RTA na Tarifa | M23: Impacto da RTA na Tarifa | P23: CP | Q23: Final | U23: =Z23 -> Receitas Irrecuperáveis | W23: =AB23 -> 0.004930444245 | Z23: Receitas Irrecuperáveis | AB23: =AF22/$AB$26 -> 0.004930444245 | AD23: PROINFA | AF23: ='Votos e NTs'!W28 -> 61452707.37 | AP23: Depreciação | AS23: ='NT Revisao'!AT220 -> 0
C24: Encargos Setoriais | F24: =IF(CAPA!C7="Reajuste",'Votos e NTs'!BP268,'NT Revisao'!AT195) -> 0.07253883384 | M24: Encargos Setoriais | P24: ='AP x Final'!I4 ->  | Q24: =F24 -> 0.07253883384 | U24: Tributos | W24: =AB24+AB25 -> 0.2372416711 | Z24: ICMS | AB24: ='Votos e NTs'!R29 -> 0.2060714264 | AD24: CDE | AF24: ='Votos e NTs'!W29 -> 336494596.8 | AP24: UDEROR | AS24: ='NT Revisao'!AT221 -> 0
C25: Transporte | F25: =IF(CAPA!C7="Reajuste",'Votos e NTs'!BP278,'NT Revisao'!AT205) -> 0.0308506786 | M25: Custos de Transporte | P25: ='AP x Final'!I14 ->  | Q25: 0.0308506786 | Z25: PIS/COFINS | AB25: ='Votos e NTs'!R30 -> 0.0311702447 | AD25: ESS/EER | AF25: ='Votos e NTs'!W30 -> 76934435.76 | AP25: Parcela B | AS25: =SUM(AS20:AS24) -> 0
C26: Compra de Energia | F26: =IF(CAPA!C7="Reajuste",'Votos e NTs'!BP287,'NT Revisao'!AT214) -> 0.02755685559 | M26: Custos de Compra de Energia | P26: ='AP x Final'!I23 ->  | Q26: 0.02755685559 | Z26: TOTAL com tributos | AB26: =AF27/(1-AB24-AB25) -> 2905118450 | AD26: Outros | AF26: ='Votos e NTs'!W31 -> 20321841.79
C27: Receitas Irrecuperáveis | F27: =IF(CAPA!C7="Reajuste",'Votos e NTs'!BP287,'NT Revisao'!AT215) -> 0.02755685559 | M27: Receitas Irrecuperáveis | P27: ='AP x Final'!I24 ->  | Q27: 0.02755685559 | AD27: TOTAL | AF27: =SUM(AF19:AF26) -> 2215903294
C28: Distribuição | F28: =IF(CAPA!C7="Reajuste",'Votos e NTs'!BP288,'NT Revisao'!AT216) -> 0.006868261898 | M28: Distribuição | P28: ='AP x Final'!I25 ->  | Q28: 0.006868261898
C29: Componentes Financeiros | F29: =IF(CAPA!C7="Reajuste",'Votos e NTs'!BP292,'NT Revisao'!AT225)+F14 -> 0.01405720284 | M29: Componentes Financeiros | P29: ='AP x Final'!I33 ->  | Q29: 0.01405720284
C30: Retirada dos Financeiros Anteriores | F30: =IF(CAPA!C7="Reajuste",'Votos e NTs'!BP344,'NT Revisao'!AT277) -> -0.06301270212 | M30: Efeito da Retirada dos Financeiros Anteriores | P30: =P31-SUM(P24:P29) ->  | Q30: =F30 -> -0.06301270212
C31: Efeito Médio Consumidor | F31: =IF(CAPA!C7="Reajuste",'Votos e NTs'!BP345,'NT Revisao'!AT278) -> 0.1151820599 | M31: Efeito Médio Consumidor | P31: ='AP x Final'!I71 -> 0 | Q31: =F31 -> 0.1151820599
C34: Efeito Subgrupo
C35: SUBGRUPO | D35: EFEITO
C36: Grupo A | D36: =Resultado!L8 -> 0.1821182428
C37: Grupo B | D37: =Resultado!L9 -> 0.08915115459
C38: Grupos A+B | D38: =Resultado!L10 -> 0.1151820599
F40: Compra de Energia
F41: Contratos | G41: Montantes (MWh) | J41: Preço (R$/MWh) | M41: Impacto Processo
G42: Processo Anterior | H42: Processo Atual | I42: Variação | J42: Processo Anterior | K42: Processo Atual | L42: Variação | N42: Colunas1
F43: CCEAR | G43: =(SUM('Votos e NTs'!BT351:BT354)+'Votos e NTs'!BT$364*SUM('Votos e NTs'!BT351:BT354)/SUM('Votos e NTs'!BT$351:BT$362)) -> 837447.4337 | H43: =(SUM('Votos e NTs'!BU351:BU354)+'Votos e NTs'!BU$364*SUM('Votos e NTs'!BU351:BU354)/SUM('Votos e NTs'!BU$351:BU$362)) -> 842518.5239 | I43: =IFERROR(H43/G43-1,"") -> 0.006055413185 | J43: =IFERROR(SUM('Votos e NTs'!BZ351:BZ354)/SUM('Votos e NTs'!BT351:BT354),"") -> 248.4611029 | K43: =IFERROR(SUM('Votos e NTs'!CA351:CA354)/SUM('Votos e NTs'!BU351:BU354),"") -> 280.2330547 | L43: =IFERROR(K43/J43-1,"") -> 0.1278749525 | M43: =SUM('Votos e NTs'!CG371:CG374) -> 0.012070882 | N43: =IF(G43+H43=0,0,1) -> 1
F44: Ajuste - CCEAR | G44: =('Votos e NTs'!BT355+'Votos e NTs'!BT$364*'Votos e NTs'!BT355/SUM('Votos e NTs'!$BT$351:$BT$362)) -> 0 | H44: =('Votos e NTs'!BU355+'Votos e NTs'!BU$364*'Votos e NTs'!BU355/SUM('Votos e NTs'!$BU$351:$BU$362)) -> 0 | J44: =IFERROR('Votos e NTs'!BZ355/'Votos e NTs'!BT355,"") ->  | K44: =IFERROR('Votos e NTs'!CA355/'Votos e NTs'!BU355,"") ->  | L44: =IFERROR(K44/J44-1,"") ->  | M44: ='Votos e NTs'!CG375 -> 0 | N44: 0
F45: Madeira e Belo Monte | G45: =('Votos e NTs'!BT356+'Votos e NTs'!BT$364*'Votos e NTs'!BT356/SUM('Votos e NTs'!$BT$351:$BT$362)) -> 586412.166 | H45: =('Votos e NTs'!BU356+'Votos e NTs'!BU$364*'Votos e NTs'!BU356/SUM('Votos e NTs'!$BU$351:$BU$362)) -> 585628.4588 | I45: -0.001336444244 | J45: =IFERROR('Votos e NTs'!BZ356/'Votos e NTs'!BT356,"") -> 142.5206516 | K45: =IFERROR('Votos e NTs'!CA356/'Votos e NTs'!BU356,"") -> 157.4387866 | L45: =IFERROR(K45/J45-1,"") -> 0.1046734972 | M45: ='Votos e NTs'!CG376 -> 0.003913421394 | N45: 1
F46: Cota Angra I e Angra II | G46: =('Votos e NTs'!BT357+'Votos e NTs'!BT$364*'Votos e NTs'!BT357/SUM('Votos e NTs'!$BT$351:$BT$362)) -> 130657.2876 | H46: =('Votos e NTs'!BU357+'Votos e NTs'!BU$364*'Votos e NTs'!BU357/SUM('Votos e NTs'!$BU$351:$BU$362)) -> 124274.6182 | I46: -0.04885046573 | J46: =IFERROR('Votos e NTs'!BZ357/'Votos e NTs'!BT357,"") -> 249.64 | K46: =IFERROR('Votos e NTs'!CA357/'Votos e NTs'!BU357,"") -> 349.15 | L46: =IFERROR(K46/J46-1,"") -> 0.3986140042 | M46: ='Votos e NTs'!CG377 -> 0.005455755194 | N46: 1
F47: Cotas Lei n º 12.783/2013 | G47: =('Votos e NTs'!BT358+'Votos e NTs'!BT$364*'Votos e NTs'!BT358/SUM('Votos e NTs'!$BT$351:$BT$362)) -> 891595.1063 | H47: =('Votos e NTs'!BU358+'Votos e NTs'!BU$364*'Votos e NTs'!BU358/SUM('Votos e NTs'!$BU$351:$BU$362)) -> 907062.3807 | I47: 0.01734786822 | J47: =IFERROR('Votos e NTs'!BZ358/'Votos e NTs'!BT358,"") -> 114.7263791 | K47: =IFERROR('Votos e NTs'!CA358/'Votos e NTs'!BU358,"") -> 137.08 | L47: =IFERROR(K47/J47-1,"") -> 0.1948429046 | M47: ='Votos e NTs'!CG378 -> 0.008300414685 | N47: 1
F48: Itaipu | G48: =('Votos e NTs'!BT359+'Votos e NTs'!BT$364*'Votos e NTs'!BT359/SUM('Votos e NTs'!$BT$351:$BT$362)) -> 681768.0656 | H48: =('Votos e NTs'!BU359+'Votos e NTs'!BU$364*'Votos e NTs'!BU359/SUM('Votos e NTs'!$BU$351:$BU$362)) -> 672280.6367 | I48: -0.01391591855 | J48: =IFERROR('Votos e NTs'!BZ359/'Votos e NTs'!BT359,"") -> 327.7831274 | K48: =IFERROR('Votos e NTs'!CA359/'Votos e NTs'!BU359,"") -> 284.5917504 | L48: -0.1317681519 | M48: ='Votos e NTs'!CG379 -> -0.0134225777 | N48: 1
F49: Bilateral | G49: =('Votos e NTs'!BT360+'Votos e NTs'!BT$364*'Votos e NTs'!BT360/SUM('Votos e NTs'!$BT$351:$BT$362)) -> 545374.7993 | H49: =('Votos e NTs'!BU360+'Votos e NTs'!BU$364*'Votos e NTs'!BU360/SUM('Votos e NTs'!$BU$351:$BU$362)) -> 544645.9363 | I49: -0.001336444244 | J49: =IFERROR('Votos e NTs'!BZ360/'Votos e NTs'!BT360,"") -> 303.0178842 | K49: =IFERROR('Votos e NTs'!CA360/'Votos e NTs'!BU360,"") -> 347.9340172 | L49: 0.1482293137 | M49: ='Votos e NTs'!CG380 -> 0.01095813218 | N49: 1
F50: Geração Própria | G50: =('Votos e NTs'!BT361+'Votos e NTs'!BT$364*'Votos e NTs'!BT361/SUM('Votos e NTs'!$BT$351:$BT$362)) -> 0 | H50: =('Votos e NTs'!BU361+'Votos e NTs'!BU$364*'Votos e NTs'!BU361/SUM('Votos e NTs'!$BU$351:$BU$362)) -> 0 | J50: =IFERROR('Votos e NTs'!BZ361/'Votos e NTs'!BT361,"") ->  | K50: =IFERROR('Votos e NTs'!CA361/'Votos e NTs'!BU361,"") ->  | M50: ='Votos e NTs'!CG381 -> 0 | N50: 0
F51: Montante de Reposição | G51: =('Votos e NTs'!BT362+'Votos e NTs'!BT$364*'Votos e NTs'!BT362/SUM('Votos e NTs'!$BT$351:$BT$362)) -> 0 | H51: =('Votos e NTs'!BU362+'Votos e NTs'!BU$364*'Votos e NTs'!BU362/SUM('Votos e NTs'!$BU$351:$BU$362)) -> 0 | J51: =IFERROR('Votos e NTs'!BZ362/'Votos e NTs'!BT362,"") ->  | K51: =IFERROR('Votos e NTs'!CA362/'Votos e NTs'!BU362,"") ->  | M51: ='Votos e NTs'!CG382 -> 0 | N51: 0
F52: Proinfa | G52: ='Votos e NTs'!BT363 -> 82033.16784 | H52: ='Votos e NTs'!BU363 -> 78877.47159 | I52: -0.03846854064 | J52: 0 | K52: 0 | M52: ='Votos e NTs'!CG383 -> 0.0002808278285 | N52: 1
F53: Total | G53: =SUM(G43:G52) -> 3755288.026 | H53: =SUM(H43:H52) -> 3755288.026 | I53: 0 | J53: ='Votos e NTs'!BW365 -> 219.5318786 | K53: ='Votos e NTs'!BX365 -> 233.4998363 | L53: 0.06362610176 | M53: =SUM(M43:M52) -> 0.02755685559
O55: Encargos Setoriais
O56: Encargos Setoriais | P56: Processo Anterior (mil R$) | Q56: Processo Atual (mil R$) | R56: Impacto Processo | S56: Colunas1
O57: TFSEE | P57: ='Votos e NTs'!BM269/1000 -> 1783.67895 | Q57: ='Votos e NTs'!BN269/1000 -> 2010.828128 | R57: ='Votos e NTs'!BP269 -> 0.0001193341293 | S57: =IF(P57+Q57=0,0,1) -> 1
O58: CDE (USO) | P58: ='Votos e NTs'!BM270/1000 -> 234898.1714 | Q58: ='Votos e NTs'!BN270/1000 -> 350941.0042 | R58: ='Votos e NTs'!BP270 -> 0.0609637706 | S58: 1
O59: CDE Conta Covid (TUSD) | P59: ='Votos e NTs'!BM271/1000 -> 16376.11238 | Q59: ='Votos e NTs'!BN271/1000 -> 19527.3626 | R59: ='Votos e NTs'!BP271 -> 0.001655527454 | S59: 1
O60: CDE Conta Covid (TE) | P60: =IF('Votos e NTs'!BM272/1000<1,0,'Votos e NTs'!BM272/1000) -> 21809.24902 | Q60: ='Votos e NTs'!BN272/1000 -> 19496.22996 | R60: ='Votos e NTs'!BP272 -> -0.001215157889 | S60: 1
O61: CDE Modicidade Eletrobrás | P61: ='Votos e NTs'!BM273/1000 -> 0 | Q61: ='Votos e NTs'!BN273/1000 -> -53470 | R61: ='Votos e NTs'!BP273 -> -0.02809077248 | S61: 1
O62: ESS/EER | P62: ='Votos e NTs'!BM274/1000 -> 25696.33773 | Q62: ='Votos e NTs'!BN274/1000 -> 76934.43576 | R62: ='Votos e NTs'!BP274 -> 0.02691822993 | S62: 1
O63: PROINFA | P63: ='Votos e NTs'!BM275/1000 -> 39418.32049 | Q63: ='Votos e NTs'!BN275/1000 -> 61452.70737 | R63: ='Votos e NTs'!BP275 -> 0.01157589206 | S63: 1
O64: P&D | P64: ='Votos e NTs'!BM276/1000 -> 17146.06966 | Q64: ='Votos e NTs'!BN276/1000 -> 18311.01366 | R64: ='Votos e NTs'!BP276 -> 0.0006120100431 | S64: 1
O65: ONS | P65: ='Votos e NTs'!BM277/1000 -> 0 | Q65: ='Votos e NTs'!BN277/1000 -> 0 | R65: ='Votos e NTs'!BP277 -> 0 | S65: 0
O66: Total de Encargos | P66: =SUM(P57:P65) -> 357127.9397 | Q66: =SUM(Q57:Q65) -> 495203.5817 | R66: =SUM(R57:R65) -> 0.07253883384
T68: Custos de Transporte
T69: Custos de Transporte | U69: Processo Anterior (mil R$) | V69: Processo Atual (mil R$) | W69: Impacto Processo | X69: Colunas1
T70: Rede Básica | U70: ='Votos e NTs'!BM279/1000 -> 102085.7834 | V70: ='Votos e NTs'!BN279/1000 -> 126924.1718 | W70: ='Votos e NTs'!BP279 -> 0.0130489904 | X70: =IF(U70+V70=0,0,1) -> 1
T71: Rede Básica Fronteira | U71: ='Votos e NTs'!BM280/1000 -> 89378.82802 | V71: ='Votos e NTs'!BN280/1000 -> 109085.1028 | W71: ='Votos e NTs'!BP280 -> 0.01035280496 | X71: 1
T72: Rede Básica ONS (A2) | U72: ='Votos e NTs'!BM281/1000 -> 880.1159373 | V72: ='Votos e NTs'!BN281/1000 -> 1047.20228 | W72: ='Votos e NTs'!BP281 -> 8.777977254e-05 | X72: 1
T73: Rede Básica Export. (A2) | U73: ='Votos e NTs'!BM282/1000 -> 0 | V73: ='Votos e NTs'!BN282/1000 -> 0 | W73: ='Votos e NTs'!BP282 -> 0 | X73: 0
T74: MUST Itaipu | U74: ='Votos e NTs'!BM283/1000 -> 14112.53454 | V74: ='Votos e NTs'!BN283/1000 -> 14074.77311 | W74: ='Votos e NTs'!BP283 -> -1.983818126e-05 | X74: 1
T75: Transporte de Itaipu | U75: ='Votos e NTs'!BM284/1000 -> 13548.32247 | V75: ='Votos e NTs'!BN284/1000 -> 20198.80984 | W75: ='Votos e NTs'!BP284 -> 0.003493871846 | X75: 1
T76: Conexão | U76: ='Votos e NTs'!BM285/1000 -> 3100.107656 | V76: ='Votos e NTs'!BN285/1000 -> 4286.17953 | W76: ='Votos e NTs'!BP285 -> 0.0006231096912 | X76: 1
T77: Uso do sistema de distribuição | U77: ='Votos e NTs'!BM286/1000 -> 48102.85513 | V77: ='Votos e NTs'!BN286/1000 -> 54315.71194 | W77: ='Votos e NTs'!BP286 -> 0.00326396011 | X77: 1
T78: Total do Transporte | U78: =SUM(U70:U77) -> 271208.5472 | V78: =SUM(V70:V77) -> 329931.9513 | W78: =SUM(W70:W77) -> 0.0308506786
Y80: Parcela B - Reajuste
Y81: Descrição | AA81: Valor | AB81: Referência
Y82: (1) Parcela B Processo Anterior (mil R$) | AA82: ='Votos e NTs'!AQ161/1000 -> 449480.1376 | AB82: TUSD fio B aplicada ao Mercado
Y83: (2) Fator DR1/Fator PB | AA83: ='VPB1'!C38 -> 1.092741228 | AB83: SGT/ANEEL
Y84: (3) Parcela B Processo Anterior sem UDEROR (mil R$) | AA84: =AA82*AA83 -> 491165.4776 | AB84: SGT/ANEEL
Y85: (4) IPCA | AA85: 0.04005113905 | AB85: Indicador econômico oficial
Y86: (5) Fator X | AA86: =SUM(AA87:AA89) -> -0.005079257165 | AB86: Pd + T + Q
Y87: (5.1) Componente Pd do Fator X | AA87: ='VPB1'!F40 -> 0.005765248356 | AB87: PRORET 2.5 A
Y88: (5.2) Componente T do Fator X | AA88: ='VPB1'!F41 -> -0.014 | AB88: REH nº 2.377/2018
Y89: (5.3) Componente Q do Fator X | AA89: ='VPB1'!F42 -> 0.003155494479 | AB89: PRORET 2.5 A
Y90: (6) UDEROR | AA90: =SUM(AA91:AA93) -> 51111.21363 | AB90: UD + ER + OR
Y91: (6.1) Outras Receitas (OR) | AA91: ='Votos e NTs'!AQ170/1000 -> 37329.22549 | AB91: Valores fiscalizados - SFF
Y92: (6.2) Excedente de Reativos (ER) | AA92: ='Votos e NTs'!AQ171/1000 -> 9485.421124 | AB92: Valores fiscalizados - SFF
Y93: (6.3) Ultrapassagem de Demanda (UD) | AA93: ='Votos e NTs'!AQ172/1000 -> 4296.567012 | AB93: Valores fiscalizados - SFF
Y94: (7) ONS | AB94: 0
Y95: Parcela B Atual (mil R$) | AA95: =AA84*(1+AA85-AA86)-AA90 -> 462220.7566
AD97: Financeiros
AD98: Componentes Financeiros | AF98: Valor (mil R$) | AG98: Impacto Processo
AD99: CVA em processamento - Energia | AF99: =SUMIFS(Financeiros[Valor],Financeiros[idDet1],19,Financeiros[id_Grupo_TARIFA],2,Financeiros[idDet2],60,Financeiros[idDet3],999)/1000 -> 87132.21454 | AG99: =1000*AF99/Financeiros!$D$5 -> 0.04577541079
AD100: CVA em processamento -Transporte | AF100: =SUMIFS(Financeiros[Valor],Financeiros[idDet1],19,Financeiros[id_Grupo_TARIFA],1,Financeiros[idDet2],60,Financeiros[idDet3],999)/1000 -> 13550.15942 | AG100: =1000*AF100/Financeiros!$D$5 -> 0.0071186543
AD101: CVA em processamento - Encargos Setoriais | AF101: ='Votos e NTs'!AZ193/1000 -> 91840.48446 | AG101: =1000*AF101/Financeiros!$D$5 -> 0.04824892751
AD102: Saldo a Compensar CVA-Ano Anterior + Ajustes | AF102: =SUMIFS(Financeiros[Valor],Financeiros[idDet1],19,Financeiros[idDet2],64, Financeiros[idDet3],999)/1000 -> 7909.170496 | AG102: =1000*AF102/Financeiros!$D$5 -> 0.004155128277
AD103: Neutralidade de Parcela A | AF103: =('Votos e NTs'!AZ195+'Votos e NTs'!AZ196+'Votos e NTs'!AZ197+'Votos e NTs'!AZ198)/1000 -> -555.2301966 | AG103: =1000*AF103/Financeiros!$D$5 -> -0.0002916933819
AD104: Sobrecontratação/exposição de energia | AF104: =SUMIFS(Financeiros[Valor],Financeiros[idDet1],22,Financeiros[id_Grupo_TARIFA],2,Financeiros[idDet2],60, Financeiros[idDet3],106)/1000+SUMIFS(Financeiros[Valor],Financeiros[idDet1],22,Financeiros[id_Grupo_TARIFA],2,Financeiros[idDet2],60, Financeiros[idDet3],101)/1000 -> -1079.495664 | AG104: =1000*AF104/Financeiros!$D$5 -> -0.0005671192648
AD105: Previsão de Risco Hidrológico | AF105: =SUMIFS(Financeiros[Valor],Financeiros[idDet1],22,Financeiros[id_Grupo_TARIFA],2,Financeiros[idDet2],60, Financeiros[idDet3],220)/1000 -> 68150.10801 | AG105: =1000*AF105/Financeiros!$D$5 -> 0.03580305178
AD106: Reversão do Risco Hidrológico | AF106: =SUMIFS(Financeiros[Valor],Financeiros[idDet1],22,Financeiros[id_Grupo_TARIFA],2,Financeiros[idDet2],62, Financeiros[idDet3],220)/1000 -> -81101.05661 | AG106: =1000*AF106/Financeiros!$D$5 -> -0.04260690723
AD107: Reversão de Diferimento do Risco Hidrológico - RTP 2021 | AF107: ='Votos e NTs'!AZ222/1000 -> 21096.4986 | AG107: =1000*AF107/Financeiros!$D$5 -> 0.01108316705
AD108: Neutralidade Crédito de Pis/COFINS | AF108: ='Votos e NTs'!AZ226/1000 -> -388.5586489 | AG108: =1000*AF108/Financeiros!$D$5 -> -0.0002041315243
AD109: Empréstimo Conta Escassez Hídrica - REN n° 1.008/2022 | AF109: ='Votos e NTs'!AZ227/1000 -> -45366.2509 | AG109: =1000*AF109/Financeiros!$D$5 -> -0.02383342122
AD110: Financeiro de saldo de Itaipu - Decreto 10.665/2021 | AF110: =('Votos e NTs'!AZ228+'Votos e NTs'!AZ229)/1000 -> 1203.520094 | AG110: =1000*AF110/Financeiros!$D$5 -> 0.0006322762136
AD111: Bônus Itaipu | AF111: ='Votos e NTs'!BN332/1000 -> -28407.41724 | AG111: =1000*AF111/Financeiros!$D$5 -> -0.01492400027
AD112: Crédito de PIS/COFINS | AF112: ='Votos e NTs'!AZ225/1000 -> -87082.65959 | AG112: =1000*AF112/Financeiros!$D$5 -> -0.04574937681
AD113: Outros | AF113: =AF114-SUM(AF99:AF112) -> -20143.99422 | AG113: =1000*AF113/Financeiros!$D$5 -> -0.01058276339
AD114: Total | AF114: ='Votos e NTs'!AZ247/1000 -> 26757.49255 | AG114: =SUM(AG99:AG113) -> 0.01405720284
AF116: ='Votos e NTs'!AZ249/1000 -> 26757.49255 | AI116: B1 x Inflação
AJ117: Variação
AI118: IGP-M | AJ118: ='Votos e NTs'!AD38 -> 
AI119: IPCA | AJ119: ='Votos e NTs'!AE38 -> 
AI120: Tarifa B1 | AJ120: ='Votos e NTs'!AC38 -> 
AL122: Financeiros
AL123: Resultado Bandeiras Tarifárias | AM123: Valor (mil R$) | AN123: Impacto Processo
AL124: Usinas com contrato por disponibilidade - CCEAR-D | AM124: -66519.46164 | AN124: -0.01144423021
AL125: Risco Hidrológico das usinas que repactuaram | AM125: 128197.3185 | AN125: 0.02205549458
AL126: Risco Hidrológico das usinas cotistas - CCGF | AM126: 103147.5557 | AN126: 0.01774584977
AL127: Risco Hidrológico da UHE ITAIPU | AM127: 87452.43744 | AN127: 0.01504560924
AL128: Encargos de Energia de Reserva - EER e de Serviço do Sistema - ESS | AM128: -102050.9453 | AN128: -0.01755718527
AL129: Resultado Mercado de Curto Prazo - MCP | AM129: 28529.54764 | AN129: 0.004908318602
AL130: Custo Total | AM130: 178756.4523 | AN130: 0.03075385671
AL131: Recolhimento pelas Bandeiras Tarifárias | AM131: -162443.7101 | AN131: -0.0279473581
AL132: Previsão do Risco Hidrológico no Processo Tarifário de 2018 | AM132: -162780.8718 | AN132: -0.02800536451
AL133: Receita Total | AM133: =AM131+AM132 -> -325224.5819 | AN133: =AN132+AN131 -> -0.05595272261
AL134: Custo não coberto antecipadamente | AM134: -146468.1296 | AN134: -0.0251988659
AP136: Remuneração do Capital
AP137: Descrição | AQ137: Ciclo Anterior | AR137: Ciclo Atual
AP138: Base Líquida (mil R$) | AQ138: ='Avaliação Parcela B'!J127/1000 ->  | AR138: ='Avaliação Parcela B'!K127/1000 -> 
AP139: Remuneração | AQ139: ='Avaliação Parcela B'!G128 ->  | AR139: ='Avaliação Parcela B'!H128 -> 
AT141: Quota de Reintegração
AT142: Descrição | AU142: Ciclo Anterior | AV142: Ciclo Atual
AT143: Base Bruta (mil R$) | AU143: ='Avaliação Parcela B'!J159/1000 ->  | AV143: ='Avaliação Parcela B'!K159/1000 -> 
AT144: Depreciação | AU144: ='Avaliação Parcela B'!G160 ->  | AV144: ='Avaliação Parcela B'!H160 -> 
AX146: Parcela B - Revisão
AX147: Descrição | AY147: Processo Anterior (mil R$) | AZ147: Processo Atual (mil R$) | BA147: Variação | BB147: Participação na Revisão
AX148: ='NT Revisao'!AO217 -> Custos Operacionais | AY148: ='NT Revisao'!AQ217/1000 ->  | AZ148: ='NT Revisao'!AR217/1000 ->  | BA148: ='NT Revisao'!AS217 -> 0 | BB148: ='NT Revisao'!AT217 -> 0
AX149: ='NT Revisao'!AO218 -> Anuidades | AY149: ='NT Revisao'!AQ218/1000 ->  | AZ149: ='NT Revisao'!AR218/1000 ->  | BA149: ='NT Revisao'!AS218 -> 0 | BB149: ='NT Revisao'!AT218 -> 0
AX150: ='NT Revisao'!AO219 -> Remuneração | AY150: ='NT Revisao'!AQ219/1000 ->  | AZ150: ='NT Revisao'!AR219/1000 ->  | BA150: ='NT Revisao'!AS219 -> 0 | BB150: ='NT Revisao'!AT219 -> 0
AX151: ='NT Revisao'!AO220 -> Depreciação | AY151: ='NT Revisao'!AQ220/1000 ->  | AZ151: ='NT Revisao'!AR220/1000 ->  | BA151: ='NT Revisao'!AS220 -> 0 | BB151: ='NT Revisao'!AT220 -> 0
AX152: ='NT Revisao'!AO221 -> UD+ER+OR | AY152: ='NT Revisao'!AQ221/1000 ->  | AZ152: ='NT Revisao'!AR221/1000 -> -51111.21363 | BA152: ='NT Revisao'!AS221 -> 0 | BB152: ='NT Revisao'!#REF! -> 
AX155: PARCELA B | AY155: =SUM(AY148:AY154) ->  | AZ155: =SUM(AZ148:AZ154) ->  | BA155: =IF(ISERROR(AZ155/AY155-1),0,AZ155/AY155-1) -> 0 | BB155: =IF(ISERROR((AZ155-AY155)/$AP$183),0,(AZ155-AY155)/$AP$183) -> 0
BD159: Enel RJ | BE159: 683.87 | BG159: 1 | BH159: Enel RJ | BJ159: 714.44
BD160: Celpa | BE160: 683.6 | BG160: 2 | BH160: Celpa | BJ160: 703.21
BD161: AmE | BE161: 664.84 | BG161: =BG160+1 -> 3 | BH161: EMS | BJ161: 700.36
BD162: Light | BE162: 663.1 | BG162: =BG161+1 -> 4 | BH162: Light | BJ162: 694.05
BD163: ENF | BE163: 649.89 | BG163: 5 | BH163: AmE | BJ163: 693.49
BD164: Eflul | BE164: 648.12 | BG164: 6 | BH164: EMT | BJ164: 690.12
BD165: EFLJC | BE165: 639.05 | BG165: 7 | BH165: ENF | BJ165: 662.44
BD166: Sulgipe | BE166: 636.31 | BG166: 8 | BH166: Forcel | BJ166: 654.63
BD167: Cemar | BE167: 630.18 | BG167: 9 | BH167: ETO | BJ167: 647.35
BD168: Cemig-D | BE168: 628.33 | BG168: 10 | BH168: Cemig | BJ168: 644.23
BD169: EMT | BE169: 626.84 | BG169: 11 | BH169: Eflul | BJ169: 641.69
BD170: Forcel | BE170: 619.01 | BG170: 12 | BH170: EFLJC | BJ170: 639.85
BD171: Roraima Energia | BE171: 617.77 | BG171: 13 | BH171: Celpe 2021 | BI171: Celpe 2021 | BJ171: 628.4189439
BD172: EMS | BE172: 608.65 | BG172: 14 | BH172: Cemar | BJ172: 628.21
BD173: Hidropan | BE173: 600.74 | BG173: 15 | BH173: EMG | BJ173: 627.73
BD174: ETO | BE174: 600.08 | BG174: 16 | BH174: Coelba | BJ174: 624.64
BD175: EMG | BE175: 595.83 | BG175: 17 | BH175: Sulgipe | BJ175: 619.22
BD176: Ceron | BE176: 576.82 | BG176: 18 | BH176: Hidropan | BJ176: 602.62
BD177: Chesp | BE177: 573.14 | BG177: 19 | BH177: CPFL Paulista | BJ177: 601.57
BD178: Uhenpal | BE178: 572.49 | BG178: 20 | BH178: Chesp | BJ178: 599.53
BD179: Eletroacre | BE179: 569.84 | BG179: 21 | BH179: Enel CE | BJ179: 594.36
BD180: Cepisa | BE180: 569.48 | BG180: 22 | BH180: ELFSM | BJ180: 593.39
BD181: RGE | BE181: 560.27 | BG181: 23 | BH181: RGE (agrupada) | BJ181: 589.57
BD182: Cocel | BE182: 557.12 | BG182: 24 | BH182: ESE | BJ182: 585.6
BD183: Coelba | BE183: 552.13 | BG183: 25 | BH183: Ceal | BJ183: 583.31
BD184: Celpe | BE184: 549.33 | BG184: 26 | BH184: Eletroacre | BJ184: 581.91
BD185: CPFL Santa Cruz | BE185: 547.69 | BG185: 27 | BH185: Cepisa | BJ185: 581.82
BD186: EPB | BE186: 545.4 | BG186: 28 | BH186: Roraima Energia | BJ186: 574.69
BD187: Eletrocar | BE187: 541.57 | BG187: 29 | BH187: Celpe 2020 | BI187: Celpe 2020 | BJ187: 574.34
BD188: CEA | BE188: 537.18 | BG188: 30 | BH188: Uhenpal | BJ188: 571.71
BD189: Ceal | BE189: 535.25 | BG189: 31 | BH189: CPFL Santa Cruz | BJ189: 564.97
BD190: Celg-D | BE190: 533.68 | BG190: 32 | BH190: Cosern | BJ190: 563.55
BD191: Elektro | BE191: 531.87 | BG191: 33 | BH191: EPB | BJ191: 562.11
BD192: ESE | BE192: 530.72 | BG192: 34 | BH192: Cocel | BJ192: 561.58
BD193: Enel CE | BE193: 529.49 | BG193: 35 | BH193: Eletrocar | BJ193: 561.45
BD194: EDP ES | BE194: 525.81 | BG194: 36 | BH194: EDP ES | BJ194: 557
BD195: EDP SP | BE195: 525.73 | BG195: 37 | BH195: Elektro | BJ195: 555.05
BD196: CPFL Paulista | BE196: 523.02 | BG196: 38 | BH196: CEEE-D | BJ196: 548.97
BD197: CEB-DIS | BE197: 518.01 | BG197: 39 | BH197: Enel GO | BJ197: 547.39
BD198: ELFSM | BE198: 517.96 | BG198: 40 | BH198: EDP SP | BJ198: 546.11
BD199: Copel-DIS | BE199: 517.61 | BG199: 41 | BH199: Demei | BJ199: 537.88
BD200: Eletropaulo | BE200: 515.59 | BG200: 42 | BH200: Enel SP | BJ200: 534.19
BD201: CEEE-D | BE201: 515.07 | BG201: 43 | BH201: CPFL Piratininga | BJ201: 533.55
BD202: Ienergia | BE202: 510.62 | BG202: 44 | BH202: MuxEnergia | BJ202: 527.79
BD203: DMED | BE203: 507.42 | BG203: 45 | BH203: DMED | BJ203: 525.57
BD204: Demei | BE204: 507.03 | BG204: 46 | BH204: CEB-DIS | BJ204: 514.78
BD205: Cosern | BE205: 505.53 | BG205: 47 | BH205: Ceron | BJ205: 514.38
BD206: EBO | BE206: 497.66 | BG206: =BG205+1 -> 48 | BH206: ESS (agrupada) | BJ206: 513.89
BD207: Sul Sudeste | BE207: 497.35 | BG207: 49 | BH207: Copel-DIS | BJ207: 512.77
BD208: CPFL Piratininga | BE208: 490.18 | BG208: 50 | BH208: Ienergia | BJ208: 512.48
BD209: MuxEnergia | BE209: 485.22 | BG209: 51 | BH209: Cooperaliança | BJ209: 512
BD210: Celesc-DIS | BE210: 469.78 | BG210: 52 | BH210: Celesc-DIS | BJ210: 505.99
BD211: Cooperaliança | BE211: 467.6 | BG211: 53 | BH211: CEA | BJ211: 505.25
BG212: 54 | BH212: EBO | BJ212: 497.66
CE215: DEC | CV215: FEC
CG216: =CH216-1 -> 2012 | CH216: 2013 | CI216: 2014 | CJ216: 2015 | CK216: 2016 | CL216: 2017 | CM216: 2018 | CN216: 2019 | CO216: =CP216-1 -> 2020 | CP216: 2021 | CQ216: =CP216+1 -> 2022 | CR216: =CQ216+1 -> 2023 | CS216: 2024 | CT216: 2025 | CX216: =CY216-1 -> 2012 | CY216: 2013 | CZ216: 2014 | DA216: 2015 | DB216: 2016 | DC216: 2017 | DD216: 2018 | DE216: 2019 | DF216: =DG216-1 -> 2020 | DG216: 2021 | DH216: =DG216+1 -> 2022 | DI216: =DH216+1 -> 2023 | DJ216: 2024 | DK216: 2025
CE217: DEC Apurado | CH217: 23.76 | CI217: 25.51 | CJ217: 19.31 | CK217: 15.8 | CL217: 16.98 | CM217: 12.51 | CN217: 11.96 | CO217: 12.41 | CV217: FEC Apurado | CY217: 8.87 | CZ217: 8.84 | DA217: 8.12 | DB217: 7.13 | DC217: 7.56 | DD217: 8.97 | DE217: 5.69 | DF217: 5.56
CE218: DEC Limite | CH218: 16.39 | CI218: 16.39 | CJ218: 15.48 | CK218: 14.71 | CL218: 13.91 | CM218: 13.82 | CN218: 13.67 | CO218: 13.35 | CP218: 13.22 | CV218: FEC Limite | CY218: 12.48 | CZ218: 12.05 | DA218: 11.04 | DB218: 10.19 | DC218: 9.35 | DD218: 9.26 | DE218: 8.7 | DF218: 8.33 | DG218: 8.1
CE219: DEC Limite Proposto | CQ219: 12.92 | CR219: 12.33 | CS219: 11.86 | CT219: 11.48 | CV219: FEC Limite Proposto | DH219: 8.05 | DI219: 7.25 | DJ219: 7.05 | DK219: 6.68
DM239: Parcela B / Mercado
DM241: Grandes
DM242: Reg | DN242: Distribuidora | DO242: PB/Mcdo | DP242: Média | DQ242: Parcela B | DR242: Mercado | DS242: Proc.Tar
DM243: N | DN243: ETO | DO243: =DQ243/DR243 -> 265.4071894 | DP243: =$DP$280 -> 157.3788987 | DQ243: 639963261.2 | DR243: 2411250.662 | DS243: 2020
DM244: N | DN244: Eletroacre | DO244: =DQ244/DR244 -> 262.1465373 | DP244: 157.3788987 | DQ244: 287816729.4 | DR244: 1097923.064 | DS244: 2020
DM245: CO | DN245: EMT | DO245: =DQ245/DR245 -> 246.7591507 | DP245: 157.3788987 | DQ245: 2384063093 | DR245: 9661498.209 | DS245: 2021
DM246: N | DN246: Equatorial PA | DO246: 238.5668194 | DP246: 157.3788987 | DQ246: 2059159218 | DR246: 8631373.062 | DS246: 2020
DM247: N | DN247: Cemar | DO247: 234.2860346 | DP247: 157.3788987 | DQ247: 1473020968 | DR247: 6287276.026 | DS247: 2020
DM248: CO | DN248: EMS | DO248: =DQ248/DR248 -> 233.1547235 | DP248: 157.3788987 | DQ248: 1338673092 | DR248: 5741565.396 | DS248: 2021
DM249: NE | DN249: Equatorial PI | DO249: =DQ249/DR249 -> 225.4201543 | DP249: 157.3788987 | DQ249: 847371044 | DR249: 3759074.012 | DS249: 2020
DM250: NE | DN250: Coelba | DO250: =DQ250/DR250 -> 223.125744 | DP250: 157.3788987 | DQ250: 4496925221 | DR250: 20154219.5 | DS250: 2021
DM251: N | DN251: CEA | DO251: =DQ251/DR251 -> 202.1486891 | DP251: 157.3788987 | DQ251: 208334410.9 | DR251: 1030599.861 | DS251: 2020
DM252: N | DN252: Roraima Energia | DO252: 196.414686 | DP252: 157.3788987 | DQ252: 190096815.7 | DR252: 967834.023 | DS252: 2020
DM253: N | DN253: ERO | DO253: 194.5443248 | DP253: 157.3788987 | DQ253: 654751237.9 | DR253: 3365563.29 | DS253: 2020
DM254: NE | DN254: Enel CE | DO254: 193.8478817 | DP254: 157.3788987 | DQ254: 2304543823 | DR254: 11888413.76 | DS254: 2021
DM255: NE | DN255: ESE | DO255: 182.1170686 | DP255: 157.3788987 | DQ255: 582360670.1 | DR255: 3197727.015 | DS255: 2021
DM256: NE | DN256: Equatorial AL | DO256: 180.3999249 | DP256: 157.3788987 | DQ256: 709645473.4 | DR256: 3933734.861 | DS256: 2021
... 45 more rows

Sheet AP x Final (hidden)
C1: Prencher valores conforme CP | F1: Prencher valores conforme CP
B2: Descrição | C2: CP XX/2021 Receita Verificada (R$) | D2: Final Receita Verificada (R$) | E2: Variação Receita Verificada Final/CP | F2: CP XX/2021 Receita Requerida (R$) | G2: Final Receita Requerida (R$) | H2: Variação Receita Requerida Final/CP | I2: CP Participação na Revisão % | J2: Final Participação na Revisão % | K2: Variação Total | M2: Variação de Custos | N2: Variação de Receita Verificada | O2: Simulação sem var. mercado
B3: PARCELA A [Encargos+Transmissão+Energia] | C3: =C4+C14+C23+C24 -> 0 | D3: =D4+D14+D23+D24 ->  | E3: =IF(ISERROR(D3/C3-1),"-",D3/C3-1) -> - | F3: =F4+F14+F23+F24 -> 0 | G3: =G4+G14+G23+G24 -> 1769788197 | H3: =IF(ISERROR(G3/F3-1),"-",G3/F3-1) -> - | I3: =IFERROR((F3-C3)/$C$31,"") ->  | J3: =IFERROR((G3-D3)/$D$31,"") ->  | K3: =J3-I3 ->  | L3: =IF(G3+D3<>0,1,0) ->  | M3: =(G3-C3)/$C$31-I3 ->  | N3: =K3-M3 ->  | O3: =(G3-C3)/$C$31 -> 
B4: Encargos Setoriais | C4: =SUM(C5:C13) -> 0 | D4: =SUM(D5:D13) ->  | E4: =IF(ISERROR(D4/C4-1),"-",D4/C4-1) -> - | F4: =SUM(F5:F13) -> 0 | G4: =SUM(G5:G13) -> 548673581.7 | H4: =IF(ISERROR(G4/F4-1),"-",G4/F4-1) -> - | I4: =IFERROR((F4-C4)/$C$31,"") ->  | K4: =J4-I4 ->  | N4: =K4-M4 ->  | O4: =(G4-C4)/$C$31 -> 
B5: Taxa de Fisc. de Serviços de E.E. – TFSEE | D5: ='NT Revisao'!AQ196 ->  | E5: =IF(ISERROR(D5/C5-1),"-",D5/C5-1) -> - | G5: ='NT Revisao'!AR196 -> 2010828.128 | H5: =IF(ISERROR(G5/F5-1),"-",G5/F5-1) -> - | N5: =K5-M5 -> 
B6: Conta de Desenvolvimento Energético – CDE (USO) | D6: ='NT Revisao'!AQ197 ->  | E6: =IF(ISERROR(D6/C6-1),"-",D6/C6-1) -> - | G6: ='NT Revisao'!AR197 -> 350941004.2 | H6: =IF(ISERROR(G6/F6-1),"-",G6/F6-1) -> -
B7: Conta de Desenvolvimento Energético – CDE Conta-Covid (TUSD) | D7: ='NT Revisao'!AQ198 ->  | E7: - | G7: ='NT Revisao'!AR198 -> 19527362.6 | H7: =IF(ISERROR(G7/F7-1),"-",G7/F7-1) -> -
B8: Conta de Desenvolvimento Energético – CDE Conta-Covid (TE) | D8: ='NT Revisao'!AQ199 ->  | G8: ='NT Revisao'!AR199 -> 19496229.96 | H8: =IF(ISERROR(G8/F8-1),"-",G8/F8-1) -> -
B9: Compensação financeira - CFURH | D9: ='NT Revisao'!AQ200 ->  | E9: - | G9: ='NT Revisao'!AR200 -> 0 | H9: =IF(ISERROR(G9/F9-1),"-",G9/F9-1) -> -
B10: Encargos Serv. Sist. - ESS e Energ. Reserv. - EER | D10: ='NT Revisao'!AQ201 ->  | E10: - | G10: ='NT Revisao'!AR201 -> 76934435.76 | H10: - | K10: =J10-I10 -> 
B11: PROINFA | D11: ='NT Revisao'!AQ202 ->  | E11: - | G11: ='NT Revisao'!AR202 -> 61452707.37 | H11: - | K11: =J11-I11 -> 
B12: P&D, Efic.Energ | D12: ='NT Revisao'!AQ203 ->  | E12: - | G12: ='NT Revisao'!AR203 -> 18311013.66 | H12: - | K12: =J12-I12 -> 
B13: ONS | D13: ='NT Revisao'!AQ204 ->  | E13: - | G13: ='NT Revisao'!AR204 -> 0 | H13: -
B14: Custos de Transmissão | C14: =SUM(C15:C22) -> 0 | D14: =SUM(D15:D22) ->  | E14: - | F14: =SUM(F15:F22) -> 0 | G14: =SUM(G15:G22) -> 329931951.3 | H14: - | K14: =J14-I14 -> 
B15: Rede Básica | D15: ='NT Revisao'!AQ206 ->  | E15: =IF(ISERROR(D15/C15-1),"-",D15/C15-1) -> - | G15: ='NT Revisao'!AR206 -> 126924171.8 | H15: - | K15: =J15-I15 -> 
B16: Rede Básica Fronteira | D16: ='NT Revisao'!AQ207 ->  | E16: - | G16: ='NT Revisao'!AR207 -> 109085102.8 | H16: - | K16: =J16-I16 -> 
B17: Rede Básica ONS (A2) | D17: ='NT Revisao'!AQ208 ->  | E17: - | G17: ='NT Revisao'!AR208 -> 1047202.28 | H17: -
B18: Rede Básica Export. (A2) | D18: ='NT Revisao'!AQ209 ->  | E18: - | G18: ='NT Revisao'!AR209 -> 0 | H18: -
B19: MUST Itaipu | D19: ='NT Revisao'!AQ210 ->  | E19: - | G19: ='NT Revisao'!AR210 -> 14074773.11 | H19: - | K19: =J19-I19 -> 
B20: Transporte de Itaipu | D20: ='NT Revisao'!AQ211 ->  | E20: - | G20: ='NT Revisao'!AR211 -> 20198809.84 | H20: - | K20: =J20-I20 -> 
B21: Conexão | D21: ='NT Revisao'!AQ212 ->  | E21: - | G21: ='NT Revisao'!AR212 -> 4286179.53 | H21: - | K21: =J21-I21 -> 
B22: Uso do sistema de distribuição | D22: ='NT Revisao'!AQ213 ->  | E22: - | G22: ='NT Revisao'!AR213 -> 54315711.94 | H22: =IF(ISERROR(G22/F22-1),"-",G22/F22-1) -> - | K22: =J22-I22 -> 
B23: Custo de Aquisição de Energia | D23: ='NT Revisao'!AQ214 ->  | E23: - | G23: ='NT Revisao'!AR214 -> 876859139.4 | H23: -
B24: Receitas Irrecuperáveis | D24: ='NT Revisao'!AQ215 ->  | E24: - | G24: ='NT Revisao'!AR215 -> 14323524.54 | H24: -
B25: PARCELA B | C25: =SUM(C26:C30) -> 0 | D25: =SUM(D26:D30) ->  | E25: - | F25: =SUM(F26:F30) -> 0 | G25: =SUM(G26:G30) ->  | H25: =IF(ISERROR(G25/F25-1),"-",G25/F25-1) -> -
B26: Custos Operacionais | D26: ='NT Revisao'!AQ217 ->  | E26: - | G26: ='NT Revisao'!AR217 ->  | H26: -
B27: Anuidades | D27: ='NT Revisao'!AQ218 ->  | E27: - | G27: ='NT Revisao'!AR218 ->  | H27: -
B28: Remuneração | D28: ='NT Revisao'!AQ219 ->  | E28: - | G28: ='NT Revisao'!AR219 ->  | H28: - | K28: =J28-I28 -> 
B29: Depreciação | D29: ='NT Revisao'!AQ220 ->  | E29: - | G29: ='NT Revisao'!AR220 ->  | H29: -
B30: OR, UD e ER | D30: ='NT Revisao'!AQ221 ->  | E30: =IF(ISERROR(D30/C30-1),"-",D30/C30-1) -> - | G30: ='NT Revisao'!AR221+'NT Revisao'!AR222 -> -51111213.63 | H30: -
B31: Reposicionamento Tarifário | C31: =C25+C3 -> 0 | D31: =D25+D3 ->  | E31: =IF(ISERROR(D31/C31-1),"-",D31/C31-1) -> - | F31: =F25+F3 -> 0 | G31: =G25+G3 ->  | H31: - | K31: =J31-I31 ->  | M31: =(G31-C31)/$C$31-I31 -> 
L32: 0
B33: Componentes Financeiros do Processo Atual | F33: =SUM(F34:F69) -> 0 | G33: =SUM(G34:G69) -> 201525195.8 | I33: =SUM(I34:I69) ->  | J33: =SUM(J34:J69) -> 0.1058724224 | K33: =J33-I33 ->  | L33: 1 | M33: =G33/$C$31-I33 ->  | N33: =K33-M33 ->  | O33: =(G33-C33)/$C$31 -> 
B34: ='NT Revisao'!AO226 -> CVA em processamento - Energia | G34: ='NT Revisao'!AR226 -> 87132214.54 | I34: =F34/$C$31 ->  | J34: ='NT Revisao'!AT226 -> 0.04577541079 | K34: =J34-I34 ->  | L34: 1 | M34: =G34/$C$31-I34 ->  | N34: =K34-M34 ->  | O34: =K34-N34 -> 
B35: ='NT Revisao'!AO227 -> CVA em processamento - Transporte | G35: ='NT Revisao'!AR227 -> 13550159.42 | I35: =F35/$C$31 ->  | J35: ='NT Revisao'!AT227 -> 0.0071186543 | K35: =J35-I35 ->  | L35: 1
B36: ='NT Revisao'!AO228 -> CVA em processamento - Encargos Setoriais | G36: ='NT Revisao'!AR228 -> 91840484.46 | J36: ='NT Revisao'!AT228 -> 0.04824892751 | L36: 1
B37: ='NT Revisao'!AO229 -> Saldo a Compensar CVA-Ano Anterior + Ajustes | G37: ='NT Revisao'!AR229 -> 7909170.496 | J37: ='NT Revisao'!AT229 -> 0.004155128277 | L37: 1
B38: ='NT Revisao'!AO230 -> Neutralidade de Parcela A- Energia | G38: ='NT Revisao'!AR230 -> -8501390.306 | J38: ='NT Revisao'!AT230 -> -0.004466254365 | L38: 1
B39: ='NT Revisao'!AO231 -> Neutralidade de Parcela A - Transporte | G39: ='NT Revisao'!AR231 -> 6215860.294 | J39: ='NT Revisao'!AT231 -> 0.003265538009 | L39: 1
B40: ='NT Revisao'!AO232 -> Neutralidade de Parcela A - Encargos Setoriais | G40: ='NT Revisao'!AR232 -> 1607920.43 | J40: ='NT Revisao'!AT232 -> 0.0008447302592 | L40: 1
B41: ='NT Revisao'!AO233 -> Neutralidade de Parcela A - Receita Irrecuperável | G41: ='NT Revisao'!AR233 -> 122379.3856 | J41: ='NT Revisao'!AT233 -> 6.429271512e-05 | L41: 1
B42: ='NT Revisao'!AO234 -> Neutralidade de Fin. Parcela B - Conta Covid | G42: ='NT Revisao'!AR234 -> 0 | J42: ='NT Revisao'!AT234 -> 0 | L42: 0
B43: ='NT Revisao'!AO235 -> Sobrecontratação/exposição de energia | G43: ='NT Revisao'!AR235 -> -1079495.664 | J43: ='NT Revisao'!AT235 -> -0.0005671192648 | L43: 1
B44: ='NT Revisao'!AO236 -> Garantias financeiras na contratação regulada de energia (CCEAR) | G44: ='NT Revisao'!AR236 -> 1275207.072 | J44: ='NT Revisao'!AT236 -> 0.0006699373805 | L44: 1
B45: ='NT Revisao'!AO237 -> Previsão de Risco Hidrológico | G45: ='NT Revisao'!AR237 -> 68150108.01 | J45: ='NT Revisao'!AT237 -> 0.03580305178 | L45: 1
B46: ='NT Revisao'!AO238 -> Ajuste Liminar Abrace | G46: ='NT Revisao'!AR238 -> 0 | J46: ='NT Revisao'!AT238 -> 0 | L46: 0
B47: ='NT Revisao'!AO239 -> Ajuste ref. equilíbrio econômico-financeiro TUSDg (A3a) | G47: ='NT Revisao'!AR239 -> 0 | J47: ='NT Revisao'!AT239 -> 0 | L47: 0
B48: ='NT Revisao'!AO240 -> Repasse de ultrapassagem de Supridas/Permissionárias de Energia | G48: ='NT Revisao'!AR240 -> 0 | J48: ='NT Revisao'!AT240 -> 0 | L48: 0
B49: ='NT Revisao'!AO241 -> Reversão do Financeiro de Reperfilamento dos custos de RBSE | G49: ='NT Revisao'!AR241 -> 0 | J49: ='NT Revisao'!AT241 -> 0 | L49: 0
B50: ='NT Revisao'!AO242 -> Ajuste CUSD | G50: ='NT Revisao'!AR242 -> 278606.7992 | J50: ='NT Revisao'!AT242 -> 0.0001463676867 | L50: 1
B51: ='NT Revisao'!AO243 -> Repasse de compensação DIC/FIC | G51: ='NT Revisao'!AR243 -> -39173.51403 | J51: ='NT Revisao'!AT243 -> -2.058003123e-05 | L51: 0
B52: ='NT Revisao'!AO244 -> Compensação ref. acordos bilaterais de CCEAR | G52: ='NT Revisao'!AR244 -> 0 | J52: ='NT Revisao'!AT244 -> 0 | L52: 0
B53: Ressarcimento de P&D | F53: 0 | G53: 0 | I53: 0 | J53: 0 | K53: 0
B54: ='NT Revisao'!AO246 -> Ressarcimento de P&D | G54: ='NT Revisao'!AR246 -> 0 | I54: =F54/$C$31 ->  | J54: ='NT Revisao'!AT246 -> 0 | L54: 0
B55: ='NT Revisao'!AO247 -> Reversão Conta-Covid - CVA em processamento - Energia | G55: ='NT Revisao'!AR247 -> 0 | J55: ='NT Revisao'!AT247 -> 0 | L55: 0
B56: ='NT Revisao'!AO248 -> Reversão Conta-Covid - CVA em processamento -Transporte | G56: ='NT Revisao'!AR248 -> 0 | J56: ='NT Revisao'!AT248 -> 0 | L56: 0
B57: ='NT Revisao'!AO249 -> Reversão Conta-Covid - CVA em processamento - Encargos Setoriais | G57: ='NT Revisao'!AR249 -> 0 | J57: ='NT Revisao'!AT249 -> 0 | K57: =J57-I57 ->  | L57: 0
B58: ='NT Revisao'!AO250 -> Reversão Conta-Covid - Saldo a Compensar CVA-Ano Anterior + Ajustes | G58: ='NT Revisao'!AR250 -> 0 | J58: ='NT Revisao'!AT250 -> 0 | L58: 0
B59: ='NT Revisao'!AO251 -> Reversão Conta-Covid - Neutralidade de Parcela A | G59: ='NT Revisao'!AR251 -> 0 | J59: ='NT Revisao'!AT251 -> 0 | L59: 1
B60: ='NT Revisao'!AO252 -> Reversão Conta-Covid - Sobrecontratação | G60: ='NT Revisao'!AR252 -> 0 | J60: ='NT Revisao'!AT252 -> 0 | L60: 1
B61: ='NT Revisao'!AO253 -> Reversão Conta Covid - Parcela B | G61: ='NT Revisao'!AR253 -> 0 | J61: ='NT Revisao'!AT253 -> 0 | L61: 1
B62: ='NT Revisao'!AO254 -> Reversão Conta Covid - Diferimento | G62: ='NT Revisao'!AR254 -> 0 | J62: ='NT Revisao'!AT254 -> 0 | L62: 1
B63: ='NT Revisao'!AO255 -> Reversão Conta Covid - Postergação | G63: ='NT Revisao'!AR255 -> 0 | J63: ='NT Revisao'!AT255 -> 0 | L63: 1
B64: ='NT Revisao'!AO256 -> Conselho de Consumidores | G64: ='NT Revisao'!AR256 -> 0 | J64: ='NT Revisao'!AT256 -> 0 | L64: 1
B65: ='NT Revisao'!AO257 -> Reversão de Diferimento do Risco Hidrológico - RTP 2021 | G65: ='NT Revisao'!AR257 -> 21096498.6 | J65: ='NT Revisao'!AT257 -> 0.01108316705 | L65: 1
B66: ='NT Revisao'!AO258 -> Custo Distribuidora - Spread Conta Covid - Art. 4º, REN 952/2021 | G66: ='NT Revisao'!AR258 -> 0 | J66: ='NT Revisao'!AT258 -> 0 | L66: 1
B67: ='NT Revisao'!AO259 -> Arrecadação CDE Covid dos consumidores migrantes - Ofício Circ. 20/2021 | G67: ='NT Revisao'!AR259 -> -562135.9774 | J67: ='NT Revisao'!AT259 -> -0.0002953213736 | L67: 1
B68: ='NT Revisao'!AO260 -> Crédito de PIS/COFINS - Lei 14.385/2022 | G68: ='NT Revisao'!AR260 -> -87082659.59 | J68: ='NT Revisao'!AT260 -> -0.04574937681 | L68: 1
B69: ='NT Revisao'!AO261 -> Neutralidade Crédito de Pis/COFINS | G69: ='NT Revisao'!AR261 -> -388558.6489 | J69: ='NT Revisao'!AT261 -> -0.0002041315243 | L69: 1
B70: Efeito da retirada dos Componentes Financeiros do Processo Anterior | I70: =I71-I31-I33 ->  | J70: =J71-J31-J33 ->  | K70: =J70-I70 ->  | L70: 1 | O70: =J70-I70 -> 
B71: Efeito Médio a ser percebido pelos Consumidores | J71: ='NT Revisao'!AT278 -> 0.1151820599 | K71: =J71-I71 -> 0.1151820599 | L71: 1 | M71: =((G31+G33)/C31-1)-((F31+F33)/C31-1) ->  | N71: =K71-M71 ->  | O71: =K71-N71 -> 

Sheet Mercado
B2: DADOS DE MERCADO DE ENERGIA E RECEITA VERIFICADA | G2: Anexo II | H2: =Resultado!$D$6 -> 0.1641375592
G3: Anexo I | H3: =Resultado!$D$8 -> 0.178194762
M5: TipoMercado | R5: AnoMes
B6: Dados de Mercado | M6: Regular | R6: =DATE(YEAR(R8),MONTH(R8)-1,1) -> 44378
R7: AnoMes
B8: Descrição | C8: MERCADO (MWh) | D8: RECEITA (R$) | F8: DESCRIÇÃO | G8: POR DENTRO | J8: Critérios | L8: Para º de consumidores | R8: =DATE(YEAR(R10),MONTH(R10)-1,1) -> 44409
B9: FORNECIMENTO | C9: =SUM(C10:C16) -> 3250734.652 | D9: =SUM(D10:D16) -> 1642822844 | F9: ICMS | G9: =SUM(INDIRECT("DADOS_MercadoBase[ICMS]"))/(SUM(INDIRECT("DADOS_MercadoBase[ICMS]"),INDIRECT("DADOS_MercadoBase[PisPasep]"),INDIRECT("DADOS_MercadoBase[Cofins]"),INDIRECT("DADOS_MercadoBase[FinTotAj]"))+G20) -> 0.2060714264 | J9: Subgrupo | K9: OPÇÃO | M9: AnoMes | N9: Subgrupo | O9: OPÇÃO | R9: AnoMes
B10: A1 | C10: =DSUM(Mercado_Receita!A:AAA,"TUSD_E",J9:K10) -> 0 | D10: =DSUM(Mercado_Receita!A:AAA,"total",J9:K10) -> 0 | F10: PIS/COFINS | G10: =SUM( INDIRECT("DADOS_MercadoBase[Cofins]"), INDIRECT("DADOS_MercadoBase[PisPasep]"))/(SUM( INDIRECT("DADOS_MercadoBase[ICMS]"), INDIRECT("DADOS_MercadoBase[PisPasep]"), INDIRECT("DADOS_MercadoBase[Cofins]"), INDIRECT("DADOS_MercadoBase[FinTotAj]"))+G20) -> 0.0311702447 | J10: A1 | K10: Cativo | M10: =DMAX(MercadoBase,"AnoMes",M5:M6) -> 44682 | N10: A1 | O10: Suprimento | R10: =DATE(YEAR(R12),MONTH(R12)-1,1) -> 44440
B11: A2 | C11: =DSUM(Mercado_Receita!A:AAA,"TUSD_E",J11:K12) -> 6128.955 | D11: =DSUM(Mercado_Receita!A:AAA,"total",J11:K12) -> 3262026.946 | J11: Subgrupo | K11: OPÇÃO | M11: AnoMes | N11: Subgrupo | O11: OPÇÃO | P11: Subgrupo | R11: AnoMes
B12: A3 | C12: =DSUM(Mercado_Receita!A:AAA,"TUSD_E",J13:K14) -> 2407.756 | D12: =DSUM(Mercado_Receita!A:AAA,"total",J13:K14) -> 978607.2762 | F12: MWh Ano Anterior | G12: =BD!C45 -> 4618832.665 | J12: A2 | K12: Cativo | M12: =$M$10 -> 44682 | N12: A2 | O12: Livre | P12: A1 | R12: =DATE(YEAR(R14),MONTH(R14)-1,1) -> 44470
B13: A3a | C13: =DSUM(Mercado_Receita!A:AAA,"TUSD_E",J15:K16) -> 4897.073 | D13: =DSUM(Mercado_Receita!A:AAA,"total",J15:K16) -> 2674031.217 | F13: Variação | G13: =C24/G12-1 -> 0.004304467047 | J13: Subgrupo | K13: OPÇÃO | M13: AnoMes | N13: Subgrupo | O13: OPÇÃO | R13: AnoMes
B14: A4 | C14: =DSUM(Mercado_Receita!A:AAA,"TUSD_E",J17:K18) -> 655469.626 | D14: =DSUM(Mercado_Receita!A:AAA,"total",J17:K18) -> 313470883.8 | F14: R$ Ano Anterior | G14: =BD!C46 -> 1930755781 | J14: ="=A3" -> =A3 | K14: Cativo | M14: =$M$10 -> 44682 | N14: ="=A3" -> =A3 | O14: Distribuição | R14: =DATE(YEAR(R16),MONTH(R16)-1,1) -> 44501
B15: As | C15: =DSUM(Mercado_Receita!A:AAA,"TUSD_E",J19:K20) -> 0 | D15: =DSUM(Mercado_Receita!A:AAA,"total",J19:K20) -> 0 | F15: Variação | G15: =D24/G14-1 -> -0.01413111993 | J15: Subgrupo | K15: OPÇÃO | M15: AnoMes | N15: Subgrupo | O15: OPÇÃO | R15: AnoMes
B16: BT | C16: =DSUM(Mercado_Receita!A:AAA,"TUSD_E",J21:K22) -> 2581831.242 | D16: =DSUM(Mercado_Receita!A:AAA,"total",J21:K22) -> 1322437295 | J16: ="=A3a" -> =A3a | K16: Cativo | M16: =$M$10 -> 44682 | N16: ="=A3a" -> =A3a | O16: Geração | R16: =DATE(YEAR(R18),MONTH(R18)-1,1) -> 44531
B17: SUPRIMENTO (Mercado TE) | C17: =DSUM(Mercado_Receita!A:AAA,"TE_E",O9:P10) -> 32506.324 | D17: =DSUM(Mercado_Receita!A:AAA,"total",O9:P10) -> 12347080.92 | F17: Parâmetros de cálculo de RI | J17: Subgrupo | K17: OPÇÃO | M17: AnoMes | N17: Subgrupo | O17: OPÇÃO | R17: AnoMes
B18: LIVRES A1 | C18: =DSUM(Mercado_Receita!A:AAA,"TUSD_E",O11:P12) -> 0 | D18: =DSUM(Mercado_Receita!A:AAA,"total",O11:P12) -> 0 | F18: RR sem RI | G18: =SUM(Resultado!D19,Resultado!D29,Resultado!D38,Resultado!D45) -> 2201579770 | J18: A4 | K18: Cativo | M18: =$M$10 -> 44682 | N18: A4 | O18: Livre | R18: =DATE(YEAR(R20),MONTH(R20)-1,1) -> 44562
B19: DEMAIS LIVRES | C19: =DSUM(Mercado_Receita!A:AAA,"TUSD_E",O19:P20)+DSUM(Mercado_Receita!A:AAA,"TUSD_E",O17:P18)-C18 -> 1285466.467 | D19: =DSUM(Mercado_Receita!A:AAA,"total",O19:P20)+DSUM(Mercado_Receita!A:AAA,"TOTAL",O17:P18)-D18 -> 215755958.9 | F19: Financeiros | G19: =Financeiros!D8 -> 26757492.55 | J19: Subgrupo | K19: OPÇÃO | M19: AnoMes | N19: Subgrupo | O19: OPÇÃO | R19: AnoMes
B20: DISTRIBUIÇÃO | C20: =DSUM(Mercado_Receita!A:AAA,"TUSD_E",O13:P14) -> 70006.835 | D20: =DSUM(Mercado_Receita!A:AAA,"total",O13:P14) -> 5742867.44 | F20: Receita Bandeiras | G20: =SUM(TabBand[Fat Bandeiras]) -> 327634245.8 | J20: AS | K20: Cativo | M20: =$M$10 -> 44682 | N20: AS | O20: erc | R20: =DATE(YEAR(R22),MONTH(R22)-1,1) -> 44593
B21: GERADOR | D21: =DSUM(Mercado_Receita!A:AAA,"total",O15:P16) -> 26803288.22 | J21: Subgrupo | K21: OPÇÃO | M21: AnoMes | N21: Subgrupo | R21: AnoMes
B22: CDE Baixa Renda | J22: ="=B*" -> =B* | K22: Cativo | M22: =$M$10 -> 44682 | N22: ="=B*" -> =B* | R22: =DATE(YEAR(R24),MONTH(R24)-1,1) -> 44621
B23: AJUSTE ECONÔMICO - BOLHA | J23: Subclasse | K23: OPÇÃO | R23: AnoMes
B24: TOTAL | C24: =SUM(C10:C23) -> 4638714.278 | D24: =SUM(D10:D23) -> 1903472040 | J24: ="=Residencial baixa renda*" -> =Residencial baixa renda* | K24: Cativo | R24: =DATE(YEAR(R26),MONTH(R26)-1,1) -> 44652 | T24: 119414.803
B25: ENERGIA DESTINADA APE/PIE | J25: Classe | L25: AnoMes | R25: AnoMes
B26: MERCADO TOTAL BAIXA RENDA | C26: =DSUM(Mercado_Receita!A:AAA,"TUSD_E",J23:K24) -> 196381.563 | J26: Residencial | L26: =$M$10 -> 44682 | R26: =DATE(YEAR(R28),MONTH(R28)-1,1) -> 44682
J27: Classe | L27: AnoMes | R27: AnoMes
B28: ="Fonte: SAMP - "&TEXT(L26,"mmmm/aa") -> Fonte: SAMP - maio/22 | J28: Industrial | L28: =$M$10 -> 44682 | R28: =B65 -> 44713
B29: DESCRIÇÃO - Tipo | C29: RECEITA (R$) | D29: % Total | E29: nº de consumidores | F29: MWh mensal | G29: Percentual RI | H29: Reais RI (c/tributos) | J29: Classe | L29: AnoMes
B30: Residencial | C30: =DSUM(Mercado_Receita!A:AAA,"total",J25:K26) -> 816349103.9 | D30: =IFERROR(C30/$C$38,0) -> 0.4288737039 | E30: =DSUM(Mercado_Receita!$A:$AAA,"UC",$J$25:$L$26) -> 726420 | F30: =DSUM(Mercado_Receita!$A:$AAA,"TUSD_E",$J$25:$L$26) -> 122741.654 | G30: =BD!M67 -> 0.0064 | H30: =G30*C30/$D$24*SUM($G$18:$G$20)/(1-SUM($G$9:$G$10)) -> 9197683.103 | J30: Comercial | L30: =$M$10 -> 44682
B31: Industrial | C31: =DSUM(Mercado_Receita!A:AAA,"total",J27:K28) -> 338047859.9 | D31: 0.1775953903 | E31: =DSUM(Mercado_Receita!$A:$AAA,"UC",$J$27:$L$28) -> 4280 | F31: =DSUM(Mercado_Receita!$A:$AAA,"TUSD_E",$J$27:$L$28) -> 129087.954 | G31: =BD!M68 -> 0.0035 | H31: =G31*C31/$D$24*SUM($G$18:$G$20)/(1-SUM($G$9:$G$10)) -> 2082901.742 | J31: Classe | L31: AnoMes
B32: Comercial | C32: =DSUM(Mercado_Receita!A:AAA,"total",J29:K30) -> 344044349.9 | D32: 0.1807456809 | E32: =DSUM(Mercado_Receita!$A:$AAA,"UC",$J$29:$L$30) -> 63493 | F32: =DSUM(Mercado_Receita!$A:$AAA,"TUSD_E",$J$29:$L$30) -> 51386.296 | G32: =BD!M69 -> 0.004 | H32: 2422685.105 | J32: Rural | L32: =$M$10 -> 44682
B33: Rural | C33: =DSUM(Mercado_Receita!A:AAA,"total",J31:K32) -> 173128678.2 | D33: 0.09095414828 | E33: =DSUM(Mercado_Receita!$A:$AAA,"UC",$J$31:$L$32) -> 43461 | F33: =DSUM(Mercado_Receita!$A:$AAA,"TUSD_E",$J$31:$L$32) -> 25930.449 | G33: =BD!M70 -> 0.002 | H33: 609567.1531 | J33: Classe | L33: AnoMes
B34: Iluminação Pública | C34: =DSUM(Mercado_Receita!A:AAA,"total",J33:K34) -> 52306010.4 | D34: 0.02747926385 | E34: =DSUM(Mercado_Receita!$A:$AAA,"UC",$J$33:$L$34) -> 704 | F34: =DSUM(Mercado_Receita!$A:$AAA,"TUSD_E",$J$33:$L$34) -> 15165.512 | G34: =BD!M71 -> 0 | H34: 0 | J34: Iluminação Pública | L34: =$M$10 -> 44682
B35: Poder Público | C35: =DSUM(Mercado_Receita!A:AAA,"total",J35:K36) -> 60708726.05 | D35: 0.03189367891 | E35: =DSUM(Mercado_Receita!$A:$AAA,"UC",$J$35:$L$36) -> 7076 | F35: =DSUM(Mercado_Receita!$A:$AAA,"TUSD_E",$J$35:$L$36) -> 9557.222 | G35: =BD!M72 -> 0.0001 | H35: 10687.43945 | J35: Classe | L35: AnoMes
B36: Serviço Público | C36: =DSUM(Mercado_Receita!A:AAA,"total",J37:K38) -> 71796183.3 | D36: 0.03771853844 | E36: =DSUM(Mercado_Receita!$A:$AAA,"UC",$J$37:$L$38) -> 1251 | F36: =DSUM(Mercado_Receita!$A:$AAA,"TUSD_E",$J$37:$L$38) -> 12354.819 | G36: =BD!M73 -> 0 | H36: 0 | J36: Poder Público | L36: =$M$10 -> 44682
B37: Demais | C37: =D24-SUM(C30:C36) -> 47091128.07 | D37: 0.02473959538 | E37: =DSUM(Mercado_Receita!A:AAA,"UC",$J$39:$L$40)-SUM(E$30:E$36) -> 187 | F37: =DSUM(Mercado_Receita!B:AAB,"TUSD_E",$J$39:$L$40)-SUM(F$30:F$36) -> 9554.041 | G37: =BD!M74 -> 0 | H37: 0 | J37: Classe | L37: AnoMes
B38: TOTAL | C38: =SUM(C30:C37) -> 1903472040 | D38: =SUM(D30:D37) -> 1 | E38: =SUM(E30:E37) -> 846872 | F38: =SUM(F30:F37) -> 375777.947 | H38: =SUM(H30:H37) -> 14323524.54 | J38: Serviço público | L38: =$M$10 -> 44682
J39: Classe | L39: AnoMes
B40: nº de consumidores | J40: * | L40: =$M$10 -> 44682
B41: A1 | C41: =DSUM(Mercado_Receita!A:AAA,"UC",L9:N10) -> 0
B42: A2 | C42: =DSUM(Mercado_Receita!A:AAA,"UC",L11:N12) -> 17
B43: A3 | C43: =DSUM(Mercado_Receita!A:AAA,"UC",L13:N14) -> 2
B44: A3a | C44: =DSUM(Mercado_Receita!A:AAA,"UC",L15:N16) -> 32
B45: A4 | C45: =DSUM(Mercado_Receita!A:AAA,"UC",L17:N18) -> 2223
B46: As | C46: =DSUM(Mercado_Receita!A:AAA,"UC",L19:N20) -> 0
B47: BT | C47: =DSUM(Mercado_Receita!A:AAA,"UC",L21:N22) -> 844598
B52: Arrecadação dos Encargos
B53: Competência | D53: PeD | E53: ONS | F53: ESSERR | G53: PROINFA | H53: CDE | I53: TFSEE | J53: CFURH | K53: CVA_Energia | L53: CVA_RB | M53: CVA_CDE | N53: CVA_CFURH | O53: CVA_TranItaipu | P53: CVA_ESSERR | Q53: CVA_PROINFA | R53: Fator Selic | S53: RTE_Energia | T53: RTE_CDE_USO | U53: RTE_CDE_E | V53: RTE_CUSD | W53: RTE_PeD | X53: CVA_CovidTe_ou_CVA_CDE_E | Y53: CVA_CCC | Z53: DISTRIBUICAO | AA53: cDE_E_ACR | AB53: CDE_E_Dec
B54: =DATE(YEAR(B55),MONTH(B55)-1,1) -> 44378 | D54: =DSUM(MercadoBase,D$53,INDIRECT("r"&5+2*(ROW()-54)&":r"&6+2*(ROW()-54))) -> 1275003.508 | E54: 0 | F54: 1918608.932 | G54: 2938977.554 | H54: 17503850.32 | I54: 134985.9537 | J54: 0 | K54: 8598680.237 | L54: -463037.0139 | M54: 1208244.789 | N54: 0 | O54: 174474.8349 | P54: 943851.2763 | Q54: 317095.0961 | R54: =VLOOKUP(CAPA!$C$15,Índices!B:F,5,FALSE)/VLOOKUP(DATE(YEAR(B54),MONTH(B54),1),Índices!B:F,5,FALSE) -> 1.083059398 | S54: =DSUM(MercadoBase,S$53,INDIRECT("r"&5+2*(ROW()-54)&":r"&6+2*(ROW()-54))) -> 0 | T54: 0 | U54: 0 | V54: 0 | W54: 0 | X54: -121834.2534 | Y54: 0 | Z54: =DSUM(MercadoBase,Z$53,INDIRECT("r"&5+2*(ROW()-54)&":r"&6+2*(ROW()-54))) -> 33535407.41 | AA54: =DSUM(MercadoBase,AA$53,INDIRECT("r"&5+2*(ROW()-54)&":r"&6+2*(ROW()-54))) -> 0 | AB54: 0
B55: 44409 | D55: 1306297.078 | E55: 0 | F55: 1967492.631 | G55: 2975097.333 | H55: 17745335.39 | I55: 137802.9139 | J55: 0 | K55: 8808837.303 | L55: -470668.7369 | M55: 1224913.869 | N55: 0 | O55: 178920.2302 | P55: 967899.3979 | Q55: 320992.1673 | R55: =VLOOKUP(CAPA!$C$15,Índices!B:F,5,FALSE)/VLOOKUP(DATE(YEAR(B55),MONTH(B55),1),Índices!B:F,5,FALSE) -> 1.07844417 | S55: 0 | T55: 0 | U55: 0 | V55: 0 | W55: 0 | X55: -124938.4342 | Y55: 0 | Z55: 34231227.59 | AA55: 0 | AB55: 0
B56: 44440 | D56: 1482644.507 | E56: 0 | F56: 2238893.897 | G56: 3331456.351 | H56: 19954865.45 | I56: 151418.9025 | J56: 0 | K56: 10031385.99 | L56: -511602.6276 | M56: 1377431.922 | N56: 0 | O56: 203600.9717 | P56: 1101414.064 | Q56: 359440.8097 | R56: =VLOOKUP(CAPA!$C$15,Índices!B:F,5,FALSE)/VLOOKUP(DATE(YEAR(B56),MONTH(B56),1),Índices!B:F,5,FALSE) -> 1.07369843 | S56: 0 | T56: 0 | U56: 0 | V56: 0 | W56: 0 | X56: -142172.7804 | Y56: 0 | Z56: 38487991.96 | AA56: 0 | AB56: 0
B57: 44470 | D57: 1438202.941 | E57: 0 | F57: 2164873.626 | G57: 3232996.605 | H57: 19390853.19 | I57: 148734.4711 | J57: 0 | K57: 9707722.034 | L57: -503815.9872 | M57: 1338499.638 | N57: 0 | O57: 196869.7019 | P57: 1065000.116 | Q57: 348817.6927 | R57: =VLOOKUP(CAPA!$C$15,Índices!B:F,5,FALSE)/VLOOKUP(DATE(YEAR(B57),MONTH(B57),1),Índices!B:F,5,FALSE) -> 1.068505534 | S57: 0 | T57: 0 | U57: 0 | V57: 0 | W57: 0 | X57: -137472.3935 | Y57: 0 | Z57: 37526421.01 | AA57: 0 | AB57: 0
B58: 44501 | D58: 1436321.45 | E58: 0 | F58: 2157189.267 | G58: 3277106.321 | H58: 19587147.11 | I58: 149803.9555 | J58: 0 | K58: 9679060.055 | L58: -503028.1309 | M58: 1352049.291 | N58: 0 | O58: 196170.9001 | P58: 1061219.829 | Q58: 353576.8222 | R58: =VLOOKUP(CAPA!$C$15,Índices!B:F,5,FALSE)/VLOOKUP(DATE(YEAR(B58),MONTH(B58),1),Índices!B:F,5,FALSE) -> 1.062272659 | S58: 0 | T58: 0 | U58: 0 | V58: 0 | W58: 0 | X58: -136984.4263 | Y58: 0 | Z58: 37476834.58 | AA58: 0 | AB58: 0
B59: 44531 | D59: 1544847.977 | E59: 0 | F59: 2319881.115 | G59: 3541205.196 | H59: 21112085.75 | I59: 157462.9751 | J59: 0 | K59: 10423154.73 | L59: -526511.444 | M59: 1457311.798 | N59: 0 | O59: 210965.8032 | P59: 1141255.372 | Q59: 382071.2412 | R59: =VLOOKUP(CAPA!$C$15,Índices!B:F,5,FALSE)/VLOOKUP(DATE(YEAR(B59),MONTH(B59),1),Índices!B:F,5,FALSE) -> 1.054165253 | S59: 0 | T59: 0 | U59: 0 | V59: 0 | W59: 0 | X59: -147315.5779 | Y59: 0 | Z59: 40192331.09 | AA59: 0 | AB59: 0
B60: 44562 | D60: 1494086.732 | E60: 0 | F60: 2230279.35 | G60: 3424448.202 | H60: 20409443.91 | I60: 154152.2932 | J60: 0 | K60: 10021764.43 | L60: -515836.5327 | M60: 1408810.278 | N60: 0 | O60: 202817.5803 | P60: 1097176.176 | Q60: 369473.9792 | R60: =VLOOKUP(CAPA!$C$15,Índices!B:F,5,FALSE)/VLOOKUP(DATE(YEAR(B60),MONTH(B60),1),Índices!B:F,5,FALSE) -> 1.046502029 | S60: 0 | T60: 0 | U60: 0 | V60: 0 | W60: 0 | X60: -141625.7451 | Y60: 0 | Z60: 39071802.8 | AA60: 0 | AB60: 0
B61: 44593 | D61: 1419002.517 | E61: 0 | F61: 2108701.526 | G61: 3330649.108 | H61: 19742239.65 | I61: 148959.142 | J61: 0 | K61: 9484686.082 | L61: -500517.7473 | M61: 1362754.922 | N61: 0 | O61: 191761.5124 | P61: 1037366.497 | Q61: 359353.7139 | R61: =VLOOKUP(CAPA!$C$15,Índices!B:F,5,FALSE)/VLOOKUP(DATE(YEAR(B61),MONTH(B61),1),Índices!B:F,5,FALSE) -> 1.038659722 | S61: 0 | T61: 0 | U61: 0 | V61: 0 | W61: 0 | X61: -133905.3894 | Y61: 0 | Z61: 37429484.66 | AA61: 0 | AB61: 0
B62: 44621 | D62: 1601849.34 | E62: 0 | F62: 2398809.058 | G62: 3586354.734 | H62: 21439769.44 | I62: 162428.0539 | J62: 0 | K62: 10777274.34 | L62: -543455.1098 | M62: 1479930.942 | N62: 0 | O62: 218143.3679 | P62: 1180083.629 | Q62: 386942.5602 | R62: =VLOOKUP(CAPA!$C$15,Índices!B:F,5,FALSE)/VLOOKUP(DATE(YEAR(B62),MONTH(B62),1),Índices!B:F,5,FALSE) -> 1.029119233 | S62: 0 | T62: 0 | U62: 0 | V62: 0 | W62: 0 | X62: -152327.6087 | Y62: 0 | Z62: =DSUM(MercadoBase,Z$53,INDIRECT("r"&5+2*(ROW()-54)&":r"&6+2*(ROW()-54))) -> 41791735.38 | AA62: 0 | AB62: 0
B63: 44652 | D63: 1426469.156 | E63: 0 | F63: 2123943.087 | G63: 3416950.836 | H63: 20194177.75 | I63: 150465.2463 | J63: 0 | K63: =DSUM(MercadoBase,K$53,INDIRECT("r"&5+2*(ROW()-54)&":r"&6+2*(ROW()-54)))*IF(VLOOKUP("MesesAdin",TabPostergacao[#All],2,FALSE)>2,0,1) -> 9553614.893 | L63: =DSUM(MercadoBase,L$53,INDIRECT("r"&5+2*(ROW()-54)&":r"&6+2*(ROW()-54)))*IF(VLOOKUP("MesesAdin",TabPostergacao[#All],2,FALSE)>2,0,1) -> -508596.6905 | M63: =DSUM(MercadoBase,M$53,INDIRECT("r"&5+2*(ROW()-54)&":r"&6+2*(ROW()-54)))*IF(VLOOKUP("MesesAdin",TabPostergacao[#All],2,FALSE)>2,0,1) -> 1393951.022 | N63: =DSUM(MercadoBase,N$53,INDIRECT("r"&5+2*(ROW()-54)&":r"&6+2*(ROW()-54)))*IF(VLOOKUP("MesesAdin",TabPostergacao[#All],2,FALSE)>2,0,1) -> 0 | O63: =DSUM(MercadoBase,O$53,INDIRECT("r"&5+2*(ROW()-54)&":r"&6+2*(ROW()-54)))*IF(VLOOKUP("MesesAdin",TabPostergacao[#All],2,FALSE)>2,0,1) -> 193147.5525 | P63: =DSUM(MercadoBase,P$53,INDIRECT("r"&5+2*(ROW()-54)&":r"&6+2*(ROW()-54)))*IF(VLOOKUP("MesesAdin",TabPostergacao[#All],2,FALSE)>2,0,1) -> 1044864.516 | Q63: =DSUM(MercadoBase,Q$53,INDIRECT("r"&5+2*(ROW()-54)&":r"&6+2*(ROW()-54)))*IF(VLOOKUP("MesesAdin",TabPostergacao[#All],2,FALSE)>2,0,1) -> 368665.0659 | R63: =VLOOKUP(CAPA!$C$15,Índices!B:F,5,FALSE)/VLOOKUP(DATE(YEAR(B63),MONTH(B63),1),Índices!B:F,5,FALSE) -> 1.020604123 | S63: 0 | T63: 0 | U63: 0 | V63: 0 | W63: 0 | X63: -134873.2491 | Y63: 0 | Z63: 37675660.89 | AA63: 0 | AB63: 0
B64: 44682 | D64: =DSUM(MercadoBase,D$53,INDIRECT("r"&5+2*(ROW()-54)&":r"&6+2*(ROW()-54))) -> 1360419.33 | E64: 0 | F64: 2033453.617 | G64: 3180957.731 | H64: 18905737.13 | I64: 143706.2132 | J64: 0 | K64: =DSUM(MercadoBase,K$53,INDIRECT("r"&5+2*(ROW()-54)&":r"&6+2*(ROW()-54)))*IF(VLOOKUP("MesesAdin",TabPostergacao[#All],2,FALSE)>1,0,1) -> 9137239.316 | L64: =DSUM(MercadoBase,L$53,INDIRECT("r"&5+2*(ROW()-54)&":r"&6+2*(ROW()-54)))*IF(VLOOKUP("MesesAdin",TabPostergacao[#All],2,FALSE)>1,0,1) -> -494533.1621 | M64: =DSUM(MercadoBase,M$53,INDIRECT("r"&5+2*(ROW()-54)&":r"&6+2*(ROW()-54)))*IF(VLOOKUP("MesesAdin",TabPostergacao[#All],2,FALSE)>1,0,1) -> 1305013.351 | N64: =DSUM(MercadoBase,N$53,INDIRECT("r"&5+2*(ROW()-54)&":r"&6+2*(ROW()-54)))*IF(VLOOKUP("MesesAdin",TabPostergacao[#All],2,FALSE)>1,0,1) -> 0 | O64: =DSUM(MercadoBase,O$53,INDIRECT("r"&5+2*(ROW()-54)&":r"&6+2*(ROW()-54)))*IF(VLOOKUP("MesesAdin",TabPostergacao[#All],2,FALSE)>1,0,1) -> 184918.6033 | P64: =DSUM(MercadoBase,P$53,INDIRECT("r"&5+2*(ROW()-54)&":r"&6+2*(ROW()-54)))*IF(VLOOKUP("MesesAdin",TabPostergacao[#All],2,FALSE)>1,0,1) -> 1000348.617 | Q64: =DSUM(MercadoBase,Q$53,INDIRECT("r"&5+2*(ROW()-54)&":r"&6+2*(ROW()-54)))*IF(VLOOKUP("MesesAdin",TabPostergacao[#All],2,FALSE)>1,0,1) -> 343203.0626 | R64: =VLOOKUP(CAPA!$C$15,Índices!B:F,5,FALSE)/VLOOKUP(DATE(YEAR(B64),MONTH(B64),1),Índices!B:F,5,FALSE) -> 1.010153156 | S64: =DSUM(MercadoBase,S$53,INDIRECT("r"&5+2*(ROW()-54)&":r"&6+2*(ROW()-54))) -> 0 | T64: 0 | U64: 0 | V64: 0 | W64: 0 | X64: -129127.0457 | Y64: 0 | Z64: =DSUM(MercadoBase,Z$53,INDIRECT("r"&5+2*(ROW()-54)&":r"&6+2*(ROW()-54))) -> 36030620.11 | AA64: =DSUM(MercadoBase,AA$53,INDIRECT("r"&5+2*(ROW()-54)&":r"&6+2*(ROW()-54))) -> 0 | AB64: 0
B65: =DATE(YEAR(CAPA!$C$10),MONTH(CAPA!$C$10)-1,1) -> 44713 | D65: 1360419.33 | E65: 0 | F65: 2033453.617 | G65: 3180957.731 | H65: 18905737.13 | I65: 143706.2132 | J65: 0 | K65: =DSUM(MercadoBase,K$53,INDIRECT("r"&5+2*(ROW()-54)&":r"&6+2*(ROW()-54)))*IF(VLOOKUP("MesesAdin",TabPostergacao[#All],2,FALSE)>0,0,1) -> 9137239.316 | L65: =DSUM(MercadoBase,L$53,INDIRECT("r"&5+2*(ROW()-54)&":r"&6+2*(ROW()-54)))*IF(VLOOKUP("MesesAdin",TabPostergacao[#All],2,FALSE)>0,0,1) -> -494533.1621 | M65: =DSUM(MercadoBase,M$53,INDIRECT("r"&5+2*(ROW()-54)&":r"&6+2*(ROW()-54)))*IF(VLOOKUP("MesesAdin",TabPostergacao[#All],2,FALSE)>0,0,1) -> 1305013.351 | N65: =DSUM(MercadoBase,N$53,INDIRECT("r"&5+2*(ROW()-54)&":r"&6+2*(ROW()-54)))*IF(VLOOKUP("MesesAdin",TabPostergacao[#All],2,FALSE)>0,0,1) -> 0 | O65: =DSUM(MercadoBase,O$53,INDIRECT("r"&5+2*(ROW()-54)&":r"&6+2*(ROW()-54)))*IF(VLOOKUP("MesesAdin",TabPostergacao[#All],2,FALSE)>0,0,1) -> 184918.6033 | P65: =DSUM(MercadoBase,P$53,INDIRECT("r"&5+2*(ROW()-54)&":r"&6+2*(ROW()-54)))*IF(VLOOKUP("MesesAdin",TabPostergacao[#All],2,FALSE)>0,0,1) -> 1000348.617 | Q65: =DSUM(MercadoBase,Q$53,INDIRECT("r"&5+2*(ROW()-54)&":r"&6+2*(ROW()-54)))*IF(VLOOKUP("MesesAdin",TabPostergacao[#All],2,FALSE)>0,0,1) -> 343203.0626 | R65: =VLOOKUP(CAPA!$C$15,Índices!B:F,5,FALSE)/VLOOKUP(DATE(YEAR(B65),MONTH(B65),1),Índices!B:F,5,FALSE) -> 1 | S65: 0 | T65: 0 | U65: 0 | V65: 0 | W65: 0 | X65: -129127.0457 | Y65: 0 | Z65: 36030620.11 | AA65: 0 | AB65: 0
B66: Total Bruto | D66: =SUM(D54:D65) -> 17145563.87 | E66: =SUM(E54:E65) -> 0 | F66: 25695579.72 | G66: =SUM(G54:G65) -> 39417157.7 | H66: 234891242.2 | I66: 1783626.334 | J66: 0 | K66: 115360658.7 | L66: -6036136.345 | M66: 16213925.17 | N66: 0 | O66: 2336709.662 | P66: 12640828.11 | Q66: 4252835.274 | S66: =SUM(S54:S65) -> 0 | T66: 0 | U66: 0 | V66: 0 | W66: 0 | X66: -1631703.949 | Y66: 0 | Z66: 449480137.6 | AA66: 0 | AB66: 0
B67: Total Atualizado pelo SELIC | D67: =SUMPRODUCT(D54:D65,$R$54:$R$65) -> 17949034.98 | E67: 0 | F67: 26902069.96 | G67: 41252669.8 | H67: 245844083.7 | I67: 1867070.373 | J67: 0 | K67: 120773654.9 | L67: -6318241.736 | M67: 16969971.04 | N67: 0 | O67: 2446425.707 | P67: 13234355.71 | Q67: 4450874.175 | R67: 13.16538855 | S67: 0 | T67: 0 | U67: 0 | V67: 0 | W67: 0 | X67: -1708317.706 | Y67: 0 | Z67: 470491863.9 | AA67: 0 | AB67: 0

Sheet Mercado_Receita
A1: Código | B1: TipoMercado | C1: Modalidade | D1: Subgrupo | E1: Classe | F1: Subclasse | G1: Detalhe | H1: Agente | I1: Posto | J1: OPÇÃO | K1: AnoMes | L1: D | M1: Daj | N1: TUSD_E | O1: TUSD_Eaj | P1: TE_E | Q1: TE_Eaj | R1: TUSD/KW | S1: TUSD/MWh | T1: TE | U1: ReceitaD | V1: ReceitaE | W1: Total | X1: Total com Tar de aplicação | Y1: CCC | Z1: CDE | AA1: CFURH | AB1: Conexao_D | AC1: Conexao_T | AD1: CUSD | AE1: DISTRIBUICAO | AF1: EnergiaRevenda | AG1: ESSERR | AH1: ITAIPU | AI1: ONS | AJ1: OUTROS | AK1: PeD | AL1: PROINFA | AM1: RGR | AN1: TFSEE | AO1: TUST_FR | AP1: TUST_RB | AQ1: TUSDG_ONS | AR1: TUSDG_T | AS1: TUST_CI | AT1: TUST_ITAIPU | AU1: CVA_CCC | AV1: CVA_CDE | AW1: CVA_PROINFA | AX1: CVA_TranItaipu | AY1: CVA_ESSERR | AZ1: CVA_CFURH | BA1: CVA_CDE_E | BB1: CVA_Energia | BC1: CVA_RB | BD1: perdasnt | BE1: perdasrb_d | BF1: perdasrb_c | BG1: perdastec | BH1: RI | BI1: PisPasep | BJ1: Cofins | BK1: ICMS | BL1: UC | BM1: total_dummy | BN1: Subs_CarFI | BO1: Subs_GerFI | BP1: Subs_Dist | BQ1: Subs_AguaEsgoto | BR1: Subs_Rural | BS1: Subs_Irrigante | BT1: Subs_BaixaRenda | BU1: CDE_E | BV1: DespesaEnergia | BW1: RTE_CUSD | BX1: RTE_Energia | BY1: RTE_CDE_USO | BZ1: RTE_CDE_E | CA1: RTE_PeD | CB1: Dif_Subs_Car | CC1: Dif_Subs_Ger | CD1: Dif_Subs_D | CE1: Dif_Subs_Agua | CF1: Dif_Subs_Ru | CG1: Dif_Subs_Irr | CH1: dif_subs_baixa | CI1: FinTotAj | CJ1: FinAj | CK1: RTE_CDE_E_Dec | CL1: RTE_CDE_E_ACR | CM1: CDE_E_Dec | CN1: CDE_E_ACR | CO1: FinPostTUSD | CP1: FinPostTE | CQ1: FinPostQtddias | CR1: FinCT_Geral | CS1: finCT_TUST_FR | CT1: finCT_TUST_RB | CU1: FINCT_TUSDG_ONS | CV1: FINCT_TUSDG_T | CW1: FINCT_TUST_CI | CX1: FINCT_TUST_ITAIPU | CY1: FinCT_Itaipu | CZ1: FinCT_CUSD | DA1: FinCT_Conexao_D | DB1: FinCT_Conexao_T | DC1: FinCT_EnergiaRevenda | DD1: FINCT_perdasrb_c | DE1: FINCT_perdasrb_d | DF1: FinCT_perdasnt | DG1: FinCT_perdastec | DH1: FinCT_CCC | DI1: FinCT_CDE | DJ1: FinCT_CDE_E | DK1: FinCT_CFURH | DL1: FinCT_ONS | DM1: FinCT_ESSERR | DN1: FinCT_Ped | DO1: finCT_PROINFA | DP1: finCT_TFSEE | DQ1: FINCT_Liminar | DR1: FinCT_Subsidio | DS1: FINCT_RGR | DT1: Tipo_ato | DU1: DIST_D | DV1: DIST_E | DW1: FIN_RI | DX1: FINCT_RI | DY1: Fin_TUSD | DZ1: Fin_TE | EA1: CVA_TUSD | EB1: CVA_TE | EC1: FinCT_ParcelaB | ED1: CVA_EnergiaRevenda | EE1: CVA_perdasnt | EF1: CVA_perdasrb_d | EG1: CVA_perdasrb_c | EH1: CVA_perdastec | EI1: CVA_TUST_RB | EJ1: CVA_TUST_FR | EK1: CVA_TUSDG_ONS | EL1: CVA_TUSDG_T | EM1: CVA_TUST_CI | EN1: CVA_TUST_ITAIPU | EO1: CVA_liminar | EP1: covidTusdEco | EQ1: covidTeEco | ER1: CVA_CovidTusd | ES1: CVA_CovidTe_ou_CVA_CDE_E | ET1: FinCT_CDECOVIDTUSD | EU1: FinCT_CDECOVIDTE_ou_FinCT_CDE_E | EV1: idsreag | EW1: FinCTAn3En | EX1: An3En | EY1: CVA_An3En | EZ1: Fin_An3En | FA1: FIN_CFURH | FB1: TEAngra | FC1: TUSDAngra | FD1: teCheia | FE1: tusdcheia | FF1: AngraIII_TE | FG1: AngraIII_TUSD | FH1: AngraIII_Desc_TE | FI1: AngraIII_Desc_TUSD | FJ1: Coluna1
A2: 41 | B2: Regular | C2: Azul | D2: A2 | E2: Industrial | F2: Não se aplica | G2: Não se aplica | H2: Não se aplica | I2: Fora ponta | J2: CATIVO | K2: 2021-07-01 | L2: 8663 | M2: 8663 | N2: 291.839 | O2: 291.839 | P2: 291.839 | Q2: 291.839 | R2: 9.52 | S2: 55.39 | T2: 240.27 | U2: 82471.76 | V2: 86285.11874 | W2: 168756.8787 | X2: 177005.1725 | Y2: 0 | Z2: 11747.99616 | AA2: 0 | AB2: 0 | AC2: 553.179811 | AD2: 4303.903686 | AE2: 6742.509749 | AF2: 61540.65319 | AG2: 2341.137702 | AH2: 1234.35833 | AI2: 0 | AJ2: 0 | AK2: 809.5278795 | AL2: 2706.251355 | AN2: 5.219542632 | AO2: 31093.24467 | AP2: 39770.432 | AQ2: 0 | AR2: 0 | AS2: 0 | AT2: 1285.76247 | AU2: 0 | AV2: 810.9333021 | AW2: 291.9855691 | AX2: 212.8988389 | AY2: 1151.712457 | AZ2: 0 | BB2: 8859.225579 | BC2: -2108.84042 | BD2: 64.52476143 | BE2: 10.73251649 | BF2: 941.8108054 | BG2: 751.3682651 | BH2: 38.43978376 | BI2: 0 | BJ2: 0 | BK2: 0 | BL2: 0 | BV2: 63309.08954 | CI2: 177005.5024 | CJ2: 8248.59366 | CO2: -1023.43123 | CP2: 9271.72503 | CQ2: 31 | CR2: -783.8616067 | CS2: 631.8140267 | CT2: 683.7510589 | CU2: 0 | CV2: 0 | CW2: 0 | CX2: 46.25095824 | CY2: -18.43086293 | CZ2: 329.2221979 | DA2: 0 | DB2: -15.6953608 | DC2: 382.7901904 | DD2: 5.85817535 | DE2: 0.06675753047 | DF2: 0.401351699 | DG2: 4.673600073 | DH2: 0 | DI2: -223.9202882 | DK2: 0 | DL2: 0 | DM2: 7.879933231 | DN2: 0.003873080348 | DO2: -41.92700176 | DP2: -0.1415924854 | DQ2: 0 | DR2: -2578.415417 | DU2: 6742.509749 | DV2: 0 | DW2: 38.03715491 | DX2: -0.4026288463 | DY2: -164.19825 | DZ2: -650.80097 | EA2: -859.23298 | EB2: 9922.526 | EC2: 1.355434781 | ED2: 8611.757536 | EE2: 9.029341935 | EF2: 1.501866246 | EG2: 131.7933087 | EH2: 105.1435268 | EI2: -1162.799098 | EJ2: -908.4484827 | EK2: 0 | EL2: 0 | EM2: 0 | EN2: -37.59283883 | EO2: 0 | EP2: 819.020873 | EQ2: 1986.993465 | ER2: 0 | ES2: -148.6653999 | ET2: 0 | EU2: 1.956793603 | EV2: 165 | EW2: 0 | EX2: 0 | EY2: 0 | FA2: 0 | FF2: 0 | FG2: 0 | FH2: 0 | FI2: 0
A3: 2256 | B3: Regular | C3: Azul | D3: A2 | E3: Industrial | F3: Não se aplica | G3: Não se aplica | H3: Não se aplica | I3: Fora ponta | J3: LIVRE | K3: 2021-07-01 | L3: 65151 | M3: 65151 | N3: 0 | O3: 0 | P3: 0 | Q3: 0 | R3: 9.52 | U3: 620237.52 | W3: 620237.52 | X3: 607207.32 | Y3: 0 | Z3: 0 | AA3: 0 | AB3: 0 | AC3: 4160.246782 | AD3: 32367.95903 | AE3: 50707.75166 | AI3: 0 | AJ3: 0 | AK3: 0 | AL3: 0 | AN3: 0 | AO3: 233840.0073 | AP3: 299097.7046 | AQ3: 0 | AR3: 0 | AU3: 0 | AV3: 0 | AW3: 0 | AZ3: 0 | BB3: 0 | BC3: -15577.03465 | BD3: 0 | BE3: 0 | BG3: 0 | BH3: 0 | BI3: 0 | BJ3: 0 | BK3: 0 | BL3: 0 | BV3: 0 | CI3: 607207.32 | CJ3: -13030.23 | CO3: -13030.2 | CP3: 0 | CQ3: 31 | CR3: 2794.272637 | CS3: 4751.623647 | CT3: 5142.221544 | CU3: 0 | CV3: 0 | CZ3: 2475.950065 | DA3: 0 | DB3: -118.0386069 | DE3: 0 | DF3: 0 | DG3: 0 | DH3: 0 | DI3: 0 | DK3: 0 | DL3: 0 | DN3: 0 | DO3: 0 | DP3: 0 | DQ3: 0 | DR3: -9457.484012 | DU3: 50707.75166 | DW3: 0 | DX3: 0 | DY3: 2606.04 | EA3: -15636.24 | EC3: 10.19368941 | EE3: 0 | EF3: 0 | EH3: 0 | EI3: -8744.952562 | EJ3: -6832.082085 | EK3: 0 | EL3: 0 | EO3: 0 | EP3: 0 | ER3: 0 | ET3: 0 | EV3: 165 | FA3: 0 | FF3: 0 | FG3: 0 | FH3: 0 | FI3: 0
A4: 2355 | B4: Regular | C4: Azul | D4: A2 | E4: Industrial | F4: Não se aplica | G4: Fonte incentivada | H4: Não se aplica | I4: Fora ponta | J4: LIVRE | K4: 2021-07-01 | L4: 28367 | M4: 12269.92601 | N4: 0 | O4: 0 | P4: 0 | Q4: 0 | R4: 9.52 | U4: 270053.84 | W4: 270053.84 | X4: 264380.44 | Y4: 0 | Z4: 0 | AA4: 0 | AB4: 0 | AC4: 1811.387706 | AD4: 14093.13585 | AE4: 22078.35323 | AI4: 0 | AJ4: 0 | AK4: 0 | AL4: 0 | AN4: 0 | AO4: 101814.853 | AP4: 130228.3094 | AQ4: 0 | AR4: 0 | AU4: 0 | AV4: 0 | AW4: 0 | AZ4: 0 | BB4: 0 | BC4: -6782.301758 | BD4: 0 | BE4: 0 | BG4: 0 | BH4: 0 | BI4: 0 | BJ4: 0 | BK4: 0 | BL4: 0 | BN4: 150024.7296 | BV4: 0 | CI4: 114355.7476 | CJ4: -2453.977975 | CO4: -5673.4 | CP4: 0 | CQ4: 31 | CR4: 1216.637226 | CS4: 2068.875504 | CT4: 2238.943355 | CU4: 0 | CV4: 0 | CZ4: 1078.038334 | DA4: 0 | DB4: -51.39447071 | DE4: 0 | DF4: 0 | DG4: 0 | DH4: 0 | DI4: 0 | DK4: 0 | DL4: 0 | DN4: 0 | DO4: 0 | DP4: 0 | DQ4: 0 | DR4: -4117.825497 | DU4: 22078.35323 | DW4: 0 | DX4: 0 | DY4: 1134.68 | EA4: -6808.08 | EC4: 4.438372206 | EE4: 0 | EF4: 0 | EH4: 0 | EI4: -3807.586519 | EJ4: -2974.715238 | EK4: 0 | EL4: 0 | EO4: 0 | EP4: 0 | ER4: 0 | ET4: 0 | EV4: 165 | FA4: 0 | FF4: 0 | FG4: 0 | FH4: 0 | FI4: 0
A5: 42 | B5: Regular | C5: Azul | D5: A2 | E5: Industrial | F5: Não se aplica | G5: Não se aplica | H5: Não se aplica | I5: Não se aplica | J5: CATIVO | K5: 2021-07-01 | L5: 0 | M5: 0 | N5: 0 | O5: 0 | P5: 0 | Q5: 0 | AA5: 0 | AZ5: 0 | BI5: 2425.19 | BJ5: 11171.41 | BK5: 78441.06 | BL5: 4 | CJ5: -0.03 | CO5: 0 | CP5: 0 | CQ5: 31 | DK5: 0 | EV5: 165 | FA5: 0 | FF5: 0 | FG5: 0 | FH5: 0 | FI5: 0
A6: 2258 | B6: Regular | C6: Azul | D6: A2 | E6: Industrial | F6: Não se aplica | G6: Não se aplica | H6: Não se aplica | I6: Não se aplica | J6: LIVRE | K6: 2021-07-01 | L6: 0 | M6: 0 | N6: 25680.066 | O6: 25680.066 | P6: 0 | Q6: 0 | S6: 55.39 | V6: 1422418.856 | W6: 1422418.856 | X6: 1484821.416 | Y6: 0 | Z6: 1033752.572 | AA6: 0 | AB6: 0 | AC6: 0 | AD6: 0 | AE6: 0 | AI6: 0 | AJ6: 0 | AK6: 1831.486869 | AL6: 238133.743 | AN6: 459.2881667 | AO6: 0 | AP6: 0 | AQ6: 0 | AR6: 0 | AU6: 0 | AV6: 71357.2234 | AW6: 25692.96319 | AZ6: 0 | BB6: 10178.6767 | BC6: 0 | BD6: 5677.788549 | BE6: 944.3965057 | BG6: 66115.86058 | BH6: 3382.468361 | BI6: 111634.84 | BJ6: 0 | BK6: 1266754.28 | BL6: 7 | BV6: 72738.04564 | CI6: 1484821.647 | CJ6: 62402.76166 | CO6: 62402.56038 | CP6: 0 | CQ6: 31 | CR6: -44643.67574 | CS6: 0 | CT6: 0 | CU6: 0 | CV6: 0 | CZ6: 0 | DA6: 0 | DB6: 0 | DE6: 5.874258713 | DF6: 35.31652082 | DG6: 411.2485251 | DH6: 0 | DI6: -19703.63035 | DK6: 0 | DL6: 0 | DN6: 0.008762509584 | DO6: -3689.322443 | DP6: -12.4592819 | DQ6: 0 | DR6: -21690.71173 | DV6: 0 | DW6: 3347.039459 | DX6: -35.42890206 | DY6: -44940.1155 | EA6: 107342.6759 | EC6: 0 | EE6: 794.5274512 | EF6: 132.1551414 | EH6: 9251.994107 | EI6: 0 | EJ6: 0 | EK6: 0 | EL6: 0 | EO6: 0 | EP6: 72068.8807 | ER6: 0 | ET6: 0 | EV6: 165 | FA6: 0 | FF6: 0 | FG6: 0 | FH6: 0 | FI6: 0
A7: 2357 | B7: Regular | C7: Azul | D7: A2 | E7: Industrial | F7: Não se aplica | G7: Fonte incentivada | H7: Não se aplica | I7: Não se aplica | J7: LIVRE | K7: 2021-07-01 | L7: 0 | M7: 0 | N7: 5792.496 | O7: 5792.496 | P7: 0 | Q7: 0 | S7: 55.39 | V7: 320846.3534 | W7: 320846.3534 | X7: 334922.1187 | Y7: 0 | Z7: 233177.2682 | AA7: 0 | AB7: 0 | AC7: 0 | AD7: 0 | AE7: 0 | AI7: 0 | AJ7: 0 | AK7: 413.1173323 | AL7: 53714.37728 | AN7: 103.598833 | AO7: 0 | AP7: 0 | AQ7: 0 | AR7: 0 | AU7: 0 | AV7: 16095.61405 | AW7: 5795.405141 | AZ7: 0 | BB7: 2295.942077 | BC7: 0 | BD7: 1280.704164 | BE7: 213.0217649 | BG7: 14913.35178 | BH7: 762.9627763 | BI7: 44098.3 | BJ7: 0 | BK7: 410190.6 | BL7: 6 | BV7: 16407.07771 | CI7: 334922.35 | CJ7: 14075.96656 | CO7: 14075.76528 | CP7: 0 | CQ7: 31 | CR7: -10070.00189 | CS7: 0 | CT7: 0 | CU7: 0 | CV7: 0 | CZ7: 0 | DA7: 0 | DB7: 0 | DE7: 1.325020742 | DF7: 7.966132391 | DG7: 92.76282377 | DH7: 0 | DI7: -4444.42783 | DK7: 0 | DL7: 0 | DN7: 0.00197650589 | DO7: -832.1779816 | DP7: -2.810364294 | DQ7: 0 | DR7: -4892.641668 | DV7: 0 | DW7: 754.9712948 | DX7: -7.991481542 | DY7: -10136.868 | EA7: 24212.63328 | EC7: 0 | EE7: 179.2167155 | EF7: 29.80942993 | EH7: 2086.915931 | EI7: 0 | EJ7: 0 | EK7: 0 | EL7: 0 | EO7: 0 | EP7: 16256.13825 | ER7: 0 | ET7: 0 | EV7: 165 | FA7: 0 | FF7: 0 | FG7: 0 | FH7: 0 | FI7: 0
A8: 40 | B8: Regular | C8: Azul | D8: A2 | E8: Industrial | F8: Não se aplica | G8: Não se aplica | H8: Não se aplica | I8: Ponta | J8: CATIVO | K8: 2021-07-01 | L8: 3784 | M8: 3784 | N8: 34.934 | O8: 34.934 | P8: 34.934 | Q8: 34.934 | R8: 13.82 | S8: 55.39 | T8: 392.1 | U8: 52294.88 | V8: 15632.61566 | W8: 67927.49566 | X8: 69059.57704 | Y8: 0 | Z8: 1406.270231 | AA8: 0 | AB8: 0 | AC8: 341.4967394 | AD8: 5888.026832 | AE8: 6825.042725 | AF8: 12670.55201 | AG8: 280.2411757 | AH8: 147.756379 | AI8: 0 | AJ8: 0 | AK8: 96.90290517 | AL8: 323.9463706 | AN8: 0.6247948434 | AO8: 17260.58738 | AP8: 21988.53504 | AQ8: 0 | AR8: 0 | AS8: 0 | AT8: 153.9096081 | AU8: 0 | AV8: 97.07113845 | AW8: 34.95154476 | AX8: 25.48462692 | AY8: 137.8634212 | AZ8: 0 | BB8: 1802.689995 | BC8: -1151.696903 | BD8: 7.723806674 | BE8: 1.284714281 | BF8: 112.7375665 | BG8: 89.9410256 | BH8: 4.601356933 | BI8: 0 | BJ8: 0 | BK8: 0 | BL8: 0 | BV8: 12882.23912 | CI8: 69057.5708 | CJ8: 1130.04514 | CO8: -671.91038 | CP8: 1803.99176 | CQ8: 31 | CR8: 185.2806537 | CS8: 350.7347443 | CT8: 378.0367313 | CU8: 0 | CV8: 0 | CW8: 0 | CX8: 5.53637785 | CY8: -2.206229345 | CZ8: 450.397889 | DA8: 0 | DB8: -9.689280826 | DC8: 78.81234214 | DD8: 0.7012410873 | DE8: 0.007991075797 | DF8: 0.04804299717 | DG8: 0.5594438884 | DH8: 0 | DI8: -26.80392733 | DK8: 0 | DL8: 0 | DM8: 0.9432515445 | DN8: 0.0004636192862 | DO8: -5.018787343 | DP8: -0.01694904342 | DQ8: 0 | DR8: -1036.996925 | DU8: 6825.042725 | DV8: 0 | DW8: 4.553161057 | DX8: -0.04819587553 | DY8: 317.2655 | DZ8: -125.7624 | EA8: -989.17588 | EB8: 1929.75416 | EC8: 1.372026239 | ED8: 1773.067331 | EE8: 1.080839199 | EF8: 0.1797778756 | EG8: 15.7760527 | EH8: 12.58599422 | EI8: -642.8959261 | EJ8: -504.3010013 | EK8: 0 | EL8: 0 | EM8: 0 | EN8: -4.499975095 | EO8: 0 | EP8: 98.03924485 | EQ8: 237.8490527 | ER8: 0 | ES8: -17.79569241 | ET8: 0 | EU8: 0.2342340391 | EV8: 165 | EW8: 0 | EX8: 0 | EY8: 0 | FA8: 0 | FF8: 0 | FG8: 0 | FH8: 0 | FI8: 0
A9: 2254 | B9: Regular | C9: Azul | D9: A2 | E9: Industrial | F9: Não se aplica | G9: Não se aplica | H9: Não se aplica | I9: Ponta | J9: LIVRE | K9: 2021-07-01 | L9: 40990 | M9: 40990 | N9: 0 | O9: 0 | P9: 0 | Q9: 0 | R9: 13.82 | U9: 566481.8 | W9: 566481.8 | X9: 558283.8 | Y9: 0 | Z9: 0 | AA9: 0 | AB9: 0 | AC9: 3699.247185 | AD9: 63781.77057 | AE9: 73931.95066 | AI9: 0 | AJ9: 0 | AK9: 0 | AL9: 0 | AN9: 0 | AO9: 186974.4918 | AP9: 238189.7598 | AQ9: 0 | AR9: 0 | AU9: 0 | AV9: 0 | AW9: 0 | AZ9: 0 | BB9: 0 | BC9: -12426.95615 | BD9: 0 | BE9: 0 | BG9: 0 | BH9: 0 | BI9: 0 | BJ9: 0 | BK9: 0 | BL9: 0 | BV9: 0 | CI9: 558283.8 | CJ9: -8198.03 | CO9: -8198 | CP9: 0 | CQ9: 31 | CR9: 4028.185006 | CS9: 3799.317434 | CT9: 4095.064909 | CU9: 0 | CV9: 0 | CZ9: 4878.913708 | DA9: 0 | DB9: -104.9586736 | DE9: 0 | DF9: 0 | DG9: 0 | DH9: 0 | DI9: 0 | DK9: 0 | DL9: 0 | DN9: 0 | DO9: 0 | DP9: 0 | DQ9: 0 | DR9: -8640.152371 | DU9: 73931.95066 | DW9: 0 | DX9: 0 | DY9: 4099 | EA9: -12297 | EC9: 14.86240896 | EE9: 0 | EF9: 0 | EH9: 0 | EI9: -6964.139538 | EJ9: -5462.816608 | EK9: 0 | EL9: 0 | EO9: 0 | EP9: 0 | ER9: 0 | ET9: 0 | EV9: 165 | FA9: 0 | FF9: 0 | FG9: 0 | FH9: 0 | FI9: 0
A10: 2353 | B10: Regular | C10: Azul | D10: A2 | E10: Industrial | F10: Não se aplica | G10: Fonte incentivada | H10: Não se aplica | I10: Ponta | J10: LIVRE | K10: 2021-07-01 | L10: 24397 | M10: 13005.95141 | N10: 0 | O10: 0 | P10: 0 | Q10: 0 | R10: 13.82 | U10: 337166.54 | W10: 337166.54 | X10: 332287.14 | Y10: 0 | Z10: 0 | AA10: 0 | AB10: 0 | AC10: 2201.769543 | AD10: 37962.52395 | AE10: 44003.84972 | AI10: 0 | AJ10: 0 | AK10: 0 | AL10: 0 | AN10: 0 | AO10: 111286.0863 | AP10: 141769.1039 | AQ10: 0 | AR10: 0 | AU10: 0 | AV10: 0 | AW10: 0 | AZ10: 0 | BB10: 0 | BC10: -7396.449112 | BD10: 0 | BE10: 0 | BG10: 0 | BH10: 0 | BI10: 0 | BJ10: 0 | BK10: 0 | BL10: 0 | BN10: 155146.0818 | BV10: 0 | CI10: 177141.039 | CJ10: -2601.239444 | CO10: -4879.4 | CP10: 0 | CQ10: 31 | CR10: 2397.551344 | CS10: 2261.33075 | CT10: 2437.357858 | CU10: 0 | CV10: 0 | CZ10: 2903.89992 | DA10: 0 | DB10: -62.47076753 | DE10: 0 | DF10: 0 | DG10: 0 | DH10: 0 | DI10: 0 | DK10: 0 | DL10: 0 | DN10: 0 | DO10: 0 | DP10: 0 | DQ10: 0 | DR10: -5142.566416 | DU10: 44003.84972 | DW10: 0 | DX10: 0 | DY10: 2439.7 | EA10: -7319.1 | EC10: 8.846015893 | EE10: 0 | EF10: 0 | EH10: 0 | EI10: -4145.013718 | EJ10: -3251.435394 | EK10: 0 | EL10: 0 | EO10: 0 | EP10: 0 | ER10: 0 | ET10: 0 | EV10: 165 | FA10: 0 | FF10: 0 | FG10: 0 | FH10: 0 | FI10: 0
A11: 2407 | B11: Regular | C11: Geração | D11: A2 | E11: Não se aplica | F11: Não se aplica | G11: Não se aplica | H11: UHE CANOAS I | I11: Não se aplica | J11: GERAÇÃO | K11: 2021-07-01 | L11: 81034 | M11: 81034 | N11: 0 | O11: 0 | P11: 0 | Q11: 0 | R11: 4.96 | U11: 401928.64 | W11: 401928.64 | X11: 398687.28 | Y11: 0 | Z11: 0 | AA11: 0 | AB11: 0 | AC11: 1158.7862 | AD11: 0 | AE11: 210461.5048 | AI11: 0 | AJ11: 0 | AK11: 16595.7632 | AL11: 0 | AN11: 6571.8574 | AO11: 153616.1538 | AP11: 0 | AQ11: 13856.814 | AR11: 0 | AU11: 0 | AV11: 0 | AW11: 0 | AZ11: 0 | BB11: 0 | BC11: -4922.112262 | BD11: 0 | BE11: 0 | BG11: 0 | BH11: 0 | BI11: 7776.58 | BJ11: 0 | BK11: 0 | BL11: 0 | BV11: 0 | CI11: 398687.28 | CJ11: -3241.39 | CO11: -3241.36 | CP11: 0 | CQ11: 31 | CR11: 1214.125791 | CS11: 3121.476762 | CT11: 0 | CU11: 4438.096829 | CV11: 0 | CZ11: 0 | DA11: 0 | DB11: -32.87821995 | DE11: 0 | DF11: 0 | DG11: 0 | DH11: 0 | DI11: 0 | DK11: 0 | DL11: 0 | DN11: 0.07940026031 | DO11: 0 | DP11: -178.2772339 | DQ11: 0 | DR11: -6134.371747 | DU11: 210461.5048 | DW11: 0 | DX11: 0 | DY11: 1620.68 | EA11: -4862.04 | EC11: 42.30870317 | EE11: 0 | EF11: 0 | EH11: 0 | EI11: 0 | EJ11: -4488.189102 | EK11: -433.9231604 | EL11: 0 | EO11: 0 | EP11: 0 | ER11: 0 | ET11: 0 | EV11: 165 | FA11: 0 | FF11: 0 | FG11: 0 | FH11: 0 | FI11: 0
A12: 2411 | B12: Regular | C12: Geração | D12: A2 | E12: Não se aplica | F12: Não se aplica | G12: Não se aplica | H12: UTE MARACAI | I12: Não se aplica | J12: GERAÇÃO | K12: 2021-07-01 | L12: 23794 | M12: 11897 | N12: 0 | O12: 0 | P12: 0 | Q12: 0 | R12: 4.64 | U12: 110404.16 | W12: 110404.16 | X12: 109452.4 | Y12: 0 | Z12: 0 | AA12: 0 | AB12: 0 | AC12: 316.4602 | AD12: 0 | AE12: 57555.3066 | AI12: 0 | AJ12: 0 | AK12: 4537.5158 | AL12: 0 | AN12: 1796.447 | AO12: 42010.6864 | AP12: 0 | AQ12: 4068.774 | AR12: 0 | AU12: 0 | AV12: 0 | AW12: 0 | AZ12: 0 | BB12: 0 | BC12: -1354.835164 | BD12: 0 | BE12: 0 | BG12: 0 | BH12: 0 | BI12: 1077 | BJ12: 0 | BK12: 0 | BL12: 0 | BO12: 54726.2 | BV12: 0 | CI12: 54726.2 | CJ12: -475.91 | CO12: -951.76 | CP12: 0 | CQ12: 31 | CR12: 417.3038278 | CS12: 853.6561952 | CT12: 0 | CU12: 1303.157637 | CV12: 0 | CZ12: 0 | DA12: 0 | DB12: -8.978919545 | DE12: 0 | DF12: 0 | DG12: 0 | DH12: 0 | DI12: 0 | DK12: 0 | DL12: 0 | DN12: 0.02170915138 | DO12: 0 | DP12: -48.73288973 | DQ12: 0 | DR12: -1681.819904 | DU12: 57555.3066 | DW12: 0 | DX12: 0 | DY12: 475.88 | EA12: -1427.64 | EC12: 11.57024124 | EE12: 0 | EF12: 0 | EH12: 0 | EI12: 0 | EJ12: -1227.422378 | EK12: -127.4127857 | EL12: 0 | EO12: 0 | EP12: 0 | ER12: 0 | ET12: 0 | EV12: 165 | FA12: 0 | FF12: 0 | FG12: 0 | FH12: 0 | FI12: 0
A13: 2417 | B13: Regular | C13: Geração | D13: A2 | E13: Não se aplica | F13: Não se aplica | G13: Não se aplica | H13: UHE SALTO GRANDE (LN GARCEZ-GP) | I13: Não se aplica | J13: GERAÇÃO | K13: 2021-07-01 | L13: 73300 | M13: 73300 | N13: 0 | O13: 0 | P13: 0 | Q13: 0 | R13: 4.53 | U13: 332049 | W13: 332049 | X13: 329117 | Y13: 0 | Z13: 0 | AA13: 0 | AB13: 0 | AC13: 952.9 | AD13: 0 | AE13: 173171.25 | AI13: 0 | AJ13: 0 | AK13: 13655.79 | AL13: 0 | AN13: 5409.54 | AO13: 126398.52 | AP13: 0 | AQ13: 12534.3 | AR13: 0 | AU13: 0 | AV13: 0 | AW13: 0 | AZ13: 0 | BB13: 0 | BC13: -4085.482905 | BD13: 0 | BE13: 0 | BG13: 0 | BH13: 0 | BI13: 6009.13 | BJ13: 0 | BK13: 0 | BL13: 0 | BV13: 0 | CI13: 329117 | CJ13: -2932.03 | CO13: -2932 | CP13: 0 | CQ13: 31 | CR13: 1344.438724 | CS13: 2568.415061 | CT13: 0 | CU13: 4014.518567 | CV13: 0 | CZ13: 0 | DA13: 0 | DB13: -27.03661451 | DE13: 0 | DF13: 0 | DG13: 0 | DH13: 0 | DI13: 0 | DK13: 0 | DL13: 0 | DN13: 0.06533434269 | DO13: 0 | DP13: -146.746615 | DQ13: 0 | DR13: -5064.777009 | DU13: 173171.25 | DW13: 0 | DX13: 0 | DY13: 1466 | EA13: -4398 | EC13: 34.81230936 | EE13: 0 | EF13: 0 | EH13: 0 | EI13: 0 | EJ13: -3692.973987 | EK13: -392.508918 | EL13: 0 | EO13: 0 | EP13: 0 | ER13: 0 | ET13: 0 | EV13: 165 | FA13: 0 | FF13: 0 | FG13: 0 | FH13: 0 | FI13: 0
A14: 2431 | B14: Regular | C14: Geração | D14: A2 | E14: Não se aplica | F14: Não se aplica | G14: Não se aplica | H14: UHE CANOAS II | I14: Não se aplica | J14: GERAÇÃO | K14: 2021-07-01 | L14: 71305 | M14: 71305 | N14: 0 | O14: 0 | P14: 0 | Q14: 0 | R14: 4.82 | U14: 343690.1 | W14: 343690.1 | X14: 340124.85 | Y14: 0 | Z14: 0 | AA14: 0 | AB14: 0 | AC14: 984.009 | AD14: 0 | AE14: 179474.685 | AI14: 0 | AJ14: 0 | AK14: 14154.0425 | AL14: 0 | AN14: 5604.573 | AO14: 131001.546 | AP14: 0 | AQ14: 12193.155 | AR14: 0 | AU14: 0 | AV14: 0 | AW14: 0 | AZ14: 0 | BB14: 0 | BC14: -4209.286211 | BD14: 0 | BE14: 0 | BG14: 0 | BH14: 0 | BI14: 6455.06 | BJ14: 0 | BK14: 0 | BL14: 0 | BV14: 0 | CI14: 340124.85 | CJ14: -3565.28 | CO14: -3565.25 | CP14: 0 | CQ14: 31 | CR14: 1150.373194 | CS14: 2661.948445 | CT14: 0 | CU14: 3905.25575 | CV14: 0 | CZ14: 0 | DA14: 0 | DB14: -27.9192696 | DE14: 0 | DF14: 0 | DG14: 0 | DH14: 0 | DI14: 0 | DK14: 0 | DL14: 0 | DN14: 0.06771816669 | DO14: 0 | DP14: -152.0373482 | DQ14: 0 | DR14: -5236.942101 | DU14: 179474.685 | DW14: 0 | DX14: 0 | DY14: 713.05 | EA14: -4278.3 | EC14: 36.07947773 | EE14: 0 | EF14: 0 | EH14: 0 | EI14: 0 | EJ14: -3827.460176 | EK14: -381.8260354 | EL14: 0 | EO14: 0 | EP14: 0 | ER14: 0 | ET14: 0 | EV14: 165 | FA14: 0 | FF14: 0 | FG14: 0 | FH14: 0 | FI14: 0
A15: 2435 | B15: Regular | C15: Geração | D15: A2 | E15: Não se aplica | F15: Não se aplica | G15: Dupla contratação | H15: UTE SAO JOSE ESTIVA | I15: Não se aplica | J15: GERAÇÃO | K15: 2021-07-01 | L15: 22533 | M15: 11266.5 | N15: 0 | O15: 0 | P15: 0 | Q15: 0 | R15: 4.59 | U15: 103426.47 | W15: 103426.47 | X15: 102525.15 | Y15: 0 | Z15: 0 | AA15: 0 | AB15: 0 | AC15: 295.1823 | AD15: 0 | AE15: 53966.535 | AI15: 0 | AJ15: 0 | AK15: 4256.4837 | AL15: 0 | AN15: 1685.4684 | AO15: 39392.1906 | AP15: 0 | AQ15: 3853.143 | AR15: 0 | AU15: 0 | AV15: 0 | AW15: 0 | AZ15: 0 | BB15: 0 | BC15: -1271.578373 | BD15: 0 | BE15: 0 | BG15: 0 | BH15: 0 | BI15: 980.54 | BJ15: 0 | BK15: 0 | BL15: 0 | BO15: 51262.575 | BV15: 0 | CI15: 51262.575 | CJ15: -450.69 | CO15: -901.32 | CP15: 0 | CQ15: 31 | CR15: 402.8961588 | CS15: 800.4484199 | CT15: 0 | CU15: 1234.094773 | CV15: 0 | CZ15: 0 | DA15: 0 | DB15: -8.375202072 | DE15: 0 | DF15: 0 | DG15: 0 | DH15: 0 | DI15: 0 | DK15: 0 | DL15: 0 | DN15: 0.02036459001 | DO15: 0 | DP15: -45.72233174 | DQ15: 0 | DR15: -1577.569865 | DU15: 53966.535 | DW15: 0 | DX15: 0 | DY15: 450.66 | EA15: -1351.98 | EC15: 10.84879685 | EE15: 0 | EF15: 0 | EH15: 0 | EI15: 0 | EJ15: -1150.918026 | EK15: -120.6603472 | EL15: 0 | EO15: 0 | EP15: 0 | ER15: 0 | ET15: 0 | EV15: 165 | FA15: 0 | FF15: 0 | FG15: 0 | FH15: 0 | FI15: 0
A16: 2439 | B16: Regular | C16: Geração | D16: A2 | E16: Não se aplica | F16: Não se aplica | G16: Não se aplica | H16: UTE AGUA BONITA | I16: Não se aplica | J16: GERAÇÃO | K16: 2021-07-01 | L16: 13479 | M16: 6739.5 | N16: 0 | O16: 0 | P16: 0 | Q16: 0 | R16: 4.33 | U16: 58364.07 | W16: 58364.07 | X16: 57959.7 | Y16: 0 | Z16: 0 | AA16: 0 | AB16: 0 | AC16: 167.1396 | AD16: 0 | AE16: 30369.5349 | AI16: 0 | AJ16: 0 | AK16: 2395.2183 | AL16: 0 | AN16: 948.9216 | AO16: 22167.5634 | AP16: 0 | AQ16: 2304.909 | AR16: 0 | AU16: 0 | AV16: 0 | AW16: 0 | AZ16: 0 | BB16: 0 | BC16: -719.8454017 | BD16: 0 | BE16: 0 | BG16: 0 | BH16: 0 | BI16: 843.17 | BJ16: 0 | BK16: 0 | BL16: 0 | BO16: 28979.85 | BV16: 0 | CI16: 28979.85 | CJ16: -202.215 | CO16: -404.37 | CP16: 0 | CQ16: 31 | CR16: 268.3220106 | CS16: 450.4443857 | CT16: 0 | CU16: 738.2223161 | CV16: 0 | CZ16: 0 | DA16: 0 | DB16: -4.742248855 | DE16: 0 | DF16: 0 | DG16: 0 | DH16: 0 | DI16: 0 | DK16: 0 | DL16: 0 | DN16: 0.01145960895 | DO16: 0 | DP16: -25.74175119 | DQ16: 0 | DR16: -889.8721507 | DU16: 30369.5349 | DW16: 0 | DX16: 0 | DY16: 269.58 | EA16: -673.95 | EC16: 6.105133757 | EE16: 0 | EF16: 0 | EH16: 0 | EI16: 0 | EJ16: -647.6676704 | EK16: -72.17773132 | EL16: 0 | EO16: 0 | EP16: 0 | ER16: 0 | ET16: 0 | EV16: 165 | FA16: 0 | FF16: 0 | FG16: 0 | FH16: 0 | FI16: 0
A17: 2441 | B17: Regular | C17: Geração | D17: A2 | E17: Não se aplica | F17: Não se aplica | G17: Não se aplica | H17: BRANCO PERES | I17: Não se aplica | J17: GERAÇÃO | K17: 2021-07-01 | L17: 8348 | M17: 4174 | N17: 0 | O17: 0 | P17: 0 | Q17: 0 | R17: 5.2 | U17: 43409.6 | W17: 43409.6 | X17: 42992.2 | Y17: 0 | Z17: 0 | AA17: 0 | AB17: 0 | AC17: 124.3852 | AD17: 0 | AE17: 22725.7604 | AI17: 0 | AJ17: 0 | AK17: 1792.3156 | AL17: 0 | AN17: 709.58 | AO17: 16588.3108 | AP17: 0 | AQ17: 1427.508 | AR17: 0 | AU17: 0 | AV17: 0 | AW17: 0 | AZ17: 0 | BB17: 0 | BC17: -529.361265 | BD17: 0 | BE17: 0 | BG17: 0 | BH17: 0 | BI17: 841.7 | BJ17: 0 | BK17: 0 | BL17: 0 | BO17: 21496.1 | BV17: 0 | CI17: 21496.1 | CJ17: -208.73 | CO17: -417.4 | CP17: 0 | CQ17: 31 | CR17: 110.1621042 | CS17: 337.0740994 | CT17: 0 | CU17: 457.2060164 | CV17: 0 | CZ17: 0 | DA17: 0 | DB17: -3.529179035 | DE17: 0 | DF17: 0 | DG17: 0 | DH17: 0 | DI17: 0 | DK17: 0 | DL17: 0 | DN17: 0.008575099768 | DO17: 0 | DP17: -19.24904208 | DQ17: 0 | DR17: -661.3483656 | DU17: 22725.7604 | DW17: 0 | DX17: 0 | DY17: 83.48 | EA17: -500.88 | EC17: 4.568519322 | EE17: 0 | EF17: 0 | EH17: 0 | EI17: 0 | EJ17: -484.6591579 | EK17: -44.70210706 | EL17: 0 | EO17: 0 | EP17: 0 | ER17: 0 | ET17: 0 | EV17: 165 | FA17: 0 | FF17: 0 | FG17: 0 | FH17: 0 | FI17: 0
A18: 2442 | B18: Regular | C18: Geração | D18: A2 | E18: Não se aplica | F18: Não se aplica | G18: Não se aplica | H18: UTE COCAL | I18: Não se aplica | J18: GERAÇÃO | K18: 2021-07-01 | L18: 25000 | M18: 12500 | N18: 0 | O18: 0 | P18: 0 | Q18: 0 | R18: 4.6 | U18: 115000 | W18: 115000 | X18: 114000 | Y18: 0 | Z18: 0 | AA18: 0 | AB18: 0 | AC18: 330 | AD18: 0 | AE18: 60012.5 | AI18: 0 | AJ18: 0 | AK18: 4732.5 | AL18: 0 | AN18: 1875 | AO18: 43802.5 | AP18: 0 | AQ18: 4275 | AR18: 0 | AU18: 0 | AV18: 0 | AW18: 0 | AZ18: 0 | BB18: 0 | BC18: -1413.644341 | BD18: 0 | BE18: 0 | BG18: 0 | BH18: 0 | BI18: 1121.87 | BJ18: 0 | BK18: 0 | BL18: 0 | BO18: 57000 | BV18: 0 | CI18: 57000 | CJ18: -500.03 | CO18: -1000 | CP18: 0 | CQ18: 31 | CR18: 444.9309069 | CS18: 890.0658069 | CT18: 0 | CU18: 1369.208243 | CV18: 0 | CZ18: 0 | DA18: 0 | DB18: -9.363084046 | DE18: 0 | DF18: 0 | DG18: 0 | DH18: 0 | DI18: 0 | DK18: 0 | DL18: 0 | DN18: 0.0226420278 | DO18: 0 | DP18: -50.86382635 | DQ18: 0 | DR18: -1754.138874 | DU18: 60012.5 | DW18: 0 | DX18: 0 | DY18: 500 | EA18: -1500 | EC18: 12.06420648 | EE18: 0 | EF18: 0 | EH18: 0 | EI18: 0 | EJ18: -1279.773632 | EK18: -133.8707087 | EL18: 0 | EO18: 0 | EP18: 0 | ER18: 0 | ET18: 0 | EV18: 165 | FA18: 0 | FF18: 0 | FG18: 0 | FH18: 0 | FI18: 0
A19: 2444 | B19: Regular | C19: Geração | D19: A2 | E19: Não se aplica | F19: Não se aplica | G19: Dupla contratação | H19: UTE CATANDUVA I | I19: Não se aplica | J19: GERAÇÃO | K19: 2021-07-01 | L19: 23544 | M19: 11772 | N19: 0 | O19: 0 | P19: 0 | Q19: 0 | R19: 3.9 | U19: 91821.6 | W19: 91821.6 | X19: 91115.28 | Y19: 0 | Z19: 0 | AA19: 0 | AB19: 0 | AC19: 261.3384 | AD19: 0 | AE19: 47561.2344 | AI19: 0 | AJ19: 0 | AK19: 3750.5592 | AL19: 0 | AN19: 1485.6264 | AO19: 34715.628 | AP19: 0 | AQ19: 4026.024 | AR19: 0 | AU19: 0 | AV19: 0 | AW19: 0 | AZ19: 0 | BB19: 0 | BC19: -1140.357404 | BD19: 0 | BE19: 0 | BG19: 0 | BH19: 0 | BI19: 841.58 | BJ19: 0 | BK19: 0 | BL19: 0 | BO19: 45557.64 | BV19: 0 | CI19: 45557.64 | CJ19: -353.19 | CO19: -706.32 | CP19: 0 | CQ19: 31 | CR19: 547.256263 | CS19: 705.4207739 | CT19: 0 | CU19: 1289.465555 | CV19: 0 | CZ19: 0 | DA19: 0 | DB19: -7.414949708 | DE19: 0 | DF19: 0 | DG19: 0 | DH19: 0 | DI19: 0 | DK19: 0 | DL19: 0 | DN19: 0.01794406038 | DO19: 0 | DP19: -40.30114305 | DQ19: 0 | DR19: -1399.931917 | DU19: 47561.2344 | DW19: 0 | DX19: 0 | DY19: 470.88 | EA19: -1177.2 | EC19: 9.561150628 | EE19: 0 | EF19: 0 | EH19: 0 | EI19: 0 | EJ19: -1014.283325 | EK19: -126.0740787 | EL19: 0 | EO19: 0 | EP19: 0 | ER19: 0 | ET19: 0 | EV19: 165 | FA19: 0 | FF19: 0 | FG19: 0 | FH19: 0 | FI19: 0
A20: 2446 | B20: Regular | C20: Geração | D20: A2 | E20: Não se aplica | F20: Não se aplica | G20: Dupla contratação | H20: UTE DECASA | I20: Não se aplica | J20: GERAÇÃO | K20: 2021-07-01 | L20: 19626 | M20: 9813 | N20: 0 | O20: 0 | P20: 0 | Q20: 0 | R20: 4.64 | U20: 91064.64 | W20: 91064.64 | X20: 90279.6 | Y20: 0 | Z20: 0 | AA20: 0 | AB20: 0 | AC20: 261.0258 | AD20: 0 | AE20: 47557.7232 | AI20: 0 | AJ20: 0 | AK20: 3750.5286 | AL20: 0 | AN20: 1485.6882 | AO20: 34712.5062 | AP20: 0 | AQ20: 3356.046 | AR20: 0 | AU20: 0 | AV20: 0 | AW20: 0 | AZ20: 0 | BB20: 0 | BC20: -1119.285977 | BD20: 0 | BE20: 0 | BG20: 0 | BH20: 0 | BI20: 892.17 | BJ20: 0 | BK20: 0 | BL20: 0 | BO20: 45139.8 | BV20: 0 | CI20: 45139.8 | CJ20: -392.55 | CO20: -785.04 | CP20: 0 | CQ20: 31 | CR20: 342.9401347 | CS20: 705.357339 | CT20: 0 | CU20: 1074.883239 | CV20: 0 | CZ20: 0 | DA20: 0 | DB20: -7.406080314 | DE20: 0 | DF20: 0 | DG20: 0 | DH20: 0 | DI20: 0 | DK20: 0 | DL20: 0 | DN20: 0.01794391397 | DO20: 0 | DP20: -40.30281953 | DQ20: 0 | DR20: -1389.609487 | DU20: 47557.7232 | DW20: 0 | DX20: 0 | DY20: 392.52 | EA20: -1177.56 | EC20: 9.560444778 | EE20: 0 | EF20: 0 | EH20: 0 | EI20: 0 | EJ20: -1014.192116 | EK20: -105.0938612 | EL20: 0 | EO20: 0 | EP20: 0 | ER20: 0 | ET20: 0 | EV20: 165 | FA20: 0 | FF20: 0 | FG20: 0 | FH20: 0 | FI20: 0
A21: 2450 | B21: Regular | C21: Geração | D21: A2 | E21: Não se aplica | F21: Não se aplica | G21: Dupla contratação | H21: UTE QUATA | I21: Não se aplica | J21: GERAÇÃO | K21: 2021-07-01 | L21: 15319 | M21: 7659.5 | N21: 0 | O21: 0 | P21: 0 | Q21: 0 | R21: 4.42 | U21: 67709.98 | W21: 67709.98 | X21: 67097.22 | Y21: 0 | Z21: 0 | AA21: 0 | AB21: 0 | AC21: 193.0194 | AD21: 0 | AE21: 35245.9552 | AI21: 0 | AJ21: 0 | AK21: 2778.8666 | AL21: 0 | AN21: 1099.9042 | AO21: 25726.7286 | AP21: 0 | AQ21: 2619.549 | AR21: 0 | AU21: 0 | AV21: 0 | AW21: 0 | AZ21: 0 | BB21: 0 | BC21: -833.6860896 | BD21: 0 | BE21: 0 | BG21: 0 | BH21: 0 | BI21: 1611.97 | BJ21: 0 | BK21: 0 | BL21: 0 | BO21: 33548.61 | BV21: 0 | CI21: 33548.61 | CJ21: -306.41 | CO21: -612.76 | CP21: 0 | CQ21: 31 | CR21: 294.6034222 | CS21: 522.7665419 | CT21: 0 | CU21: 838.9960427 | CV21: 0 | CZ21: 0 | DA21: 0 | DB21: -5.476535954 | DE21: 0 | DF21: 0 | DG21: 0 | DH21: 0 | DI21: 0 | DK21: 0 | DL21: 0 | DN21: 0.01329512411 | DO21: 0 | DP21: -29.83751266 | DQ21: 0 | DR21: -1031.858409 | DU21: 35245.9552 | DW21: 0 | DX21: 0 | DY21: 153.19 | EA21: -765.95 | EC21: 7.085431885 | EE21: 0 | EF21: 0 | EH21: 0 | EI21: 0 | EJ21: -751.6554742 | EK21: -82.03061548 | EL21: 0 | EO21: 0 | EP21: 0 | ER21: 0 | ET21: 0 | EV21: 165 | FA21: 0 | FF21: 0 | FG21: 0 | FH21: 0 | FI21: 0
A22: 2452 | B22: Regular | C22: Geração | D22: A2 | E22: Não se aplica | F22: Não se aplica | G22: Dupla contratação | H22: UTE UFA | I22: Não se aplica | J22: GERAÇÃO | K22: 2021-07-01 | L22: 4747 | M22: 2373.5 | N22: 0 | O22: 0 | P22: 0 | Q22: 0 | R22: 5.1 | U22: 24209.7 | W22: 24209.7 | X22: 23972.35 | Y22: 0 | Z22: 0 | AA22: 0 | AB22: 0 | AC22: 69.7809 | AD22: 0 | AE22: 12678.2876 | AI22: 0 | AJ22: 0 | AK22: 999.7182 | AL22: 0 | AN22: 395.8998 | AO22: 9254.2765 | AP22: 0 | AQ22: 811.737 | AR22: 0 | AU22: 0 | AV22: 0 | AW22: 0 | AZ22: 0 | BB22: 0 | BC22: -295.8007194 | BD22: 0 | BE22: 0 | BG22: 0 | BH22: 0 | BI22: 981.7 | BJ22: 0 | BK22: 0 | BL22: 0 | BO22: 11986.175 | BV22: 0 | CI22: 11986.175 | CJ22: -118.705 | CO22: -237.35 | CP22: 0 | CQ22: 31 | CR22: 66.12561308 | CS22: 188.0466887 | CT22: 0 | CU22: 259.9852611 | CV22: 0 | CZ22: 0 | DA22: 0 | DB22: -1.979892217 | DE22: 0 | DF22: 0 | DG22: 0 | DH22: 0 | DI22: 0 | DK22: 0 | DL22: 0 | DN22: 0.004783021086 | DO22: 0 | DP22: -10.73972196 | DQ22: 0 | DR22: -369.1915055 | DU22: 12678.2876 | DW22: 0 | DX22: 0 | DY22: 47.47 | EA22: -284.82 | EC22: 2.548693678 | EE22: 0 | EF22: 0 | EH22: 0 | EI22: 0 | EJ22: -270.3813492 | EK22: -25.41937017 | EL22: 0 | EO22: 0 | EP22: 0 | ER22: 0 | ET22: 0 | EV22: 165 | FA22: 0 | FF22: 0 | FG22: 0 | FH22: 0 | FI22: 0
A23: 2454 | B23: Regular | C23: Geração | D23: A2 | E23: Não se aplica | F23: Não se aplica | G23: Dupla contratação | H23: UTE SANTA ISABEL | I23: Não se aplica | J23: GERAÇÃO | K23: 2021-07-01 | L23: 19475 | M23: 9737.5 | N23: 0 | O23: 0 | P23: 0 | Q23: 0 | R23: 4.56 | U23: 88806 | W23: 88806 | X23: 88027 | Y23: 0 | Z23: 0 | AA23: 0 | AB23: 0 | AC23: 253.175 | AD23: 0 | AE23: 46284.285 | AI23: 0 | AJ23: 0 | AK23: 3649.615 | AL23: 0 | AN23: 1445.045 | AO23: 33783.2825 | AP23: 0 | AQ23: 3330.225 | AR23: 0 | AU23: 0 | AV23: 0 | AW23: 0 | AZ23: 0 | BB23: 0 | BC23: -1091.328354 | BD23: 0 | BE23: 0 | BG23: 0 | BH23: 0 | BI23: 1138.22 | BJ23: 0 | BK23: 0 | BL23: 0 | BO23: 44013.5 | BV23: 0 | CI23: 44013.5 | CJ23: -389.53 | CO23: -779 | CP23: 0 | CQ23: 31 | CR23: 353.3753231 | CS23: 686.4755345 | CT23: 0 | CU23: 1066.613221 | CV23: 0 | CZ23: 0 | DA23: 0 | DB23: -7.183329707 | DE23: 0 | DF23: 0 | DG23: 0 | DH23: 0 | DI23: 0 | DK23: 0 | DL23: 0 | DN23: 0.01746110602 | DO23: 0 | DP23: -39.20027624 | DQ23: 0 | DR23: -1353.347288 | DU23: 46284.285 | DW23: 0 | DX23: 0 | DY23: 389.5 | EA23: -1168.5 | EC23: 9.304447754 | EE23: 0 | EF23: 0 | EH23: 0 | EI23: 0 | EJ23: -987.0430719 | EK23: -104.2852821 | EL23: 0 | EO23: 0 | EP23: 0 | ER23: 0 | ET23: 0 | EV23: 165 | FA23: 0 | FF23: 0 | FG23: 0 | FH23: 0 | FI23: 0
A24: 2456 | B24: Regular | C24: Geração | D24: A2 | E24: Não se aplica | F24: Não se aplica | G24: Dupla contratação | H24: UTE CANAA | I24: Não se aplica | J24: GERAÇÃO | K24: 2021-07-01 | L24: 15726 | M24: 7863 | N24: 0 | O24: 0 | P24: 0 | Q24: 0 | R24: 4.6 | U24: 72339.6 | W24: 72339.6 | X24: 71710.56 | Y24: 0 | Z24: 0 | AA24: 0 | AB24: 0 | AC24: 207.5832 | AD24: 0 | AE24: 37750.263 | AI24: 0 | AJ24: 0 | AK24: 2976.9318 | AL24: 0 | AN24: 1179.45 | AO24: 27553.5246 | AP24: 0 | AQ24: 2689.146 | AR24: 0 | AU24: 0 | AV24: 0 | AW24: 0 | AZ24: 0 | BB24: 0 | BC24: -889.2388363 | BD24: 0 | BE24: 0 | BG24: 0 | BH24: 0 | BI24: 705.7 | BJ24: 0 | BK24: 0 | BL24: 0 | BO24: 35855.28 | BV24: 0 | CI24: 35855.28 | CJ24: -314.55 | CO24: -629.04 | CP24: 0 | CQ24: 31 | CR24: 279.8793377 | CS24: 559.8869952 | CT24: 0 | CU24: 861.2867529 | CV24: 0 | CZ24: 0 | DA24: 0 | DB24: -5.889754388 | DE24: 0 | DF24: 0 | DG24: 0 | DH24: 0 | DI24: 0 | DK24: 0 | DL24: 0 | DN24: 0.01424274117 | DO24: 0 | DP24: -31.99538133 | DQ24: 0 | DR24: -1103.423517 | DU24: 37750.263 | DW24: 0 | DX24: 0 | DY24: 314.52 | EA24: -943.56 | EC24: 7.588868442 | EE24: 0 | EF24: 0 | EH24: 0 | EI24: 0 | EJ24: -805.0288056 | EK24: -84.21003062 | EL24: 0 | EO24: 0 | EP24: 0 | ER24: 0 | ET24: 0 | EV24: 165 | FA24: 0 | FF24: 0 | FG24: 0 | FH24: 0 | FI24: 0
A25: 44 | B25: Regular | C25: Azul | D25: A3 | E25: Industrial | F25: Não se aplica | G25: Não se aplica | H25: Não se aplica | I25: Fora ponta | J25: CATIVO | K25: 2021-07-01 | L25: 1248 | M25: 1248 | N25: 79.229 | O25: 79.229 | P25: 79.229 | Q25: 79.229 | R25: 8.52 | S25: 71.7 | T25: 240.27 | U25: 10632.96 | V25: 24717.07113 | W25: 35350.03113 | X25: 38008.3378 | Y25: 0 | Z25: 3189.368069 | AA25: 0 | AB25: 0 | AC25: 29.16908261 | AD25: 157.3153942 | AE25: 4894.545636 | AF25: 16707.17214 | AG25: 635.5764616 | AH25: 335.1059184 | AI25: 0 | AJ25: 0 | AK25: 240.730748 | AL25: 734.6982022 | AN25: 19.2837001 | AO25: 2488.393679 | AP25: 3061.588377 | AQ25: 0 | AR25: 0 | AS25: 0 | AT25: 349.0612109 | AU25: 0 | AV25: 220.1536963 | AW25: 79.26879085 | AX25: 57.79817675 | AY25: 312.6690616 | AZ25: 0 | BB25: 2578.323791 | BC25: -172.4229889 | BD25: 43.97909403 | BE25: 19.97188905 | BF25: 255.6845668 | BG25: 1398.20364 | BH25: 26.19997079 | BI25: 0 | BJ25: 0 | BK25: 0 | BL25: 0 | BV25: 18425.01133 | CI25: 38008.686 | CJ25: 2658.62487 | CO25: 141.20134 | CP25: 2517.10533 | CQ25: 31 | CR25: -373.8801659 | CS25: 50.56410314 | CT25: 52.63619703 | CU25: 0 | CV25: 0 | CW25: 0 | CX25: 12.55629704 | CY25: -5.003645295 | CZ25: 12.03366144 | DA25: 0 | DB25: -0.8276138546 | DC25: 103.9206 | DD25: 1.59038845 | DE25: 0.1242275279 | DF25: 0.2735552014 | DG25: 8.696993123 | DH25: 0 | DI25: -60.79030051 | DK25: 0 | DL25: 0 | DM25: 2.139259078 | DN25: 0.001151744804 | DO25: -11.38242121 | DP25: -0.5231161459 | DQ25: 0 | DR25: -540.4207367 | DU25: 4894.545636 | DV25: 0 | DW25: 25.9255451 | DX25: -0.2744256856 | DY25: -200.4551 | DZ25: -176.68067 | EA25: 341.65644 | EB25: 2693.786 | EC25: 0.9839418314 | ED25: 2337.936115 | EE25: 6.154261855 | EF25: 2.794787788 | EG25: 35.77949504 | EH25: 195.6591312 | EI25: -89.5140441 | EJ25: -72.70317029 | EK25: 0 | EL25: 0 | EM25: 0 | EN25: -10.20577451 | EO25: 0 | EP25: 222.3493253 | EQ25: 539.4327187 | ER25: 0 | ES25: -40.35996205 | ET25: 0 | EU25: 0.5312340036 | EV25: 165 | EW25: 0 | EX25: 0 | EY25: 0 | FA25: 0 | FF25: 0 | FG25: 0 | FH25: 0 | FI25: 0
A26: 2262 | B26: Regular | C26: Azul | D26: A3 | E26: Industrial | F26: Não se aplica | G26: Não se aplica | H26: Não se aplica | I26: Fora ponta | J26: LIVRE | K26: 2021-07-01 | L26: 637 | M26: 637 | N26: 0 | O26: 0 | P26: 0 | Q26: 0 | R26: 8.52 | U26: 5427.24 | W26: 5427.24 | X26: 5318.95 | Y26: 0 | Z26: 0 | AA26: 0 | AB26: 0 | AC26: 14.88838592 | AD26: 80.29639912 | AE26: 2498.257668 | AI26: 0 | AJ26: 0 | AK26: 0 | AL26: 0 | AN26: 0 | AO26: 1270.117607 | AP26: 1562.685734 | AQ26: 0 | AR26: 0 | AU26: 0 | AV26: 0 | AW26: 0 | AZ26: 0 | BB26: 0 | BC26: -82.79836985 | BD26: 0 | BE26: 0 | BG26: 0 | BH26: 0 | BI26: 0 | BJ26: 0 | BK26: 0 | BL26: 0 | BV26: 0 | CI26: 5318.95 | CJ26: -108.32 | CO26: -108.29 | CP26: 0 | CQ26: 31 | CR26: -24.35390287 | CS26: 25.80876098 | CT26: 26.86639224 | CU26: 0 | CV26: 0 | CZ26: 6.142181361 | DA26: 0 | DB26: -0.422427905 | DE26: 0 | DF26: 0 | DG26: 0 | DH26: 0 | DI26: 0 | DK26: 0 | DL26: 0 | DN26: 0 | DO26: 0 | DP26: 0 | DQ26: 0 | DR26: -82.74880954 | DU26: 2498.257668 | DW26: 0 | DX26: 0 | DY26: -25.48 | EA26: -82.81 | EC26: 0.5022203098 | EE26: 0 | EF26: 0 | EH26: 0 | EI26: -45.68946001 | EJ26: -37.10890984 | EK26: 0 | EL26: 0 | EO26: 0 | EP26: 0 | ER26: 0 | ET26: 0 | EV26: 165 | FA26: 0 | FF26: 0 | FG26: 0 | FH26: 0 | FI26: 0
A27: 45 | B27: Regular | C27: Azul | D27: A3 | E27: Industrial | F27: Não se aplica | G27: Não se aplica | H27: Não se aplica | I27: Não se aplica | J27: CATIVO | K27: 2021-07-01 | L27: 0 | M27: 0 | N27: 0 | O27: 0 | P27: 0 | Q27: 0 | AA27: 0 | AZ27: 0 | BI27: 473.14 | BJ27: 2179.5 | BK27: 15569.26 | BL27: 1 | CJ27: -0.03 | CO27: 0 | CP27: 0 | CQ27: 31 | DK27: 0 | EV27: 165 | FA27: 0 | FF27: 0 | FG27: 0 | FH27: 0 | FI27: 0
A28: 2264 | B28: Regular | C28: Azul | D28: A3 | E28: Industrial | F28: Não se aplica | G28: Não se aplica | H28: Não se aplica | I28: Não se aplica | J28: LIVRE | K28: 2021-07-01 | L28: 0 | M28: 0 | N28: 0.154 | O28: 0.154 | P28: 0 | Q28: 0 | S28: 71.7 | V28: 11.0418 | W28: 11.0418 | X28: 11.72864 | Y28: 0 | Z28: 6.199279085 | AA28: 0 | AB28: 0 | AC28: 0 | AD28: 0 | AE28: 0 | AI28: 0 | AJ28: 0 | AK28: 0.05172110098 | AL28: 1.428056938 | AN28: 0.03748235894 | AO28: 0 | AP28: 0 | AQ28: 0 | AR28: 0 | AU28: 0 | AV28: 0.4279199439 | AW28: 0.1540773428 | AZ28: 0 | BB28: 0.3977036166 | BC28: 0 | BD28: 0.08548360425 | BE28: 0.03882001431 | BG28: 2.71773417 | BH28: 0.05092574059 | BI28: 503.18 | BJ28: 0 | BK28: 2961.29 | BL28: 1 | BV28: 2.842037789 | CI28: 11.424 | CJ28: 0.3522 | CO28: 0.68684 | CP28: 0 | CQ28: 31 | CR28: -0.292006073 | CS28: 0 | CT28: 0 | CU28: 0 | CV28: 0 | CZ28: 0 | DA28: 0 | DB28: 0 | DE28: 0.0002414651112 | DF28: 0.0005317181968 | DG28: 0.01690463013 | DH28: 0 | DI28: -0.1181600964 | DK28: 0 | DL28: 0 | DN28: 2.474528487e-07 | DO28: -0.02212438458 | DP28: -0.001016797971 | DQ28: 0 | DR28: -0.1683828549 | DV28: 0 | DW28: 0.05039233041 | DX28: -0.0005334101854 | DY28: -0.2926 | EA28: 0.97944 | EC28: 0 | EE28: 0.01196224016 | EF28: 0.005432320481 | EH28: 0.380309056 | EI28: 0 | EJ28: 0 | EK28: 0 | EL28: 0 | EO28: 0 | EP28: 0.4321876598 | ER28: 0 | ET28: 0 | EV28: 165 | FA28: 0 | FF28: 0 | FG28: 0 | FH28: 0 | FI28: 0
A29: 43 | B29: Regular | C29: Azul | D29: A3 | E29: Industrial | F29: Não se aplica | G29: Não se aplica | H29: Não se aplica | I29: Ponta | J29: CATIVO | K29: 2021-07-01 | L29: 902 | M29: 902 | N29: 6.734 | O29: 6.734 | P29: 6.734 | Q29: 6.734 | R29: 13.25 | S29: 71.7 | T29: 392.1 | U29: 11951.5 | V29: 3123.2292 | W29: 15074.7292 | X29: 15217.9866 | Y29: 0 | Z29: 271.0775672 | AA29: 0 | AB29: 0 | AC29: 46.50175695 | AD29: 526.392174 | AE29: 3218.95113 | AF29: 2442.419912 | AG29: 54.020269 | AH29: 28.48203631 | AI29: 0 | AJ29: 0 | AK29: 20.46070072 | AL29: 62.4450352 | AN29: 1.639001332 | AO29: 3653.554091 | AP29: 4502.66569 | AQ29: 0 | AR29: 0 | AS29: 0 | AT29: 29.66815426 | AU29: 0 | AV29: 18.71177209 | AW29: 6.737381989 | AX29: 4.912505803 | AY29: 26.57503516 | AZ29: 0 | BB29: 362.2142006 | BC29: -239.2609303 | BD29: 3.737964877 | BE29: 1.697493353 | BF29: 21.73168755 | BG29: 118.8391033 | BH29: 2.226843748 | BI29: 0 | BJ29: 0 | BK29: 0 | BL29: 0 | BV29: 2588.426161 | CI29: 15215.907 | CJ29: 141.1478 | CO29: -204.48636 | CP29: 347.74376 | CQ29: 31 | CR29: -28.63453803 | CS29: 74.2401363 | CT29: 77.41184289 | CU29: 0 | CV29: 0 | CW29: 0 | CX29: 1.067211554 | CY29: -0.4252804834 | CZ29: 40.26576827 | DA29: 0 | DB29: -1.319393511 | DC29: 15.19214267 | DD29: 0.1351736841 | DE29: 0.01055861077 | DF29: 0.02325058661 | DG29: 0.7391933722 | DH29: 0 | DI29: -5.166818762 | DK29: 0 | DL29: 0 | DM29: 0.1818244662 | DN29: 9.789154871e-05 | DO29: -0.9674389984 | DP29: -0.0444618022 | DQ29: 0 | DR29: -230.0234965 | DU29: 3218.95113 | DV29: 0 | DW29: 2.203519175 | DX29: -0.02332457265 | DY29: -12.7946 | DZ29: -24.2424 | EA29: -191.69176 | EB29: 371.98616 | EC29: 0.6471000387 | ED29: 341.782659 | EE29: 0.523076138 | EF29: 0.2375405592 | EG29: 3.041047086 | EH29: 16.62987781 | EI29: -131.647944 | EJ29: -106.7455554 | EK29: 0 | EL29: 0 | EM29: 0 | EN29: -0.8674309352 | EO29: 0 | EP29: 18.89838767 | EQ29: 45.84861513 | ER29: 0 | ES29: -3.430359899 | ET29: 0 | EU29: 0.04515177246 | EV29: 165 | EW29: 0 | EX29: 0 | EY29: 0 | FA29: 0 | FF29: 0 | FG29: 0 | FH29: 0 | FI29: 0
A30: 2260 | B30: Regular | C30: Azul | D30: A3 | E30: Industrial | F30: Não se aplica | G30: Não se aplica | H30: Não se aplica | I30: Ponta | J30: LIVRE | K30: 2021-07-01 | L30: 334 | M30: 334 | N30: 0 | O30: 0 | P30: 0 | Q30: 0 | R30: 13.25 | U30: 4425.5 | W30: 4425.5 | X30: 4338.66 | Y30: 0 | Z30: 0 | AA30: 0 | AB30: 0 | AC30: 17.21905413 | AD30: 194.9168361 | AE30: 1191.939776 | AI30: 0 | AJ30: 0 | AK30: 0 | AL30: 0 | AN30: 0 | AO30: 1352.868145 | AP30: 1667.284191 | AQ30: 0 | AR30: 0 | AU30: 0 | AV30: 0 | AW30: 0 | AZ30: 0 | BB30: 0 | BC30: -88.2743113 | BD30: 0 | BE30: 0 | BG30: 0 | BH30: 0 | BI30: 0 | BJ30: 0 | BK30: 0 | BL30: 0 | BV30: 0 | CI30: 4338.66 | CJ30: -86.87 | CO30: -86.84 | CP30: 0 | CQ30: 31 | CR30: 3.108026726 | CS30: 27.49025003 | CT30: 28.6646957 | CU30: 0 | CV30: 0 | CZ30: 14.9099408 | DA30: 0 | DB30: -0.488555912 | DE30: 0 | DF30: 0 | DG30: 0 | DH30: 0 | DI30: 0 | DK30: 0 | DL30: 0 | DN30: 0 | DO30: 0 | DP30: 0 | DQ30: 0 | DR30: -67.46830389 | DU30: 1191.939776 | DW30: 0 | DX30: 0 | DY30: -1.421085472e-13 | EA30: -86.84 | EC30: 0.2396135398 | EE30: 0 | EF30: 0 | EH30: 0 | EI30: -48.74768657 | EJ30: -39.52662472 | EK30: 0 | EL30: 0 | EO30: 0 | EP30: 0 | ER30: 0 | ET30: 0 | EV30: 165 | FA30: 0 | FF30: 0 | FG30: 0 | FH30: 0 | FI30: 0
A31: 2433 | B31: Regular | C31: Geração | D31: A3 | E31: Não se aplica | F31: Não se aplica | G31: Dupla contratação | H31: LUCÉLIA | I31: Não se aplica | J31: GERAÇÃO | K31: 2021-07-01 | L31: 8252 | M31: 4126 | N31: 0 | O31: 0 | P31: 0 | Q31: 0 | R31: 3.54 | U31: 29212.08 | W31: 29212.08 | X31: 29294.6 | Y31: 0 | Z31: 0 | AA31: 0 | AB31: 0 | AC31: 2012.158835 | AD31: 0 | AE31: 23438.30994 | AI31: 0 | AJ31: 0 | AK31: 0 | AL31: 0 | AN31: 170.9549011 | AO31: 0 | AP31: 0 | AQ31: 0 | AR31: 0 | AU31: 0 | AV31: 0 | AW31: 0 | AZ31: 0 | BB31: 506.3412669 | BC31: 0 | BD31: 0 | BE31: 944.0154504 | BG31: 2674.360029 | BH31: 0 | BI31: 420 | BJ31: 0 | BK31: 0 | BL31: 0 | BO31: 14647.3 | BV31: 3618.375479 | CI31: 14647.3 | CJ31: 41.23 | CO31: 82.52 | CP31: 0 | CQ31: 31 | CR31: -485.1209614 | CS31: 0 | CT31: 0 | CU31: 0 | CV31: 0 | CZ31: 0 | DA31: 0 | DB31: -57.09094634 | DE31: 5.871888504 | DF31: 0 | DG31: 16.63483781 | DH31: 0 | DI31: 0 | DK31: 0 | DL31: 0 | DN31: 0 | DO31: 0 | DP31: -4.637557547 | DQ31: 0 | DR31: -445.8991838 | DU31: 23438.30994 | DW31: 0 | DX31: 0 | DY31: -412.6 | EA31: 495.12 | EC31: 4.711761892 | EE31: 0 | EF31: 132.101818 | EH31: 374.2394488 | EI31: 0 | EJ31: 0 | EK31: 0 | EL31: 0 | EO31: 0 | EP31: 0 | ER31: 0 | ET31: 0 | EV31: 165 | FA31: 0 | FF31: 0 | FG31: 0 | FH31: 0 | FI31: 0
A32: 2458 | B32: Regular | C32: Geração | D32: A3 | E32: Não se aplica | F32: Não se aplica | G32: Dupla contratação | H32: FARTURA | I32: Não se aplica | J32: GERAÇÃO | K32: 2021-07-01 | L32: 29362 | M32: 14681 | N32: 0 | O32: 0 | P32: 0 | Q32: 0 | R32: 3.54 | U32: 103941.48 | W32: 103941.48 | X32: 104235.1 | Y32: 0 | Z32: 0 | AA32: 0 | AB32: 0 | AC32: 7159.59861 | AD32: 0 | AE32: 83397.43775 | AI32: 0 | AJ32: 0 | AK32: 0 | AL32: 0 | AN32: 608.28621 | AO32: 0 | AP32: 0 | AQ32: 0 | AR32: 0 | AU32: 0 | AV32: 0 | AW32: 0 | AZ32: 0 | BB32: 1801.64715 | BC32: 0 | BD32: 0 | BE32: 3358.9653 | BG32: 9515.821518 | BH32: 0 | BI32: 1494.47 | BJ32: 0 | BK32: 0 | BL32: 0 | BO32: 52117.55 | BV32: 12874.78682 | CI32: 52117.55 | CJ32: 146.78 | CO32: 293.62 | CP32: 0 | CQ32: 31 | CR32: -1726.141744 | CS32: 0 | CT32: 0 | CU32: 0 | CV32: 0 | CZ32: 0 | DA32: 0 | DB32: -203.1391622 | DE32: 20.89316411 | DF32: 0 | DG32: 59.18954287 | DH32: 0 | DI32: 0 | DK32: 0 | DL32: 0 | DN32: 0 | DO32: 0 | DP32: -16.50120755 | DQ32: 0 | DR32: -1586.584081 | DU32: 83397.43775 | DW32: 0 | DX32: 0 | DY32: -1468.1 | EA32: 1761.72 | EC32: 16.76523905 | EE32: 0 | EF32: 470.0404242 | EH32: 1331.606725 | EI32: 0 | EJ32: 0 | EK32: 0 | EL32: 0 | EO32: 0 | EP32: 0 | ER32: 0 | ET32: 0 | EV32: 165 | FA32: 0 | FF32: 0 | FG32: 0 | FH32: 0 | FI32: 0
A33: 76 | B33: Regular | C33: Verde | D33: A3a | E33: Comercial | F33: Não se aplica | G33: Não se aplica | H33: Não se aplica | I33: Fora ponta | J33: CATIVO | K33: 2021-07-01 | L33: 0 | M33: 0 | N33: 95.659 | O33: 95.659 | P33: 95.659 | Q33: 95.659 | S33: 77.17 | T33: 240.27 | V33: 30365.99296 | W33: 30365.99296 | X33: 33781.01926 | Y33: 0 | Z33: 5000.238893 | AA33: 0 | AB33: 0 | AC33: 0 | AD33: 0 | AE33: 0 | AF33: 20171.79795 | AG33: 767.3782168 | AH33: 404.5980266 | AI33: 0 | AJ33: 0 | AK33: 279.1590776 | AL33: 887.0551859 | AN33: 22.42631538 | AO33: 0 | AP33: 0 | AQ33: 0 | AR33: 0 | AS33: 0 | AT33: 421.4472778 | AU33: 0 | AV33: 345.1533505 | AW33: 95.70704242 | AX33: 69.78399058 | AY33: 377.5083589 | AZ33: 0 | BB33: 3016.895919 | BC33: -12.32218233 | BD33: 40.3121738 | BE33: 14.62194381 | BF33: 308.7067864 | BG33: 1023.661558 | BH33: 24.01545096 | BI33: 0 | BJ33: 0 | BK33: 0 | BL33: 0 | BV33: 21559.10042 | CI33: 33781.3724 | CJ33: 3415.34944 | CO33: 375.93987 | CP33: 3039.08643 | CQ33: 31 | CR33: -427.9365094 | CS33: 0 | CT33: 0 | CU33: 0 | CV33: 0 | CW33: 0 | CX33: 15.16014109 | CY33: -6.041269046 | CZ33: 0 | DA33: 0 | DB33: 0 | DC33: 125.4709851 | DD33: 1.920192969 | DE33: 0.0909502315 | DF33: 0.250746521 | DG33: 6.367296776 | DH33: 0 | DI33: -95.30603506 | DK33: 0 | DL33: 0 | DM33: 2.582884854 | DN33: 0.001335600125 | DO33: -13.74283444 | DP33: -0.6083670459 | DQ33: 0 | DR33: -464.7239349 | DV33: 0 | DW33: 23.76390654 | DX33: -0.2515444253 | DY33: -216.18934 | DZ33: -213.31957 | EA33: 592.12921 | EB33: 3252.406 | EC33: 0 | ED33: 2822.762256 | EE33: 5.641127426 | EF33: 2.046137443 | EG33: 43.1992164 | EH33: 143.2471818 | EI33: 0 | EJ33: 0 | EK33: 0 | EL33: 0 | EM33: 0 | EN33: -12.32218233 | EO33: 0 | EP33: 348.5956215 | EQ33: 651.2968034 | ER33: 0 | ES33: -48.72955117 | ET33: 0 | EU33: 0.6413978916 | EV33: 165 | EW33: 0 | EX33: 0 | EY33: 0 | FA33: 0 | FF33: 0 | FG33: 0 | FH33: 0 | FI33: 0
A34: 77 | B34: Regular | C34: Verde | D34: A3a | E34: Comercial | F34: Não se aplica | G34: Não se aplica | H34: Não se aplica | I34: Não se aplica | J34: CATIVO | K34: 2021-07-01 | L34: 605 | M34: 605 | N34: 0 | O34: 0 | P34: 0 | Q34: 0 | R34: 16.89 | U34: 10218.45 | W34: 10218.45 | X34: 10079.3 | Y34: 0 | Z34: 0 | AA34: 0 | AB34: 0 | AC34: 70.29635736 | AD34: 833.0336211 | AE34: 4958.351208 | AI34: 0 | AJ34: 0 | AK34: 0 | AL34: 0 | AN34: 0 | AO34: 1914.191794 | AP34: 2440.086766 | AQ34: 0 | AR34: 0 | AU34: 0 | AV34: 0 | AW34: 0 | AZ34: 0 | BB34: 0 | BC34: -127.2694838 | BD34: 0 | BE34: 0 | BG34: 0 | BH34: 0 | BI34: 491.85 | BJ34: 2265.71 | BK34: 28644.97 | BL34: 5 | BV34: 0 | CI34: 10079.3 | CJ34: -139.18 | CO34: -139.15 | CP34: 0 | CQ34: 31 | CR34: -13.21584178 | CS34: 38.89633385 | CT34: 41.9510633 | CU34: 0 | CV34: 0 | CZ34: 63.72195561 | DA34: 0 | DB34: -1.994517279 | DE34: 0 | DF34: 0 | DG34: 0 | DH34: 0 | DI34: 0 | DK34: 0 | DL34: 0 | DN34: 0 | DO34: 0 | DP34: 0 | DQ34: 0 | DR34: -155.7906773 | DU34: 4958.351208 | DW34: 0 | DX34: 0 | DY34: -12.1 | EA34: -127.05 | EC34: 0.9967685525 | EE34: 0 | EF34: 0 | EH34: 0 | EI34: -71.3427174 | EJ34: -55.92676639 | EK34: 0 | EL34: 0 | EO34: 0 | EP34: 0 | ER34: 0 | ET34: 0 | EV34: 165 | FA34: 0 | FF34: 0 | FG34: 0 | FH34: 0 | FI34: 0
A35: 75 | B35: Regular | C35: Verde | D35: A3a | E35: Comercial | F35: Não se aplica | G35: Não se aplica | H35: Não se aplica | I35: Ponta | J35: CATIVO | K35: 2021-07-01 | L35: 0 | M35: 0 | N35: 14.535 | O35: 14.535 | P35: 14.535 | Q35: 14.535 | S35: 904.92 | T35: 392.1 | V35: 18852.1857 | W35: 18852.1857 | X35: 19535.76675 | Y35: 0 | Z35: 759.7661727 | AA35: 0 | AB35: 0 | AC35: 56.65386743 | AD35: 1217.060713 | AE35: 7454.264867 | AF35: 5271.840425 | AG35: 116.6000312 | AH35: 61.47704155 | AI35: 0 | AJ35: 0 | AK35: 179.0607534 | AL35: 134.7844649 | AN35: 3.407588351 | AO35: 1395.120563 | AP35: 1771.727167 | AQ35: 0 | AR35: 0 | AS35: 0 | AT35: 64.03721744 | AU35: 0 | AV35: 52.44466229 | AW35: 14.54229985 | AX35: 10.60339647 | AY35: 57.36087557 | AZ35: 0 | BB35: 767.2184923 | BC35: -94.43478299 | BD35: 6.125272543 | BE35: 2.221745505 | BF35: 46.90675358 | BG35: 155.5412532 | BH35: 3.649051106 | BI35: 0 | BJ35: 0 | BK35: 0 | BL35: 0 | BV35: 5482.63545 | CI35: 19542.487 | CJ35: 690.2713 | CO35: -67.00635 | CP35: 750.5874 | CQ35: 31 | CR35: -118.2861327 | CS35: 28.34881822 | CT35: 30.46032606 | CU35: 0 | CV35: 0 | CW35: 0 | CX35: 2.303522415 | CY35: -0.9179465141 | CZ35: 93.09766949 | DA35: 0 | DB35: -1.607439158 | DC35: 32.79147515 | DD35: 0.2917655924 | DE35: 0.01381952158 | DF35: 0.03809992455 | DG35: 0.9674851153 | DH35: 0 | DI35: -14.4813684 | DK35: 0 | DL35: 0 | DM35: 0.3924589569 | DN35: 0.0008566927747 | DO35: -2.088168376 | DP35: -0.09243892381 | DQ35: 0 | DR35: -287.9025263 | DV35: 7454.264867 | DW35: 3.610829943 | DX35: -0.0382211629 | DY35: -64.39005 | DZ35: -52.326 | EA35: -2.6163 | EB35: 802.9134 | EC35: 1.49851765 | ED35: 737.7206636 | EE35: 0.8571466056 | EF35: 0.3109023483 | EG35: 6.563947044 | EH35: 21.76583267 | EI35: -51.8013672 | EJ35: -40.76110978 | EK35: 0 | EL35: 0 | EM35: 0 | EN35: -1.872306006 | EO35: 0 | EP35: 52.96770151 | EQ35: 98.96192766 | ER35: 0 | ES35: -7.404259153 | ET35: 0 | EU35: 0.09745782785 | EV35: 165 | EW35: 0 | EX35: 0 | EY35: 0 | FA35: 0 | FF35: 0 | FG35: 0 | FH35: 0 | FI35: 0
A36: 2367 | B36: Regular | C36: Azul | D36: A3a | E36: Industrial | F36: Não se aplica | G36: Fonte incentivada | H36: Não se aplica | I36: Fora ponta | J36: LIVRE | K36: 2021-07-01 | L36: 10960 | M36: 6007.163725 | N36: 0 | O36: 0 | P36: 0 | Q36: 0 | R36: 16.89 | U36: 185114.4 | W36: 185114.4 | X36: 182593.6 | Y36: 0 | Z36: 0 | AA36: 0 | AB36: 0 | AC36: 1273.467895 | AD36: 15090.98923 | AE36: 89824.01527 | AI36: 0 | AJ36: 0 | AK36: 0 | AL36: 0 | AN36: 0 | AO36: 34676.92902 | AP36: 44203.88588 | AQ36: 0 | AR36: 0 | AU36: 0 | AV36: 0 | AW36: 0 | AZ36: 0 | BB36: 0 | BC36: -2305.576103 | BD36: 0 | BE36: 0 | BG36: 0 | BH36: 0 | BI36: 0 | BJ36: 0 | BK36: 0 | BL36: 0 | BN36: 82514.25234 | BV36: 0 | CI36: 100079.2856 | CJ36: -1381.739712 | CO36: -2520.8 | CP36: 0 | CQ36: 31 | CR36: -239.4142577 | CS36: 704.6344116 | CT36: 759.9729814 | CU36: 0 | CV36: 0 | CZ36: 1154.367989 | DA36: 0 | DB36: -36.13208162 | DE36: 0 | DF36: 0 | DG36: 0 | DH36: 0 | DI36: 0 | DK36: 0 | DL36: 0 | DN36: 0 | DO36: 0 | DP36: 0 | DQ36: 0 | DR36: -2822.257558 | DU36: 89824.01527 | DW36: 0 | DX36: 0 | DY36: -219.2 | EA36: -2301.6 | EC36: 18.05716254 | EE36: 0 | EF36: 0 | EH36: 0 | EI36: -1292.423443 | EJ36: -1013.152661 | EK36: 0 | EL36: 0 | EO36: 0 | EP36: 0 | ER36: 0 | ET36: 0 | EV36: 165 | FA36: 0 | FF36: 0 | FG36: 0 | FH36: 0 | FI36: 0
A37: 2369 | B37: Regular | C37: Azul | D37: A3a | E37: Industrial | F37: Não se aplica | G37: Fonte incentivada | H37: Não se aplica | I37: Não se aplica | J37: LIVRE | K37: 2021-07-01 | L37: 0 | M37: 0 | N37: 4166.38 | O37: 4166.38 | P37: 0 | Q37: 0 | S37: 77.17 | V37: 321519.5446 | W37: 321519.5446 | X37: 337893.418 | Y37: 0 | Z37: 217782.9093 | AA37: 0 | AB37: 0 | AC37: 0 | AD37: 0 | AE37: 0 | AI37: 0 | AJ37: 0 | AK37: 898.718237 | AL37: 38635.24588 | AN37: 976.766973 | AO37: 0 | AP37: 0 | AQ37: 0 | AR37: 0 | AU37: 0 | AV37: 15032.98191 | AW37: 4168.472464 | AZ37: 0 | BB37: 6573.874491 | BC37: 0 | BD37: 1755.77661 | BE37: 636.8514645 | BG37: 44585.06823 | BH37: 1045.98098 | BI37: 31782.41 | BJ37: 0 | BK37: 385009.02 | BL37: 4 | BV37: 46977.6963 | CI37: 337893.418 | CJ37: 16373.8434 | CO37: 16373.8734 | CP37: 0 | CQ37: 31 | CR37: -9386.648239 | CS37: 0 | CT37: 0 | CU37: 0 | CV37: 0 | CZ37: 0 | DA37: 0 | DB37: 0 | DE37: 3.961291938 | DF37: 10.92113957 | DG37: 277.3244331 | DH37: 0 | DI37: -4151.006788 | DK37: 0 | DL37: 0 | DN37: 0.004299799958 | DO37: -598.5622949 | DP37: -26.49712304 | DQ37: 0 | DR37: -4902.793197 | DV37: 0 | DW37: 1035.025088 | DX37: -10.95589189 | DY37: -9416.0188 | EA37: 25789.8922 | EC37: 0 | EE37: 245.6964895 | EF37: 89.11849509 | EH37: 6239.059506 | EI37: 0 | EJ37: 0 | EK37: 0 | EL37: 0 | EO37: 0 | EP37: 15182.90831 | ER37: 0 | ET37: 0 | EV37: 165 | FA37: 0 | FF37: 0 | FG37: 0 | FH37: 0 | FI37: 0
A38: 2365 | B38: Regular | C38: Azul | D38: A3a | E38: Industrial | F38: Não se aplica | G38: Fonte incentivada | H38: Não se aplica | I38: Ponta | J38: LIVRE | K38: 2021-07-01 | L38: 7460 | M38: 4370.137676 | N38: 0 | O38: 0 | P38: 0 | Q38: 0 | R38: 34.03 | U38: 253863.8 | W38: 253863.8 | X38: 251252.8 | Y38: 0 | Z38: 0 | AA38: 0 | AB38: 0 | AC38: 1208.840806 | AD38: 25972.53318 | AE38: 159079.2438 | AI38: 0 | AJ38: 0 | AK38: 0 | AL38: 0 | AN38: 0 | AO38: 29772.48544 | AP38: 37810.199 | AQ38: 0 | AR38: 0 | AU38: 0 | AV38: 0 | AW38: 0 | AZ38: 0 | BB38: 0 | BC38: -1975.346221 | BD38: 0 | BE38: 0 | BG38: 0 | BH38: 0 | BI38: 0 | BJ38: 0 | BK38: 0 | BL38: 0 | BN38: 104066.5631 | BV38: 0 | CI38: 147186.3152 | CJ38: -1529.499928 | CO38: -2611 | CP38: 0 | CQ38: 31 | CR38: -663.5761144 | CS38: 604.9762292 | CT38: 650.0498563 | CU38: 0 | CV38: 0 | CZ38: 1986.739268 | DA38: 0 | DB38: -34.29841839 | DE38: 0 | DF38: 0 | DG38: 0 | DH38: 0 | DI38: 0 | DK38: 0 | DL38: 0 | DN38: 0 | DO38: 0 | DP38: 0 | DQ38: 0 | DR38: -3871.04305 | DU38: 159079.2438 | DW38: 0 | DX38: 0 | DY38: -671.4 | EA38: -1939.6 | EC38: 31.97941834 | EE38: 0 | EF38: 0 | EH38: 0 | EI38: -1105.486239 | EJ38: -869.8599815 | EK38: 0 | EL38: 0 | EO38: 0 | EP38: 0 | ER38: 0 | ET38: 0 | EV38: 165 | FA38: 0 | FF38: 0 | FG38: 0 | FH38: 0 | FI38: 0
A39: 50 | B39: Regular | C39: Verde | D39: A3a | E39: Industrial | F39: Não se aplica | G39: Não se aplica | H39: Não se aplica | I39: Fora ponta | J39: CATIVO | K39: 2021-07-01 | L39: 0 | M39: 0 | N39: 432.978 | O39: 432.978 | P39: 432.978 | Q39: 432.978 | S39: 77.17 | T39: 240.27 | V39: 137444.5363 | W39: 137444.5363 | X39: 152901.8509 | Y39: 0 | Z39: 22632.40715 | AA39: 0 | AB39: 0 | AC39: 0 | AD39: 0 | AE39: 0 | AF39: 91302.90652 | AG39: 3473.357296 | AH39: 1831.317956 | AI39: 0 | AJ39: 0 | AK39: 1263.54801 | AL39: 4015.046993 | AN39: 101.5074502 | AO39: 0 | AP39: 0 | AQ39: 0 | AR39: 0 | AS39: 0 | AT39: 1907.582135 | AU39: 0 | AV39: 1562.255589 | AW39: 433.1954527 | AX39: 315.8608461 | AY39: 1708.702937 | AZ39: 0 | BB39: 13655.27092 | BC39: -55.77346473 | BD39: 182.4635883 | BE39: 66.18279499 | BF39: 1397.288775 | BG39: 4633.363657 | BH39: 108.7002993 | BI39: 0 | BJ39: 0 | BK39: 0 | BL39: 0 | BV39: 97582.20533 | CI39: 152902.5572 | CJ39: 15457.99088 | CO39: 1701.60354 | CP39: 13755.71106 | CQ39: 31 | CR39: -1936.954118 | CS39: 0 | CT39: 0 | CU39: 0 | CV39: 0 | CW39: 0 | CX39: 68.61881859 | CY39: -27.34438567 | CZ39: 0 | DA39: 0 | DB39: 0 | DC39: 567.9149498 | DD39: 8.691302556 | DE39: 0.4116648651 | DF39: 1.134945245 | DG39: 28.82007363 | DH39: 0 | DI39: -431.3803871 | DK39: 0 | DL39: 0 | DM39: 11.69082176 | DN39: 0.00604528033 | DO39: -62.20371289 | DP39: -2.753630571 | DQ39: 0 | DR39: -2103.463761 | DV39: 0 | DW39: 107.5617425 | DX39: -1.138556771 | DY39: -978.53028 | DZ39: -965.54094 | EA39: 2680.13382 | EB39: 14721.252 | EC39: 0 | ED39: 12776.57049 | EE39: 25.5332386 | EF39: 9.261360645 | EG39: 195.5311086 | EH39: 648.3747299 | EI39: 0 | EJ39: 0 | EK39: 0 | EL39: 0 | EM39: 0 | EN39: -55.77346473 | EO39: 0 | EP39: 1577.836221 | EQ39: 2947.942037 | ER39: 0 | ES39: -220.5628703 | ET39: 0 | EU39: 2.903136938 | EV39: 165 | EW39: 0 | EX39: 0 | EY39: 0 | FA39: 0 | FF39: 0 | FG39: 0 | FH39: 0 | FI39: 0
A40: 2391 | B40: Regular | C40: Verde | D40: A3a | E40: Industrial | F40: Não se aplica | G40: Fonte incentivada | H40: Não se aplica | I40: Fora ponta | J40: LIVRE | K40: 2021-07-01 | L40: 0 | M40: 0 | N40: 954.107 | O40: 954.107 | P40: 0 | Q40: 0 | S40: 77.17 | V40: 73628.43719 | W40: 73628.43719 | X40: 77378.0777 | Y40: 0 | Z40: 49872.59881 | AA40: 0 | AB40: 0 | AC40: 0 | AD40: 0 | AE40: 0 | AI40: 0 | AJ40: 0 | AK40: 205.8077662 | AL40: 8847.526759 | AN40: 223.6810388 | AO40: 0 | AP40: 0 | AQ40: 0 | AR40: 0 | AU40: 0 | AV40: 3442.574434 | AW40: 954.5861772 | AZ40: 0 | BB40: 1505.426694 | BC40: 0 | BD40: 402.0753636 | BE40: 145.8398994 | BG40: 10210.04462 | BH40: 239.5311457 | BI40: 0 | BJ40: 0 | BK40: 0 | BL40: 0 | BV40: 10757.95988 | CI40: 77378.321 | CJ40: 3749.85381 | CO40: 3749.64051 | CP40: 0 | CQ40: 31 | CR40: -2149.555919 | CS40: 0 | CT40: 0 | CU40: 0 | CV40: 0 | CZ40: 0 | DA40: 0 | DB40: 0 | DE40: 0.9071415395 | DF40: 2.500956636 | DG40: 63.50769321 | DH40: 0 | DI40: -950.5865124 | DK40: 0 | DL40: 0 | DN40: 0.0009846603618 | DO40: -137.0716247 | DP40: -6.067879207 | DQ40: 0 | DR40: -1122.746679 | DV40: 0 | DW40: 237.0222308 | DX40: -2.508914969 | DY40: -2156.28182 | EA40: 5905.92233 | EC40: 0 | EE40: 56.26484874 | EF40: 20.40826329 | EH40: 1428.753582 | EI40: 0 | EJ40: 0 | EK40: 0 | EL40: 0 | EO40: 0 | EP40: 3476.907794 | ER40: 0 | ET40: 0 | EV40: 165 | FA40: 0 | FF40: 0 | FG40: 0 | FH40: 0 | FI40: 0
A41: 51 | B41: Regular | C41: Verde | D41: A3a | E41: Industrial | F41: Não se aplica | G41: Não se aplica | H41: Não se aplica | I41: Não se aplica | J41: CATIVO | K41: 2021-07-01 | L41: 2084 | M41: 2084 | N41: 0 | O41: 0 | P41: 0 | Q41: 0 | R41: 16.89 | U41: 35198.76 | W41: 35198.76 | X41: 34719.44 | Y41: 0 | Z41: 0 | AA41: 0 | AB41: 0 | AC41: 242.1448078 | AD41: 2869.491019 | AE41: 17079.6759 | AI41: 0 | AJ41: 0 | AK41: 0 | AL41: 0 | AN41: 0 | AO41: 6593.67884 | AP41: 8405.191439 | AQ41: 0 | AR41: 0 | AU41: 0 | AV41: 0 | AW41: 0 | AZ41: 0 | BB41: 0 | BC41: -438.39604 | BD41: 0 | BE41: 0 | BG41: 0 | BH41: 0 | BI41: 1605.83 | BJ41: 7397.06 | BK41: 72156.89 | BL41: 5 | BV41: 0 | CI41: 34719.44 | CJ41: -479.35 | CO41: -479.32 | CP41: 0 | CQ41: 31 | CR41: -45.52365995 | CS41: 133.9834045 | CT41: 144.5058114 | CU41: 0 | CV41: 0 | CZ41: 219.4984388 | DA41: 0 | DB41: -6.870370264 | DE41: 0 | DF41: 0 | DG41: 0 | DH41: 0 | DI41: 0 | DK41: 0 | DL41: 0 | DN41: 0 | DO41: 0 | DP41: 0 | DQ41: 0 | DR41: -536.6409445 | DU41: 17079.6759 | DW41: 0 | DX41: 0 | DY41: -41.68 | EA41: -437.64 | EC41: 3.433496964 | EE41: 0 | EF41: 0 | EH41: 0 | EI41: -245.749129 | EJ41: -192.646911 | EK41: 0 | EL41: 0 | EO41: 0 | EP41: 0 | ER41: 0 | ET41: 0 | EV41: 165 | FA41: 0 | FF41: 0 | FG41: 0 | FH41: 0 | FI41: 0
A42: 2393 | B42: Regular | C42: Verde | D42: A3a | E42: Industrial | F42: Não se aplica | G42: Fonte incentivada | H42: Não se aplica | I42: Não se aplica | J42: LIVRE | K42: 2021-07-01 | L42: 12264 | M42: 16370.69998 | N42: 0 | O42: 0 | P42: 0 | Q42: 0 | R42: 16.89 | U42: 207138.96 | W42: 207138.96 | X42: 204318.24 | Y42: 0 | Z42: 0 | AA42: 0 | AB42: 0 | AC42: 1424.982689 | AD42: 16886.48649 | AE42: 100511.1061 | AI42: 0 | AJ42: 0 | AK42: 0 | AL42: 0 | AN42: 0 | AO42: 38802.72423 | AP42: 49463.18033 | AQ42: 0 | AR42: 0 | AU42: 0 | AV42: 0 | AW42: 0 | AZ42: 0 | BB42: 0 | BC42: -2579.889172 | BD42: 0 | BE42: 0 | BG42: 0 | BH42: 0 | BI42: 20577.4 | BJ42: 0 | BK42: 158687.75 | BL42: 5 | BN42: -68417.62173 | BV42: 0 | CI42: 272735.862 | CJ42: -3765.290724 | CO42: -2820.72 | CP42: 0 | CQ42: 31 | CR42: -267.8993117 | CS42: 788.4704766 | CT42: 850.3931244 | CU42: 0 | CV42: 0 | CZ42: 1291.712502 | DA42: 0 | DB42: -40.43100812 | DE42: 0 | DF42: 0 | DG42: 0 | DH42: 0 | DI42: 0 | DK42: 0 | DL42: 0 | DN42: 0 | DO42: 0 | DP42: 0 | DQ42: 0 | DR42: -3158.044406 | DU42: 100511.1061 | DW42: 0 | DX42: 0 | DY42: -245.28 | EA42: -2575.44 | EC42: 20.20556947 | EE42: 0 | EF42: 0 | EH42: 0 | EI42: -1446.193531 | EJ42: -1133.695641 | EK42: 0 | EL42: 0 | EO42: 0 | EP42: 0 | ER42: 0 | ET42: 0 | EV42: 165 | FA42: 0 | FF42: 0 | FG42: 0 | FH42: 0 | FI42: 0
A43: 49 | B43: Regular | C43: Verde | D43: A3a | E43: Industrial | F43: Não se aplica | G43: Não se aplica | H43: Não se aplica | I43: Ponta | J43: CATIVO | K43: 2021-07-01 | L43: 0 | M43: 0 | N43: 4.465 | O43: 4.465 | P43: 4.465 | Q43: 4.465 | S43: 904.92 | T43: 392.1 | V43: 5791.1943 | W43: 5791.1943 | X43: 6001.18325 | Y43: 0 | Z43: 233.392223 | AA43: 0 | AB43: 0 | AC43: 17.40347561 | AD43: 373.8683236 | AE43: 2289.872214 | AF43: 1619.454248 | AG43: 35.81831023 | AH43: 18.88510427 | AI43: 0 | AJ43: 0 | AK43: 55.00559091 | AL43: 41.40437811 | AN43: 1.046775506 | AO43: 428.5664476 | AP43: 544.2560578 | AQ43: 0 | AR43: 0 | AS43: 0 | AT43: 19.67156353 | AU43: 0 | AV43: 16.11045181 | AW43: 4.467242438 | AX43: 3.257252511 | AY43: 17.62066112 | AZ43: 0 | BB43: 235.6814976 | BC43: -29.00937778 | BD43: 1.88161967 | BE43: 0.6824969852 | BF43: 14.40926417 | BG43: 47.78064642 | BH43: 1.12095034 | BI43: 0 | BJ43: 0 | BK43: 0 | BL43: 0 | BV43: 1684.208275 | CI43: 6007.9035 | CJ43: 216.6792 | CO43: -20.58365 | CP43: 230.5726 | CQ43: 31 | CR43: -36.336263 | CS43: 8.708460499 | CT43: 9.357093628 | CU43: 0 | CV43: 0 | CW43: 0 | CX43: 0.7076179968 | CY43: -0.2819835697 | CZ43: 28.5986305 | DA43: 0 | DB43: -0.4937884996 | DC43: 10.07319825 | DD43: 0.08962733883 | DE43: 0.004245212512 | DF43: 0.01170389839 | DG43: 0.2972013099 | DH43: 0 | DI43: -4.448524933 | DK43: 0 | DL43: 0 | DM43: 0.1205592874 | DN43: 0.0002631670615 | DO43: -0.6414634879 | DP43: -0.02839627071 | DQ43: 0 | DR43: -88.44064534 | DV43: 2289.872214 | DW43: 1.109209198 | DX43: -0.01174114154 | DY43: -19.77995 | DZ43: -16.074 | EA43: -0.8037 | EB43: 246.6466 | EC43: 0.4603289513 | ED43: 226.6200731 | EE43: 0.2633064736 | EF43: 0.09550595014 | EG43: 2.016375889 | EH43: 6.68623618 | EI43: -15.91283829 | EJ43: -12.52138666 | EK43: 0 | EL43: 0 | EM43: 0 | EN43: -0.5751528253 | EO43: 0 | EP43: 16.27112399 | EQ43: 30.40006928 | ER43: 0 | ES43: -2.274510982 | ET43: 0 | EU43: 0.02993802555 | EV43: 165 | EW43: 0 | EX43: 0 | EY43: 0 | FA43: 0 | FF43: 0 | FG43: 0 | FH43: 0 | FI43: 0
A44: 2389 | B44: Regular | C44: Verde | D44: A3a | E44: Industrial | F44: Não se aplica | G44: Fonte incentivada | H44: Não se aplica | I44: Ponta | J44: LIVRE | K44: 2021-07-01 | L44: 0 | M44: 0 | N44: 112.931 | O44: 189.7034373 | P44: 0 | Q44: 0 | S44: 904.92 | V44: 102193.5205 | W44: 102193.5205 | X44: 101672.9086 | Y44: 0 | Z44: 5903.072146 | AA44: 0 | AB44: 0 | AC44: 440.1773583 | AD44: 9456.063528 | AE44: 57916.58656 | AI44: 0 | AJ44: 0 | AK44: 1086.025297 | AL44: 1047.220117 | AN44: 26.47556657 | AO44: 10839.51568 | AP44: 13765.59482 | AQ44: 0 | AR44: 0 | AU44: 0 | AV44: 407.4735574 | AW44: 112.9877169 | AZ44: 0 | BB44: 178.1868721 | BC44: -719.1725551 | BD44: 47.59086024 | BE44: 17.26205309 | BG44: 1208.491866 | BH44: 28.35163333 | BI44: 0 | BJ44: 0 | BK44: 0 | BL44: 0 | BN44: -69118.99306 | BV44: 1273.344779 | CI44: 170788.807 | CJ44: -877.65752 | CO44: -520.61191 | CP44: 0 | CQ44: 31 | CR44: -512.1974297 | CS44: 220.2587128 | CT44: 236.6642644 | CU44: 0 | CV44: 0 | CZ44: 723.3307818 | DA44: 0 | DB44: -12.48914424 | DE44: 0.1073720256 | DF44: 0.2960208173 | DG44: 7.516963299 | DH44: 0 | DI44: -112.5143044 | DK44: 0 | DL44: 0 | DN44: 0.005195946111 | DO44: -16.22421347 | DP44: -0.7182125975 | DQ44: 0 | DR44: -1558.430866 | DV44: 57916.58656 | DW44: 28.05467054 | DX44: -0.2969627896 | DY44: -500.28433 | EA44: -20.32758 | EC44: 11.64286871 | EE44: 6.659678246 | EF44: 2.415583977 | EH44: 169.1116099 | EI44: -402.4754179 | EJ44: -316.6971371 | EK44: 0 | EL44: 0 | EO44: 0 | EP44: 411.5373581 | ER44: 0 | ET44: 0 | EV44: 165 | FA44: 0 | FF44: 0 | FG44: 0 | FH44: 0 | FI44: 0
A45: 2403 | B45: Regular | C45: Distribuição | D45: A3a | E45: Não se aplica | F45: Não se aplica | G45: Não se aplica | H45: EMS | I45: Fora ponta | J45: DISTRIBUIÇÃO | K45: 2021-07-01 | L45: 16198 | M45: 16198 | N45: 0 | O45: 0 | P45: 0 | Q45: 0 | R45: 10.41 | U45: 168621.18 | W45: 168621.18 | X45: 169107.12 | Y45: 0 | Z45: 0 | AA45: 0 | AB45: 0 | AC45: 1882.0833 | AD45: 22303.2704 | AE45: 27858.09726 | AI45: 0 | AJ45: 0 | AK45: 0 | AL45: 0 | AN45: 0 | AO45: 51249.71682 | AP45: 65329.79411 | AQ45: 0 | AR45: 0 | AU45: 0 | AV45: 0 | AW45: 0 | AZ45: 0 | BB45: 0 | BC45: -3407.456361 | BD45: 0 | BE45: 0 | BG45: 0 | BH45: 0 | BI45: 0 | BJ45: 0 | BK45: 0 | BL45: 0 | BV45: 0 | CI45: 169107.12 | CJ45: 485.91 | CO45: 485.94 | CP45: 0 | CQ45: 31 | CR45: 3817.235017 | CS45: 1041.393084 | CT45: 1123.179047 | CU45: 0 | CV45: 0 | CZ45: 1706.063202 | DA45: 0 | DB45: -53.40031552 | DE45: 0 | DF45: 0 | DG45: 0 | DH45: 0 | DI45: 0 | DK45: 0 | DL45: 0 | DN45: 0 | DO45: 0 | DP45: 0 | DQ45: 0 | DR45: 0 | DT45: C | DU45: 27858.09726 | DW45: 0 | DX45: 0 | DY45: 3887.52 | EA45: -3401.58 | EC45: 5.600263902 | EE45: 0 | EF45: 0 | EH45: 0 | EI45: -1910.098077 | EJ45: -1497.358284 | EK45: 0 | EL45: 0 | EO45: 0 | EP45: 0 | ER45: 0 | ET45: 0 | EV45: 165 | FA45: 0 | FF45: 0 | FG45: 0 | FH45: 0 | FI45: 0
A46: 2405 | B46: Regular | C46: Distribuição | D46: A3a | E46: Não se aplica | F46: Não se aplica | G46: Não se aplica | H46: EMS | I46: Não se aplica | J46: DISTRIBUIÇÃO | K46: 2021-07-01 | L46: 0 | M46: 0 | N46: 5002.896 | O46: 5002.896 | P46: 0 | Q46: 0 | S46: 10.85 | V46: 54281.4216 | W46: 54281.4216 | X46: 62236.02624 | Y46: 0 | Z46: 0 | AA46: 0 | AB46: 0 | AC46: 0 | AD46: 0 | AE46: 0 | AI46: 0 | AJ46: 0 | AK46: 0 | AL46: 0 | AN46: 0 | AO46: 0 | AP46: 0 | AQ46: 0 | AR46: 0 | AU46: 0 | AV46: 0 | AW46: 0 | AZ46: 0 | BB46: 7598.734732 | BC46: 0 | BD46: 0 | BE46: 764.7170072 | BG46: 53536.75361 | BH46: 0 | BI46: 23694.99 | BJ46: 0 | BK46: 0 | BL46: 0 | BV46: 54301.47062 | CI46: 62236.076 | CJ46: 7954.6244 | CO46: 7954.60464 | CP46: 0 | CQ46: 31 | CR46: 337.7616128 | CS46: 0 | CT46: 0 | CU46: 0 | CV46: 0 | CZ46: 0 | DA46: 0 | DB46: 0 | DE46: 4.756630838 | DF46: 0 | DG46: 333.004982 | DH46: 0 | DI46: 0 | DK46: 0 | DL46: 0 | DN46: 0 | DO46: 0 | DP46: 0 | DQ46: 0 | DR46: 0 | DT46: C | DV46: 0 | DW46: 0 | DX46: 0 | DY46: 350.20272 | EA46: 7604.40192 | EC46: 0 | EE46: 0 | EF46: 107.0114974 | EH46: 7491.723234 | EI46: 0 | EJ46: 0 | EK46: 0 | EL46: 0 | EO46: 0 | EP46: 0 | ER46: 0 | ET46: 0 | EV46: 165 | FA46: 0 | FF46: 0 | FG46: 0 | FH46: 0 | FI46: 0
A47: 2401 | B47: Regular | C47: Distribuição | D47: A3a | E47: Não se aplica | F47: Não se aplica | G47: Não se aplica | H47: EMS | I47: Ponta | J47: DISTRIBUIÇÃO | K47: 2021-07-01 | L47: 14357 | M47: 14357 | N47: 0 | O47: 0 | P47: 0 | Q47: 0 | R47: 17.18 | U47: 246653.26 | W47: 246653.26 | X47: 248950.38 | Y47: 0 | Z47: 0 | AA47: 0 | AB47: 0 | AC47: 2326.451402 | AD47: 49984.94088 | AE47: 64245.4918 | AI47: 0 | AJ47: 0 | AK47: 0 | AL47: 0 | AN47: 0 | AO47: 57298.06616 | AP47: 72766.89371 | AQ47: 0 | AR47: 0 | AU47: 0 | AV47: 0 | AW47: 0 | AZ47: 0 | BB47: 0 | BC47: -3801.614704 | BD47: 0 | BE47: 0 | BG47: 0 | BH47: 0 | BI47: 0 | BJ47: 0 | BK47: 0 | BL47: 0 | BV47: 0 | CI47: 248950.38 | CJ47: 2297.09 | CO47: 2297.12 | CP47: 0 | CQ47: 31 | CR47: 6172.869007 | CS47: 1164.295405 | CT47: 1251.04099 | CU47: 0 | CV47: 0 | CZ47: 3823.540975 | DA47: 0 | DB47: -66.00836365 | DE47: 0 | DF47: 0 | DG47: 0 | DH47: 0 | DI47: 0 | DK47: 0 | DL47: 0 | DN47: 0 | DO47: 0 | DP47: 0 | DQ47: 0 | DR47: 0 | DT47: C | DU47: 64245.4918 | DW47: 0 | DX47: 0 | DY47: 6029.94 | EA47: -3732.82 | EC47: 12.91515731 | EE47: 0 | EF47: 0 | EH47: 0 | EI47: -2127.542351 | EJ47: -1674.072353 | EK47: 0 | EL47: 0 | EO47: 0 | EP47: 0 | ER47: 0 | ET47: 0 | EV47: 165 | FA47: 0 | FF47: 0 | FG47: 0 | FH47: 0 | FI47: 0
A48: 2409 | B48: Regular | C48: Geração | D48: A3a | E48: Não se aplica | F48: Não se aplica | G48: Não se aplica | H48: LARANJA DOCE | I48: Não se aplica | J48: GERAÇÃO | K48: 2021-07-01 | L48: 719 | M48: 359.5 | N48: 0 | O48: 0 | P48: 0 | Q48: 0 | R48: 4.99 | U48: 3587.81 | W48: 3587.81 | X48: 3537.48 | Y48: 0 | Z48: 0 | AA48: 0 | AB48: 0 | AC48: 0 | AD48: 0 | AE48: 3511.285336 | AI48: 0 | AJ48: 0 | AK48: 62.39594616 | AL48: 0 | AN48: 16.79177591 | AO48: 0 | AP48: 0 | AQ48: 0 | AR48: 0 | AU48: 0 | AV48: 0 | AW48: 0 | AZ48: 0 | BB48: 0.09781450567 | BC48: 0 | BD48: 0 | BE48: 0 | BG48: 0.6989942001 | BH48: 0 | BI48: 40.22 | BJ48: 0 | BK48: 0 | BL48: 0 | BO48: 1768.74 | BV48: 0.6989942001 | CI48: 1768.74 | CJ48: -25.195 | CO48: -50.33 | CP48: 0 | CQ48: 31 | CR48: -55.21529199 | CS48: 0 | CT48: 0 | CU48: 0 | CV48: 0 | CZ48: 0 | DA48: 0 | DB48: 0 | DE48: 0 | DF48: 0 | DG48: 0.004347827153 | DH48: 0 | DI48: 0 | DK48: 0 | DL48: 0 | DN48: 0.0002985252504 | DO48: 0 | DP48: -0.4555167861 | DQ48: 0 | DR48: -54.76442156 | DU48: 3511.285336 | DW48: 0 | DX48: 0 | DY48: -50.33 | EA48: 0 | EC48: 0.7058674657 | EE48: 0 | EF48: 0 | EH48: 0.09781450567 | EI48: 0 | EJ48: 0 | EK48: 0 | EL48: 0 | EO48: 0 | EP48: 0 | ER48: 0 | ET48: 0 | EV48: 165 | FA48: 0 | FF48: 0 | FG48: 0 | FH48: 0 | FI48: 0
A49: 2413 | B49: Regular | C49: Geração | D49: A3a | E49: Não se aplica | F49: Não se aplica | G49: Não se aplica | H49: PARI | I49: Não se aplica | J49: GERAÇÃO | K49: 2021-07-01 | L49: 1344 | M49: 672 | N49: 0 | O49: 0 | P49: 0 | Q49: 0 | R49: 4.99 | U49: 6706.56 | W49: 6706.56 | X49: 6612.48 | Y49: 0 | Z49: 0 | AA49: 0 | AB49: 0 | AC49: 0 | AD49: 0 | AE49: 6563.515287 | AI49: 0 | AJ49: 0 | AK49: 116.6344251 | AL49: 0 | AN49: 31.38824315 | AO49: 0 | AP49: 0 | AQ49: 0 | AR49: 0 | AU49: 0 | AV49: 0 | AW49: 0 | AZ49: 0 | BB49: 0.1828410231 | BC49: 0 | BD49: 0 | BE49: 0 | BG49: 1.306603901 | BH49: 0 | BI49: 75.19 | BJ49: 0 | BK49: 0 | BL49: 0 | BO49: 3306.24 | BV49: 1.306603901 | CI49: 3306.24 | CJ49: -47.07 | CO49: -94.08 | CP49: 0 | CQ49: 31 | CR49: -103.2118949 | CS49: 0 | CT49: 0 | CU49: 0 | CV49: 0 | CZ49: 0 | DA49: 0 | DB49: 0 | DE49: 0 | DF49: 0 | DG49: 0.008127231841 | DH49: 0 | DI49: 0 | DK49: 0 | DL49: 0 | DN49: 0.000558022165 | DO49: 0 | DP49: -0.8514806126 | DQ49: 0 | DR49: -102.3690995 | DU49: 6563.515287 | DW49: 0 | DX49: 0 | DY49: -94.08 | EA49: 0 | EC49: 1.319451841 | EE49: 0 | EF49: 0 | EH49: 0.1828410231 | EI49: 0 | EJ49: 0 | EK49: 0 | EL49: 0 | EO49: 0 | EP49: 0 | ER49: 0 | ET49: 0 | EV49: 165 | FA49: 0 | FF49: 0 | FG49: 0 | FH49: 0 | FI49: 0
A50: 2415 | B50: Regular | C50: Geração | D50: A3a | E50: Não se aplica | F50: Não se aplica | G50: Não se aplica | H50: QUATIARA | I50: Não se aplica | J50: GERAÇÃO | K50: 2021-07-01 | L50: 2590 | M50: 1295 | N50: 0 | O50: 0 | P50: 0 | Q50: 0 | R50: 4.99 | U50: 12924.1 | W50: 12924.1 | X50: 12742.8 | Y50: 0 | Z50: 0 | AA50: 0 | AB50: 0 | AC50: 0 | AD50: 0 | AE50: 12648.44092 | AI50: 0 | AJ50: 0 | AK50: 224.7642567 | AL50: 0 | AN50: 60.48776023 | AO50: 0 | AP50: 0 | AQ50: 0 | AR50: 0 | AU50: 0 | AV50: 0 | AW50: 0 | AZ50: 0 | BB50: 0.3523498883 | BC50: 0 | BD50: 0 | BE50: 0 | BG50: 2.517934601 | BH50: 0 | BI50: 144.89 | BJ50: 0 | BK50: 0 | BL50: 0 | BO50: 6371.4 | BV50: 2.517934601 | CI50: 6371.4 | CJ50: -90.68 | CO50: -181.3 | CP50: 0 | CQ50: 31 | CR50: -198.8979225 | CS50: 0 | CT50: 0 | CU50: 0 | CV50: 0 | CZ50: 0 | DA50: 0 | DB50: 0 | DE50: 0 | DF50: 0 | DG50: 0.01566185303 | DH50: 0 | DI50: 0 | DK50: 0 | DL50: 0 | DN50: 0.001075355214 | DO50: 0 | DP50: -1.640874097 | DQ50: 0 | DR50: -197.2737856 | DU50: 12648.44092 | DW50: 0 | DX50: 0 | DY50: -181.3 | EA50: 0 | EC50: 2.542693653 | EE50: 0 | EF50: 0 | EH50: 0.3523498883 | EI50: 0 | EJ50: 0 | EK50: 0 | EL50: 0 | EO50: 0 | EP50: 0 | ER50: 0 | ET50: 0 | EV50: 165 | FA50: 0 | FF50: 0 | FG50: 0 | FH50: 0 | FI50: 0
A51: 2437 | B51: Regular | C51: Geração | D51: A3a | E51: Não se aplica | F51: Não se aplica | G51: Dupla contratação | H51: UTE SÃO DOMINGOS | I51: Não se aplica | J51: GERAÇÃO | K51: 2021-07-01 | L51: 2803 | M51: 1401.5 | N51: 0 | O51: 0 | P51: 0 | Q51: 0 | R51: 4.99 | U51: 13986.97 | W51: 13986.97 | X51: 13790.76 | Y51: 0 | Z51: 0 | AA51: 0 | AB51: 0 | AC51: 0 | AD51: 0 | AE51: 13688.64088 | AI51: 0 | AJ51: 0 | AK51: 243.2487303 | AL51: 0 | AN51: 65.46223626 | AO51: 0 | AP51: 0 | AQ51: 0 | AR51: 0 | AU51: 0 | AV51: 0 | AW51: 0 | AZ51: 0 | BB51: 0.3813269255 | BC51: 0 | BD51: 0 | BE51: 0 | BG51: 2.725007987 | BH51: 0 | BI51: 377.19 | BJ51: 0 | BK51: 0 | BL51: 0 | BO51: 6895.38 | BV51: 2.725007987 | CI51: 6895.38 | CJ51: -98.135 | CO51: -196.21 | CP51: 0 | CQ51: 31 | CR51: -215.2551647 | CS51: 0 | CT51: 0 | CU51: 0 | CV51: 0 | CZ51: 0 | DA51: 0 | DB51: 0 | DE51: 0 | DF51: 0 | DG51: 0.01694987414 | DH51: 0 | DI51: 0 | DK51: 0 | DL51: 0 | DN51: 0.001163791762 | DO51: 0 | DP51: -1.775818569 | DQ51: 0 | DR51: -213.4974598 | DU51: 13688.64088 | DW51: 0 | DX51: 0 | DY51: -196.21 | EA51: 0 | EC51: 2.751803208 | EE51: 0 | EF51: 0 | EH51: 0.3813269255 | EI51: 0 | EJ51: 0 | EK51: 0 | EL51: 0 | EO51: 0 | EP51: 0 | ER51: 0 | ET51: 0 | EV51: 165 | FA51: 0 | FF51: 0 | FG51: 0 | FH51: 0 | FI51: 0
A52: 2448 | B52: Regular | C52: Geração | D52: A3a | E52: Não se aplica | F52: Não se aplica | G52: Dupla contratação | H52: TARUMA (ANTIGA NOVA AMERICA) | I52: Não se aplica | J52: GERAÇÃO | K52: 2021-07-01 | L52: 3400 | M52: 1700 | N52: 0 | O52: 0 | P52: 0 | Q52: 0 | R52: 4.99 | U52: 16966 | W52: 16966 | X52: 16728 | Y52: 0 | Z52: 0 | AA52: 0 | AB52: 0 | AC52: 0 | AD52: 0 | AE52: 16604.13093 | AI52: 0 | AJ52: 0 | AK52: 295.0573254 | AL52: 0 | AN52: 79.40478177 | AO52: 0 | AP52: 0 | AQ52: 0 | AR52: 0 | AU52: 0 | AV52: 0 | AW52: 0 | AZ52: 0 | BB52: 0.4625442549 | BC52: 0 | BD52: 0 | BE52: 0 | BG52: 3.305396774 | BH52: 0 | BI52: 190.22 | BJ52: 0 | BK52: 0 | BL52: 0 | BO52: 8364 | BV52: 3.305396774 | CI52: 8364 | CJ52: -119.03 | CO52: -238 | CP52: 0 | CQ52: 31 | CR52: -261.1015198 | CS52: 0 | CT52: 0 | CU52: 0 | CV52: 0 | CZ52: 0 | DA52: 0 | DB52: 0 | DE52: 0 | DF52: 0 | DG52: 0.0205599615 | DH52: 0 | DI52: 0 | DK52: 0 | DL52: 0 | DN52: 0.001411663215 | DO52: 0 | DP52: -2.154043217 | DQ52: 0 | DR52: -258.9694483 | DU52: 16604.13093 | DW52: 0 | DX52: 0 | DY52: -238 | EA52: 0 | EC52: 3.337899004 | EE52: 0 | EF52: 0 | EH52: 0.4625442549 | EI52: 0 | EJ52: 0 | EK52: 0 | EL52: 0 | EO52: 0 | EP52: 0 | ER52: 0 | ET52: 0 | EV52: 165 | FA52: 0 | FF52: 0 | FG52: 0 | FH52: 0 | FI52: 0
A53: 2468 | B53: Regular | C53: Geração | D53: A3a | E53: Não se aplica | F53: Não se aplica | G53: Não se aplica | H53: PARQUE I | I53: Não se aplica | J53: GERAÇÃO | K53: 2021-07-01 | L53: 4720 | M53: 2360 | N53: 0 | O53: 0 | P53: 0 | Q53: 0 | R53: 4.99 | U53: 23552.8 | W53: 23552.8 | X53: 23222.4 | Y53: 0 | Z53: 0 | AA53: 0 | AB53: 0 | AC53: 0 | AD53: 0 | AE53: 23050.44059 | AI53: 0 | AJ53: 0 | AK53: 409.6089929 | AL53: 0 | AN53: 110.2325206 | AO53: 0 | AP53: 0 | AQ53: 0 | AR53: 0 | AU53: 0 | AV53: 0 | AW53: 0 | AZ53: 0 | BB53: 0.6421202598 | BC53: 0 | BD53: 0 | BE53: 0 | BG53: 4.588668463 | BH53: 0 | BI53: 264.07 | BJ53: 0 | BK53: 0 | BL53: 0 | BO53: 11611.2 | BV53: 4.588668463 | CI53: 11611.2 | CJ53: -165.23 | CO53: -330.4 | CP53: 0 | CQ53: 31 | CR53: -362.4703452 | CS53: 0 | CT53: 0 | CU53: 0 | CV53: 0 | CZ53: 0 | DA53: 0 | DB53: 0 | DE53: 0 | DF53: 0 | DG53: 0.0285420642 | DH53: 0 | DI53: 0 | DK53: 0 | DL53: 0 | DN53: 0.001959720698 | DO53: 0 | DP53: -2.990318818 | DQ53: 0 | DR53: -359.5105282 | DU53: 23050.44059 | DW53: 0 | DX53: 0 | DY53: -330.4 | EA53: 0 | EC53: 4.633789205 | EE53: 0 | EF53: 0 | EH53: 0.6421202598 | EI53: 0 | EJ53: 0 | EK53: 0 | EL53: 0 | EO53: 0 | EP53: 0 | ER53: 0 | ET53: 0 | EV53: 165 | FA53: 0 | FF53: 0 | FG53: 0 | FH53: 0 | FI53: 0
A54: 140 | B54: Regular | C54: Verde | D54: A3a | E54: Poder público | F54: Não se aplica | G54: Não se aplica | H54: Não se aplica | I54: Fora ponta | J54: CATIVO | K54: 2021-07-01 | L54: 0 | M54: 0 | N54: 0.123 | O54: 0.123 | P54: 0.123 | Q54: 0.123 | S54: 77.17 | T54: 240.27 | V54: 39.04512 | W54: 39.04512 | X54: 43.43622 | Y54: 0 | Z54: 6.429393825 | AA54: 0 | AB54: 0 | AC54: 0 | AD54: 0 | AE54: 0 | AF54: 25.93724739 | AG54: 0.9867082101 | AH54: 0.5202391545 | AI54: 0 | AJ54: 0 | AK54: 0.3589475799 | AL54: 1.140590931 | AN54: 0.02883614497 | AO54: 0 | AP54: 0 | AQ54: 0 | AR54: 0 | AS54: 0 | AT54: 0.5419042136 | AU54: 0 | AV54: 0.4438041597 | AW54: 0.1230617738 | AX54: 0.08972946447 | AY54: 0.4854067902 | AZ54: 0 | BB54: 3.879177057 | BC54: -0.01584407559 | BD54: 0.0518340917 | BE54: 0.01880114875 | BF54: 0.3969405359 | BG54: 1.316241772 | BH54: 0.03087948304 | BI54: 0 | BJ54: 0 | BK54: 0 | BL54: 0 | BV54: 27.72106494 | CI54: 42.3768 | CJ54: 3.30168 | CO54: 0.48339 | CP54: 3.90771 | CQ54: 31 | CR54: -0.5502481801 | CS54: 0 | CT54: 0 | CU54: 0 | CV54: 0 | CW54: 0 | CX54: 0.01949317214 | CY54: -0.007767968437 | CZ54: 0 | DA54: 0 | DB54: 0 | DC54: 0.1613327671 | DD54: 0.002469017397 | DE54: 0.0001169453839 | DF54: 0.0003224142222 | DG54: 0.008187180542 | DH54: 0 | DI54: -0.1225461516 | DK54: 0 | DL54: 0 | DM54: 0.003321118108 | DN54: 1.717337787e-06 | DO54: -0.0176707747 | DP54: -0.0007822488908 | DQ54: 0 | DR54: -0.5975500893 | DV54: 0 | DW54: 0.03055604286 | DX54: -0.0003234401814 | DY54: -0.27798 | DZ54: -0.27429 | EA54: 0.76137 | EB54: 4.182 | EC54: 0 | ED54: 3.629556628 | EE54: 0.007253459407 | EF54: 0.002630958985 | EG54: 0.0555463011 | EH54: 0.1841897089 | EI54: 0 | EJ54: 0 | EK54: 0 | EL54: 0 | EM54: 0 | EN54: -0.01584407559 | EO54: 0 | EP54: 0.4482302915 | EQ54: 0.837448717 | ER54: 0 | ES54: -0.0626573014 | ET54: 0 | EU54: 0.0008247205247 | EV54: 165 | EW54: 0 | EX54: 0 | EY54: 0 | FA54: 0 | FF54: 0 | FG54: 0 | FH54: 0 | FI54: 0
A55: 141 | B55: Regular | C55: Verde | D55: A3a | E55: Poder público | F55: Não se aplica | G55: Não se aplica | H55: Não se aplica | I55: Não se aplica | J55: CATIVO | K55: 2021-07-01 | L55: 34 | M55: 34 | N55: 0 | O55: 0 | P55: 0 | Q55: 0 | R55: 16.89 | U55: 574.26 | W55: 574.26 | X55: 566.44 | Y55: 0 | Z55: 0 | AA55: 0 | AB55: 0 | AC55: 3.950539091 | AD55: 46.81511259 | AE55: 278.6511423 | AI55: 0 | AJ55: 0 | AK55: 0 | AL55: 0 | AN55: 0 | AO55: 107.5744149 | AP55: 137.128843 | AQ55: 0 | AR55: 0 | AU55: 0 | AV55: 0 | AW55: 0 | AZ55: 0 | BB55: 0 | BC55: -7.152334626 | BD55: 0 | BE55: 0 | BG55: 0 | BH55: 0 | BI55: 4.81 | BJ55: 22.18 | BK55: 0 | BL55: 1 | BV55: 0 | CI55: 566.44 | CJ55: -7.85 | CO55: -7.82 | CP55: 0 | CQ55: 31 | CR55: -0.7427084637 | CS55: 2.185909671 | CT55: 2.357580417 | CU55: 0 | CV55: 0 | CZ55: 3.58106858 | DA55: 0 | DB55: -0.1120885744 | DE55: 0 | DF55: 0 | DG55: 0 | DH55: 0 | DI55: 0 | DK55: 0 | DL55: 0 | DN55: 0 | DO55: 0 | DP55: 0 | DQ55: 0 | DR55: -8.755178557 | DU55: 278.6511423 | DW55: 0 | DX55: 0 | DY55: -0.68 | EA55: -7.14 | EC55: 0.0560167451 | EE55: 0 | EF55: 0 | EH55: 0 | EI55: -4.009342796 | EJ55: -3.14299183 | EK55: 0 | EL55: 0 | EO55: 0 | EP55: 0 | ER55: 0 | ET55: 0 | EV55: 165 | FA55: 0 | FF55: 0 | FG55: 0 | FH55: 0 | FI55: 0
A56: 111 | B56: Regular | C56: Verde | D56: A3a | E56: Rural | F56: Não se aplica | G56: Não se aplica | H56: Não se aplica | I56: Fora ponta | J56: CATIVO | K56: 2021-07-01 | L56: 0 | M56: 0 | N56: 40.087 | O56: 38.48352 | P56: 40.087 | Q56: 38.48352 | S56: 77.17 | T56: 240.27 | V56: 12725.21728 | W56: 12725.21728 | X56: 14156.32318 | Y56: 0 | Z56: 2095.4074 | AA56: 0 | AB56: 0 | AC56: 0 | AD56: 0 | AE56: 0 | AF56: 8453.223059 | AG56: 321.5786343 | AH56: 169.5514389 | AI56: 0 | AJ56: 0 | AK56: 116.98481 | AL56: 371.7306394 | AN56: 9.398004418 | AO56: 0 | AP56: 0 | AQ56: 0 | AR56: 0 | AS56: 0 | AT56: 176.6123107 | AU56: 0 | AV56: 144.6404663 | AW56: 40.10713273 | AX56: 29.24378083 | AY56: 158.1992032 | AZ56: 0 | BB56: 1264.264802 | BC56: -5.163751693 | BD56: 16.89327832 | BE56: 6.12749309 | BF56: 129.367116 | BG56: 428.9771048 | BH56: 10.06394989 | BI56: 0 | BJ56: 0 | BK56: 0 | BL56: 0 | BR56: 566.2529272 | BV56: 9034.588051 | CI56: 13588.8272 | CJ56: 1372.588611 | CO56: 157.54191 | CP56: 1273.56399 | CQ56: 31 | CR56: -179.3316975 | CS56: 0 | CT56: 0 | CU56: 0 | CV56: 0 | CW56: 0 | CX56: 6.353030826 | CY56: -2.531663014 | CZ56: 0 | DA56: 0 | DB56: 0 | DC56: 52.58005394 | DD56: 0.8046788649 | DE56: 0.03811373661 | DF56: 0.1050782026 | DG56: 2.66828867 | DH56: 0 | DI56: -39.939086 | DK56: 0 | DL56: 0 | DM56: 1.082387493 | DN56: 0.0005596985357 | DO56: -5.759092237 | DP56: -0.2549431812 | DQ56: 0 | DR56: -194.7478897 | DV56: 0 | DW56: 9.958537318 | DX56: -0.1054125736 | DY56: -90.59662 | DZ56: -89.39401 | EA56: 248.13853 | EB56: 1362.958 | EC56: 0 | ED56: 1182.910866 | EE56: 2.363979083 | EF56: 0.8574573401 | EG56: 18.1031266 | EH56: 60.02937285 | EI56: 0 | EJ56: 0 | EK56: 0 | EL56: 0 | EM56: 0 | EN56: -5.163751693 | EO56: 0 | EP56: 146.0829894 | EQ56: 272.933388 | ER56: 0 | ES56: -20.42067676 | ET56: 0 | EU56: 0.2687851355 | EV56: 165 | EW56: 0 | EX56: 0 | EY56: 0 | FA56: 0 | FF56: 0 | FG56: 0 | FH56: 0 | FI56: 0
A57: 112 | B57: Refaturamento - Regular | C57: Verde | D57: A3a | E57: Rural | F57: Não se aplica | G57: Não se aplica | H57: Não se aplica | I57: Fora ponta | J57: CATIVO | K57: 2021-07-01 | L57: 0 | M57: 0 | N57: -32.141 | O57: -30.85536 | P57: -32.141 | Q57: -30.85536 | S57: 77.17 | T57: 240.27 | V57: -10202.83904 | W57: -10202.83904 | X57: -11350.27274 | Y57: 0 | Z57: -1680.058105 | AA57: 0 | AB57: 0 | AC57: 0 | AD57: 0 | AE57: 0 | AF57: -6777.634703 | AG57: -257.8356795 | AH57: -135.9431436 | AI57: 0 | AJ57: 0 | AK57: -93.79621272 | AL57: -298.0466107 | AN57: -7.535142565 | AO57: 0 | AP57: 0 | AQ57: 0 | AR57: 0 | AS57: 0 | AT57: -141.6044173 | AU57: 0 | AV57: -115.9699959 | AW57: -32.15714204 | AX57: -23.44711152 | AY57: -126.8411353 | AZ57: 0 | BB57: -1013.663657 | BC57: 4.140198647 | BD57: -13.54471172 | BE57: -4.912908309 | BF57: -103.7241119 | BG57: -343.9457462 | BH57: -8.069085076 | BI57: 0 | BJ57: 0 | BK57: 0 | BL57: 0 | BR57: -454.0109096 | BV57: -7243.762181 | CI57: -10897.9004 | CJ57: -1103.204922 | CO57: -126.31413 | CP57: -1021.11957 | CQ57: 31 | CR57: 143.7847704 | CS57: 0 | CT57: 0 | CU57: 0 | CV57: 0 | CW57: 0 | CX57: -5.093740209 | CY57: 2.029839622 | CZ57: 0 | DA57: 0 | DB57: 0 | DC57: -42.15769485 | DD57: -0.6451763264 | DE57: -0.03055887466 | DF57: -0.08424971963 | DG57: -2.139383494 | DH57: 0 | DI57: 32.02240534 | DK57: 0 | DL57: 0 | DM57: -0.8678378626 | DN57: -0.0004487557222 | DO57: 4.617531459 | DP57: 0.2044086309 | DQ57: 0 | DR57: 156.1451823 | DV57: 0 | DW57: -7.984567264 | DX57: 0.08451781195 | DY57: 72.63866 | DZ57: 71.67443 | EA57: -198.95279 | EB57: -1092.794 | EC57: 0 | ED57: -948.4356065 | EE57: -1.895393811 | EF57: -0.6874931117 | EG57: -14.51474523 | EH57: -48.13041816 | EI57: 0 | EJ57: 0 | EK57: 0 | EL57: 0 | EM57: 0 | EN57: 4.140198647 | EO57: 0 | EP57: -117.1265837 | EQ57: -218.8328391 | ER57: 0 | ES57: 16.3729132 | ET57: 0 | EU57: -0.2155068486 | EV57: 165 | EW57: 0 | EX57: 0 | EY57: 0 | FA57: 0 | FF57: 0 | FG57: 0 | FH57: 0 | FI57: 0
A58: 113 | B58: Regular | C58: Verde | D58: A3a | E58: Rural | F58: Não se aplica | G58: Não se aplica | H58: Não se aplica | I58: Não se aplica | J58: CATIVO | K58: 2021-07-01 | L58: 474 | M58: 455.04 | N58: 0 | O58: 0 | P58: 0 | Q58: 0 | R58: 16.89 | U58: 8005.86 | W58: 8005.86 | X58: 7896.84 | Y58: 0 | Z58: 0 | AA58: 0 | AB58: 0 | AC58: 55.07516263 | AD58: 652.6577461 | AE58: 3884.724748 | AI58: 0 | AJ58: 0 | AK58: 0 | AL58: 0 | AN58: 0 | AO58: 1499.713901 | AP58: 1911.7374 | AQ58: 0 | AR58: 0 | AU58: 0 | AV58: 0 | AW58: 0 | AZ58: 0 | BB58: 0 | BC58: -99.7119592 | BD58: 0 | BE58: 0 | BG58: 0 | BH58: 0 | BI58: 238.48 | BJ58: 1098.62 | BK58: 2500.98 | BL58: 7 | BR58: 315.8736 | BV58: 0 | CI58: 7580.9664 | CJ58: -104.6892 | CO58: -109.02 | CP58: 0 | CQ58: 31 | CR58: -10.35422976 | CS58: 30.47415247 | CT58: 32.86744463 | CU58: 0 | CV58: 0 | CZ58: 49.92430903 | DA58: 0 | DB58: -1.562646596 | DE58: 0 | DF58: 0 | DG58: 0 | DH58: 0 | DI58: 0 | DK58: 0 | DL58: 0 | DN58: 0 | DO58: 0 | DP58: 0 | DQ58: 0 | DR58: -122.0574893 | DU58: 3884.724748 | DW58: 0 | DX58: 0 | DY58: -9.48 | EA58: -99.54 | EC58: 0.7809393287 | EE58: 0 | EF58: 0 | EH58: 0 | EI58: -55.89495545 | EJ58: -43.81700375 | EK58: 0 | EL58: 0 | EO58: 0 | EP58: 0 | ER58: 0 | ET58: 0 | EV58: 165 | FA58: 0 | FF58: 0 | FG58: 0 | FH58: 0 | FI58: 0
A59: 114 | B59: Refaturamento - Regular | C59: Verde | D59: A3a | E59: Rural | F59: Não se aplica | G59: Não se aplica | H59: Não se aplica | I59: Não se aplica | J59: CATIVO | K59: 2021-07-01 | L59: -1026 | M59: -984.96 | N59: 0 | O59: 0 | P59: 0 | Q59: 0 | R59: 16.89 | U59: -17329.14 | W59: -17329.14 | X59: -17093.16 | Y59: 0 | Z59: 0 | AA59: 0 | AB59: 0 | AC59: -119.2133267 | AD59: -1412.714868 | AE59: -8408.707999 | AI59: 0 | AJ59: 0 | AK59: 0 | AL59: 0 | AN59: 0 | AO59: -3246.216166 | AP59: -4138.064499 | AQ59: 0 | AR59: 0 | AU59: 0 | AV59: 0 | AW59: 0 | AZ59: 0 | BB59: 0 | BC59: 215.8322155 | BD59: 0 | BE59: 0 | BG59: 0 | BH59: 0 | BI59: -508.44 | BJ59: -2342.09 | BK59: 0 | BL59: 0 | BR59: -683.7264 | BV59: 0 | CI59: -16409.4336 | CJ59: 226.5108 | CO59: 235.98 | CP59: 0 | CQ59: 31 | CR59: 22.41232011 | CS59: -65.96303889 | CT59: -71.1434561 | CU59: 0 | CV59: 0 | CZ59: -108.0640107 | DA59: 0 | DB59: 3.382437568 | DE59: 0 | DF59: 0 | DG59: 0 | DH59: 0 | DI59: 0 | DK59: 0 | DL59: 0 | DN59: 0 | DO59: 0 | DP59: 0 | DQ59: 0 | DR59: 264.2003882 | DU59: -8408.707999 | DW59: 0 | DX59: 0 | DY59: 20.52 | EA59: 215.46 | EC59: -1.690387661 | EE59: 0 | EF59: 0 | EH59: 0 | EI59: 120.987815 | EJ59: 94.84440052 | EK59: 0 | EL59: 0 | EO59: 0 | EP59: 0 | ER59: 0 | ET59: 0 | EV59: 165 | FA59: 0 | FF59: 0 | FG59: 0 | FH59: 0 | FI59: 0
A60: 109 | B60: Regular | C60: Verde | D60: A3a | E60: Rural | F60: Não se aplica | G60: Não se aplica | H60: Não se aplica | I60: Ponta | J60: CATIVO | K60: 2021-07-01 | L60: 0 | M60: 0 | N60: 4.561 | O60: 4.37856 | P60: 4.561 | Q60: 4.37856 | S60: 904.92 | T60: 392.1 | V60: 5915.70822 | W60: 5915.70822 | X60: 6130.21205 | Y60: 0 | Z60: 238.4102865 | AA60: 0 | AB60: 0 | AC60: 17.77766008 | AD60: 381.9067019 | AE60: 2339.105749 | AF60: 1654.273421 | AG60: 36.58842395 | AH60: 19.29114458 | AI60: 0 | AJ60: 0 | AK60: 56.18824191 | AL60: 42.29459542 | AN60: 1.069281766 | AO60: 437.7808662 | AP60: 555.9578677 | AQ60: 0 | AR60: 0 | AS60: 0 | AT60: 20.09451316 | AU60: 0 | AV60: 16.45683555 | AW60: 4.563290652 | AX60: 3.327285264 | AY60: 17.9995152 | AZ60: 0 | BB60: 240.7487818 | BC60: -29.63309564 | BD60: 1.922075547 | BE60: 0.6971710525 | BF60: 14.71907142 | BG60: 48.80795707 | BH60: 1.1450514 | BI60: 0 | BJ60: 0 | BK60: 0 | BL60: 0 | BR60: 245.208482 | BV60: 1720.419696 | CI60: 5886.939 | CJ60: 207.8291088 | CO60: -21.02621 | CP60: 235.53004 | CQ60: 31 | CR60: -37.11751299 | CS60: 8.895697276 | CT60: 9.55827638 | CU60: 0 | CV60: 0 | CW60: 0 | CX60: 0.7228321799 | CY60: -0.2880463743 | CZ60: 29.21351707 | DA60: 0 | DB60: -0.5044052288 | DC60: 10.28977765 | DD60: 0.0915543768 | DE60: 0.004336486958 | DF60: 0.01195553876 | DG60: 0.3035913045 | DH60: 0 | DI60: -4.544170709 | DK60: 0 | DL60: 0 | DM60: 0.1231513796 | DN60: 0.0002688253007 | DO60: -0.6552553121 | DP60: -0.02900680643 | DQ60: 0 | DR60: -90.34216874 | DV60: 2339.105749 | DW60: 1.133057817 | DX60: -0.01199358266 | DY60: -20.20523 | DZ60: -16.4196 | EA60: -0.82098 | EB60: 251.94964 | EC60: 0.4702262815 | ED60: 231.4925316 | EE60: 0.2689677102 | EF60: 0.09755938155 | EG60: 2.0597291 | EH60: 6.829994002 | EI60: -16.25497322 | EJ60: -12.79060349 | EK60: 0 | EL60: 0 | EM60: 0 | EN60: -0.5875189331 | EO60: 0 | EP60: 16.62096227 | EQ60: 31.05368779 | ER60: 0 | ES60: -2.323414241 | ET60: 0 | EU60: 0.03058170986 | EV60: 165 | EW60: 0 | EX60: 0 | EY60: 0 | FA60: 0 | FF60: 0 | FG60: 0 | FH60: 0 | FI60: 0
A61: 110 | B61: Refaturamento - Regular | C61: Verde | D61: A3a | E61: Rural | F61: Não se aplica | G61: Não se aplica | H61: Não se aplica | I61: Ponta | J61: CATIVO | K61: 2021-07-01 | L61: 0 | M61: 0 | N61: -2.716 | O61: -2.60736 | P61: -2.716 | Q61: -2.60736 | S61: 904.92 | T61: 392.1 | V61: -3522.70632 | W61: -3522.70632 | X61: -3650.4398 | Y61: 0 | Z61: -141.9693791 | AA61: 0 | AB61: 0 | AC61: -10.5863023 | AD61: -227.4191191 | AE61: -1392.898753 | AF61: -985.0924386 | AG61: -21.7878008 | AH61: -11.48755726 | AI61: 0 | AJ61: 0 | AK61: -33.45916795 | AL61: -25.18573145 | AN61: -0.6367395914 | AO61: -260.6912591 | AP61: -331.0637073 | AQ61: 0 | AR61: 0 | AS61: 0 | AT61: -11.96594995 | AU61: 0 | AV61: -9.799773153 | AW61: -2.717364045 | AX61: -1.981343297 | AY61: -10.71841335 | AZ61: 0 | BB61: -143.3619143 | BC61: 17.64601793 | BD61: -1.144564171 | BE61: -0.4151538212 | BF61: -8.764963379 | BG61: -29.0643305 | BH61: -0.681859154 | BI61: 0 | BJ61: 0 | BK61: 0 | BL61: 0 | BR61: -146.017592 | BV61: -1024.48145 | CI61: -3507.9705 | CJ61: -126.2024328 | CO61: 12.52076 | CP61: -140.25424 | CQ61: 31 | CR61: 22.10286457 | CS61: -5.297240474 | CT61: -5.691795362 | CU61: 0 | CV61: 0 | CW61: 0 | CX61: -0.4304345978 | CY61: 0.1715268478 | CZ61: -17.39616583 | DA61: 0 | DB61: 0.3003649642 | DC61: -6.127392261 | DD61: -0.05451911585 | DE61: -0.0025823062 | DF61: -0.007119325426 | DG61: -0.1807835964 | DH61: 0 | DI61: 2.705978436 | DK61: 0 | DL61: 0 | DM61: -0.07333460797 | DN61: -0.0001600810166 | DO61: 0.3901936916 | DP61: 0.01727307307 | DQ61: 0 | DR61: 53.79726601 | DV61: -1392.898753 | DW61: -0.674717174 | DX61: 0.00714197994 | DY61: 12.03188 | DZ61: 9.7776 | EA61: 0.48888 | EB61: -150.03184 | EC61: -0.2800119668 | ED61: -137.8499706 | EE61: -0.1601658191 | EF61: -0.05809499677 | EG61: -1.226534584 | EH61: -4.067148368 | EI61: 9.67956748 | EJ61: 7.616592649 | EK61: 0 | EL61: 0 | EM61: 0 | EN61: 0.3498577992 | EO61: 0 | EP61: -9.897507899 | EQ61: -18.49195704 | ER61: 0 | ES61: 1.38355472 | ET61: 0 | EU61: -0.01821090199 | EV61: 165 | EW61: 0 | EX61: 0 | EY61: 0 | FA61: 0 | FF61: 0 | FG61: 0 | FH61: 0 | FI61: 0
A62: 71 | B62: Regular | C62: Azul | D62: A4 | E62: Comercial | F62: Não se aplica | G62: Não se aplica | H62: Não se aplica | I62: Fora ponta | J62: CATIVO | K62: 2021-07-01 | L62: 5535 | M62: 5535 | N62: 1371.227 | O62: 1371.227 | P62: 1371.227 | Q62: 1371.227 | R62: 16.89 | S62: 77.17 | T62: 240.27 | U62: 93486.15 | V62: 435282.2989 | W62: 528768.4489 | X62: 576448.2028 | Y62: 0 | Z62: 71676.0846 | AA62: 0 | AB62: 0 | AC62: 643.1245256 | AD62: 7621.224947 | AE62: 45362.76684 | AF62: 289153.284 | AG62: 11000.00763 | AH62: 5799.723374 | AI62: 0 | AJ62: 0 | AK62: 4001.614741 | AL62: 12715.52098 | AN62: 321.4707362 | AO62: 17512.48195 | AP62: 22323.76901 | AQ62: 0 | AR62: 0 | AS62: 0 | AT62: 6041.249505 | AU62: 0 | AV62: 4947.61176 | AW62: 1371.915666 | AX62: 1000.320849 | AY62: 5411.405664 | AZ62: 0 | BB62: 43245.7912 | BC62: -1340.990722 | BD62: 577.8561468 | BE62: 209.5987219 | BF62: 4425.167319 | BG62: 14673.7094 | BH62: 344.2502511 | BI62: 0 | BJ62: 0 | BK62: 0 | BL62: 0 | BV62: 309039.6156 | CI62: 576449.2622 | CJ62: 47680.78332 | CO62: 4115.87211 | CP62: 43563.88179 | CQ62: 31 | CR62: -6255.178173 | CS62: 355.8532361 | CT62: 383.8002237 | CU62: 0 | CV62: 0 | CW62: 0 | CX62: 217.3135281 | CY62: -86.59876468 | CZ62: 582.9768997 | DA62: 0 | DB62: -18.24736056 | DC62: 1798.567855 | DD62: 27.52506762 | DE62: 1.303729007 | DF62: 3.594334038 | DG62: 91.27221962 | DH62: 0 | DI62: -1366.167413 | DK62: 0 | DL62: 0 | DM62: 37.02444569 | DN62: 0.01914520278 | DO62: -196.9971006 | DP62: -8.720656909 | DQ62: 0 | DR62: -8086.8917 | DU62: 45362.76684 | DV62: 0 | DW62: 340.6444795 | DX62: -3.605771623 | DY62: -3209.67302 | DZ62: -3057.83621 | EA62: 7325.54513 | EB62: 46621.718 | EC62: 9.119196591 | ED62: 40462.97599 | EE62: 80.86292181 | EF62: 29.33042273 | EG62: 619.2405513 | EH62: 2053.381317 | EI62: -652.6974229 | EJ62: -511.6605818 | EK62: 0 | EL62: 0 | EM62: 0 | EN62: -176.6327174 | EO62: 0 | EP62: 4996.955105 | EQ62: 9336.034894 | ER62: 0 | ES62: -698.5153124 | ET62: 0 | EU62: 9.194138625 | EV62: 165 | EW62: 0 | EX62: 0 | EY62: 0 | FA62: 0 | FF62: 0 | FG62: 0 | FH62: 0 | FI62: 0
A63: 72 | B63: Sistema de Compensação | C63: Azul | D63: A4 | E63: Comercial | F63: Não se aplica | G63: Não se aplica | H63: Não se aplica | I63: Fora ponta | J63: CATIVO | K63: 2021-07-01 | L63: 296 | M63: 296 | N63: 72.99 | O63: 72.99 | P63: 72.99 | Q63: 72.99 | R63: 16.89 | S63: 77.17 | T63: 240.27 | U63: 4999.44 | V63: 23169.9456 | W63: 28169.3856 | X63: 30707.0486 | Y63: 0 | Z63: 3815.296384 | AA63: 0 | AB63: 0 | AC63: 34.39292856 | AD63: 407.5668625 | AE63: 2425.904062 | AF63: 15391.54217 | AG63: 585.5270915 | AH63: 308.7175275 | AI63: 0 | AJ63: 0 | AK63: 213.0047468 | AL63: 676.84335 | AN63: 17.11179042 | AO63: 936.5301999 | AP63: 1193.827575 | AQ63: 0 | AR63: 0 | AS63: 0 | AT63: 321.5738907 | AU63: 0 | AV63: 263.3598831 | AW63: 73.02665746 | AX63: 53.24677733 | AY63: 288.0474928 | AZ63: 0 | BB63: 2301.960434 | BC63: -71.66949013 | BD63: 30.75910856 | BE63: 11.15687681 | BF63: 235.5503229 | BG63: 781.0771293 | BH63: 18.32433713 | BI63: 0 | BJ63: 0 | BK63: 0 | BL63: 0 | BV63: 16450.08561 | CI63: 30707.0486 | CJ63: 2537.633 | CO63: 218.7707 | CP63: 2318.8923 | CQ63: 31 | CR63: -332.991255 | CS63: 19.03027243 | CT63: 20.52481775 | CU63: 0 | CV63: 0 | CW63: 0 | CX63: 11.56753361 | CY63: -4.609626148 | CZ63: 31.17636175 | DA63: 0 | DB63: -0.9758299415 | DC63: 95.73722496 | DD63: 1.465151055 | DE63: 0.06939710218 | DF63: 0.1913253177 | DG63: 4.858392746 | DH63: 0 | DI63: -72.72067969 | DK63: 0 | DL63: 0 | DM63: 1.970800087 | DN63: 0.001019093375 | DO63: -10.4860963 | DP63: -0.4641979394 | DQ63: 0 | DR63: -430.8165221 | DU63: 2425.904062 | DV63: 0 | DW63: 18.13240299 | DX63: -0.1919341369 | DY63: -170.8774 | DZ63: -162.7677 | EA63: 389.6481 | EB63: 2481.66 | EC63: 0.4876751926 | ED63: 2153.832019 | EE63: 4.30430896 | EF63: 1.561249563 | EG63: 32.96198794 | EH63: 109.3008687 | EI63: -34.9048667 | EJ63: -27.36251711 | EK63: 0 | EL63: 0 | EM63: 0 | EN63: -9.402106321 | EO63: 0 | EP63: 265.9864144 | EQ63: 496.954324 | ER63: 0 | ES63: -37.18175958 | ET63: 0 | EU63: 0.4894012284 | EV63: 165 | EW63: 0 | EX63: 0 | EY63: 0 | FA63: 0 | FF63: 0 | FG63: 0 | FH63: 0 | FI63: 0
A64: 73 | B64: Regular | C64: Azul | D64: A4 | E64: Comercial | F64: Não se aplica | G64: Não se aplica | H64: Não se aplica | I64: Não se aplica | J64: CATIVO | K64: 2021-07-01 | L64: 0 | M64: 0 | N64: 0 | O64: 0 | P64: 0 | Q64: 0 | AA64: 0 | AZ64: 0 | BI64: 6699.73 | BJ64: 30862.2 | BK64: 209399.09 | BL64: 51 | CJ64: -0.03 | CO64: 0 | CP64: 0 | CQ64: 31 | DK64: 0 | EV64: 165 | FA64: 0 | FF64: 0 | FG64: 0 | FH64: 0 | FI64: 0
A65: 74 | B65: Sistema de Compensação | C65: Azul | D65: A4 | E65: Comercial | F65: Não se aplica | G65: Não se aplica | H65: Não se aplica | I65: Não se aplica | J65: CATIVO | K65: 2021-07-01 | L65: 0 | M65: 0 | N65: 0 | O65: 0 | P65: 0 | Q65: 0 | AA65: 0 | AZ65: 0 | BI65: 367.19 | BJ65: 1691.46 | BK65: 17124.87 | BL65: 3 | CJ65: -0.03 | CO65: 0 | CP65: 0 | CQ65: 31 | DK65: 0 | EV65: 165 | FA65: 0 | FF65: 0 | FG65: 0 | FH65: 0 | FI65: 0
A66: 69 | B66: Regular | C66: Azul | D66: A4 | E66: Comercial | F66: Não se aplica | G66: Não se aplica | H66: Não se aplica | I66: Ponta | J66: CATIVO | K66: 2021-07-01 | L66: 5082 | M66: 5082 | N66: 155.487 | O66: 155.487 | P66: 155.487 | Q66: 155.487 | R66: 34.03 | S66: 77.17 | T66: 392.1 | U66: 172940.46 | V66: 72965.38449 | W66: 245905.8445 | X66: 252767.5571 | Y66: 0 | Z66: 8127.537867 | AA66: 0 | AB66: 0 | AC66: 823.502544 | AD66: 17693.35304 | AE66: 108370.0693 | AF66: 56395.09131 | AG66: 1247.319508 | AH66: 657.645735 | AI66: 0 | AJ66: 0 | AK66: 453.7535151 | AL66: 1441.846033 | AN66: 36.45240385 | AO66: 20282.00684 | AP66: 25757.56452 | AQ66: 0 | AR66: 0 | AS66: 0 | AT66: 685.0330119 | AU66: 0 | AV66: 561.0225803 | AW66: 155.5650896 | AX66: 113.4289857 | AY66: 613.6133787 | AZ66: 0 | BB66: 8207.258459 | BC66: -1365.700358 | BD66: 65.52461314 | BE66: 23.76694485 | BF66: 501.7812448 | BG66: 1663.890117 | BH66: 39.03543235 | BI66: 0 | BJ66: 0 | BK66: 0 | BL66: 0 | BV66: 58650.05423 | CI66: 252769.1316 | CJ66: 6863.25711 | CO66: -1167.63609 | CP66: 8029.34868 | CQ66: 31 | CR66: -1362.501335 | CS66: 412.1299192 | CT66: 442.8355723 | CU66: 0 | CV66: 0 | CW66: 0 | CX66: 24.6417468 | CY66: -9.819659417 | CZ66: 1353.432837 | DA66: 0 | DB66: -23.36522282 | DC66: 350.7841828 | DD66: 3.121139089 | DE66: 0.1478332268 | DF66: 0.4075708956 | DG66: 10.34959464 | DH66: 0 | DI66: -154.9132802 | DK66: 0 | DL66: 0 | DM66: 4.198298303 | DN66: 0.002170924395 | DO66: -22.33801419 | DP66: -0.9888579942 | DQ66: 0 | DR66: -3754.169712 | DU66: 108370.0693 | DV66: 0 | DW66: 38.62656452 | DX66: -0.4088678332 | DY66: -808.78062 | DZ66: -559.7532 | EA66: -358.85547 | EB66: 8589.10188 | EC66: 21.7854429 | ED66: 7891.707796 | EE66: 9.169257259 | EF66: 3.325853006 | EG66: 70.21729853 | EH66: 232.8382542 | EI66: -753.0939769 | EJ66: -592.577537 | EK66: 0 | EL66: 0 | EM66: 0 | EN66: -20.02884375 | EO66: 0 | EP66: 566.6177506 | EQ66: 1058.637306 | ER66: 0 | ES66: -79.2064701 | ET66: 0 | EU66: 1.042547319 | EV66: 165 | EW66: 0 | EX66: 0 | EY66: 0 | FA66: 0 | FF66: 0 | FG66: 0 | FH66: 0 | FI66: 0
A67: 70 | B67: Sistema de Compensação | C67: Azul | D67: A4 | E67: Comercial | F67: Não se aplica | G67: Não se aplica | H67: Não se aplica | I67: Ponta | J67: CATIVO | K67: 2021-07-01 | L67: 260 | M67: 260 | N67: 10.496 | O67: 10.496 | P67: 10.496 | Q67: 10.496 | R67: 34.03 | S67: 77.17 | T67: 392.1 | U67: 8847.8 | V67: 4925.45792 | W67: 13773.25792 | X67: 14265.52064 | Y67: 0 | Z67: 548.6416064 | AA67: 0 | AB67: 0 | AC67: 42.13118092 | AD67: 905.2089314 | AE67: 5544.316808 | AF67: 3806.896257 | AG67: 84.19910059 | AH67: 44.39374118 | AI67: 0 | AJ67: 0 | AK67: 30.63019348 | AL67: 97.33042611 | AN67: 2.460684371 | AO67: 1037.646946 | AP67: 1317.781735 | AQ67: 0 | AR67: 0 | AS67: 0 | AT67: 46.24249289 | AU67: 0 | AV67: 37.8712883 | AW67: 10.50127136 | AX67: 7.656914301 | AY67: 41.42137943 | AZ67: 0 | BB67: 554.0230681 | BC67: -70.19787462 | BD67: 4.423175825 | BE67: 1.604364693 | BF67: 33.87225907 | BG67: 112.3192978 | BH67: 2.635049219 | BI67: 0 | BJ67: 0 | BK67: 0 | BL67: 0 | BV67: 3959.115355 | CI67: 14267.62 | CJ67: 494.33208 | CO67: -49.75072 | CP67: 542.01344 | CQ67: 31 | CR67: -84.58644973 | CS67: 21.08496241 | CT67: 22.65589311 | CU67: 0 | CV67: 0 | CW67: 0 | CX67: 1.663417356 | CY67: -0.6628666399 | CZ67: 69.24292356 | DA67: 0 | DB67: -1.195387236 | DC67: 23.679348 | DD67: 0.2106894845 | DE67: 0.009979339423 | DF67: 0.02751268029 | DG67: 0.6986394062 | DH67: 0 | DI67: -10.4572716 | DK67: 0 | DL67: 0 | DM67: 0.2834020785 | DN67: 0.0001465461579 | DO67: -1.507906107 | DP67: -0.06675190535 | DQ67: 0 | DR67: -210.3235564 | DU67: 5544.316808 | DV67: 0 | DW67: 2.607448991 | DX67: -0.02760022881 | DY67: -47.12096 | DZ67: -37.7856 | EA67: -2.62976 | EB67: 579.79904 | EC67: 1.114564178 | ED67: 532.7221249 | EE67: 0.6189618694 | EF67: 0.2245085 | EG67: 4.739951027 | EH67: 15.71752182 | EI67: -38.52901102 | EJ67: -30.31683582 | EK67: 0 | EL67: 0 | EM67: 0 | EN67: -1.352027784 | EO67: 0 | EP67: 38.24898487 | EQ67: 71.46229052 | ER67: 0 | ES67: -5.346756386 | ET67: 0 | EU67: 0.07037615144 | EV67: 165 | EW67: 0 | EX67: 0 | EY67: 0 | FA67: 0 | FF67: 0 | FG67: 0 | FH67: 0 | FI67: 0
A68: 82 | B68: Regular | C68: Verde | D68: A4 | E68: Comercial | F68: Não se aplica | G68: Não se aplica | H68: Não se aplica | I68: Fora ponta | J68: CATIVO | K68: 2021-07-01 | L68: 0 | M68: 0 | N68: 11442.887 | O68: 11442.887 | P68: 11442.887 | Q68: 11442.887 | S68: 77.17 | T68: 240.27 | V68: 3632430.049 | W68: 3632430.049 | X68: 4040941.115 | Y68: 0 | Z68: 598136.805 | AA68: 0 | AB68: 0 | AC68: 0 | AD68: 0 | AE68: 0 | AF68: 2412983.667 | AG68: 91795.04512 | AH68: 48398.68177 | AI68: 0 | AJ68: 0 | AK68: 33393.46826 | AL68: 106111.0011 | AN68: 2682.672751 | AO68: 0 | AP68: 0 | AQ68: 0 | AR68: 0 | AS68: 0 | AT68: 50414.21692 | AU68: 0 | AV68: 41287.81179 | AW68: 11448.63391 | AX68: 8347.675792 | AY68: 45158.17113 | AZ68: 0 | BB68: 360886.0546 | BC68: -1473.999729 | BD68: 4822.20857 | BE68: 1749.100981 | BF68: 36928.01381 | BG68: 122452.0801 | BH68: 2872.767765 | BI68: 0 | BJ68: 0 | BK68: 0 | BL68: 0 | BV68: 2578935.07 | CI68: 4040942.175 | CJ68: 408512.0953 | CO68: 44970.54591 | CP68: 363540.52 | CQ68: 31 | CR68: -51190.46949 | CS68: 0 | CT68: 0 | CU68: 0 | CV68: 0 | CW68: 0 | CX68: 1813.481025 | CY68: -722.6665451 | CZ68: 0 | DA68: 0 | DB68: 0 | DC68: 15009.04572 | DD68: 229.6966429 | DE68: 10.87961636 | DF68: 29.99471148 | DG68: 761.6665186 | DH68: 0 | DI68: -11400.66475 | DK68: 0 | DL68: 0 | DM68: 308.9689367 | DN68: 0.1597666849 | DO68: -1643.940472 | DP68: -72.77386718 | DQ68: 0 | DR68: -55591.04186 | DV68: 0 | DW68: 2842.677607 | DX68: -30.0901581 | DY68: -25860.92462 | DZ68: -25517.63801 | EA68: 70831.47053 | EB68: 389058.158 | EC68: 0 | ED68: 337663.4663 | EE68: 674.800946 | EF68: 244.7623282 | EG68: 5167.561355 | EH68: 17135.46362 | EI68: 0 | EJ68: 0 | EK68: 0 | EL68: 0 | EM68: 0 | EN68: -1473.999729 | EO68: 0 | EP68: 41699.58191 | EQ68: 77909.19543 | ER68: 0 | ES68: -5829.109102 | ET68: 0 | EU68: 76.7250713 | EV68: 165 | EW68: 0 | EX68: 0 | EY68: 0 | FA68: 0 | FF68: 0 | FG68: 0 | FH68: 0 | FI68: 0
A69: 83 | B69: Refaturamento - Regular | C69: Verde | D69: A4 | E69: Comercial | F69: Não se aplica | G69: Não se aplica | H69: Não se aplica | I69: Fora ponta | J69: CATIVO | K69: 2021-07-01 | L69: 0 | M69: 0 | N69: -86.944 | O69: -86.944 | P69: -86.944 | Q69: -86.944 | S69: 77.17 | T69: 240.27 | V69: -27599.50336 | W69: -27599.50336 | X69: -30703.40416 | Y69: 0 | Z69: -4544.692819 | AA69: 0 | AB69: 0 | AC69: 0 | AD69: 0 | AE69: 0 | AF69: -18334.04908 | AG69: -697.4663302 | AH69: -367.7371792 | AI69: 0 | AJ69: 0 | AK69: -253.7263283 | AL69: -806.2401456 | AN69: -20.38316901 | AO69: 0 | AP69: 0 | AQ69: 0 | AR69: 0 | AS69: 0 | AT69: -383.0513817 | AU69: 0 | AV69: -313.7082021 | AW69: -86.98766552 | AX69: -63.42632974 | AY69: -343.1155119 | AZ69: 0 | BB69: -2742.042033 | BC69: 11.19957161 | BD69: -36.63953877 | BE69: -13.28981363 | BF69: -280.5820972 | BG69: -930.4010129 | BH69: -21.82752661 | BI69: 0 | BJ69: 0 | BK69: 0 | BL69: 0 | BV69: -19594.96155 | CI69: -30701.9916 | CJ69: -3102.51824 | CO69: -341.68992 | CP69: -2762.21088 | CQ69: 31 | CR69: 388.9494128 | CS69: 0 | CT69: 0 | CU69: 0 | CV69: 0 | CW69: 0 | CX69: -13.77897852 | CY69: 5.490880063 | CZ69: 0 | DA69: 0 | DB69: 0 | DC69: -114.0399683 | DD69: -1.745254053 | DE69: -0.0826642232 | DF69: -0.2279022938 | DG69: -5.787205082 | DH69: 0 | DI69: 86.62319188 | DK69: 0 | DL69: 0 | DM69: -2.347571486 | DN69: -0.00121392046 | DO69: 12.49079541 | DP69: 0.5529418501 | DQ69: 0 | DR69: 422.3853249 | DV69: 0 | DW69: -21.59889911 | DX69: 0.2286275051 | DY69: 196.49344 | DZ69: 193.88512 | EA69: -538.18336 | EB69: -2956.096 | EC69: 0 | ED69: -2565.59489 | EE69: -5.12719329 | EF69: -1.859724374 | EG69: -39.26355774 | EH69: -130.1966671 | EI69: 0 | EJ69: 0 | EK69: 0 | EL69: 0 | EM69: 0 | EN69: 11.19957161 | EO69: 0 | EP69: -316.8368655 | EQ69: -591.960498 | ER69: 0 | ES69: 44.29005214 | ET69: 0 | EU69: -0.5829634252 | EV69: 165 | EW69: 0 | EX69: 0 | EY69: 0 | FA69: 0 | FF69: 0 | FG69: 0 | FH69: 0 | FI69: 0
A70: 84 | B70: Sistema de Compensação | C70: Verde | D70: A4 | E70: Comercial | F70: Não se aplica | G70: Não se aplica | H70: Não se aplica | I70: Fora ponta | J70: CATIVO | K70: 2021-07-01 | L70: 0 | M70: 0 | N70: 480.728 | O70: 480.728 | P70: 480.728 | Q70: 480.728 | S70: 77.17 | T70: 240.27 | V70: 152602.2963 | W70: 152602.2963 | X70: 169764.2859 | Y70: 0 | Z70: 25128.37101 | AA70: 0 | AB70: 0 | AC70: 0 | AD70: 0 | AE70: 0 | AF70: 101372.0412 | AG70: 3856.408654 | AH70: 2033.280717 | AI70: 0 | AJ70: 0 | AK70: 1402.895546 | AL70: 4457.837375 | AN70: 112.7019699 | AO70: 0 | AP70: 0 | AQ70: 0 | AR70: 0 | AS70: 0 | AT70: 2117.955519 | AU70: 0 | AV70: 1734.545415 | AW70: 480.969434 | AX70: 350.6948455 | AY70: 1897.143377 | AZ70: 0 | BB70: 15161.21161 | BC70: -61.92431521 | BD70: 202.5861726 | BE70: 73.48161494 | BF70: 1551.385609 | BG70: 5144.343694 | BH70: 120.688066 | BI70: 0 | BJ70: 0 | BK70: 0 | BL70: 0 | BV70: 108343.8383 | CI70: 169764.9922 | CJ70: 17162.66588 | CO70: 1889.26104 | CP70: 15272.72856 | CQ70: 31 | CR70: -2150.566725 | CS70: 0 | CT70: 0 | CU70: 0 | CV70: 0 | CW70: 0 | CX70: 76.18628989 | CY70: -30.35999944 | CZ70: 0 | DA70: 0 | DB70: 0 | DC70: 630.5461663 | DD70: 9.649803212 | DE70: 0.4570643942 | DF70: 1.260110115 | DG70: 31.99843031 | DH70: 0 | DI70: -478.9541979 | DK70: 0 | DL70: 0 | DM70: 12.98011761 | DN70: 0.006711970406 | DO70: -69.06370876 | DP70: -3.057308494 | DQ70: 0 | DR70: -2335.439507 | DV70: 0 | DW70: 119.4239461 | DX70: -1.264119931 | DY70: -1086.44528 | DZ70: -1072.02344 | EA70: 2975.70632 | EB70: 16344.752 | EC70: 0 | ED70: 14185.60568 | EE70: 28.3491141 | EF70: 10.28272887 | EG70: 217.0948149 | EH70: 719.8792713 | EI70: 0 | EJ70: 0 | EK70: 0 | EL70: 0 | EM70: 0 | EN70: -61.92431521 | EO70: 0 | EP70: 1751.844322 | EQ70: 3273.049161 | ER70: 0 | ES70: -244.8871479 | ET70: 0 | EU70: 3.223302832 | EV70: 165 | EW70: 0 | EX70: 0 | EY70: 0 | FA70: 0 | FF70: 0 | FG70: 0 | FH70: 0 | FI70: 0
A71: 85 | B71: Sistema de Compensação - Refaturamento | C71: Verde | D71: A4 | E71: Comercial | F71: Não se aplica | G71: Não se aplica | H71: Não se aplica | I71: Fora ponta | J71: CATIVO | K71: 2021-07-01 | L71: 0 | M71: 0 | N71: -29.985 | O71: -29.985 | P71: -29.985 | Q71: -29.985 | S71: 77.17 | T71: 240.27 | V71: -9518.4384 | W71: -9518.4384 | X71: -10588.9029 | Y71: 0 | Z71: -1567.360763 | AA71: 0 | AB71: 0 | AC71: 0 | AD71: 0 | AE71: 0 | AF71: -6322.994822 | AG71: -240.5402088 | AH71: -126.8241549 | AI71: 0 | AJ71: 0 | AK71: -87.50441612 | AL71: -278.0538135 | AN71: -7.029689487 | AO71: 0 | AP71: 0 | AQ71: 0 | AR71: 0 | AS71: 0 | AT71: -132.1056735 | AU71: 0 | AV71: -108.1907945 | AW71: -30.00005924 | AX71: -21.87429262 | AY71: -118.3327041 | AZ71: 0 | BB71: -945.6676752 | BC71: 3.862476477 | BD71: -12.63614016 | BE71: -4.583353214 | BF71: -96.76635748 | BG71: -320.8740611 | BH71: -7.527815439 | BI71: 0 | BJ71: 0 | BK71: 0 | BL71: 0 | BV71: -6757.854734 | CI71: -10590.6686 | CJ71: -1072.2602 | CO71: -117.84105 | CP71: -952.62345 | CQ71: 31 | CR71: 134.1397698 | CS71: 0 | CT71: 0 | CU71: 0 | CV71: 0 | CW71: 0 | CX71: -4.752055013 | CY71: 1.893679135 | CZ71: 0 | DA71: 0 | DB71: 0 | DC71: -39.32978066 | DD71: -0.6018982653 | DE71: -0.02850900272 | DF71: -0.07859829635 | DG71: -1.995874866 | DH71: 0 | DI71: 29.87436061 | DK71: 0 | DL71: 0 | DM71: -0.8096237924 | DN71: -0.0004186534436 | DO71: 4.307790075 | DP71: 0.1906970162 | DQ71: 0 | DR71: 145.6710522 | DV71: 0 | DW71: -7.448967034 | DX71: 0.07884840519 | DY71: 67.7661 | DZ71: 66.86655 | EA71: -185.60715 | EB71: -1019.49 | EC71: 0 | ED71: -884.8150854 | EE71: -1.768251873 | EF71: -0.6413764647 | EG71: -13.54110438 | EH71: -44.90185708 | EI71: 0 | EJ71: 0 | EK71: 0 | EL71: 0 | EM71: 0 | EN71: 3.862476477 | EO71: 0 | EP71: -109.2697991 | EQ71: -204.1536568 | ER71: 0 | ES71: 15.2746275 | ET71: 0 | EU71: -0.2010507718 | EV71: 165 | EW71: 0 | EX71: 0 | EY71: 0 | FA71: 0 | FF71: 0 | FG71: 0 | FH71: 0 | FI71: 0
A72: 2303 | B72: Regular | C72: Verde | D72: A4 | E72: Comercial | F72: Não se aplica | G72: Não se aplica | H72: Não se aplica | I72: Fora ponta | J72: LIVRE | K72: 2021-07-01 | L72: 0 | M72: 0 | N72: 9.606 | O72: 9.606 | P72: 0 | Q72: 0 | S72: 77.17 | V72: 741.29502 | W72: 741.29502 | X72: 779.0466 | Y72: 0 | Z72: 502.1199763 | AA72: 0 | AB72: 0 | AC72: 0 | AD72: 0 | AE72: 0 | AI72: 0 | AJ72: 0 | AK72: 2.072083532 | AL72: 89.07736978 | AN72: 2.25203259 | AO72: 0 | AP72: 0 | AQ72: 0 | AR72: 0 | AU72: 0 | AV72: 34.66002243 | AW72: 9.610824381 | AZ72: 0 | BB72: 15.15671599 | BC72: 0 | BD72: 4.048116137 | BE72: 1.468323861 | BG72: 102.795272 | BH72: 2.41161231 | BI72: 0 | BJ72: 0 | BK72: 0 | BL72: 0 | BV72: 108.311712 | CI72: 779.371 | CJ72: 38.04598 | CO72: 37.75158 | CP72: 0 | CQ72: 31 | CR72: -21.64184327 | CS72: 0 | CT72: 0 | CU72: 0 | CV72: 0 | CZ72: 0 | DA72: 0 | DB72: 0 | DE72: 0.009133149247 | DF72: 0.02517976437 | DG72: 0.6393988316 | DH72: 0 | DI72: -9.570555544 | DK72: 0 | DL72: 0 | DN72: 9.913612871e-06 | DO72: -1.380044404 | DP72: -0.06109173045 | DQ72: 0 | DR72: -11.30387325 | DV72: 0 | DW72: 2.38635242 | DX72: -0.02525988929 | DY72: -21.70956 | EA72: 59.46114 | EC72: 0 | EE72: 0.5664774883 | EF72: 0.2054714798 | EH72: 14.38476702 | EI72: 0 | EJ72: 0 | EK72: 0 | EL72: 0 | EO72: 0 | EP72: 35.00569252 | ER72: 0 | ET72: 0 | EV72: 165 | FA72: 0 | FF72: 0 | FG72: 0 | FH72: 0 | FI72: 0
A73: 86 | B73: Regular | C73: Verde | D73: A4 | E73: Comercial | F73: Não se aplica | G73: Não se aplica | H73: Não se aplica | I73: Não se aplica | J73: CATIVO | K73: 2021-07-01 | L73: 76714 | M73: 76714 | N73: 0 | O73: 0 | P73: 0 | Q73: 0 | R73: 16.89 | U73: 1295699.46 | W73: 1295699.46 | X73: 1278055.24 | Y73: 0 | Z73: 0 | AA73: 0 | AB73: 0 | AC73: 8913.578113 | AD73: 105628.6632 | AE73: 628718.9332 | AI73: 0 | AJ73: 0 | AK73: 0 | AL73: 0 | AN73: 0 | AO73: 242719.5194 | AP73: 309403.0019 | AQ73: 0 | AR73: 0 | AU73: 0 | AV73: 0 | AW73: 0 | AZ73: 0 | BB73: 0 | BC73: -16137.77054 | BD73: 0 | BE73: 0 | BG73: 0 | BH73: 0 | BI73: 52661 | BJ73: 242586.75 | BK73: 1819075.82 | BL73: 660 | BV73: 0 | CI73: 1278055.24 | CJ73: -17644.25 | CO73: -17644.22 | CP73: 0 | CQ73: 31 | CR73: -1675.768738 | CS73: 4932.055132 | CT73: 5319.394826 | CU73: 0 | CV73: 0 | CZ73: 8079.943972 | DA73: 0 | DB73: -252.904791 | DE73: 0 | DF73: 0 | DG73: 0 | DH73: 0 | DI73: 0 | DK73: 0 | DL73: 0 | DN73: 0 | DO73: 0 | DP73: 0 | DQ73: 0 | DR73: -19754.25788 | DU73: 628718.9332 | DW73: 0 | DX73: 0 | DY73: -1534.28 | EA73: -16109.94 | EC73: 126.3902525 | EE73: 0 | EF73: 0 | EH73: 0 | EI73: -9046.256567 | EJ73: -7091.513978 | EK73: 0 | EL73: 0 | EO73: 0 | EP73: 0 | ER73: 0 | ET73: 0 | EV73: 165 | FA73: 0 | FF73: 0 | FG73: 0 | FH73: 0 | FI73: 0
A74: 87 | B74: Refaturamento - Regular | C74: Verde | D74: A4 | E74: Comercial | F74: Não se aplica | G74: Não se aplica | H74: Não se aplica | I74: Não se aplica | J74: CATIVO | K74: 2021-07-01 | L74: 0 | M74: 0 | N74: 0 | O74: 0 | P74: 0 | Q74: 0 | AA74: 0 | AZ74: 0 | BI74: -291.79 | BJ74: -1344.06 | BK74: -5420.8 | BL74: 0 | CJ74: -0.03 | CO74: 0 | CP74: 0 | CQ74: 31 | DK74: 0 | EV74: 165 | FA74: 0 | FF74: 0 | FG74: 0 | FH74: 0 | FI74: 0
A75: 88 | B75: Sistema de Compensação | C75: Verde | D75: A4 | E75: Comercial | F75: Não se aplica | G75: Não se aplica | H75: Não se aplica | I75: Não se aplica | J75: CATIVO | K75: 2021-07-01 | L75: 9807 | M75: 9807 | N75: 0 | O75: 0 | P75: 0 | Q75: 0 | R75: 16.89 | U75: 165640.23 | W75: 165640.23 | X75: 163384.62 | Y75: 0 | Z75: 0 | AA75: 0 | AB75: 0 | AC75: 1139.498143 | AD75: 13503.40615 | AE75: 80374.4633 | AI75: 0 | AJ75: 0 | AK75: 0 | AL75: 0 | AN75: 0 | AO75: 31028.89078 | AP75: 39553.60482 | AQ75: 0 | AR75: 0 | AU75: 0 | AV75: 0 | AW75: 0 | AZ75: 0 | BB75: 0 | BC75: -2063.027814 | BD75: 0 | BE75: 0 | BG75: 0 | BH75: 0 | BI75: 3326.53 | BJ75: 15323.88 | BK75: 106623.37 | BL75: 54 | BV75: 0 | CI75: 163384.62 | CJ75: -2255.64 | CO75: -2255.61 | CP75: 0 | CQ75: 31 | CR75: -214.227703 | CS75: 630.5063571 | CT75: 680.023269 | CU75: 0 | CV75: 0 | CZ75: 1032.927634 | DA75: 0 | DB75: -32.33096026 | DE75: 0 | DF75: 0 | DG75: 0 | DH75: 0 | DI75: 0 | DK75: 0 | DL75: 0 | DN75: 0 | DO75: 0 | DP75: 0 | DQ75: 0 | DR75: -2525.354003 | DU75: 80374.4633 | DW75: 0 | DX75: 0 | DY75: -196.14 | EA75: -2059.47 | EC75: 16.15753586 | EE75: 0 | EF75: 0 | EH75: 0 | EI75: -1156.459553 | EJ75: -906.5682611 | EK75: 0 | EL75: 0 | EO75: 0 | EP75: 0 | ER75: 0 | ET75: 0 | EV75: 165 | FA75: 0 | FF75: 0 | FG75: 0 | FH75: 0 | FI75: 0
A76: 89 | B76: Sistema de Compensação - Refaturamento | C76: Verde | D76: A4 | E76: Comercial | F76: Não se aplica | G76: Não se aplica | H76: Não se aplica | I76: Não se aplica | J76: CATIVO | K76: 2021-07-01 | L76: 0 | M76: 0 | N76: 0 | O76: 0 | P76: 0 | Q76: 0 | AA76: 0 | AZ76: 0 | BI76: -112.15 | BJ76: -516.53 | BK76: -2956.95 | BL76: 0 | CJ76: -0.03 | CO76: 0 | CP76: 0 | CQ76: 31 | DK76: 0 | EV76: 165 | FA76: 0 | FF76: 0 | FG76: 0 | FH76: 0 | FI76: 0
A77: 2304 | B77: Regular | C77: Verde | D77: A4 | E77: Comercial | F77: Não se aplica | G77: Não se aplica | H77: Não se aplica | I77: Não se aplica | J77: LIVRE | K77: 2021-07-01 | L77: 130 | M77: 130 | N77: 0 | O77: 0 | P77: 0 | Q77: 0 | R77: 16.89 | U77: 2195.7 | W77: 2195.7 | X77: 2165.8 | Y77: 0 | Z77: 0 | AA77: 0 | AB77: 0 | AC77: 15.10500241 | AD77: 178.9989599 | AE77: 1065.430838 | AI77: 0 | AJ77: 0 | AK77: 0 | AL77: 0 | AN77: 0 | AO77: 411.3139392 | AP77: 524.3161646 | AQ77: 0 | AR77: 0 | AU77: 0 | AV77: 0 | AW77: 0 | AZ77: 0 | BB77: 0 | BC77: -27.34716181 | BD77: 0 | BE77: 0 | BG77: 0 | BH77: 0 | BI77: 164.67 | BJ77: 0 | BK77: 2128.83 | BL77: 1 | BV77: 0 | CI77: 2165.8 | CJ77: -29.93 | CO77: -29.9 | CP77: 0 | CQ77: 31 | CR77: -2.839767655 | CS77: 8.357889918 | CT77: 9.014278064 | CU77: 0 | CV77: 0 | CZ77: 13.69232104 | DA77: 0 | DB77: -0.4285739608 | DE77: 0 | DF77: 0 | DG77: 0 | DH77: 0 | DI77: 0 | DK77: 0 | DL77: 0 | DN77: 0 | DO77: 0 | DP77: 0 | DQ77: 0 | DR77: -33.47568272 | DU77: 1065.430838 | DW77: 0 | DX77: 0 | DY77: -2.6 | EA77: -27.3 | EC77: 0.2141816724 | EE77: 0 | EF77: 0 | EH77: 0 | EI77: -15.3298401 | EJ77: -12.0173217 | EK77: 0 | EL77: 0 | EO77: 0 | EP77: 0 | ER77: 0 | ET77: 0 | EV77: 165 | FA77: 0 | FF77: 0 | FG77: 0 | FH77: 0 | FI77: 0
